Workbook

Sheet Disclaimer
B11: Programme Area: | E11: Carbon Capture and Storage
B13: Project: | D13: Next Gen Capture Tech Benchmarking and Performance Analysis
B15: Title: | C15: Benchmarking and Performance Analysis of Future CO2 Capture Technologies – Economic Model
B19: Abstract:
B20: This spreadsheet model was produced as part of the CCS Capture Benchmarking Study, and provides a techno-economic analysis of the performance of four state-of-the art power generation/CO2 capture designs (coal with post-combustion capture, coal with gasification/pre-combustion capture, coal with oxy-firing and combined cycle gas turbine with post-combustion capture). The spreadsheet enables ‘what if’ calculations of costs for designs with 85%, 90% and 95% capture rates. Outputs include capital costs, operating costs, cost of capture and levelised cost of electricity (LCOE). The spreadsheet concentrates on power generation, capture and compression, but allows manual input of transport and storage costs to provide overall figures. The model is partly superseded by work undertaken and reported in the Benchmark Refresh project.
B33: Context:
B34: This project provided ETI with an objective view of the techno-economic performance of a range of current and next generation CO2 capture technologies including pre and post combustion and oxyfuel CCS plant. The analysis that underpins these benchmarking studies was based on coal and gas fired power station designs typical of those found in the UK and considered parameters such as power station capital cost, efficiency and levelised cost of electricity (with and without CCS).
B46: Disclaimer:
B47: The Energy Technologies Institute is making this document available to use under the Energy Technologies Institute Open Licence for Materials. Please refer to the Energy Technologies Institute website for the terms and conditions of this licence. The Information is licensed ‘as is’ and the Energy Technologies Institute excludes all representations, warranties, obligations and liabilities in relation to the Information to the maximum extent permitted by law. The Energy Technologies Institute is not liable for any errors or omissions in the Information and shall not be liable for any loss, injury or damage of any kind caused by its use. This exclusion of liability includes, but is not limited to, any direct, indirect, special, incidental, consequential, punitive, or exemplary damages in each case such as loss of revenue, data, anticipated profits, and lost business. The Energy Technologies Institute does not guarantee the continued supply of the Information. Notwithstanding any statement to the contrary contained on the face of this document, the Energy Technologies Institute confirms that the authors of the document have consented to its publication by the Energy Technologies Institute.

Sheet Title Page
B7: THE ENERGY TECHNOLOGIES INSTITUTE
B9: Benchmarking and Performance Analysis of Next Generation Carbon Capture Technologies
B11: Economic Model

Sheet Contents
B2: ='Title Page'!B9 -> Benchmarking and Performance Analysis of Next Generation Carbon Capture Technologies
B4: General Information | E4: Model Contents
E6: Title Page | F6: Introduction page
B7: Author | C7: Tim Bullen, Foster Wheeler | E7: Contents | F7: This page, tracks version control and changes
B8: Purpose | E8: Input Data | F8: General input values for all calculations & scenario selection.
B9: Scope | E9: IGCC with CC | F9: Cash flow analysis for the IGCC case with 90% carbon capture
B10: Basis | E10: IGCC with 95% CC | F10: Cash flow analysis for the IGCC case with 95% carbon capture
E11: IGCC with 85% CC | F11: Cash flow analysis for the IGCC case with 85% carbon capture
B12: Version Control | E12: IGCC without CC | F12: Cash flow analysis for the IGCC case without carbon capture
E13: CCGT with 90% CC | F13: Cash flow analysis for the CCGT case with 90% carbon capture
B14: Status | C14: Final | E14: CCGT with 95% CC | F14: Cash flow analysis for the CCGT case with 95% carbon capture
B15: Release Date | C15: 24th September 2010 | E15: CCGT with 85% CC | F15: Cash flow analysis for the CCGT case with 85% carbon capture
B16: Version Number | C16: 3 | E16: CCGT with 75% CC | F16: Cash flow analysis for the CCGT case with 75% carbon capture
B17: Version History | C17: 3.0 - Addition of 85% and 95% Capture cases for IGCC, USCPC and CCGT | E17: CCGT without CC | F17: Cash flow analysis for the CCGT case without carbon capture
E18: USCPC with CC | F18: Cash flow analysis for the USCPC case with 90% carbon capture
E19: USCPC with 95% CC | F19: Cash flow analysis for the USCPC case with 95% carbon capture
E20: USCPC with 85% CC | F20: Cash flow analysis for the USCPC case with 85% carbon capture
E21: USCPC without CC | F21: Cash flow analysis for the USCPC case without carbon capture
E22: Oxyfuel with CC | F22: Cash flow analysis for the oxyfuel case with carbon capture
E23: Summary Results | F23: Summary of key results
B24: Comments
E25: Running Procedures
E27: Save the file under a new filename
E28: Enter a unique identifier for the dataset
E29: Enter any required adjustments on the "Input Data" dataset only. Update the individual economic
E30: model sheets by pressing the "Update Economic Model" button.
E31: Check data and verify reports. Print out required reports

Sheet Input Data
A1: Benchmarking and Performance Analysis of Next Generation Carbon Capture Technologies
A3: Input Data
BS4: (Version 1)
F5: IGCC with 90 % CC | M5: IGCC without CC | T5: CCGT with 90% CC | AA5: CCGT without CC | AH5: USCPC with 90% CC | AO5: USCPC without CC | AV5: OxyFuel | BE5: CCGT with 75% CC | BL5: IGCC with 95 % CC | BS5: IGCC with 85 % CC | BZ5: CCGT with 95% CC | CG5: CCGT with 85% CC | CN5: USCPC with 95% CC | CU5: USCPC with 85% CC
E7: Raw Value | F7: Adj. Factor | G7: Adjusted Value | L7: Raw Value | M7: Adj. Factor | N7: Adjusted Value | S7: Raw Value | T7: Adj. Factor | U7: Adjusted Value | Z7: Raw Value | AA7: Adj. Factor | AB7: Adjusted Value | AG7: Raw Value | AH7: Adj. Factor | AI7: Adjusted Value | AN7: Raw Value | AO7: Adj. Factor | AP7: Adjusted Value | AU7: Raw Value | AV7: Adj. Factor | AW7: Adjusted Value | BD7: Raw Value | BE7: Adj. Factor | BF7: Adjusted Value | BK7: Raw Value | BL7: Adj. Factor | BM7: Adjusted Value | BR7: Raw Value | BS7: Adj. Factor | BT7: Adjusted Value | BY7: Raw Value | BZ7: Adj. Factor | CA7: Adjusted Value | CF7: Raw Value | CG7: Adj. Factor | CH7: Adjusted Value | CM7: Raw Value | CN7: Adj. Factor | CO7: Adjusted Value | CT7: Raw Value | CU7: Adj. Factor | CV7: Adjusted Value
A8: Data From Process Simulations
A10: Power / Performance Data | G10: =IF(PRODUCT(F11:F23)=1,0,1) -> 0 | N10: =IF(PRODUCT(M11:M23)=1,0,1) -> 0 | U10: =IF(PRODUCT(T11:T23)=1,0,1) -> 0 | AB10: =IF(PRODUCT(AA11:AA23)=1,0,1) -> 0 | AI10: =IF(PRODUCT(AH11:AH23)=1,0,1) -> 0 | AP10: =IF(PRODUCT(AO11:AO23)=1,0,1) -> 0 | AW10: =IF(PRODUCT(AV11:AV23)=1,0,1) -> 0 | BF10: =IF(PRODUCT(BE11:BE23)=1,0,1) -> 0 | BM10: =IF(PRODUCT(BL11:BL23)=1,0,1) -> 0 | BT10: =IF(PRODUCT(BS11:BS23)=1,0,1) -> 0 | CA10: =IF(PRODUCT(BZ11:BZ23)=1,0,1) -> 0 | CH10: =IF(PRODUCT(CG11:CG23)=1,0,1) -> 0 | CO10: =IF(PRODUCT(CN11:CN23)=1,0,1) -> 0 | CV10: =IF(PRODUCT(CU11:CU23)=1,0,1) -> 0
A11: Installed Gross Capacity | D11: MWe | E11: =SUM(E12:E14) -> 923.8 | F11: n/a | G11: =E11 -> 923.8 | H11: =IF(G10=1,"Performance Data: User Adjusted","") ->  | L11: =SUM(L12:L14) -> 878.1 | M11: n/a | N11: =L11 -> 878.1 | O11: =IF(N10=1,"Performance Data: User Adjusted","") ->  | S11: =SUM(S12:S14) -> 954.6 | T11: n/a | U11: =S11 -> 954.6 | V11: =IF(U10=1,"Performance Data: User Adjusted","") ->  | Z11: =SUM(Z12:Z14) -> 1037.6 | AA11: n/a | AB11: =Z11 -> 1037.6 | AC11: =IF(AB10=1,"Performance Data: User Adjusted","") ->  | AG11: =SUM(AG12:AG14) -> 745.7 | AH11: n/a | AI11: =AG11 -> 745.7 | AJ11: =IF(AI10=1,"Performance Data: User Adjusted","") ->  | AN11: =SUM(AN12:AN14) -> 836.2 | AO11: n/a | AP11: =AN11 -> 836.2 | AQ11: =IF(AP10=1,"Performance Data: User Adjusted","") ->  | AU11: =SUM(AU12:AU14) -> 855.4 | AV11: n/a | AW11: =AU11 -> 855.4 | AX11: =IF(AW10=1,"Performance Data: User Adjusted","") ->  | BD11: 970.7 | BE11: n/a | BF11: =BD11 -> 970.7 | BG11: =IF(BF10=1,"Performance Data: User Adjusted","") ->  | BK11: =SUM(BK12:BK14) -> 906.2 | BL11: n/a | BM11: =BK11 -> 906.2 | BN11: =IF(BM10=1,"Performance Data: User Adjusted","") ->  | BR11: =SUM(BR12:BR14) -> 923.8 | BS11: n/a | BT11: =BR11 -> 923.8 | BU11: =IF(BT10=1,"Performance Data: User Adjusted","") ->  | BY11: =BY12+BY13 -> 947.2 | BZ11: n/a | CA11: =BY11 -> 947.2 | CB11: =IF(CA10=1,"Performance Data: User Adjusted","") ->  | CF11: =CF12+CF13 -> 959.4 | CG11: n/a | CH11: =CF11 -> 959.4 | CI11: =IF(CH10=1,"Performance Data: User Adjusted","") ->  | CM11: =SUM(CM12:CM14) -> 733.9 | CN11: n/a | CO11: =CM11 -> 733.9 | CP11: =IF(CO10=1,"Performance Data: User Adjusted","") ->  | CT11: =SUM(CT12:CT14) -> 750.7 | CU11: n/a | CV11: =CT11 -> 750.7 | CW11: =IF(CV10=1,"Performance Data: User Adjusted","") -> 
B12: Gas Turbines | D12: MWe | E12: 544.4 | F12: n/a | G12: =E12 -> 544.4 | L12: 514.5 | M12: n/a | N12: =L12 -> 514.5 | S12: 729.1 | T12: n/a | U12: =S12 -> 729.1 | Z12: 729.1 | AA12: n/a | AB12: =Z12 -> 729.1 | AG12: n/a | AH12: n/a | AI12: n/a | AN12: n/a | AO12: n/a | AP12: n/a | AU12: n/a | AV12: n/a | AW12: n/a | BD12: 729.1 | BE12: n/a | BF12: =BD12 -> 729.1 | BK12: 545.6 | BL12: n/a | BM12: =BK12 -> 545.6 | BR12: 535.2 | BS12: n/a | BT12: =BR12 -> 535.2 | BY12: 729.1 | BZ12: n/a | CA12: =BY12 -> 729.1 | CF12: 729.1 | CG12: n/a | CH12: =CF12 -> 729.1 | CM12: n/a | CN12: n/a | CO12: n/a | CT12: n/a | CU12: n/a | CV12: n/a
B13: Steam Turbine | D13: MWe | E13: 379.4 | F13: n/a | G13: =E13 -> 379.4 | L13: 363.6 | M13: n/a | N13: =L13 -> 363.6 | S13: 225.5 | T13: n/a | U13: =S13 -> 225.5 | Z13: 308.5 | AA13: n/a | AB13: =Z13 -> 308.5 | AG13: 745.7 | AH13: n/a | AI13: =AG13 -> 745.7 | AN13: 836.2 | AO13: n/a | AP13: =AN13 -> 836.2 | AU13: 855.4 | AV13: n/a | AW13: =AU13 -> 855.4 | BD13: 241.6 | BE13: n/a | BF13: =BD13 -> 241.6 | BK13: 360.6 | BL13: n/a | BM13: =BK13 -> 360.6 | BR13: 388.6 | BS13: n/a | BT13: =BR13 -> 388.6 | BY13: 218.1 | BZ13: n/a | CA13: =BY13 -> 218.1 | CF13: 230.3 | CG13: n/a | CH13: =CF13 -> 230.3 | CM13: 733.9 | CN13: n/a | CO13: =CM13 -> 733.9 | CT13: 750.7 | CU13: n/a | CV13: =CT13 -> 750.7
B14: Expansion Turbine | D14: MWe | E14: 0 | F14: n/a | G14: =E14 -> 0 | L14: 0 | M14: n/a | N14: =L14 -> 0 | S14: 0 | T14: n/a | U14: =S14 -> 0 | Z14: 0 | AA14: n/a | AB14: =Z14*AA14 ->  | AG14: 0 | AH14: 1 | AI14: =AG14*AH14 -> 0 | AN14: 0 | AO14: 1 | AP14: =AN14*AO14 -> 0 | AU14: 0 | AV14: 1 | AW14: =AU14*AV14 -> 0 | BD14: 0 | BE14: n/a | BF14: =BD14 -> 0 | BK14: 0 | BL14: n/a | BM14: =BK14 -> 0 | BR14: 0 | BS14: n/a | BT14: =BR14 -> 0 | BY14: 0 | BZ14: n/a | CA14: =BY14 -> 0 | CF14: 0 | CG14: n/a | CH14: =CF14 -> 0 | CM14: 0 | CN14: 1 | CO14: =CM14*CN14 -> 0 | CT14: 0 | CU14: 1 | CV14: =CT14*CU14 -> 0
A15: Total Auxiliary Load | D15: MWe | E15: =SUM(E16:E21) -> 223.9 | F15: n/a | G15: =SUM(G16:G21) -> 223.9 | L15: =SUM(L16:L21) -> 132 | M15: n/a | N15: =SUM(N16:N21) -> 132 | S15: =SUM(S16:S21) -> 110.6 | T15: n/a | U15: =SUM(U16:U21) -> 110.6 | Z15: =SUM(Z16:Z21) -> 46.8 | AA15: n/a | AB15: =SUM(AB16:AB21) -> 46.8 | AG15: =SUM(AG16:AG21) -> 122.5 | AH15: n/a | AI15: =SUM(AI16:AI21) -> 122.5 | AN15: =SUM(AN16:AN21) -> 57 | AO15: n/a | AP15: =SUM(AP16:AP21) -> 57 | AU15: =SUM(AU16:AU21) -> 249.8 | AV15: n/a | AW15: =SUM(AW16:AW21) -> 249.8 | BD15: 98.4 | BE15: n/a | BF15: =SUM(BF16:BF21) -> 98.4 | BK15: =SUM(BK16:BK21) -> 236.1 | BL15: n/a | BM15: =SUM(BM16:BM21) -> 236.1 | BR15: =SUM(BR16:BR21) -> 216.4 | BS15: n/a | BT15: =SUM(BT16:BT21) -> 216.4 | BY15: =BY18+BY19+BY20+BY21 -> 112.9 | BZ15: n/a | CA15: =SUM(CA16:CA21) -> 112.9 | CF15: =CF18+CF19+CF20+CF21 -> 108.6 | CG15: n/a | CH15: =SUM(CH16:CH21) -> 108.6 | CM15: =SUM(CM16:CM21) -> 126.6 | CN15: n/a | CO15: =SUM(CO16:CO21) -> 126.6 | CT15: =SUM(CT16:CT21) -> 119.3 | CU15: n/a | CV15: =SUM(CV16:CV21) -> 119.3
B16: Air Separation Unit | D16: MWe | E16: 101.6 | F16: 1 | G16: =E16*F16 -> 101.6 | L16: 95.7 | M16: 1 | N16: =L16*M16 -> 95.7 | S16: n/a | T16: n/a | U16: n/a | Z16: n/a | AA16: n/a | AB16: n/a | AG16: n/a | AH16: n/a | AI16: n/a | AN16: n/a | AO16: n/a | AP16: n/a | AU16: 91.5 | AV16: 1 | AW16: 91.5 | BD16: n/a | BE16: n/a | BF16: n/a | BK16: 103.2 | BL16: 1 | BM16: =BK16*BL16 -> 103.2 | BR16: 98.1 | BS16: 1 | BT16: =BR16*BS16 -> 98.1 | BY16: n/a | BZ16: n/a | CA16: n/a | CF16: n/a | CG16: n/a | CH16: n/a | CM16: n/a | CN16: n/a | CO16: n/a | CT16: n/a | CU16: n/a | CV16: n/a
B17: Gasification island / Boiler | D17: MWe | E17: 13 | F17: 1 | G17: 13 | L17: 11.6 | M17: 1 | N17: =L17*M17 -> 11.6 | S17: n/a | T17: n/a | U17: n/a | Z17: n/a | AA17: n/a | AB17: n/a | AG17: n/a | AH17: n/a | AI17: n/a | AN17: n/a | AO17: n/a | AP17: n/a | AU17: n/a | AV17: n/a | AW17: n/a | BD17: n/a | BE17: n/a | BF17: n/a | BK17: 13 | BL17: 1 | BM17: 13 | BR17: 12.8 | BS17: 1 | BT17: 12.8 | BY17: n/a | BZ17: n/a | CA17: n/a | CF17: n/a | CG17: n/a | CH17: n/a | CM17: n/a | CN17: n/a | CO17: n/a | CT17: n/a | CU17: n/a | CV17: n/a
B18: Power Island | D18: MWe | E18: 7.6 | F18: 1 | G18: 7.6 | L18: 10.5 | M18: 1 | N18: =L18*M18 -> 10.5 | S18: 39.2 | T18: 1 | U18: =S18*T18 -> 39.2 | Z18: 40.1 | AA18: 1 | AB18: =Z18*AA18 -> 40.1 | AG18: 29 | AH18: 1 | AI18: =AG18*AH18 -> 29 | AN18: 29.1 | AO18: 1 | AP18: =AN18*AO18 -> 29.1 | AU18: 28.2 | AV18: 1 | AW18: 28.2 | BD18: 39.4 | BE18: 1 | BF18: =BD18*BE18 -> 39.4 | BK18: 7.7 | BL18: 1 | BM18: 7.7 | BR18: 7.3 | BS18: 1 | BT18: 7.3 | BY18: 39.2 | BZ18: 1 | CA18: =BY18*BZ18 -> 39.2 | CF18: 39.3 | CG18: 1 | CH18: =CF18*CG18 -> 39.3 | CM18: 29 | CN18: 1 | CO18: =CM18*CN18 -> 29 | CT18: 29 | CU18: 1 | CV18: =CT18*CU18 -> 29
B19: Acid Gas Removal Unit | D19: MWe | E19: 30.8 | F19: 1 | G19: 30.8 | L19: 0.3 | M19: 1 | N19: =L19*M19 -> 0.3 | S19: 32.8 | T19: 1 | U19: =S19*T19 -> 32.8 | Z19: n/a | AA19: n/a | AB19: n/a | AG19: 7.9 | AH19: 1 | AI19: =AG19*AH19 -> 7.9 | AN19: n/a | AO19: n/a | AP19: n/a | AU19: n/a | AV19: n/a | AW19: n/a | BD19: 27.4 | BE19: 1 | BF19: =BD19*BE19 -> 27.4 | BK19: 33.4 | BL19: 1 | BM19: 33.4 | BR19: 30.5 | BS19: 1 | BT19: 30.5 | BY19: 33 | BZ19: 1 | CA19: =BY19*BZ19 -> 33 | CF19: 32.7 | CG19: 1 | CH19: =CF19*CG19 -> 32.7 | CM19: 8.1 | CN19: 1 | CO19: =CM19*CN19 -> 8.1 | CT19: 7.8 | CU19: 1 | CV19: =CT19*CU19 -> 7.8
B20: CO2 Compression | D20: MWe | E20: 47.9 | F20: 1 | G20: 47.9 | L20: n/a | M20: n/a | N20: n/a | S20: 28.6 | T20: 1 | U20: =S20*T20 -> 28.6 | Z20: 0 | AA20: 1 | AB20: =Z20*AA20 -> 0 | AG20: 51.5 | AH20: 1 | AI20: =AG20*AH20 -> 51.5 | AN20: n/a | AO20: n/a | AP20: n/a | AU20: 91.4 | AV20: 1 | AW20: 91.4 | BD20: 23.2 | BE20: 1 | BF20: =BD20*BE20 -> 23.2 | BK20: 55.8 | BL20: 1 | BM20: 55.8 | BR20: 45.1 | BS20: 1 | BT20: 45.1 | BY20: 30.3 | BZ20: 1 | CA20: =BY20*BZ20 -> 30.3 | CF20: 27.1 | CG20: 1 | CH20: =CF20*CG20 -> 27.1 | CM20: 54.5 | CN20: 1 | CO20: =CM20*CN20 -> 54.5 | CT20: 49.1 | CU20: 1 | CV20: =CT20*CU20 -> 49.1
B21: Other Units (offsites & Utilities) | D21: MWe | E21: 23 | F21: 1 | G21: 23 | L21: 13.9 | M21: 1 | N21: =L21*M21 -> 13.9 | S21: 10 | T21: 1 | U21: =S21*T21 -> 10 | Z21: 6.7 | AA21: 1 | AB21: =Z21*AA21 -> 6.7 | AG21: 34.1 | AH21: 1 | AI21: =AG21*AH21 -> 34.1 | AN21: 27.9 | AO21: 1 | AP21: =AN21*AO21 -> 27.9 | AU21: 38.7 | AV21: 1 | AW21: 38.7 | BD21: 8.4 | BE21: 1 | BF21: =BD21*BE21 -> 8.4 | BK21: 23 | BL21: 1 | BM21: 23 | BR21: 22.6 | BS21: 1 | BT21: 22.6 | BY21: 10.4 | BZ21: 1 | CA21: =BY21*BZ21 -> 10.4 | CF21: 9.5 | CG21: 1 | CH21: =CF21*CG21 -> 9.5 | CM21: 35 | CN21: 1 | CO21: =CM21*CN21 -> 35 | CT21: 33.4 | CU21: 1 | CV21: =CT21*CU21 -> 33.4
A22: Gross Power Output | D22: MWe | E22: =E11 -> 923.8 | F22: n/a | G22: =E22 -> 923.8 | L22: =L11 -> 878.1 | M22: n/a | N22: =L22 -> 878.1 | S22: =S11 -> 954.6 | T22: n/a | U22: =S22 -> 954.6 | Z22: =Z11 -> 1037.6 | AA22: n/a | AB22: =Z22 -> 1037.6 | AG22: =AG11 -> 745.7 | AH22: n/a | AI22: =AG22 -> 745.7 | AN22: =AN11 -> 836.2 | AO22: n/a | AP22: =AN22 -> 836.2 | AU22: =AU11 -> 855.4 | AV22: n/a | AW22: =AU22 -> 855.4 | BD22: 970.7 | BE22: n/a | BF22: =BD22 -> 970.7 | BK22: =BK11 -> 906.2 | BL22: n/a | BM22: =BK22 -> 906.2 | BR22: =BR11 -> 923.8 | BS22: n/a | BT22: =BR22 -> 923.8 | BY22: =BY11 -> 947.2 | BZ22: n/a | CA22: =BY22 -> 947.2 | CF22: =CF11 -> 959.4 | CG22: n/a | CH22: =CF22 -> 959.4 | CM22: =CM11 -> 733.9 | CN22: n/a | CO22: =CM22 -> 733.9 | CT22: =CT11 -> 750.7 | CU22: n/a | CV22: =CT22 -> 750.7
A23: Net Power Export (New & Clean) | D23: MWe | E23: =E22-E15 -> 699.9 | F23: n/a | G23: =G22-G15 -> 699.9 | L23: =L22-L15 -> 746.1 | M23: n/a | N23: =N22-N15 -> 746.1 | S23: =S22-S15 -> 844 | T23: n/a | U23: =U22-U15 -> 844 | Z23: =Z22-Z15 -> 990.8 | AA23: n/a | AB23: =AB22-AB15 -> 990.8 | AG23: =AG22-AG15 -> 623.2 | AH23: n/a | AI23: =AI22-AI15 -> 623.2 | AN23: =AN22-AN15 -> 779.2 | AO23: n/a | AP23: =AP22-AP15 -> 779.2 | AU23: =AU22-AU15 -> 605.6 | AV23: n/a | AW23: =AW22-AW15 -> 605.6 | BD23: =BD22-BD15 -> 872.3 | BE23: n/a | BF23: =BF22-BF15 -> 872.3 | BK23: =BK22-BK15 -> 670.1 | BL23: n/a | BM23: =BM22-BM15 -> 670.1 | BR23: =BR22-BR15 -> 707.4 | BS23: n/a | BT23: =BT22-BT15 -> 707.4 | BY23: =BY22-BY15 -> 834.3 | BZ23: n/a | CA23: =CA22-CA15 -> 834.3 | CF23: =CF22-CF15 -> 850.8 | CG23: n/a | CH23: =CH22-CH15 -> 850.8 | CM23: =CM22-CM15 -> 607.3 | CN23: n/a | CO23: =CO22-CO15 -> 607.3 | CT23: =CT22-CT15 -> 631.4 | CU23: n/a | CV23: =CV22-CV15 -> 631.4
A25: Feedstocks
B26: Feedstock rate | C26: Coal | D26: te/hr | E26: =6559.2/24 -> 273.3 | F26: n/a | G26: =E26 -> 273.3 | L26: =5539/24 -> 230.7916667 | M26: n/a | N26: =L26 -> 230.7916667 | S26: n/a | T26: n/a | U26: n/a | Z26: n/a | AA26: n/a | AB26: n/a | AG26: =6163/24 -> 256.7916667 | AH26: n/a | AI26: =AG26 -> 256.7916667 | AN26: =6163/24 -> 256.7916667 | AO26: n/a | AP26: =AN26 -> 256.7916667 | AU26: 257 | AV26: n/a | AW26: =AU26 -> 257 | BD26: n/a | BE26: n/a | BF26: n/a | BK26: =6565.3/24 -> 273.5541667 | BL26: n/a | BM26: =BK26 -> 273.5541667 | BR26: =6458/24 -> 269.0833333 | BS26: n/a | BT26: =BR26 -> 269.0833333 | BY26: n/a | BZ26: n/a | CA26: n/a | CF26: n/a | CG26: n/a | CH26: n/a | CM26: =6163/24 -> 256.7916667 | CN26: n/a | CO26: =CM26 -> 256.7916667 | CT26: =6163/24 -> 256.7916667 | CU26: n/a | CV26: =CT26 -> 256.7916667
C27: Natural Gas | D27: te/hr | E27: n/a | F27: n/a | G27: =E27 -> n/a | L27: n/a | M27: n/a | N27: n/a | S27: =3070/24 -> 127.9166667 | T27: n/a | U27: =S27 -> 127.9166667 | Z27: =3070/24 -> 127.9166667 | AA27: n/a | AB27: =Z27 -> 127.9166667 | AG27: n/a | AH27: n/a | AI27: n/a | AN27: n/a | AO27: n/a | AP27: n/a | AU27: n/a | AV27: n/a | AW27: n/a | BD27: =3070/24 -> 127.9166667 | BE27: n/a | BF27: =BD27 -> 127.9166667 | BK27: n/a | BL27: n/a | BM27: =BK27 -> n/a | BR27: n/a | BS27: n/a | BT27: =BR27 -> n/a | BY27: =3070/24 -> 127.9166667 | BZ27: n/a | CA27: =BY27 -> 127.9166667 | CF27: =3070/24 -> 127.9166667 | CG27: n/a | CH27: =CF27 -> 127.9166667 | CM27: n/a | CN27: n/a | CO27: n/a | CT27: n/a | CU27: n/a | CV27: n/a
B28: Oxygen Consumption | D28: te/hr | E28: =4709/24 -> 196.2083333 | F28: n/a | G28: =E28 -> 196.2083333 | L28: =4243/24 -> 176.7916667 | M28: n/a | N28: =L28 -> 176.7916667 | S28: n/a | T28: n/a | U28: n/a | Z28: n/a | AA28: n/a | AB28: n/a | AG28: n/a | AH28: n/a | AI28: n/a | AN28: n/a | AO28: n/a | AP28: n/a | AU28: 569 | AV28: n/a | AW28: =AU28 -> 569 | BD28: n/a | BE28: n/a | BF28: n/a | BK28: =4712/24 -> 196.3333333 | BL28: n/a | BM28: =BK28 -> 196.3333333 | BR28: =4640/24 -> 193.3333333 | BS28: n/a | BT28: =BR28 -> 193.3333333 | BY28: n/a | BZ28: n/a | CA28: n/a | CF28: n/a | CG28: n/a | CH28: n/a | CM28: n/a | CN28: n/a | CO28: n/a | CT28: n/a | CU28: n/a | CV28: n/a
A30: Carbon Dioxide
B31: CO2 Produced | D31: te/hr | E31: =E32+E33 -> 647.2083333 | F31: n/a | G31: =E31 -> 647.2083333 | L31: =L32+L33 -> 548 | M31: n/a | N31: =L31 -> 548 | S31: 347 | T31: n/a | U31: =S31 -> 347 | Z31: =Z32+Z33 -> 347 | AA31: n/a | AB31: =Z31 -> 347 | AG31: 607.9 | AH31: n/a | AI31: =AG31 -> 607.9 | AN31: 607.9 | AO31: n/a | AP31: =AN31 -> 607.9 | AU31: =AU32+AU33 -> 607.9 | AV31: n/a | AW31: =AU31 -> 607.9 | BD31: 347 | BE31: n/a | BF31: =BD31 -> 347 | BK31: =BK32+BK33 -> 647.8 | BL31: n/a | BM31: =BK31 -> 647.8 | BR31: =BR32+BR33 -> 635.4 | BS31: n/a | BT31: =BR31 -> 635.4 | BY31: 347 | BZ31: n/a | CA31: =BY31 -> 347 | CF31: 347 | CG31: n/a | CH31: =CF31 -> 347 | CM31: 607.9 | CN31: n/a | CO31: =CM31 -> 607.9 | CT31: 607.9 | CU31: n/a | CV31: =CT31 -> 607.9
B32: CO2 Captured | D32: te/hr | E32: =13976/24 -> 582.3333333 | F32: n/a | G32: =E32 -> 582.3333333 | L32: 0 | M32: n/a | N32: =L32 -> 0 | S32: 313.5 | T32: n/a | U32: =S32 -> 313.5 | Z32: 0 | AA32: n/a | AB32: =Z32 -> 0 | AG32: 546.8 | AH32: n/a | AI32: =AG32 -> 546.8 | AN32: 0 | AO32: n/a | AP32: =AN32 -> 0 | AU32: =13183.6/24 -> 549.3166667 | AV32: n/a | AW32: =AU32 -> 549.3166667 | BD32: 261.1 | BE32: n/a | BF32: =BD32 -> 261.1 | BK32: 615.3 | BL32: n/a | BM32: =BK32 -> 615.3 | BR32: 541.2 | BS32: n/a | BT32: =BR32 -> 541.2 | BY32: 332 | BZ32: n/a | CA32: =BY32 -> 332 | CF32: 296.5 | CG32: n/a | CH32: =CF32 -> 296.5 | CM32: 579.4 | CN32: n/a | CO32: =CM32 -> 579.4 | CT32: 521.4 | CU32: n/a | CV32: =CT32 -> 521.4
B33: CO2 Emissions | D33: te/hr | E33: =1557/24 -> 64.875 | F33: n/a | G33: =E33 -> 64.875 | L33: 548 | M33: n/a | N33: =L33 -> 548 | S33: =S31-S32 -> 33.5 | T33: n/a | U33: =S33 -> 33.5 | Z33: 347 | AA33: n/a | AB33: =Z33 -> 347 | AG33: =AG31-AG32 -> 61.1 | AH33: n/a | AI33: =AG33 -> 61.1 | AN33: 607.9 | AO33: n/a | AP33: =AN33 -> 607.9 | AU33: =1406/24 -> 58.58333333 | AV33: n/a | AW33: =AU33 -> 58.58333333 | BD33: 86 | BE33: n/a | BF33: =BD33 -> 86 | BK33: 32.5 | BL33: n/a | BM33: =BK33 -> 32.5 | BR33: 94.2 | BS33: n/a | BT33: =BR33 -> 94.2 | BY33: =BY31-BY32 -> 15 | BZ33: n/a | CA33: =BY33 -> 15 | CF33: =CF31-CF32 -> 50.5 | CG33: n/a | CH33: =CF33 -> 50.5 | CM33: =CM31-CM32 -> 28.5 | CN33: n/a | CO33: =CM33 -> 28.5 | CT33: =CT31-CT32 -> 86.5 | CU33: n/a | CV33: =CT33 -> 86.5
B34: Specific CO2 Emissions | D34: g / kWhr (Net) | E34: 92.7 | F34: n/a | G34: =E34 -> 92.7 | L34: 734 | M34: n/a | N34: =L34 -> 734 | S34: 39.7 | T34: n/a | U34: =S34 -> 39.7 | Z34: 350 | AA34: n/a | AB34: =Z34 -> 350 | AG34: =AG33/AG23*1000 -> 98.042362 | AH34: n/a | AI34: =AG34 -> 98.042362 | AN34: =AN33/AN23*1000 -> 780.1591376 | AO34: n/a | AP34: =AN34 -> 780.1591376 | AU34: 96.7 | AV34: n/a | AW34: =AU34 -> 96.7 | BD34: 98.5 | BE34: n/a | BF34: =BD34 -> 98.5 | BK34: 48.5 | BL34: n/a | BM34: =BK34 -> 48.5 | BR34: 133.2 | BS34: n/a | BT34: =BR34 -> 133.2 | BY34: 18 | BZ34: n/a | CA34: =BY34 -> 18 | CF34: 59.4 | CG34: n/a | CH34: =CF34 -> 59.4 | CM34: =CM33/CM23*1000 -> 46.92903013 | CN34: n/a | CO34: =CM34 -> 46.92903013 | CT34: =CT33/CT23*1000 -> 136.9971492 | CU34: n/a | CV34: =CT34 -> 136.9971492
A36: Other Products
B37: Sulphur Produced | D37: te/hr | E37: 2.3 | F37: n/a | G37: =E37 -> 2.3 | L37: 1.95 | M37: n/a | N37: =L37 -> 1.95 | S37: n/a | T37: n/a | U37: =S37 -> n/a | Z37: n/a | AA37: n/a | AB37: =Z37 -> n/a | AG37: n/a | AH37: n/a | AI37: =AG37 -> n/a | AN37: n/a | AO37: n/a | AP37: =AN37 -> n/a | AU37: n/a | AV37: n/a | AW37: =AU37 -> n/a | BD37: n/a | BE37: n/a | BF37: =BD37 -> n/a | BK37: 2.3 | BL37: n/a | BM37: =BK37 -> 2.3 | BR37: 2.3 | BS37: n/a | BT37: =BR37 -> 2.3 | BY37: n/a | BZ37: n/a | CA37: =BY37 -> n/a | CF37: n/a | CG37: n/a | CH37: =CF37 -> n/a | CM37: n/a | CN37: n/a | CO37: =CM37 -> n/a | CT37: n/a | CU37: n/a | CV37: =CT37 -> n/a
B38: Hydrogen Produced (ex syngas production unit) | D38: te/hr | E38: 43.07 | F38: n/a | G38: =E38 -> 43.07 | L38: 12.63 | M38: n/a | N38: =L38 -> 12.63 | S38: n/a | T38: n/a | U38: n/a | Z38: n/a | AA38: n/a | AB38: n/a | AG38: n/a | AH38: n/a | AI38: n/a | AN38: n/a | AO38: n/a | AP38: n/a | AU38: n/a | AV38: n/a | AW38: n/a | BD38: n/a | BE38: n/a | BF38: n/a | BK38: 43.4 | BL38: n/a | BM38: =BK38 -> 43.4 | BR38: 40.77 | BS38: n/a | BT38: =BR38 -> 40.77 | BY38: n/a | BZ38: n/a | CA38: n/a | CF38: n/a | CG38: n/a | CH38: n/a | CM38: n/a | CN38: n/a | CO38: n/a | CT38: n/a | CU38: n/a | CV38: n/a
A40: Waste | D40: te/hr | E40: 42 | F40: n/a | G40: =E40 -> 42 | L40: 35.6 | M40: n/a | N40: =L40 -> 35.6 | S40: 0 | T40: n/a | U40: =S40 -> 0 | Z40: 0 | AA40: n/a | AB40: =Z40 -> 0 | AG40: 33 | AH40: n/a | AI40: =AG40 -> 33 | AN40: 33 | AO40: n/a | AP40: =AN40 -> 33 | AU40: 33 | AV40: n/a | AW40: =AU40 -> 33 | BD40: 0 | BE40: n/a | BF40: =BD40 -> 0 | BK40: 42 | BL40: n/a | BM40: =BK40 -> 42 | BR40: 42 | BS40: n/a | BT40: =BR40 -> 42 | BY40: 0 | BZ40: n/a | CA40: =BY40 -> 0 | CF40: 0 | CG40: n/a | CH40: =CF40 -> 0 | CM40: 33 | CN40: n/a | CO40: =CM40 -> 33 | CT40: 33 | CU40: n/a | CV40: =CT40 -> 33
A43: User Input Variables
A45: Data From CAPEX and OPEX Estimates
A47: Capital Cost Data | G47: =IF(PRODUCT(F48:F57)=1,0,1) -> 0 | N47: =IF(PRODUCT(M48:M57)=1,0,1) -> 0 | U47: =IF(PRODUCT(T48:T57)=1,0,1) -> 0 | AB47: =IF(PRODUCT(AA48:AA57)=1,0,1) -> 0 | AI47: =IF(PRODUCT(AH48:AH57)=1,0,1) -> 0 | AP47: =IF(PRODUCT(AO48:AO57)=1,0,1) -> 0 | AW47: =IF(PRODUCT(AV48:AV57)=1,0,1) -> 0 | BF47: =IF(PRODUCT(BE48:BE57)=1,0,1) -> 0 | BM47: =IF(PRODUCT(BL48:BL57)=1,0,1) -> 0 | BT47: =IF(PRODUCT(BS48:BS57)=1,0,1) -> 0 | CA47: =IF(PRODUCT(BZ48:BZ57)=1,0,1) -> 0 | CH47: =IF(PRODUCT(CG48:CG57)=1,0,1) -> 0 | CO47: =IF(PRODUCT(CN48:CN57)=1,0,1) -> 0 | CV47: =IF(PRODUCT(CU48:CU57)=1,0,1) -> 0
B48: Coal Drying | C48: Installed Cost | D48: UK£(million) | E48: 0 | F48: 1 | G48: =E48*F48 -> 0 | H48: =IF(G47=1,"Capital and Cost Data: User Adjusted","") ->  | L48: 0 | M48: 1 | N48: =L48*M48 -> 0 | O48: =IF(N47=1,"Capital and Cost Data: User Adjusted","") ->  | S48: 0 | T48: 1 | U48: =S48*T48 -> 0 | V48: =IF(U47=1,"Capital and Cost Data: User Adjusted","") ->  | Z48: 0 | AA48: 1 | AB48: =Z48*AA48 -> 0 | AC48: =IF(AB47=1,"Capital and Cost Data: User Adjusted","") ->  | AG48: 0 | AH48: 1 | AI48: =AG48*AH48 -> 0 | AJ48: =IF(AI47=1,"Capital and Cost Data: User Adjusted","") ->  | AN48: 0 | AO48: 1 | AP48: =AN48*AO48 -> 0 | AQ48: =IF(AP47=1,"Capital and Cost Data: User Adjusted","") ->  | AU48: 0 | AV48: 1 | AW48: =AU48*AV48 -> 0 | AX48: =IF(AW47=1,"Capital and Cost Data: User Adjusted","") ->  | BD48: 0 | BE48: 1 | BF48: =BD48*BE48 -> 0 | BG48: =IF(BF47=1,"Capital and Cost Data: User Adjusted","") ->  | BK48: 0 | BL48: 1 | BM48: =BK48*BL48 -> 0 | BN48: =IF(BM47=1,"Capital and Cost Data: User Adjusted","") ->  | BR48: 0 | BS48: 1 | BT48: =BR48*BS48 -> 0 | BU48: =IF(BT47=1,"Capital and Cost Data: User Adjusted","") ->  | BY48: 0 | BZ48: 1 | CA48: =BY48*BZ48 -> 0 | CB48: =IF(CA47=1,"Capital and Cost Data: User Adjusted","") ->  | CF48: 0 | CG48: 1 | CH48: =CF48*CG48 -> 0 | CI48: =IF(CH47=1,"Capital and Cost Data: User Adjusted","") ->  | CM48: 0 | CN48: 1 | CO48: =CM48*CN48 -> 0 | CP48: =IF(CO47=1,"Capital and Cost Data: User Adjusted","") ->  | CT48: 0 | CU48: 1 | CV48: =CT48*CU48 -> 0 | CW48: =IF(CV47=1,"Capital and Cost Data: User Adjusted","") -> 
B49: Gasification | C49: Installed Cost | D49: UK£(million) | E49: 238.9 | F49: 1 | G49: 238.9 | L49: 214.5 | M49: 1 | N49: 214.5 | S49: 0 | T49: 1 | U49: 0 | Z49: 0 | AA49: 1 | AB49: 0 | AG49: 556.7 | AH49: 1 | AI49: 556.7 | AN49: 550.5 | AO49: 1 | AP49: 550.5 | AU49: 556.7 | AV49: 1 | AW49: 556.7 | BD49: 0 | BE49: 1 | BF49: 0 | BK49: 239 | BL49: 1 | BM49: 239 | BR49: 236.5 | BS49: 1 | BT49: 236.5 | BY49: 0 | BZ49: 1 | CA49: 0 | CF49: 0 | CG49: 1 | CH49: 0 | CM49: 556.7 | CN49: 1 | CO49: 556.7 | CT49: 556.7 | CU49: 1 | CV49: 556.7
B50: Air Separation | C50: Installed Cost | D50: UK£(million) | E50: 104.1 | F50: 1 | G50: 104.1 | L50: 92.8 | M50: 1 | N50: 92.8 | S50: 0 | T50: 1 | U50: 0 | Z50: 0 | AA50: 1 | AB50: 0 | AG50: 0 | AH50: 1 | AI50: 0 | AN50: 0 | AO50: 1 | AP50: 0 | AU50: 241.7 | AV50: 1 | AW50: 241.7 | BD50: 0 | BE50: 1 | BF50: 0 | BK50: 104.1 | BL50: 1 | BM50: 104.1 | BR50: 103.1 | BS50: 1 | BT50: 103.1 | BY50: 0 | BZ50: 1 | CA50: 0 | CF50: 0 | CG50: 1 | CH50: 0 | CM50: 0 | CN50: 1 | CO50: 0 | CT50: 0 | CU50: 1 | CV50: 0
B51: Acid Gas Removal | C51: Installed Cost | D51: UK£(million) | E51: 121 | F51: 1 | G51: 121 | L51: 62.5 | M51: 1 | N51: 62.5 | S51: 240.9 | T51: 1 | U51: 240.9 | Z51: 0 | AA51: 1 | AB51: 0 | AG51: 262.1 | AH51: 1 | AI51: 262.1 | AN51: 0 | AO51: 1 | AP51: 0 | AU51: 0 | AV51: 1 | AW51: 0 | BD51: 214 | BE51: 1 | BF51: 214 | BK51: 125.3 | BL51: 1 | BM51: 125.3 | BR51: 115.2 | BS51: 1 | BT51: 115.2 | BY51: 250.8 | BZ51: 1 | CA51: 250.8 | CF51: 233.1 | CG51: 1 | CH51: 233.1 | CM51: 272.3 | CN51: 1 | CO51: 272.3 | CT51: 254.2 | CU51: 1 | CV51: 254.2
B52: CO2 Compression Unit | C52: Installed Cost | D52: UK£(million) | E52: 61.7 | F52: 1 | G52: 61.7 | L52: 0 | M52: 1 | N52: 0 | S52: 69.5 | T52: 1 | U52: 69.5 | Z52: 0 | AA52: 1 | AB52: 0 | AG52: 90.6 | AH52: 1 | AI52: 90.6 | AN52: 0 | AO52: 1 | AP52: 0 | AU52: 155.6 | AV52: 1 | AW52: 155.6 | BD52: 61.9 | BE52: 1 | BF52: 61.9 | BK52: 68.3 | BL52: 1 | BM52: 68.3 | BR52: 59.3 | BS52: 1 | BT52: 59.3 | BY52: 72.4 | BZ52: 1 | CA52: 72.4 | CF52: 67.2 | CG52: 1 | CH52: 67.2 | CM52: 94.2 | CN52: 1 | CO52: 94.2 | CT52: 88 | CU52: 1 | CV52: 88
B53: CO2 Drying Unit | C53: Installed Cost | D53: UK£(million) | E53: 0 | F53: 1 | G53: 0 | L53: 0 | M53: 1 | N53: 0 | S53: 0 | T53: 1 | U53: 0 | Z53: 0 | AA53: 1 | AB53: 0 | AG53: 0 | AH53: 1 | AI53: 0 | AN53: 0 | AO53: 1 | AP53: 0 | AU53: 0 | AV53: 1 | AW53: 0 | BD53: 0 | BE53: 1 | BF53: 0 | BK53: 0 | BL53: 1 | BM53: 0 | BR53: 0 | BS53: 1 | BT53: 0 | BY53: 0 | BZ53: 1 | CA53: 0 | CF53: 0 | CG53: 1 | CH53: 0 | CM53: 0 | CN53: 1 | CO53: 0 | CT53: 0 | CU53: 1 | CV53: 0
B54: Sulphur Plant | C54: Installed Cost | D54: UK£(million) | E54: 33.1 | F54: 1 | G54: 33.1 | L54: 29.6 | M54: 1 | N54: 29.6 | S54: 0 | T54: 1 | U54: 0 | Z54: 0 | AA54: 1 | AB54: 0 | AG54: 0 | AH54: 1 | AI54: 0 | AN54: 0 | AO54: 1 | AP54: 0 | AU54: 0 | AV54: 1 | AW54: 0 | BD54: 0 | BE54: 1 | BF54: 0 | BK54: 33.1 | BL54: 1 | BM54: 33.1 | BR54: 32.7 | BS54: 1 | BT54: 32.7 | BY54: 0 | BZ54: 1 | CA54: 0 | CF54: 0 | CG54: 1 | CH54: 0 | CM54: 0 | CN54: 1 | CO54: 0 | CT54: 0 | CU54: 1 | CV54: 0
B55: Power Island | C55: Installed Cost | D55: UK£(million) | E55: 341.1 | F55: 1 | G55: 341.1 | L55: 341.8 | M55: 1 | N55: 341.8 | S55: 319.7 | T55: 1 | U55: 319.7 | Z55: 302.5 | AA55: 1 | AB55: 302.5 | AG55: 150.9 | AH55: 1 | AI55: 150.9 | AN55: 185.3 | AO55: 1 | AP55: 185.3 | AU55: 167.5 | AV55: 1 | AW55: 167.5 | BD55: 319.7 | BE55: 1 | BF55: 319.7 | BK55: 336.9 | BL55: 1 | BM55: 336.9 | BR55: 341.1 | BS55: 1 | BT55: 341.1 | BY55: 319.7 | BZ55: 1 | CA55: 319.7 | CF55: 319.7 | CG55: 1 | CH55: 319.7 | CM55: 150.9 | CN55: 1 | CO55: 150.9 | CT55: 150.9 | CU55: 1 | CV55: 150.9
B56: Syngas Treatment Plant | C56: Installed Cost | D56: UK£(million) | E56: 66 | F56: 1 | G56: 66 | L56: 46.2 | M56: 1 | N56: 46.2 | S56: 0 | T56: 1 | U56: 0 | Z56: 0 | AA56: 1 | AB56: 0 | AG56: 0 | AH56: 1 | AI56: 0 | AN56: 0 | AO56: 1 | AP56: 0 | AU56: 0 | AV56: 1 | AW56: 0 | BD56: 0 | BE56: 1 | BF56: 0 | BK56: 72.3 | BL56: 1 | BM56: 72.3 | BR56: 57.2 | BS56: 1 | BT56: 57.2 | BY56: 0 | BZ56: 1 | CA56: 0 | CF56: 0 | CG56: 1 | CH56: 0 | CM56: 0 | CN56: 1 | CO56: 0 | CT56: 0 | CU56: 1 | CV56: 0
B57: Offsite & Utilities | C57: Installed Cost | D57: UK£(million) | E57: 145.6 | F57: 1 | G57: 145.6 | L57: 122.6 | M57: 1 | N57: 122.6 | S57: 101.3 | T57: 1 | U57: 101.3 | Z57: 86.4 | AA57: 1 | AB57: 86.4 | AG57: 87.9 | AH57: 1 | AI57: 87.9 | AN57: 78.3 | AO57: 1 | AP57: 78.3 | AU57: 233.2 | AV57: 1 | AW57: 233.2 | BD57: 101.3 | BE57: 1 | BF57: 101.3 | BK57: 150.7 | BL57: 1 | BM57: 150.7 | BR57: 138.6 | BS57: 1 | BT57: 138.6 | BY57: 104.4 | BZ57: 1 | CA57: 104.4 | CF57: 99.1 | CG57: 1 | CH57: 99.1 | CM57: 89.2 | CN57: 1 | CO57: 89.2 | CT57: 87.2 | CU57: 1 | CV57: 87.2
B60: TOTAL | C60: Installed Cost | D60: UK£(million) | E60: =SUM(E48:E59) -> 1111.5 | F60: n/a | G60: =SUM(G48:G59) -> 1111.5 | L60: =SUM(L48:L59) -> 910 | M60: n/a | N60: =SUM(N48:N59) -> 910 | S60: =SUM(S48:S59) -> 731.4 | T60: n/a | U60: =SUM(U48:U59) -> 731.4 | Z60: =SUM(Z48:Z59) -> 388.9 | AA60: n/a | AB60: =SUM(AB48:AB59) -> 388.9 | AG60: =SUM(AG48:AG59) -> 1148.2 | AH60: n/a | AI60: =SUM(AI48:AI59) -> 1148.2 | AN60: =SUM(AN48:AN59) -> 814.1 | AO60: n/a | AP60: =SUM(AP48:AP59) -> 814.1 | AU60: =SUM(AU48:AU59) -> 1354.7 | AV60: n/a | AW60: =SUM(AW48:AW59) -> 1354.7 | BD60: =SUM(BD48:BD59) -> 696.9 | BE60: n/a | BF60: =SUM(BF48:BF59) -> 696.9 | BK60: =SUM(BK48:BK59) -> 1129.7 | BL60: n/a | BM60: =SUM(BM48:BM59) -> 1129.7 | BR60: =SUM(BR48:BR59) -> 1083.7 | BS60: n/a | BT60: =SUM(BT48:BT59) -> 1083.7 | BY60: =SUM(BY48:BY59) -> 747.3 | BZ60: n/a | CA60: =SUM(CA48:CA59) -> 747.3 | CF60: =SUM(CF48:CF59) -> 719.1 | CG60: n/a | CH60: =SUM(CH48:CH59) -> 719.1 | CM60: =SUM(CM48:CM59) -> 1163.3 | CN60: n/a | CO60: =SUM(CO48:CO59) -> 1163.3 | CT60: =SUM(CT48:CT59) -> 1137 | CU60: n/a | CV60: =SUM(CV48:CV59) -> 1137
G63: =IF(PRODUCT(F64:F67)=1,0,1) -> 0 | N63: =IF(PRODUCT(M64:M67)=1,0,1) -> 0 | U63: =IF(PRODUCT(T64:T67)=1,0,1) -> 0 | AB63: =IF(PRODUCT(AA64:AA67)=1,0,1) -> 0 | AI63: =IF(PRODUCT(AH64:AH67)=1,0,1) -> 0 | AP63: =IF(PRODUCT(AO64:AO67)=1,0,1) -> 0 | AW63: =IF(PRODUCT(AV64:AV67)=1,0,1) -> 0 | BF63: =IF(PRODUCT(BE64:BE67)=1,0,1) -> 0 | BM63: =IF(PRODUCT(BL64:BL67)=1,0,1) -> 0 | BT63: =IF(PRODUCT(BS64:BS67)=1,0,1) -> 0 | CA63: =IF(PRODUCT(BZ64:BZ67)=1,0,1) -> 0 | CH63: =IF(PRODUCT(CG64:CG67)=1,0,1) -> 0 | CO63: =IF(PRODUCT(CN64:CN67)=1,0,1) -> 0 | CV63: =IF(PRODUCT(CU64:CU67)=1,0,1) -> 0
B64: Contingency | E64: 0.25 | F64: 1 | G64: =E64*F64 -> 0.25 | H64: =IF(G63=1,"Data: User Adjusted","") ->  | L64: 0.25 | M64: 1 | N64: =L64*M64 -> 0.25 | O64: =IF(N63=1,"Data: User Adjusted","") ->  | S64: 0.25 | T64: 1 | U64: =S64*T64 -> 0.25 | V64: =IF(U63=1,"Data: User Adjusted","") ->  | Z64: 0.25 | AA64: 1 | AB64: =Z64*AA64 -> 0.25 | AC64: =IF(AB63=1,"Data: User Adjusted","") ->  | AG64: 0.25 | AH64: 1 | AI64: =AG64*AH64 -> 0.25 | AJ64: =IF(AI63=1,"Data: User Adjusted","") ->  | AN64: 0.25 | AO64: 1 | AP64: =AN64*AO64 -> 0.25 | AQ64: =IF(AP63=1,"Data: User Adjusted","") ->  | AU64: 0.25 | AV64: 1 | AW64: =AU64*AV64 -> 0.25 | AX64: =IF(AW63=1,"Data: User Adjusted","") ->  | BD64: 0.25 | BE64: 1 | BF64: =BD64*BE64 -> 0.25 | BG64: =IF(BF63=1,"Data: User Adjusted","") ->  | BK64: 0.25 | BL64: 1 | BM64: =BK64*BL64 -> 0.25 | BN64: =IF(BM63=1,"Data: User Adjusted","") ->  | BR64: 0.25 | BS64: 1 | BT64: =BR64*BS64 -> 0.25 | BU64: =IF(BT63=1,"Data: User Adjusted","") ->  | BY64: 0.25 | BZ64: 1 | CA64: =BY64*BZ64 -> 0.25 | CB64: =IF(CA63=1,"Data: User Adjusted","") ->  | CF64: 0.25 | CG64: 1 | CH64: =CF64*CG64 -> 0.25 | CI64: =IF(CH63=1,"Data: User Adjusted","") ->  | CM64: 0.25 | CN64: 1 | CO64: =CM64*CN64 -> 0.25 | CP64: =IF(CO63=1,"Data: User Adjusted","") ->  | CT64: 0.25 | CU64: 1 | CV64: =CT64*CU64 -> 0.25 | CW64: =IF(CV63=1,"Data: User Adjusted","") -> 
B65: Land purchase, surveys | E65: 0.05 | F65: 1 | G65: =E65*F65 -> 0.05 | L65: 0.05 | M65: 1 | N65: =L65*M65 -> 0.05 | S65: 0.05 | T65: 1 | U65: =S65*T65 -> 0.05 | Z65: 0.05 | AA65: 1 | AB65: =Z65*AA65 -> 0.05 | AG65: 0.05 | AH65: 1 | AI65: =AG65*AH65 -> 0.05 | AN65: 0.05 | AO65: 1 | AP65: =AN65*AO65 -> 0.05 | AU65: 0.05 | AV65: 1 | AW65: =AU65*AV65 -> 0.05 | BD65: 0.05 | BE65: 1 | BF65: =BD65*BE65 -> 0.05 | BK65: 0.05 | BL65: 1 | BM65: =BK65*BL65 -> 0.05 | BR65: 0.05 | BS65: 1 | BT65: =BR65*BS65 -> 0.05 | BY65: 0.05 | BZ65: 1 | CA65: =BY65*BZ65 -> 0.05 | CF65: 0.05 | CG65: 1 | CH65: =CF65*CG65 -> 0.05 | CM65: 0.05 | CN65: 1 | CO65: =CM65*CN65 -> 0.05 | CT65: 0.05 | CU65: 1 | CV65: =CT65*CU65 -> 0.05
B66: Fees | E66: 0.1 | F66: 1 | G66: =E66*F66 -> 0.1 | L66: 0.1 | M66: 1 | N66: =L66*M66 -> 0.1 | S66: 0.1 | T66: 1 | U66: =S66*T66 -> 0.1 | Z66: 0.1 | AA66: 1 | AB66: =Z66*AA66 -> 0.1 | AG66: 0.1 | AH66: 1 | AI66: =AG66*AH66 -> 0.1 | AN66: 0.1 | AO66: 1 | AP66: =AN66*AO66 -> 0.1 | AU66: 0.1 | AV66: 1 | AW66: =AU66*AV66 -> 0.1 | BD66: 0.1 | BE66: 1 | BF66: =BD66*BE66 -> 0.1 | BK66: 0.1 | BL66: 1 | BM66: =BK66*BL66 -> 0.1 | BR66: 0.1 | BS66: 1 | BT66: =BR66*BS66 -> 0.1 | BY66: 0.1 | BZ66: 1 | CA66: =BY66*BZ66 -> 0.1 | CF66: 0.1 | CG66: 1 | CH66: =CF66*CG66 -> 0.1 | CM66: 0.1 | CN66: 1 | CO66: =CM66*CN66 -> 0.1 | CT66: 0.1 | CU66: 1 | CV66: =CT66*CU66 -> 0.1
B67: Discounted Rate | E67: 0.1 | F67: 1 | G67: =E67*F67 -> 0.1 | L67: 0.1 | M67: 1 | N67: =L67*M67 -> 0.1 | S67: 0.1 | T67: 1 | U67: =S67*T67 -> 0.1 | Z67: 0.1 | AA67: 1 | AB67: =Z67*AA67 -> 0.1 | AG67: 0.1 | AH67: 1 | AI67: =AG67*AH67 -> 0.1 | AN67: 0.1 | AO67: 1 | AP67: =AN67*AO67 -> 0.1 | AU67: 0.1 | AV67: 1 | AW67: =AU67*AV67 -> 0.1 | BD67: 0.1 | BE67: 1 | BF67: =BD67*BE67 -> 0.1 | BK67: 0.1 | BL67: 1 | BM67: =BK67*BL67 -> 0.1 | BR67: 0.1 | BS67: 1 | BT67: =BR67*BS67 -> 0.1 | BY67: 0.1 | BZ67: 1 | CA67: =BY67*BZ67 -> 0.1 | CF67: 0.1 | CG67: 1 | CH67: =CF67*CG67 -> 0.1 | CM67: 0.1 | CN67: 1 | CO67: =CM67*CN67 -> 0.1 | CT67: 0.1 | CU67: 1 | CV67: =CT67*CU67 -> 0.1
A69: Operating Cost Data
G70: =IF(PRODUCT(F71:F76,F78:F81)=1,0,1) -> 0 | N70: =IF(PRODUCT(M71:M76,M78:M81)=1,0,1) -> 0 | U70: =IF(PRODUCT(T71:T76,T78:T81)=1,0,1) -> 0 | AB70: =IF(PRODUCT(AA71:AA76,AA78:AA81)=1,0,1) -> 0 | AI70: =IF(PRODUCT(AH71:AH76,AH78:AH81)=1,0,1) -> 0 | AP70: =IF(PRODUCT(AO71:AO76,AO78:AO81)=1,0,1) -> 0 | AW70: =IF(PRODUCT(AV71:AV76,AV78:AV81)=1,0,1) -> 0 | BF70: =IF(PRODUCT(BE71:BE76,BE78:BE81)=1,0,1) -> 0 | BM70: =IF(PRODUCT(BL71:BL76,BL78:BL81)=1,0,1) -> 0 | BT70: =IF(PRODUCT(BS71:BS76,BS78:BS81)=1,0,1) -> 0 | CA70: =IF(PRODUCT(BZ71:BZ76,BZ78:BZ81)=1,0,1) -> 0 | CH70: =IF(PRODUCT(CG71:CG76,CG78:CG81)=1,0,1) -> 0 | CO70: =IF(PRODUCT(CN71:CN76,CN78:CN81)=1,0,1) -> 0 | CV70: =IF(PRODUCT(CU71:CU76,CU78:CU81)=1,0,1) -> 0
B71: Coal Price | D71: UK£/te | E71: 65 | F71: 1 | G71: =E71*F71 -> 65 | H71: =IF(G70=1,"Operating Data: User Adjusted","") ->  | L71: 65 | M71: 1 | N71: =L71*M71 -> 65 | O71: =IF(N70=1,"Operating Data: User Adjusted","") ->  | S71: n/a | T71: n/a | U71: n/a | V71: =IF(U70=1,"Operating Data: User Adjusted","") ->  | Z71: n/a | AA71: n/a | AB71: n/a | AC71: =IF(AB70=1,"Operating Data: User Adjusted","") ->  | AG71: 65 | AH71: 1 | AI71: =AG71*AH71 -> 65 | AJ71: =IF(AI70=1,"Operating Data: User Adjusted","") ->  | AN71: 65 | AO71: 1 | AP71: =AN71*AO71 -> 65 | AQ71: =IF(AP70=1,"Operating Data: User Adjusted","") ->  | AU71: 65 | AV71: 1 | AW71: =AU71*AV71 -> 65 | AX71: =IF(AW70=1,"Operating Data: User Adjusted","") ->  | BD71: n/a | BE71: n/a | BF71: n/a | BG71: =IF(BF70=1,"Operating Data: User Adjusted","") ->  | BK71: 65 | BL71: 1 | BM71: =BK71*BL71 -> 65 | BN71: =IF(BM70=1,"Operating Data: User Adjusted","") ->  | BR71: 65 | BS71: 1 | BT71: =BR71*BS71 -> 65 | BU71: =IF(BT70=1,"Operating Data: User Adjusted","") ->  | BY71: n/a | BZ71: n/a | CA71: n/a | CB71: =IF(CA70=1,"Operating Data: User Adjusted","") ->  | CF71: n/a | CG71: n/a | CH71: n/a | CI71: =IF(CH70=1,"Operating Data: User Adjusted","") ->  | CM71: 65 | CN71: 1 | CO71: =CM71*CN71 -> 65 | CP71: =IF(CO70=1,"Operating Data: User Adjusted","") ->  | CT71: 65 | CU71: 1 | CV71: =CT71*CU71 -> 65 | CW71: =IF(CV70=1,"Operating Data: User Adjusted","") -> 
B72: Maintenance | D72: UK£(million)/year | E72: 39.72 | F72: 1 | G72: =E72*F72 -> 39.72 | L72: 34.22 | M72: 1 | N72: =L72*M72 -> 34.22 | S72: 25.5 | T72: 1 | U72: =S72*T72 -> 25.5 | Z72: 16.6 | AA72: 1 | AB72: =Z72*AA72 -> 16.6 | AG72: 40.1 | AH72: 1 | AI72: =AG72*AH72 -> 40.1 | AN72: 32.6 | AO72: 1 | AP72: =AN72*AO72 -> 32.6 | AU72: 44.5 | AV72: 1 | AW72: =AU72*AV72 -> 44.5 | BD72: 24.6 | BE72: 1 | BF72: =BD72*BE72 -> 24.6 | BK72: 40.1 | BL72: 1 | BM72: =BK72*BL72 -> 40.1 | BR72: 38.9 | BS72: 1 | BT72: =BR72*BS72 -> 38.9 | BY72: 25.8 | BZ72: 1 | CA72: =BY72*BZ72 -> 25.8 | CF72: 25.2 | CG72: 1 | CH72: =CF72*CG72 -> 25.2 | CM72: 40.5 | CN72: 1 | CO72: =CM72*CN72 -> 40.5 | CT72: 39.9 | CU72: 1 | CV72: =CT72*CU72 -> 39.9
B73: Waste Disposal | D73: UK£/te | E73: 6 | F73: 1 | G73: =E73*F73 -> 6 | L73: 6 | M73: 1 | N73: =L73*M73 -> 6 | S73: n/a | T73: n/a | U73: n/a | Z73: n/a | AA73: n/a | AB73: n/a | AG73: 6 | AH73: 1 | AI73: =AG73*AH73 -> 6 | AN73: 6 | AO73: 1 | AP73: =AN73*AO73 -> 6 | AU73: 6 | AV73: 1 | AW73: =AU73*AV73 -> 6 | BD73: n/a | BE73: n/a | BF73: n/a | BK73: 6 | BL73: 1 | BM73: =BK73*BL73 -> 6 | BR73: 6 | BS73: 1 | BT73: =BR73*BS73 -> 6 | BY73: n/a | BZ73: n/a | CA73: n/a | CF73: n/a | CG73: n/a | CH73: n/a | CM73: 6 | CN73: 1 | CO73: =CM73*CN73 -> 6 | CT73: 6 | CU73: 1 | CV73: =CT73*CU73 -> 6
B74: Chemicals & Consumables | D74: UK£(million)/year | E74: 3.79 | F74: 1 | G74: =E74*F74 -> 3.79 | L74: 2.48 | M74: 1 | N74: =L74*M74 -> 2.48 | S74: 1.2 | T74: 1 | U74: =S74*T74 -> 1.2 | Z74: 0.001 | AA74: 1 | AB74: =Z74*AA74 -> 0.001 | AG74: 15.2 | AH74: 1 | AI74: =AG74*AH74 -> 15.2 | AN74: 5.7 | AO74: 1 | AP74: =AN74*AO74 -> 5.7 | AU74: 0.1 | AV74: 1 | AW74: =AU74*AV74 -> 0.1 | BD74: 0.98 | BE74: 1 | BF74: =BD74*BE74 -> 0.98 | BK74: 4.09 | BL74: 1 | BM74: =BK74*BL74 -> 4.09 | BR74: 3.72 | BS74: 1 | BT74: =BR74*BS74 -> 3.72 | BY74: 1.267 | BZ74: 1 | CA74: =BY74*BZ74 -> 1.267 | CF74: 1.133 | CG74: 1 | CH74: =CF74*CG74 -> 1.133 | CM74: 14.3 | CN74: 1 | CO74: =CM74*CN74 -> 14.3 | CT74: 16.1 | CU74: 1 | CV74: =CT74*CU74 -> 16.1
B76: Natural Gas Price | D76: UK£/te | E76: n/a | F76: 1 | G76: n/a | L76: n/a | M76: n/a | N76: n/a | S76: 265 | T76: 1 | U76: =S76*T76 -> 265 | Z76: 265 | AA76: 1 | AB76: =Z76*AA76 -> 265 | AG76: n/a | AH76: 1 | AI76: n/a | AN76: n/a | AO76: 1 | AP76: n/a | AU76: n/a | AV76: 1 | AW76: n/a | BD76: 265 | BE76: 1 | BF76: =BD76*BE76 -> 265 | BK76: n/a | BL76: 1 | BM76: n/a | BR76: n/a | BS76: 1 | BT76: n/a | BY76: 265 | BZ76: 1 | CA76: =BY76*BZ76 -> 265 | CF76: 265 | CG76: 1 | CH76: =CF76*CG76 -> 265 | CM76: n/a | CN76: 1 | CO76: n/a | CT76: n/a | CU76: 1 | CV76: n/a
B77: CO2 Emissions | D77: UK£/te | E77: 0 | F77: 0 | G77: =E77+F77 -> 0 | L77: 0 | M77: 0 | N77: =L77+M77 -> 0 | S77: 0 | T77: 0 | U77: =S77+T77 -> 0 | Z77: 0 | AA77: 0 | AB77: =Z77+AA77 -> 0 | AG77: 0 | AH77: 0 | AI77: =AG77+AH77 -> 0 | AN77: 0 | AO77: 0 | AP77: =AN77+AO77 -> 0 | AU77: 0 | AV77: 0 | AW77: =AU77+AV77 -> 0 | BD77: 0 | BE77: 0 | BF77: =BD77+BE77 -> 0 | BK77: 0 | BL77: 0 | BM77: =BK77+BL77 -> 0 | BR77: 0 | BS77: 0 | BT77: =BR77+BS77 -> 0 | BY77: 0 | BZ77: 0 | CA77: =BY77+BZ77 -> 0 | CF77: 0 | CG77: 0 | CH77: =CF77+CG77 -> 0 | CM77: 0 | CN77: 0 | CO77: =CM77+CN77 -> 0 | CT77: 0 | CU77: 0 | CV77: =CT77+CU77 -> 0
B78: Number of operations personnel | E78: 128 | F78: 1 | G78: =E78*F78 -> 128 | L78: 115 | M78: 1 | N78: =L78*M78 -> 115 | S78: 60 | T78: 1 | U78: 60 | Z78: 40 | AA78: 1 | AB78: 40 | AG78: 115 | AH78: 1 | AI78: =AG78*AH78 -> 115 | AN78: 105 | AO78: 1 | AP78: =AN78*AO78 -> 105 | AU78: 128 | AV78: 1 | AW78: =AU78*AV78 -> 128 | BD78: 60 | BE78: 1 | BF78: 60 | BK78: 128 | BL78: 1 | BM78: =BK78*BL78 -> 128 | BR78: 128 | BS78: 1 | BT78: =BR78*BS78 -> 128 | BY78: 60 | BZ78: 1 | CA78: =BY78*BZ78 -> 60 | CF78: 60 | CG78: 1 | CH78: =CF78*CG78 -> 60 | CM78: 115 | CN78: 1 | CO78: =CM78*CN78 -> 115 | CT78: 115 | CU78: 1 | CV78: =CT78*CU78 -> 115
B79: Average salary options personnel | E79: 0.05 | F79: 1 | G79: =E79*F79 -> 0.05 | L79: 0.05 | M79: 1 | N79: =L79*M79 -> 0.05 | S79: 0.05 | T79: 1 | U79: 0.05 | Z79: 0.05 | AA79: 1 | AB79: 0.05 | AG79: 0.05 | AH79: 1 | AI79: =AG79*AH79 -> 0.05 | AN79: 0.05 | AO79: 1 | AP79: =AN79*AO79 -> 0.05 | AU79: 0.05 | AV79: 1 | AW79: =AU79*AV79 -> 0.05 | BD79: 0.05 | BE79: 1 | BF79: 0.05 | BK79: 0.05 | BL79: 1 | BM79: =BK79*BL79 -> 0.05 | BR79: 0.05 | BS79: 1 | BT79: =BR79*BS79 -> 0.05 | BY79: 0.05 | BZ79: 1 | CA79: =BY79*BZ79 -> 0.05 | CF79: 0.05 | CG79: 1 | CH79: =CF79*CG79 -> 0.05 | CM79: 0.05 | CN79: 1 | CO79: =CM79*CN79 -> 0.05 | CT79: 0.05 | CU79: 1 | CV79: =CT79*CU79 -> 0.05
B80: Admin allowance (% of operation personnel cost) | E80: 0.3 | F80: 1 | G80: =E80*F80 -> 0.3 | L80: 0.3 | M80: 1 | N80: =L80*M80 -> 0.3 | S80: 0.3 | T80: 1 | U80: 0.3 | Z80: 0.3 | AA80: 1 | AB80: 0.3 | AG80: 0.3 | AH80: 1 | AI80: =AG80*AH80 -> 0.3 | AN80: 0.3 | AO80: 1 | AP80: =AN80*AO80 -> 0.3 | AU80: 0.3 | AV80: 1 | AW80: =AU80*AV80 -> 0.3 | BD80: 0.3 | BE80: 1 | BF80: 0.3 | BK80: 0.3 | BL80: 1 | BM80: =BK80*BL80 -> 0.3 | BR80: 0.3 | BS80: 1 | BT80: =BR80*BS80 -> 0.3 | BY80: 0.3 | BZ80: 1 | CA80: =BY80*BZ80 -> 0.3 | CF80: 0.3 | CG80: 1 | CH80: =CF80*CG80 -> 0.3 | CM80: 0.3 | CN80: 1 | CO80: =CM80*CN80 -> 0.3 | CT80: 0.3 | CU80: 1 | CV80: =CT80*CU80 -> 0.3
B81: Insurance | E81: 0.02 | F81: 1 | G81: =E81*F81 -> 0.02 | L81: 0.02 | M81: 1 | N81: =L81*M81 -> 0.02 | S81: 0.02 | T81: 1 | U81: 0.02 | Z81: 0.02 | AA81: 1 | AB81: 0.02 | AG81: 0.02 | AH81: 1 | AI81: =AG81*AH81 -> 0.02 | AN81: 0.02 | AO81: 1 | AP81: =AN81*AO81 -> 0.02 | AU81: 0.02 | AV81: 1 | AW81: =AU81*AV81 -> 0.02 | BD81: 0.02 | BE81: 1 | BF81: 0.02 | BK81: 0.02 | BL81: 1 | BM81: =BK81*BL81 -> 0.02 | BR81: 0.02 | BS81: 1 | BT81: =BR81*BS81 -> 0.02 | BY81: 0.02 | BZ81: 1 | CA81: =BY81*BZ81 -> 0.02 | CF81: 0.02 | CG81: 1 | CH81: =CF81*CG81 -> 0.02 | CM81: 0.02 | CN81: 1 | CO81: =CM81*CN81 -> 0.02 | CT81: 0.02 | CU81: 1 | CV81: =CT81*CU81 -> 0.02
A83: Revenue Variables | G83: =IF(PRODUCT(F84:F86)=1,0,1) -> 0 | N83: =IF(PRODUCT(M84:M86)=1,0,1) -> 0 | U83: =IF(PRODUCT(T84:T86)=1,0,1) -> 0 | AB83: =IF(PRODUCT(AA84:AA86)=1,0,1) -> 0 | AI83: =IF(PRODUCT(AH84:AH86)=1,0,1) -> 0 | AP83: =IF(PRODUCT(AO84:AO86)=1,0,1) -> 0 | AW83: =IF(PRODUCT(AV84:AV86)=1,0,1) -> 0 | BF83: =IF(PRODUCT(BE84:BE86)=1,0,1) -> 0 | BM83: =IF(PRODUCT(BL84:BL86)=1,0,1) -> 0 | BT83: =IF(PRODUCT(BS84:BS86)=1,0,1) -> 0 | CA83: =IF(PRODUCT(BZ84:BZ86)=1,0,1) -> 0 | CH83: =IF(PRODUCT(CG84:CG86)=1,0,1) -> 0 | CO83: =IF(PRODUCT(CN84:CN86)=1,0,1) -> 0 | CV83: =IF(PRODUCT(CU84:CU86)=1,0,1) -> 0
B84: Sulphur Price | D84: UK£/te | E84: 40 | F84: 1 | G84: =E84*F84 -> 40 | H84: =IF(G83=1,"Revenue Data: User Adjusted","") ->  | L84: 40 | M84: 1 | N84: =L84*M84 -> 40 | O84: =IF(N83=1,"Revenue Data: User Adjusted","") ->  | S84: n/a | T84: n/a | U84: n/a | V84: =IF(U83=1,"Revenue Data: User Adjusted","") ->  | Z84: n/a | AA84: n/a | AB84: n/a | AC84: =IF(AB83=1,"Revenue Data: User Adjusted","") ->  | AG84: n/a | AH84: n/a | AI84: n/a | AJ84: =IF(AI83=1,"Revenue Data: User Adjusted","") ->  | AN84: n/a | AO84: n/a | AP84: n/a | AQ84: =IF(AP83=1,"Revenue Data: User Adjusted","") ->  | AU84: n/a | AV84: n/a | AW84: n/a | AX84: =IF(AW83=1,"Revenue Data: User Adjusted","") ->  | BD84: n/a | BE84: n/a | BF84: n/a | BG84: =IF(BF83=1,"Revenue Data: User Adjusted","") ->  | BK84: 40 | BL84: 1 | BM84: =BK84*BL84 -> 40 | BN84: =IF(BM83=1,"Revenue Data: User Adjusted","") ->  | BR84: 40 | BS84: 1 | BT84: =BR84*BS84 -> 40 | BU84: =IF(BT83=1,"Revenue Data: User Adjusted","") ->  | BY84: n/a | BZ84: n/a | CA84: n/a | CB84: =IF(CA83=1,"Revenue Data: User Adjusted","") ->  | CF84: n/a | CG84: n/a | CH84: n/a | CI84: =IF(CH83=1,"Revenue Data: User Adjusted","") ->  | CM84: n/a | CN84: n/a | CO84: n/a | CP84: =IF(CO83=1,"Revenue Data: User Adjusted","") ->  | CT84: n/a | CU84: n/a | CV84: n/a | CW84: =IF(CV83=1,"Revenue Data: User Adjusted","") -> 
B85: Hydrogen Price | D85: UK£/te | E85: =2*1000/1.53 -> 1307.189542 | F85: 1 | G85: =E85*F85 -> 1307.189542 | L85: =2*1000/1.53 -> 1307.189542 | M85: 1 | N85: =L85*M85 -> 1307.189542 | S85: n/a | T85: n/a | U85: n/a | Z85: n/a | AA85: n/a | AB85: n/a | AG85: n/a | AH85: n/a | AI85: n/a | AN85: n/a | AO85: n/a | AP85: n/a | AU85: n/a | AV85: n/a | AW85: n/a | BD85: n/a | BE85: n/a | BF85: n/a | BK85: =2*1000/1.53 -> 1307.189542 | BL85: 1 | BM85: =BK85*BL85 -> 1307.189542 | BR85: =2*1000/1.53 -> 1307.189542 | BS85: 1 | BT85: =BR85*BS85 -> 1307.189542 | BY85: n/a | BZ85: n/a | CA85: n/a | CF85: n/a | CG85: n/a | CH85: n/a | CM85: n/a | CN85: n/a | CO85: n/a | CT85: n/a | CU85: n/a | CV85: n/a
B86: Discount Rate | D86: % | E86: 0.1 | F86: 1 | G86: =E86*F86 -> 0.1 | L86: 0.1 | M86: 1 | N86: =L86*M86 -> 0.1 | S86: 0.1 | T86: 1 | U86: =S86*T86 -> 0.1 | Z86: 0.1 | AA86: 1 | AB86: =Z86*AA86 -> 0.1 | AG86: 0.1 | AH86: 1 | AI86: =AG86*AH86 -> 0.1 | AN86: 0.1 | AO86: 1 | AP86: =AN86*AO86 -> 0.1 | AU86: 0.1 | AV86: 1 | AW86: =AU86*AV86 -> 0.1 | BD86: 0.1 | BE86: 1 | BF86: =BD86*BE86 -> 0.1 | BK86: 0.1 | BL86: 1 | BM86: =BK86*BL86 -> 0.1 | BR86: 0.1 | BS86: 1 | BT86: =BR86*BS86 -> 0.1 | BY86: 0.1 | BZ86: 1 | CA86: =BY86*BZ86 -> 0.1 | CF86: 0.1 | CG86: 1 | CH86: =CF86*CG86 -> 0.1 | CM86: 0.1 | CN86: 1 | CO86: =CM86*CN86 -> 0.1 | CT86: 0.1 | CU86: 1 | CV86: =CT86*CU86 -> 0.1
F88: =F89+E89 -> 30 | M88: =M89+L89 -> 30 | T88: =T89+S89 -> 20 | AA88: =AA89+Z89 -> 20 | AH88: =AH89+AG89 -> 30 | AO88: =AO89+AN89 -> 30 | AV88: =AV89+AU89 -> 30 | BE88: =BE89+BD89 -> 20 | BL88: =BL89+BK89 -> 30 | BS88: =BS89+BR89 -> 30 | BZ88: =BZ89+BY89 -> 20 | CG88: =CG89+CF89 -> 20 | CN88: =CN89+CM89 -> 30 | CU88: =CU89+CT89 -> 30
A89: Project Life (can be 20, 25 or 30 years) | D89: years | E89: 30 | F89: 0 | G89: =IF(F88<=20,20,IF(F88<=25,25,IF(F88>25,30,30))) -> 30 | L89: 30 | M89: 0 | N89: =IF(M88<=20,20,IF(M88<=25,25,IF(M88>25,30,30))) -> 30 | S89: 20 | T89: 0 | U89: =IF(T88<=20,20,IF(T88<=25,25,IF(T88>25,30,30))) -> 20 | Z89: 20 | AA89: 0 | AB89: =IF(AA88<=20,20,IF(AA88<=25,25,IF(AA88>25,30,30))) -> 20 | AG89: 30 | AH89: 0 | AI89: =IF(AH88<=20,20,IF(AH88<=25,25,IF(AH88>25,30,30))) -> 30 | AN89: 30 | AO89: 0 | AP89: =IF(AO88<=20,20,IF(AO88<=25,25,IF(AO88>25,30,30))) -> 30 | AU89: 30 | AV89: 0 | AW89: =IF(AV88<=20,20,IF(AV88<=25,25,IF(AV88>25,30,30))) -> 30 | BD89: 20 | BE89: 0 | BF89: =IF(BE88<=20,20,IF(BE88<=25,25,IF(BE88>25,30,30))) -> 20 | BK89: 30 | BL89: 0 | BM89: =IF(BL88<=20,20,IF(BL88<=25,25,IF(BL88>25,30,30))) -> 30 | BR89: 30 | BS89: 0 | BT89: =IF(BS88<=20,20,IF(BS88<=25,25,IF(BS88>25,30,30))) -> 30 | BY89: 20 | BZ89: 0 | CA89: =IF(BZ88<=20,20,IF(BZ88<=25,25,IF(BZ88>25,30,30))) -> 20 | CF89: 20 | CG89: 0 | CH89: =IF(CG88<=20,20,IF(CG88<=25,25,IF(CG88>25,30,30))) -> 20 | CM89: 30 | CN89: 0 | CO89: =IF(CN88<=20,20,IF(CN88<=25,25,IF(CN88>25,30,30))) -> 30 | CT89: 30 | CU89: 0 | CV89: =IF(CU88<=20,20,IF(CU88<=25,25,IF(CU88>25,30,30))) -> 30
A91: Project Internal Rate of Return
A93: Year 1 of Plant | G93: 2012 | N93: 2012 | U93: 2012 | AB93: 2012 | AI93: 2012 | AP93: 2012 | AW93: 2012 | BF93: 2012 | BM93: 2012 | BT93: 2012 | CA93: 2012 | CH93: 2012 | CO93: 2012 | CV93: 2012
A95: Expenditure factor
B96: Start Project year 1 | G96: 0.25 | N96: 0.25 | U96: 0.25 | AB96: 0.25 | AI96: 0.25 | AP96: 0.25 | AW96: 0.25 | BF96: 0.25 | BM96: 0.25 | BT96: 0.25 | CA96: 0.25 | CH96: 0.25 | CO96: 0.25 | CV96: 0.25
B97: Start Project year 2 | G97: 0.45 | N97: 0.45 | U97: 0.45 | AB97: 0.45 | AI97: 0.45 | AP97: 0.45 | AW97: 0.45 | BF97: 0.45 | BM97: 0.45 | BT97: 0.45 | CA97: 0.45 | CH97: 0.45 | CO97: 0.45 | CV97: 0.45
B98: Start Project year 3 | G98: 0.3 | N98: 0.3 | U98: 0.3 | AB98: 0.3 | AI98: 0.3 | AP98: 0.3 | AW98: 0.3 | BF98: 0.3 | BM98: 0.3 | BT98: 0.3 | CA98: 0.3 | CH98: 0.3 | CO98: 0.3 | CV98: 0.3
A100: Factors | E100: Load | G100: Availability | L100: Load | N100: Availability | S100: Load | T100: Availability | Z100: Load | AA100: Availability | AG100: Load | AH100: Availability | AN100: Load | AO100: Availability | AU100: Load | AV100: Availability | BD100: Load | BE100: Availability | BK100: Load | BM100: Availability | BR100: Load | BT100: Availability | BY100: Load | BZ100: Availability | CF100: Load | CG100: Availability | CM100: Load | CN100: Availability | CT100: Load | CU100: Availability
E101: H2 Prod'n | F101: Power Island | G101: H2 Prod'n | H101: Power Island | L101: H2 Prod'n | M101: Power Island | N101: H2 Prod'n | O101: Power Island | BK101: H2 Prod'n | BL101: Power Island | BM101: H2 Prod'n | BN101: Power Island | BR101: H2 Prod'n | BS101: Power Island | BT101: H2 Prod'n | BU101: Power Island
C102: =IF(G89>1, IF(G89>10,"Year 1",""),"") -> Year 1 | D102: =IF(C102="Year 1",G93,"") -> 2012 | E102: 1 | F102: 1 | G102: 0.65 | H102: 0.65 | I102: =IF(F102*H102>E102*G102,"PI (LFxA) > H2 (LFx A)"," ") ->  | J102: =IF(N89>1, IF(N89>10,"Year 1",""),"") -> Year 1 | K102: =IF(J102="Year 1",N93,"") -> 2012 | L102: 1 | M102: 1 | N102: 0.65 | O102: 0.65 | P102: =IF(M102*O102>L102*N102,"PI (LFxA) > H2 (LFx A)"," ") ->  | Q102: =IF(U89>1, IF(U89>10,"Year 1",""),"") -> Year 1 | R102: =IF(Q102="Year 1",U93,"") -> 2012 | S102: 1 | T102: 0.65 | X102: =IF(AB89>1, IF(AB89>10,"Year 1",""),"") -> Year 1 | Y102: =IF(X102="Year 1",AB93,"") -> 2012 | Z102: 1 | AA102: 0.65 | AE102: =IF(AI89>1, IF(AI89>10,"Year 1",""),"") -> Year 1 | AF102: =IF(AE102="Year 1",AI93,"") -> 2012 | AG102: 1 | AH102: 0.65 | AL102: =IF(AP89>1, IF(AP89>10,"Year 1",""),"") -> Year 1 | AM102: =IF(AL102="Year 1",AP93,"") -> 2012 | AN102: 1 | AO102: 0.65 | AS102: =IF(AW89>1, IF(AW89>10,"Year 1",""),"") -> Year 1 | AT102: =IF(AS102="Year 1",AW93,"") -> 2012 | AU102: 1 | AV102: 0.65 | BB102: =IF(BF89>1, IF(BF89>10,"Year 1",""),"") -> Year 1 | BC102: =IF(BB102="Year 1",BF93,"") -> 2012 | BD102: 1 | BE102: 0.65 | BI102: =IF(BM89>1, IF(BM89>10,"Year 1",""),"") -> Year 1 | BJ102: =IF(BI102="Year 1",BM93,"") -> 2012 | BK102: 1 | BL102: 1 | BM102: 0.65 | BN102: 0.65 | BP102: =IF(BT89>1, IF(BT89>10,"Year 1",""),"") -> Year 1 | BQ102: =IF(BP102="Year 1",BT93,"") -> 2012 | BR102: 1 | BS102: 1 | BT102: 0.65 | BU102: 0.65 | BW102: =IF(CA89>1, IF(CA89>10,"Year 1",""),"") -> Year 1 | BX102: =IF(BW102="Year 1",CA93,"") -> 2012 | BY102: 1 | BZ102: 0.65 | CD102: =IF(CH89>1, IF(CH89>10,"Year 1",""),"") -> Year 1 | CE102: =IF(CD102="Year 1",CH93,"") -> 2012 | CF102: 1 | CG102: 0.65 | CK102: =IF(CO89>1, IF(CO89>10,"Year 1",""),"") -> Year 1 | CL102: =IF(CK102="Year 1",CO93,"") -> 2012 | CM102: 1 | CN102: 0.65 | CR102: =IF(CV89>1, IF(CV89>10,"Year 1",""),"") -> Year 1 | CS102: =IF(CR102="Year 1",CV93,"") -> 2012 | CT102: 1 | CU102: 0.65
C103: =IF(G89>1, IF(G89>10,"Year 2",""),"") -> Year 2 | D103: =IF(C103="Year 2",D102+1,"") -> 2013 | E103: 1 | F103: 1 | G103: 0.75 | H103: 0.75 | I103: =IF(F103*H103>E103*G103,"PI (LFxA) > H2 (LFx A)"," ") ->  | J103: =IF(N89>1, IF(N89>10,"Year 2",""),"") -> Year 2 | K103: =IF(J103="Year 2",K102+1,"") -> 2013 | L103: 1 | M103: 1 | N103: 0.75 | O103: 0.75 | P103: =IF(M103*O103>L103*N103,"PI (LFxA) > H2 (LFx A)"," ") ->  | Q103: =IF(U89>1, IF(U89>10,"Year 2",""),"") -> Year 2 | R103: =IF(Q103="Year 2",R102+1,"") -> 2013 | S103: 1 | T103: 0.75 | X103: =IF(AB89>1, IF(AB89>10,"Year 2",""),"") -> Year 2 | Y103: =IF(X103="Year 2",Y102+1,"") -> 2013 | Z103: 1 | AA103: 0.75 | AE103: =IF(AI89>1, IF(AI89>10,"Year 2",""),"") -> Year 2 | AF103: =IF(AE103="Year 2",AF102+1,"") -> 2013 | AG103: 1 | AH103: 0.75 | AL103: =IF(AP89>1, IF(AP89>10,"Year 2",""),"") -> Year 2 | AM103: =IF(AL103="Year 2",AM102+1,"") -> 2013 | AN103: 1 | AO103: 0.75 | AS103: =IF(AW89>1, IF(AW89>10,"Year 2",""),"") -> Year 2 | AT103: =IF(AS103="Year 2",AT102+1,"") -> 2013 | AU103: 1 | AV103: 0.75 | BB103: =IF(BF89>1, IF(BF89>10,"Year 2",""),"") -> Year 2 | BC103: =IF(BB103="Year 2",BC102+1,"") -> 2013 | BD103: 1 | BE103: 0.75 | BI103: =IF(BM89>1, IF(BM89>10,"Year 2",""),"") -> Year 2 | BJ103: =IF(BI103="Year 2",BJ102+1,"") -> 2013 | BK103: 1 | BL103: 1 | BM103: 0.75 | BN103: 0.75 | BP103: =IF(BT89>1, IF(BT89>10,"Year 2",""),"") -> Year 2 | BQ103: =IF(BP103="Year 2",BQ102+1,"") -> 2013 | BR103: 1 | BS103: 1 | BT103: 0.75 | BU103: 0.75 | BW103: =IF(CA89>1, IF(CA89>10,"Year 2",""),"") -> Year 2 | BX103: =IF(BW103="Year 2",BX102+1,"") -> 2013 | BY103: 1 | BZ103: 0.75 | CD103: =IF(CH89>1, IF(CH89>10,"Year 2",""),"") -> Year 2 | CE103: =IF(CD103="Year 2",CE102+1,"") -> 2013 | CF103: 1 | CG103: 0.75 | CK103: =IF(CO89>1, IF(CO89>10,"Year 2",""),"") -> Year 2 | CL103: =IF(CK103="Year 2",CL102+1,"") -> 2013 | CM103: 1 | CN103: 0.75 | CR103: =IF(CV89>1, IF(CV89>10,"Year 2",""),"") -> Year 2 | CS103: =IF(CR103="Year 2",CS102+1,"") -> 2013 | CT103: 1 | CU103: 0.75
C104: =IF(G89>1, IF(G89>10,"Year 3",""),"") -> Year 3 | D104: =IF(C104="Year 3",D103+1,"") -> 2014 | E104: 1 | F104: 1 | G104: 0.85 | H104: 0.85 | J104: =IF(N89>1, IF(N89>10,"Year 3",""),"") -> Year 3 | K104: =IF(J104="Year 3",K103+1,"") -> 2014 | L104: 1 | M104: 1 | N104: 0.85 | O104: 0.85 | Q104: =IF(U89>1, IF(U89>10,"Year 3",""),"") -> Year 3 | R104: =IF(Q104="Year 3",R103+1,"") -> 2014 | S104: 1 | T104: 0.85 | X104: =IF(AB89>1, IF(AB89>10,"Year 3",""),"") -> Year 3 | Y104: =IF(X104="Year 3",Y103+1,"") -> 2014 | Z104: 1 | AA104: 0.85 | AE104: =IF(AI89>1, IF(AI89>10,"Year 3",""),"") -> Year 3 | AF104: =IF(AE104="Year 3",AF103+1,"") -> 2014 | AG104: 1 | AH104: 0.85 | AL104: =IF(AP89>1, IF(AP89>10,"Year 3",""),"") -> Year 3 | AM104: =IF(AL104="Year 3",AM103+1,"") -> 2014 | AN104: 1 | AO104: 0.85 | AS104: =IF(AW89>1, IF(AW89>10,"Year 3",""),"") -> Year 3 | AT104: =IF(AS104="Year 3",AT103+1,"") -> 2014 | AU104: 1 | AV104: 0.85 | BB104: =IF(BF89>1, IF(BF89>10,"Year 3",""),"") -> Year 3 | BC104: =IF(BB104="Year 3",BC103+1,"") -> 2014 | BD104: 1 | BE104: 0.85 | BI104: =IF(BM89>1, IF(BM89>10,"Year 3",""),"") -> Year 3 | BJ104: =IF(BI104="Year 3",BJ103+1,"") -> 2014 | BK104: 1 | BL104: 1 | BM104: 0.85 | BN104: 0.85 | BP104: =IF(BT89>1, IF(BT89>10,"Year 3",""),"") -> Year 3 | BQ104: =IF(BP104="Year 3",BQ103+1,"") -> 2014 | BR104: 1 | BS104: 1 | BT104: 0.85 | BU104: 0.85 | BW104: =IF(CA89>1, IF(CA89>10,"Year 3",""),"") -> Year 3 | BX104: =IF(BW104="Year 3",BX103+1,"") -> 2014 | BY104: 1 | BZ104: 0.85 | CD104: =IF(CH89>1, IF(CH89>10,"Year 3",""),"") -> Year 3 | CE104: =IF(CD104="Year 3",CE103+1,"") -> 2014 | CF104: 1 | CG104: 0.85 | CK104: =IF(CO89>1, IF(CO89>10,"Year 3",""),"") -> Year 3 | CL104: =IF(CK104="Year 3",CL103+1,"") -> 2014 | CM104: 1 | CN104: 0.85 | CR104: =IF(CV89>1, IF(CV89>10,"Year 3",""),"") -> Year 3 | CS104: =IF(CR104="Year 3",CS103+1,"") -> 2014 | CT104: 1 | CU104: 0.85
C105: =IF(G89>1, IF(G89>10,"Year 4",""),"") -> Year 4 | D105: =IF(C105="Year 4",D104+1,"") -> 2015 | E105: 1 | F105: 1 | G105: 0.85 | H105: 0.85 | J105: =IF(N89>1, IF(N89>10,"Year 4",""),"") -> Year 4 | K105: =IF(J105="Year 4",K104+1,"") -> 2015 | L105: 1 | M105: 1 | N105: 0.85 | O105: 0.85 | Q105: =IF(U89>1, IF(U89>10,"Year 4",""),"") -> Year 4 | R105: =IF(Q105="Year 4",R104+1,"") -> 2015 | S105: 1 | T105: 0.85 | X105: =IF(AB89>1, IF(AB89>10,"Year 4",""),"") -> Year 4 | Y105: =IF(X105="Year 4",Y104+1,"") -> 2015 | Z105: 1 | AA105: 0.85 | AE105: =IF(AI89>1, IF(AI89>10,"Year 4",""),"") -> Year 4 | AF105: =IF(AE105="Year 4",AF104+1,"") -> 2015 | AG105: 1 | AH105: 0.85 | AL105: =IF(AP89>1, IF(AP89>10,"Year 4",""),"") -> Year 4 | AM105: =IF(AL105="Year 4",AM104+1,"") -> 2015 | AN105: 1 | AO105: 0.85 | AS105: =IF(AW89>1, IF(AW89>10,"Year 4",""),"") -> Year 4 | AT105: =IF(AS105="Year 4",AT104+1,"") -> 2015 | AU105: 1 | AV105: 0.85 | BB105: =IF(BF89>1, IF(BF89>10,"Year 4",""),"") -> Year 4 | BC105: =IF(BB105="Year 4",BC104+1,"") -> 2015 | BD105: 1 | BE105: 0.85 | BI105: =IF(BM89>1, IF(BM89>10,"Year 4",""),"") -> Year 4 | BJ105: =IF(BI105="Year 4",BJ104+1,"") -> 2015 | BK105: 1 | BL105: 1 | BM105: 0.85 | BN105: 0.85 | BP105: =IF(BT89>1, IF(BT89>10,"Year 4",""),"") -> Year 4 | BQ105: =IF(BP105="Year 4",BQ104+1,"") -> 2015 | BR105: 1 | BS105: 1 | BT105: 0.85 | BU105: 0.85 | BW105: =IF(CA89>1, IF(CA89>10,"Year 4",""),"") -> Year 4 | BX105: =IF(BW105="Year 4",BX104+1,"") -> 2015 | BY105: 1 | BZ105: 0.85 | CD105: =IF(CH89>1, IF(CH89>10,"Year 4",""),"") -> Year 4 | CE105: =IF(CD105="Year 4",CE104+1,"") -> 2015 | CF105: 1 | CG105: 0.85 | CK105: =IF(CO89>1, IF(CO89>10,"Year 4",""),"") -> Year 4 | CL105: =IF(CK105="Year 4",CL104+1,"") -> 2015 | CM105: 1 | CN105: 0.85 | CR105: =IF(CV89>1, IF(CV89>10,"Year 4",""),"") -> Year 4 | CS105: =IF(CR105="Year 4",CS104+1,"") -> 2015 | CT105: 1 | CU105: 0.85
C106: =IF(G89>1, IF(G89>10,"Year 5",""),"") -> Year 5 | D106: =IF(C106="Year 5",D105+1,"") -> 2016 | E106: 1 | F106: 1 | G106: 0.85 | H106: 0.85 | J106: =IF(N89>1, IF(N89>10,"Year 5",""),"") -> Year 5 | K106: =IF(J106="Year 5",K105+1,"") -> 2016 | L106: 1 | M106: 1 | N106: 0.85 | O106: 0.85 | Q106: =IF(U89>1, IF(U89>10,"Year 5",""),"") -> Year 5 | R106: =IF(Q106="Year 5",R105+1,"") -> 2016 | S106: 1 | T106: 0.85 | X106: =IF(AB89>1, IF(AB89>10,"Year 5",""),"") -> Year 5 | Y106: =IF(X106="Year 5",Y105+1,"") -> 2016 | Z106: 1 | AA106: 0.85 | AE106: =IF(AI89>1, IF(AI89>10,"Year 5",""),"") -> Year 5 | AF106: =IF(AE106="Year 5",AF105+1,"") -> 2016 | AG106: 1 | AH106: 0.85 | AL106: =IF(AP89>1, IF(AP89>10,"Year 5",""),"") -> Year 5 | AM106: =IF(AL106="Year 5",AM105+1,"") -> 2016 | AN106: 1 | AO106: 0.85 | AS106: =IF(AW89>1, IF(AW89>10,"Year 5",""),"") -> Year 5 | AT106: =IF(AS106="Year 5",AT105+1,"") -> 2016 | AU106: 1 | AV106: 0.85 | BB106: =IF(BF89>1, IF(BF89>10,"Year 5",""),"") -> Year 5 | BC106: =IF(BB106="Year 5",BC105+1,"") -> 2016 | BD106: 1 | BE106: 0.85 | BI106: =IF(BM89>1, IF(BM89>10,"Year 5",""),"") -> Year 5 | BJ106: =IF(BI106="Year 5",BJ105+1,"") -> 2016 | BK106: 1 | BL106: 1 | BM106: 0.85 | BN106: 0.85 | BP106: =IF(BT89>1, IF(BT89>10,"Year 5",""),"") -> Year 5 | BQ106: =IF(BP106="Year 5",BQ105+1,"") -> 2016 | BR106: 1 | BS106: 1 | BT106: 0.85 | BU106: 0.85 | BW106: =IF(CA89>1, IF(CA89>10,"Year 5",""),"") -> Year 5 | BX106: =IF(BW106="Year 5",BX105+1,"") -> 2016 | BY106: 1 | BZ106: 0.85 | CD106: =IF(CH89>1, IF(CH89>10,"Year 5",""),"") -> Year 5 | CE106: =IF(CD106="Year 5",CE105+1,"") -> 2016 | CF106: 1 | CG106: 0.85 | CK106: =IF(CO89>1, IF(CO89>10,"Year 5",""),"") -> Year 5 | CL106: =IF(CK106="Year 5",CL105+1,"") -> 2016 | CM106: 1 | CN106: 0.85 | CR106: =IF(CV89>1, IF(CV89>10,"Year 5",""),"") -> Year 5 | CS106: =IF(CR106="Year 5",CS105+1,"") -> 2016 | CT106: 1 | CU106: 0.85
C107: =IF(G89>1, IF(G89>10,"Year 6",""),"") -> Year 6 | D107: =IF(C107="Year 6",D106+1,"") -> 2017 | E107: 1 | F107: 1 | G107: 0.85 | H107: 0.85 | J107: =IF(N89>1, IF(N89>10,"Year 6",""),"") -> Year 6 | K107: =IF(J107="Year 6",K106+1,"") -> 2017 | L107: 1 | M107: 1 | N107: 0.85 | O107: 0.85 | Q107: =IF(U89>1, IF(U89>10,"Year 6",""),"") -> Year 6 | R107: =IF(Q107="Year 6",R106+1,"") -> 2017 | S107: 1 | T107: 0.85 | X107: =IF(AB89>1, IF(AB89>10,"Year 6",""),"") -> Year 6 | Y107: =IF(X107="Year 6",Y106+1,"") -> 2017 | Z107: 1 | AA107: 0.85 | AE107: =IF(AI89>1, IF(AI89>10,"Year 6",""),"") -> Year 6 | AF107: =IF(AE107="Year 6",AF106+1,"") -> 2017 | AG107: 1 | AH107: 0.85 | AL107: =IF(AP89>1, IF(AP89>10,"Year 6",""),"") -> Year 6 | AM107: =IF(AL107="Year 6",AM106+1,"") -> 2017 | AN107: 1 | AO107: 0.85 | AS107: =IF(AW89>1, IF(AW89>10,"Year 6",""),"") -> Year 6 | AT107: =IF(AS107="Year 6",AT106+1,"") -> 2017 | AU107: 1 | AV107: 0.85 | BB107: =IF(BF89>1, IF(BF89>10,"Year 6",""),"") -> Year 6 | BC107: =IF(BB107="Year 6",BC106+1,"") -> 2017 | BD107: 1 | BE107: 0.85 | BI107: =IF(BM89>1, IF(BM89>10,"Year 6",""),"") -> Year 6 | BJ107: =IF(BI107="Year 6",BJ106+1,"") -> 2017 | BK107: 1 | BL107: 1 | BM107: 0.85 | BN107: 0.85 | BP107: =IF(BT89>1, IF(BT89>10,"Year 6",""),"") -> Year 6 | BQ107: =IF(BP107="Year 6",BQ106+1,"") -> 2017 | BR107: 1 | BS107: 1 | BT107: 0.85 | BU107: 0.85 | BW107: =IF(CA89>1, IF(CA89>10,"Year 6",""),"") -> Year 6 | BX107: =IF(BW107="Year 6",BX106+1,"") -> 2017 | BY107: 1 | BZ107: 0.85 | CD107: =IF(CH89>1, IF(CH89>10,"Year 6",""),"") -> Year 6 | CE107: =IF(CD107="Year 6",CE106+1,"") -> 2017 | CF107: 1 | CG107: 0.85 | CK107: =IF(CO89>1, IF(CO89>10,"Year 6",""),"") -> Year 6 | CL107: =IF(CK107="Year 6",CL106+1,"") -> 2017 | CM107: 1 | CN107: 0.85 | CR107: =IF(CV89>1, IF(CV89>10,"Year 6",""),"") -> Year 6 | CS107: =IF(CR107="Year 6",CS106+1,"") -> 2017 | CT107: 1 | CU107: 0.85
C108: =IF(G89>1, IF(G89>10,"Year 7",""),"") -> Year 7 | D108: =IF(C108="Year 7",D107+1,"") -> 2018 | E108: 1 | F108: 1 | G108: 0.85 | H108: 0.85 | J108: =IF(N89>1, IF(N89>10,"Year 7",""),"") -> Year 7 | K108: =IF(J108="Year 7",K107+1,"") -> 2018 | L108: 1 | M108: 1 | N108: 0.85 | O108: 0.85 | Q108: =IF(U89>1, IF(U89>10,"Year 7",""),"") -> Year 7 | R108: =IF(Q108="Year 7",R107+1,"") -> 2018 | S108: 1 | T108: 0.85 | X108: =IF(AB89>1, IF(AB89>10,"Year 7",""),"") -> Year 7 | Y108: =IF(X108="Year 7",Y107+1,"") -> 2018 | Z108: 1 | AA108: 0.85 | AE108: =IF(AI89>1, IF(AI89>10,"Year 7",""),"") -> Year 7 | AF108: =IF(AE108="Year 7",AF107+1,"") -> 2018 | AG108: 1 | AH108: 0.85 | AL108: =IF(AP89>1, IF(AP89>10,"Year 7",""),"") -> Year 7 | AM108: =IF(AL108="Year 7",AM107+1,"") -> 2018 | AN108: 1 | AO108: 0.85 | AS108: =IF(AW89>1, IF(AW89>10,"Year 7",""),"") -> Year 7 | AT108: =IF(AS108="Year 7",AT107+1,"") -> 2018 | AU108: 1 | AV108: 0.85 | BB108: =IF(BF89>1, IF(BF89>10,"Year 7",""),"") -> Year 7 | BC108: =IF(BB108="Year 7",BC107+1,"") -> 2018 | BD108: 1 | BE108: 0.85 | BI108: =IF(BM89>1, IF(BM89>10,"Year 7",""),"") -> Year 7 | BJ108: =IF(BI108="Year 7",BJ107+1,"") -> 2018 | BK108: 1 | BL108: 1 | BM108: 0.85 | BN108: 0.85 | BP108: =IF(BT89>1, IF(BT89>10,"Year 7",""),"") -> Year 7 | BQ108: =IF(BP108="Year 7",BQ107+1,"") -> 2018 | BR108: 1 | BS108: 1 | BT108: 0.85 | BU108: 0.85 | BW108: =IF(CA89>1, IF(CA89>10,"Year 7",""),"") -> Year 7 | BX108: =IF(BW108="Year 7",BX107+1,"") -> 2018 | BY108: 1 | BZ108: 0.85 | CD108: =IF(CH89>1, IF(CH89>10,"Year 7",""),"") -> Year 7 | CE108: =IF(CD108="Year 7",CE107+1,"") -> 2018 | CF108: 1 | CG108: 0.85 | CK108: =IF(CO89>1, IF(CO89>10,"Year 7",""),"") -> Year 7 | CL108: =IF(CK108="Year 7",CL107+1,"") -> 2018 | CM108: 1 | CN108: 0.85 | CR108: =IF(CV89>1, IF(CV89>10,"Year 7",""),"") -> Year 7 | CS108: =IF(CR108="Year 7",CS107+1,"") -> 2018 | CT108: 1 | CU108: 0.85
C109: =IF(G89>1, IF(G89>10,"Year 8",""),"") -> Year 8 | D109: =IF(C109="Year 8",D108+1,"") -> 2019 | E109: 1 | F109: 1 | G109: 0.85 | H109: 0.85 | J109: =IF(N89>1, IF(N89>10,"Year 8",""),"") -> Year 8 | K109: =IF(J109="Year 8",K108+1,"") -> 2019 | L109: 1 | M109: 1 | N109: 0.85 | O109: 0.85 | Q109: =IF(U89>1, IF(U89>10,"Year 8",""),"") -> Year 8 | R109: =IF(Q109="Year 8",R108+1,"") -> 2019 | S109: 1 | T109: 0.85 | X109: =IF(AB89>1, IF(AB89>10,"Year 8",""),"") -> Year 8 | Y109: =IF(X109="Year 8",Y108+1,"") -> 2019 | Z109: 1 | AA109: 0.85 | AE109: =IF(AI89>1, IF(AI89>10,"Year 8",""),"") -> Year 8 | AF109: =IF(AE109="Year 8",AF108+1,"") -> 2019 | AG109: 1 | AH109: 0.85 | AL109: =IF(AP89>1, IF(AP89>10,"Year 8",""),"") -> Year 8 | AM109: =IF(AL109="Year 8",AM108+1,"") -> 2019 | AN109: 1 | AO109: 0.85 | AS109: =IF(AW89>1, IF(AW89>10,"Year 8",""),"") -> Year 8 | AT109: =IF(AS109="Year 8",AT108+1,"") -> 2019 | AU109: 1 | AV109: 0.85 | BB109: =IF(BF89>1, IF(BF89>10,"Year 8",""),"") -> Year 8 | BC109: =IF(BB109="Year 8",BC108+1,"") -> 2019 | BD109: 1 | BE109: 0.85 | BI109: =IF(BM89>1, IF(BM89>10,"Year 8",""),"") -> Year 8 | BJ109: =IF(BI109="Year 8",BJ108+1,"") -> 2019 | BK109: 1 | BL109: 1 | BM109: 0.85 | BN109: 0.85 | BP109: =IF(BT89>1, IF(BT89>10,"Year 8",""),"") -> Year 8 | BQ109: =IF(BP109="Year 8",BQ108+1,"") -> 2019 | BR109: 1 | BS109: 1 | BT109: 0.85 | BU109: 0.85 | BW109: =IF(CA89>1, IF(CA89>10,"Year 8",""),"") -> Year 8 | BX109: =IF(BW109="Year 8",BX108+1,"") -> 2019 | BY109: 1 | BZ109: 0.85 | CD109: =IF(CH89>1, IF(CH89>10,"Year 8",""),"") -> Year 8 | CE109: =IF(CD109="Year 8",CE108+1,"") -> 2019 | CF109: 1 | CG109: 0.85 | CK109: =IF(CO89>1, IF(CO89>10,"Year 8",""),"") -> Year 8 | CL109: =IF(CK109="Year 8",CL108+1,"") -> 2019 | CM109: 1 | CN109: 0.85 | CR109: =IF(CV89>1, IF(CV89>10,"Year 8",""),"") -> Year 8 | CS109: =IF(CR109="Year 8",CS108+1,"") -> 2019 | CT109: 1 | CU109: 0.85
C110: =IF(G89>1, IF(G89>10,"Year 9",""),"") -> Year 9 | D110: =IF(C110="Year 9",D109+1,"") -> 2020 | E110: 1 | F110: 1 | G110: 0.85 | H110: 0.85 | J110: =IF(N89>1, IF(N89>10,"Year 9",""),"") -> Year 9 | K110: =IF(J110="Year 9",K109+1,"") -> 2020 | L110: 1 | M110: 1 | N110: 0.85 | O110: 0.85 | Q110: =IF(U89>1, IF(U89>10,"Year 9",""),"") -> Year 9 | R110: =IF(Q110="Year 9",R109+1,"") -> 2020 | S110: 1 | T110: 0.85 | X110: =IF(AB89>1, IF(AB89>10,"Year 9",""),"") -> Year 9 | Y110: =IF(X110="Year 9",Y109+1,"") -> 2020 | Z110: 1 | AA110: 0.85 | AE110: =IF(AI89>1, IF(AI89>10,"Year 9",""),"") -> Year 9 | AF110: =IF(AE110="Year 9",AF109+1,"") -> 2020 | AG110: 1 | AH110: 0.85 | AL110: =IF(AP89>1, IF(AP89>10,"Year 9",""),"") -> Year 9 | AM110: =IF(AL110="Year 9",AM109+1,"") -> 2020 | AN110: 1 | AO110: 0.85 | AS110: =IF(AW89>1, IF(AW89>10,"Year 9",""),"") -> Year 9 | AT110: =IF(AS110="Year 9",AT109+1,"") -> 2020 | AU110: 1 | AV110: 0.85 | BB110: =IF(BF89>1, IF(BF89>10,"Year 9",""),"") -> Year 9 | BC110: =IF(BB110="Year 9",BC109+1,"") -> 2020 | BD110: 1 | BE110: 0.85 | BI110: =IF(BM89>1, IF(BM89>10,"Year 9",""),"") -> Year 9 | BJ110: =IF(BI110="Year 9",BJ109+1,"") -> 2020 | BK110: 1 | BL110: 1 | BM110: 0.85 | BN110: 0.85 | BP110: =IF(BT89>1, IF(BT89>10,"Year 9",""),"") -> Year 9 | BQ110: =IF(BP110="Year 9",BQ109+1,"") -> 2020 | BR110: 1 | BS110: 1 | BT110: 0.85 | BU110: 0.85 | BW110: =IF(CA89>1, IF(CA89>10,"Year 9",""),"") -> Year 9 | BX110: =IF(BW110="Year 9",BX109+1,"") -> 2020 | BY110: 1 | BZ110: 0.85 | CD110: =IF(CH89>1, IF(CH89>10,"Year 9",""),"") -> Year 9 | CE110: =IF(CD110="Year 9",CE109+1,"") -> 2020 | CF110: 1 | CG110: 0.85 | CK110: =IF(CO89>1, IF(CO89>10,"Year 9",""),"") -> Year 9 | CL110: =IF(CK110="Year 9",CL109+1,"") -> 2020 | CM110: 1 | CN110: 0.85 | CR110: =IF(CV89>1, IF(CV89>10,"Year 9",""),"") -> Year 9 | CS110: =IF(CR110="Year 9",CS109+1,"") -> 2020 | CT110: 1 | CU110: 0.85
C111: =IF(G89>1, IF(G89>10,"Year 10",""),"") -> Year 10 | D111: =IF(C111="Year 10",D110+1,"") -> 2021 | E111: 1 | F111: 1 | G111: 0.85 | H111: 0.85 | J111: =IF(N89>1, IF(N89>10,"Year 10",""),"") -> Year 10 | K111: =IF(J111="Year 10",K110+1,"") -> 2021 | L111: 1 | M111: 1 | N111: 0.85 | O111: 0.85 | Q111: =IF(U89>1, IF(U89>10,"Year 10",""),"") -> Year 10 | R111: =IF(Q111="Year 10",R110+1,"") -> 2021 | S111: 1 | T111: 0.85 | X111: =IF(AB89>1, IF(AB89>10,"Year 10",""),"") -> Year 10 | Y111: =IF(X111="Year 10",Y110+1,"") -> 2021 | Z111: 1 | AA111: 0.85 | AE111: =IF(AI89>1, IF(AI89>10,"Year 10",""),"") -> Year 10 | AF111: =IF(AE111="Year 10",AF110+1,"") -> 2021 | AG111: 1 | AH111: 0.85 | AL111: =IF(AP89>1, IF(AP89>10,"Year 10",""),"") -> Year 10 | AM111: =IF(AL111="Year 10",AM110+1,"") -> 2021 | AN111: 1 | AO111: 0.85 | AS111: =IF(AW89>1, IF(AW89>10,"Year 10",""),"") -> Year 10 | AT111: =IF(AS111="Year 10",AT110+1,"") -> 2021 | AU111: 1 | AV111: 0.85 | BB111: =IF(BF89>1, IF(BF89>10,"Year 10",""),"") -> Year 10 | BC111: =IF(BB111="Year 10",BC110+1,"") -> 2021 | BD111: 1 | BE111: 0.85 | BI111: =IF(BM89>1, IF(BM89>10,"Year 10",""),"") -> Year 10 | BJ111: =IF(BI111="Year 10",BJ110+1,"") -> 2021 | BK111: 1 | BL111: 1 | BM111: 0.85 | BN111: 0.85 | BP111: =IF(BT89>1, IF(BT89>10,"Year 10",""),"") -> Year 10 | BQ111: =IF(BP111="Year 10",BQ110+1,"") -> 2021 | BR111: 1 | BS111: 1 | BT111: 0.85 | BU111: 0.85 | BW111: =IF(CA89>1, IF(CA89>10,"Year 10",""),"") -> Year 10 | BX111: =IF(BW111="Year 10",BX110+1,"") -> 2021 | BY111: 1 | BZ111: 0.85 | CD111: =IF(CH89>1, IF(CH89>10,"Year 10",""),"") -> Year 10 | CE111: =IF(CD111="Year 10",CE110+1,"") -> 2021 | CF111: 1 | CG111: 0.85 | CK111: =IF(CO89>1, IF(CO89>10,"Year 10",""),"") -> Year 10 | CL111: =IF(CK111="Year 10",CL110+1,"") -> 2021 | CM111: 1 | CN111: 0.85 | CR111: =IF(CV89>1, IF(CV89>10,"Year 10",""),"") -> Year 10 | CS111: =IF(CR111="Year 10",CS110+1,"") -> 2021 | CT111: 1 | CU111: 0.85
C112: =IF(G89>1, IF(G89>10,"Year 11",""),"") -> Year 11 | D112: =IF(C112="Year 11",D111+1,"") -> 2022 | E112: 1 | F112: 1 | G112: 0.85 | H112: 0.85 | J112: =IF(N89>1, IF(N89>10,"Year 11",""),"") -> Year 11 | K112: =IF(J112="Year 11",K111+1,"") -> 2022 | L112: 1 | M112: 1 | N112: 0.85 | O112: 0.85 | Q112: =IF(U89>1, IF(U89>10,"Year 11",""),"") -> Year 11 | R112: =IF(Q112="Year 11",R111+1,"") -> 2022 | S112: 1 | T112: 0.85 | X112: =IF(AB89>1, IF(AB89>10,"Year 11",""),"") -> Year 11 | Y112: =IF(X112="Year 11",Y111+1,"") -> 2022 | Z112: 1 | AA112: 0.85 | AE112: =IF(AI89>1, IF(AI89>10,"Year 11",""),"") -> Year 11 | AF112: =IF(AE112="Year 11",AF111+1,"") -> 2022 | AG112: 1 | AH112: 0.85 | AL112: =IF(AP89>1, IF(AP89>10,"Year 11",""),"") -> Year 11 | AM112: =IF(AL112="Year 11",AM111+1,"") -> 2022 | AN112: 1 | AO112: 0.85 | AS112: =IF(AW89>1, IF(AW89>10,"Year 11",""),"") -> Year 11 | AT112: =IF(AS112="Year 11",AT111+1,"") -> 2022 | AU112: 1 | AV112: 0.85 | BB112: =IF(BF89>1, IF(BF89>10,"Year 11",""),"") -> Year 11 | BC112: =IF(BB112="Year 11",BC111+1,"") -> 2022 | BD112: 1 | BE112: 0.85 | BI112: =IF(BM89>1, IF(BM89>10,"Year 11",""),"") -> Year 11 | BJ112: =IF(BI112="Year 11",BJ111+1,"") -> 2022 | BK112: 1 | BL112: 1 | BM112: 0.85 | BN112: 0.85 | BP112: =IF(BT89>1, IF(BT89>10,"Year 11",""),"") -> Year 11 | BQ112: =IF(BP112="Year 11",BQ111+1,"") -> 2022 | BR112: 1 | BS112: 1 | BT112: 0.85 | BU112: 0.85 | BW112: =IF(CA89>1, IF(CA89>10,"Year 11",""),"") -> Year 11 | BX112: =IF(BW112="Year 11",BX111+1,"") -> 2022 | BY112: 1 | BZ112: 0.85 | CD112: =IF(CH89>1, IF(CH89>10,"Year 11",""),"") -> Year 11 | CE112: =IF(CD112="Year 11",CE111+1,"") -> 2022 | CF112: 1 | CG112: 0.85 | CK112: =IF(CO89>1, IF(CO89>10,"Year 11",""),"") -> Year 11 | CL112: =IF(CK112="Year 11",CL111+1,"") -> 2022 | CM112: 1 | CN112: 0.85 | CR112: =IF(CV89>1, IF(CV89>10,"Year 11",""),"") -> Year 11 | CS112: =IF(CR112="Year 11",CS111+1,"") -> 2022 | CT112: 1 | CU112: 0.85
C113: =IF(G89>1, IF(G89>10,"Year 12",""),"") -> Year 12 | D113: =IF(C113="Year 12",D112+1,"") -> 2023 | E113: 1 | F113: 1 | G113: 0.85 | H113: 0.85 | J113: =IF(N89>1, IF(N89>10,"Year 12",""),"") -> Year 12 | K113: =IF(J113="Year 12",K112+1,"") -> 2023 | L113: 1 | M113: 1 | N113: 0.85 | O113: 0.85 | Q113: =IF(U89>1, IF(U89>10,"Year 12",""),"") -> Year 12 | R113: =IF(Q113="Year 12",R112+1,"") -> 2023 | S113: 1 | T113: 0.85 | X113: =IF(AB89>1, IF(AB89>10,"Year 12",""),"") -> Year 12 | Y113: =IF(X113="Year 12",Y112+1,"") -> 2023 | Z113: 1 | AA113: 0.85 | AE113: =IF(AI89>1, IF(AI89>10,"Year 12",""),"") -> Year 12 | AF113: =IF(AE113="Year 12",AF112+1,"") -> 2023 | AG113: 1 | AH113: 0.85 | AL113: =IF(AP89>1, IF(AP89>10,"Year 12",""),"") -> Year 12 | AM113: =IF(AL113="Year 12",AM112+1,"") -> 2023 | AN113: 1 | AO113: 0.85 | AS113: =IF(AW89>1, IF(AW89>10,"Year 12",""),"") -> Year 12 | AT113: =IF(AS113="Year 12",AT112+1,"") -> 2023 | AU113: 1 | AV113: 0.85 | BB113: =IF(BF89>1, IF(BF89>10,"Year 12",""),"") -> Year 12 | BC113: =IF(BB113="Year 12",BC112+1,"") -> 2023 | BD113: 1 | BE113: 0.85 | BI113: =IF(BM89>1, IF(BM89>10,"Year 12",""),"") -> Year 12 | BJ113: =IF(BI113="Year 12",BJ112+1,"") -> 2023 | BK113: 1 | BL113: 1 | BM113: 0.85 | BN113: 0.85 | BP113: =IF(BT89>1, IF(BT89>10,"Year 12",""),"") -> Year 12 | BQ113: =IF(BP113="Year 12",BQ112+1,"") -> 2023 | BR113: 1 | BS113: 1 | BT113: 0.85 | BU113: 0.85 | BW113: =IF(CA89>1, IF(CA89>10,"Year 12",""),"") -> Year 12 | BX113: =IF(BW113="Year 12",BX112+1,"") -> 2023 | BY113: 1 | BZ113: 0.85 | CD113: =IF(CH89>1, IF(CH89>10,"Year 12",""),"") -> Year 12 | CE113: =IF(CD113="Year 12",CE112+1,"") -> 2023 | CF113: 1 | CG113: 0.85 | CK113: =IF(CO89>1, IF(CO89>10,"Year 12",""),"") -> Year 12 | CL113: =IF(CK113="Year 12",CL112+1,"") -> 2023 | CM113: 1 | CN113: 0.85 | CR113: =IF(CV89>1, IF(CV89>10,"Year 12",""),"") -> Year 12 | CS113: =IF(CR113="Year 12",CS112+1,"") -> 2023 | CT113: 1 | CU113: 0.85
C114: =IF(G89>1, IF(G89>11,"Year 13",""),"") -> Year 13 | D114: =IF(C114="Year 13",D113+1,"") -> 2024 | E114: 1 | F114: 1 | G114: 0.85 | H114: 0.85 | J114: =IF(N89>1, IF(N89>11,"Year 13",""),"") -> Year 13 | K114: =IF(J114="Year 13",K113+1,"") -> 2024 | L114: 1 | M114: 1 | N114: 0.85 | O114: 0.85 | Q114: =IF(U89>1, IF(U89>11,"Year 13",""),"") -> Year 13 | R114: =IF(Q114="Year 13",R113+1,"") -> 2024 | S114: 1 | T114: 0.85 | X114: =IF(AB89>1, IF(AB89>11,"Year 13",""),"") -> Year 13 | Y114: =IF(X114="Year 13",Y113+1,"") -> 2024 | Z114: 1 | AA114: 0.85 | AE114: =IF(AI89>1, IF(AI89>11,"Year 13",""),"") -> Year 13 | AF114: =IF(AE114="Year 13",AF113+1,"") -> 2024 | AG114: 1 | AH114: 0.85 | AL114: =IF(AP89>1, IF(AP89>11,"Year 13",""),"") -> Year 13 | AM114: =IF(AL114="Year 13",AM113+1,"") -> 2024 | AN114: 1 | AO114: 0.85 | AS114: =IF(AW89>1, IF(AW89>11,"Year 13",""),"") -> Year 13 | AT114: =IF(AS114="Year 13",AT113+1,"") -> 2024 | AU114: 1 | AV114: 0.85 | BB114: =IF(BF89>1, IF(BF89>11,"Year 13",""),"") -> Year 13 | BC114: =IF(BB114="Year 13",BC113+1,"") -> 2024 | BD114: 1 | BE114: 0.85 | BI114: =IF(BM89>1, IF(BM89>11,"Year 13",""),"") -> Year 13 | BJ114: =IF(BI114="Year 13",BJ113+1,"") -> 2024 | BK114: 1 | BL114: 1 | BM114: 0.85 | BN114: 0.85 | BP114: =IF(BT89>1, IF(BT89>11,"Year 13",""),"") -> Year 13 | BQ114: =IF(BP114="Year 13",BQ113+1,"") -> 2024 | BR114: 1 | BS114: 1 | BT114: 0.85 | BU114: 0.85 | BW114: =IF(CA89>1, IF(CA89>11,"Year 13",""),"") -> Year 13 | BX114: =IF(BW114="Year 13",BX113+1,"") -> 2024 | BY114: 1 | BZ114: 0.85 | CD114: =IF(CH89>1, IF(CH89>11,"Year 13",""),"") -> Year 13 | CE114: =IF(CD114="Year 13",CE113+1,"") -> 2024 | CF114: 1 | CG114: 0.85 | CK114: =IF(CO89>1, IF(CO89>11,"Year 13",""),"") -> Year 13 | CL114: =IF(CK114="Year 13",CL113+1,"") -> 2024 | CM114: 1 | CN114: 0.85 | CR114: =IF(CV89>1, IF(CV89>11,"Year 13",""),"") -> Year 13 | CS114: =IF(CR114="Year 13",CS113+1,"") -> 2024 | CT114: 1 | CU114: 0.85
C115: =IF(G89>1, IF(G89>12,"Year 14",""),"") -> Year 14 | D115: =IF(C115="Year 14",D114+1,"") -> 2025 | E115: 1 | F115: 1 | G115: 0.85 | H115: 0.85 | J115: =IF(N89>1, IF(N89>12,"Year 14",""),"") -> Year 14 | K115: =IF(J115="Year 14",K114+1,"") -> 2025 | L115: 1 | M115: 1 | N115: 0.85 | O115: 0.85 | Q115: =IF(U89>1, IF(U89>12,"Year 14",""),"") -> Year 14 | R115: =IF(Q115="Year 14",R114+1,"") -> 2025 | S115: 1 | T115: 0.85 | X115: =IF(AB89>1, IF(AB89>12,"Year 14",""),"") -> Year 14 | Y115: =IF(X115="Year 14",Y114+1,"") -> 2025 | Z115: 1 | AA115: 0.85 | AE115: =IF(AI89>1, IF(AI89>12,"Year 14",""),"") -> Year 14 | AF115: =IF(AE115="Year 14",AF114+1,"") -> 2025 | AG115: 1 | AH115: 0.85 | AL115: =IF(AP89>1, IF(AP89>12,"Year 14",""),"") -> Year 14 | AM115: =IF(AL115="Year 14",AM114+1,"") -> 2025 | AN115: 1 | AO115: 0.85 | AS115: =IF(AW89>1, IF(AW89>12,"Year 14",""),"") -> Year 14 | AT115: =IF(AS115="Year 14",AT114+1,"") -> 2025 | AU115: 1 | AV115: 0.85 | BB115: =IF(BF89>1, IF(BF89>12,"Year 14",""),"") -> Year 14 | BC115: =IF(BB115="Year 14",BC114+1,"") -> 2025 | BD115: 1 | BE115: 0.85 | BI115: =IF(BM89>1, IF(BM89>12,"Year 14",""),"") -> Year 14 | BJ115: =IF(BI115="Year 14",BJ114+1,"") -> 2025 | BK115: 1 | BL115: 1 | BM115: 0.85 | BN115: 0.85 | BP115: =IF(BT89>1, IF(BT89>12,"Year 14",""),"") -> Year 14 | BQ115: =IF(BP115="Year 14",BQ114+1,"") -> 2025 | BR115: 1 | BS115: 1 | BT115: 0.85 | BU115: 0.85 | BW115: =IF(CA89>1, IF(CA89>12,"Year 14",""),"") -> Year 14 | BX115: =IF(BW115="Year 14",BX114+1,"") -> 2025 | BY115: 1 | BZ115: 0.85 | CD115: =IF(CH89>1, IF(CH89>12,"Year 14",""),"") -> Year 14 | CE115: =IF(CD115="Year 14",CE114+1,"") -> 2025 | CF115: 1 | CG115: 0.85 | CK115: =IF(CO89>1, IF(CO89>12,"Year 14",""),"") -> Year 14 | CL115: =IF(CK115="Year 14",CL114+1,"") -> 2025 | CM115: 1 | CN115: 0.85 | CR115: =IF(CV89>1, IF(CV89>12,"Year 14",""),"") -> Year 14 | CS115: =IF(CR115="Year 14",CS114+1,"") -> 2025 | CT115: 1 | CU115: 0.85
C116: =IF(G89>1, IF(G89>13,"Year 15",""),"") -> Year 15 | D116: =IF(C116="Year 15",D115+1,"") -> 2026 | E116: 1 | F116: 1 | G116: 0.85 | H116: 0.85 | J116: =IF(N89>1, IF(N89>13,"Year 15",""),"") -> Year 15 | K116: =IF(J116="Year 15",K115+1,"") -> 2026 | L116: 1 | M116: 1 | N116: 0.85 | O116: 0.85 | Q116: =IF(U89>1, IF(U89>13,"Year 15",""),"") -> Year 15 | R116: =IF(Q116="Year 15",R115+1,"") -> 2026 | S116: 1 | T116: 0.85 | X116: =IF(AB89>1, IF(AB89>13,"Year 15",""),"") -> Year 15 | Y116: =IF(X116="Year 15",Y115+1,"") -> 2026 | Z116: 1 | AA116: 0.85 | AE116: =IF(AI89>1, IF(AI89>13,"Year 15",""),"") -> Year 15 | AF116: =IF(AE116="Year 15",AF115+1,"") -> 2026 | AG116: 1 | AH116: 0.85 | AL116: =IF(AP89>1, IF(AP89>13,"Year 15",""),"") -> Year 15 | AM116: =IF(AL116="Year 15",AM115+1,"") -> 2026 | AN116: 1 | AO116: 0.85 | AS116: =IF(AW89>1, IF(AW89>13,"Year 15",""),"") -> Year 15 | AT116: =IF(AS116="Year 15",AT115+1,"") -> 2026 | AU116: 1 | AV116: 0.85 | BB116: =IF(BF89>1, IF(BF89>13,"Year 15",""),"") -> Year 15 | BC116: =IF(BB116="Year 15",BC115+1,"") -> 2026 | BD116: 1 | BE116: 0.85 | BI116: =IF(BM89>1, IF(BM89>13,"Year 15",""),"") -> Year 15 | BJ116: =IF(BI116="Year 15",BJ115+1,"") -> 2026 | BK116: 1 | BL116: 1 | BM116: 0.85 | BN116: 0.85 | BP116: =IF(BT89>1, IF(BT89>13,"Year 15",""),"") -> Year 15 | BQ116: =IF(BP116="Year 15",BQ115+1,"") -> 2026 | BR116: 1 | BS116: 1 | BT116: 0.85 | BU116: 0.85 | BW116: =IF(CA89>1, IF(CA89>13,"Year 15",""),"") -> Year 15 | BX116: =IF(BW116="Year 15",BX115+1,"") -> 2026 | BY116: 1 | BZ116: 0.85 | CD116: =IF(CH89>1, IF(CH89>13,"Year 15",""),"") -> Year 15 | CE116: =IF(CD116="Year 15",CE115+1,"") -> 2026 | CF116: 1 | CG116: 0.85 | CK116: =IF(CO89>1, IF(CO89>13,"Year 15",""),"") -> Year 15 | CL116: =IF(CK116="Year 15",CL115+1,"") -> 2026 | CM116: 1 | CN116: 0.85 | CR116: =IF(CV89>1, IF(CV89>13,"Year 15",""),"") -> Year 15 | CS116: =IF(CR116="Year 15",CS115+1,"") -> 2026 | CT116: 1 | CU116: 0.85
C117: =IF(G89>1, IF(G89>14,"Year 16",""),"") -> Year 16 | D117: =IF(C117="Year 16",D116+1,"") -> 2027 | E117: 1 | F117: 1 | G117: 0.85 | H117: 0.85 | J117: =IF(N89>1, IF(N89>14,"Year 16",""),"") -> Year 16 | K117: =IF(J117="Year 16",K116+1,"") -> 2027 | L117: 1 | M117: 1 | N117: 0.85 | O117: 0.85 | Q117: =IF(U89>1, IF(U89>14,"Year 16",""),"") -> Year 16 | R117: =IF(Q117="Year 16",R116+1,"") -> 2027 | S117: 1 | T117: 0.85 | X117: =IF(AB89>1, IF(AB89>14,"Year 16",""),"") -> Year 16 | Y117: =IF(X117="Year 16",Y116+1,"") -> 2027 | Z117: 1 | AA117: 0.85 | AE117: =IF(AI89>1, IF(AI89>14,"Year 16",""),"") -> Year 16 | AF117: =IF(AE117="Year 16",AF116+1,"") -> 2027 | AG117: 1 | AH117: 0.85 | AL117: =IF(AP89>1, IF(AP89>14,"Year 16",""),"") -> Year 16 | AM117: =IF(AL117="Year 16",AM116+1,"") -> 2027 | AN117: 1 | AO117: 0.85 | AS117: =IF(AW89>1, IF(AW89>14,"Year 16",""),"") -> Year 16 | AT117: =IF(AS117="Year 16",AT116+1,"") -> 2027 | AU117: 1 | AV117: 0.85 | BB117: =IF(BF89>1, IF(BF89>14,"Year 16",""),"") -> Year 16 | BC117: =IF(BB117="Year 16",BC116+1,"") -> 2027 | BD117: 1 | BE117: 0.85 | BI117: =IF(BM89>1, IF(BM89>14,"Year 16",""),"") -> Year 16 | BJ117: =IF(BI117="Year 16",BJ116+1,"") -> 2027 | BK117: 1 | BL117: 1 | BM117: 0.85 | BN117: 0.85 | BP117: =IF(BT89>1, IF(BT89>14,"Year 16",""),"") -> Year 16 | BQ117: =IF(BP117="Year 16",BQ116+1,"") -> 2027 | BR117: 1 | BS117: 1 | BT117: 0.85 | BU117: 0.85 | BW117: =IF(CA89>1, IF(CA89>14,"Year 16",""),"") -> Year 16 | BX117: =IF(BW117="Year 16",BX116+1,"") -> 2027 | BY117: 1 | BZ117: 0.85 | CD117: =IF(CH89>1, IF(CH89>14,"Year 16",""),"") -> Year 16 | CE117: =IF(CD117="Year 16",CE116+1,"") -> 2027 | CF117: 1 | CG117: 0.85 | CK117: =IF(CO89>1, IF(CO89>14,"Year 16",""),"") -> Year 16 | CL117: =IF(CK117="Year 16",CL116+1,"") -> 2027 | CM117: 1 | CN117: 0.85 | CR117: =IF(CV89>1, IF(CV89>14,"Year 16",""),"") -> Year 16 | CS117: =IF(CR117="Year 16",CS116+1,"") -> 2027 | CT117: 1 | CU117: 0.85
C118: =IF(G89>1, IF(G89>15,"Year 17",""),"") -> Year 17 | D118: =IF(C118="Year 17",D117+1,"") -> 2028 | E118: 1 | F118: 1 | G118: 0.85 | H118: 0.85 | J118: =IF(N89>1, IF(N89>15,"Year 17",""),"") -> Year 17 | K118: =IF(J118="Year 17",K117+1,"") -> 2028 | L118: 1 | M118: 1 | N118: 0.85 | O118: 0.85 | Q118: =IF(U89>1, IF(U89>15,"Year 17",""),"") -> Year 17 | R118: =IF(Q118="Year 17",R117+1,"") -> 2028 | S118: 1 | T118: 0.85 | X118: =IF(AB89>1, IF(AB89>15,"Year 17",""),"") -> Year 17 | Y118: =IF(X118="Year 17",Y117+1,"") -> 2028 | Z118: 1 | AA118: 0.85 | AE118: =IF(AI89>1, IF(AI89>15,"Year 17",""),"") -> Year 17 | AF118: =IF(AE118="Year 17",AF117+1,"") -> 2028 | AG118: 1 | AH118: 0.85 | AL118: =IF(AP89>1, IF(AP89>15,"Year 17",""),"") -> Year 17 | AM118: =IF(AL118="Year 17",AM117+1,"") -> 2028 | AN118: 1 | AO118: 0.85 | AS118: =IF(AW89>1, IF(AW89>15,"Year 17",""),"") -> Year 17 | AT118: =IF(AS118="Year 17",AT117+1,"") -> 2028 | AU118: 1 | AV118: 0.85 | BB118: =IF(BF89>1, IF(BF89>15,"Year 17",""),"") -> Year 17 | BC118: =IF(BB118="Year 17",BC117+1,"") -> 2028 | BD118: 1 | BE118: 0.85 | BI118: =IF(BM89>1, IF(BM89>15,"Year 17",""),"") -> Year 17 | BJ118: =IF(BI118="Year 17",BJ117+1,"") -> 2028 | BK118: 1 | BL118: 1 | BM118: 0.85 | BN118: 0.85 | BP118: =IF(BT89>1, IF(BT89>15,"Year 17",""),"") -> Year 17 | BQ118: =IF(BP118="Year 17",BQ117+1,"") -> 2028 | BR118: 1 | BS118: 1 | BT118: 0.85 | BU118: 0.85 | BW118: =IF(CA89>1, IF(CA89>15,"Year 17",""),"") -> Year 17 | BX118: =IF(BW118="Year 17",BX117+1,"") -> 2028 | BY118: 1 | BZ118: 0.85 | CD118: =IF(CH89>1, IF(CH89>15,"Year 17",""),"") -> Year 17 | CE118: =IF(CD118="Year 17",CE117+1,"") -> 2028 | CF118: 1 | CG118: 0.85 | CK118: =IF(CO89>1, IF(CO89>15,"Year 17",""),"") -> Year 17 | CL118: =IF(CK118="Year 17",CL117+1,"") -> 2028 | CM118: 1 | CN118: 0.85 | CR118: =IF(CV89>1, IF(CV89>15,"Year 17",""),"") -> Year 17 | CS118: =IF(CR118="Year 17",CS117+1,"") -> 2028 | CT118: 1 | CU118: 0.85
C119: =IF(G89>1, IF(G89>16,"Year 18",""),"") -> Year 18 | D119: =IF(C119="Year 18",D118+1,"") -> 2029 | E119: 1 | F119: 1 | G119: 0.85 | H119: 0.85 | J119: =IF(N89>1, IF(N89>16,"Year 18",""),"") -> Year 18 | K119: =IF(J119="Year 18",K118+1,"") -> 2029 | L119: 1 | M119: 1 | N119: 0.85 | O119: 0.85 | Q119: =IF(U89>1, IF(U89>16,"Year 18",""),"") -> Year 18 | R119: =IF(Q119="Year 18",R118+1,"") -> 2029 | S119: 1 | T119: 0.85 | X119: =IF(AB89>1, IF(AB89>16,"Year 18",""),"") -> Year 18 | Y119: =IF(X119="Year 18",Y118+1,"") -> 2029 | Z119: 1 | AA119: 0.85 | AE119: =IF(AI89>1, IF(AI89>16,"Year 18",""),"") -> Year 18 | AF119: =IF(AE119="Year 18",AF118+1,"") -> 2029 | AG119: 1 | AH119: 0.85 | AL119: =IF(AP89>1, IF(AP89>16,"Year 18",""),"") -> Year 18 | AM119: =IF(AL119="Year 18",AM118+1,"") -> 2029 | AN119: 1 | AO119: 0.85 | AS119: =IF(AW89>1, IF(AW89>16,"Year 18",""),"") -> Year 18 | AT119: =IF(AS119="Year 18",AT118+1,"") -> 2029 | AU119: 1 | AV119: 0.85 | BB119: =IF(BF89>1, IF(BF89>16,"Year 18",""),"") -> Year 18 | BC119: =IF(BB119="Year 18",BC118+1,"") -> 2029 | BD119: 1 | BE119: 0.85 | BI119: =IF(BM89>1, IF(BM89>16,"Year 18",""),"") -> Year 18 | BJ119: =IF(BI119="Year 18",BJ118+1,"") -> 2029 | BK119: 1 | BL119: 1 | BM119: 0.85 | BN119: 0.85 | BP119: =IF(BT89>1, IF(BT89>16,"Year 18",""),"") -> Year 18 | BQ119: =IF(BP119="Year 18",BQ118+1,"") -> 2029 | BR119: 1 | BS119: 1 | BT119: 0.85 | BU119: 0.85 | BW119: =IF(CA89>1, IF(CA89>16,"Year 18",""),"") -> Year 18 | BX119: =IF(BW119="Year 18",BX118+1,"") -> 2029 | BY119: 1 | BZ119: 0.85 | CD119: =IF(CH89>1, IF(CH89>16,"Year 18",""),"") -> Year 18 | CE119: =IF(CD119="Year 18",CE118+1,"") -> 2029 | CF119: 1 | CG119: 0.85 | CK119: =IF(CO89>1, IF(CO89>16,"Year 18",""),"") -> Year 18 | CL119: =IF(CK119="Year 18",CL118+1,"") -> 2029 | CM119: 1 | CN119: 0.85 | CR119: =IF(CV89>1, IF(CV89>16,"Year 18",""),"") -> Year 18 | CS119: =IF(CR119="Year 18",CS118+1,"") -> 2029 | CT119: 1 | CU119: 0.85
C120: =IF(G89>1, IF(G89>17,"Year 19",""),"") -> Year 19 | D120: =IF(C120="Year 19",D119+1,"") -> 2030 | E120: 1 | F120: 1 | G120: 0.85 | H120: 0.85 | J120: =IF(N89>1, IF(N89>17,"Year 19",""),"") -> Year 19 | K120: =IF(J120="Year 19",K119+1,"") -> 2030 | L120: 1 | M120: 1 | N120: 0.85 | O120: 0.85 | Q120: =IF(U89>1, IF(U89>17,"Year 19",""),"") -> Year 19 | R120: =IF(Q120="Year 19",R119+1,"") -> 2030 | S120: 1 | T120: 0.85 | X120: =IF(AB89>1, IF(AB89>17,"Year 19",""),"") -> Year 19 | Y120: =IF(X120="Year 19",Y119+1,"") -> 2030 | Z120: 1 | AA120: 0.85 | AE120: =IF(AI89>1, IF(AI89>17,"Year 19",""),"") -> Year 19 | AF120: =IF(AE120="Year 19",AF119+1,"") -> 2030 | AG120: 1 | AH120: 0.85 | AL120: =IF(AP89>1, IF(AP89>17,"Year 19",""),"") -> Year 19 | AM120: =IF(AL120="Year 19",AM119+1,"") -> 2030 | AN120: 1 | AO120: 0.85 | AS120: =IF(AW89>1, IF(AW89>17,"Year 19",""),"") -> Year 19 | AT120: =IF(AS120="Year 19",AT119+1,"") -> 2030 | AU120: 1 | AV120: 0.85 | BB120: =IF(BF89>1, IF(BF89>17,"Year 19",""),"") -> Year 19 | BC120: =IF(BB120="Year 19",BC119+1,"") -> 2030 | BD120: 1 | BE120: 0.85 | BI120: =IF(BM89>1, IF(BM89>17,"Year 19",""),"") -> Year 19 | BJ120: =IF(BI120="Year 19",BJ119+1,"") -> 2030 | BK120: 1 | BL120: 1 | BM120: 0.85 | BN120: 0.85 | BP120: =IF(BT89>1, IF(BT89>17,"Year 19",""),"") -> Year 19 | BQ120: =IF(BP120="Year 19",BQ119+1,"") -> 2030 | BR120: 1 | BS120: 1 | BT120: 0.85 | BU120: 0.85 | BW120: =IF(CA89>1, IF(CA89>17,"Year 19",""),"") -> Year 19 | BX120: =IF(BW120="Year 19",BX119+1,"") -> 2030 | BY120: 1 | BZ120: 0.85 | CD120: =IF(CH89>1, IF(CH89>17,"Year 19",""),"") -> Year 19 | CE120: =IF(CD120="Year 19",CE119+1,"") -> 2030 | CF120: 1 | CG120: 0.85 | CK120: =IF(CO89>1, IF(CO89>17,"Year 19",""),"") -> Year 19 | CL120: =IF(CK120="Year 19",CL119+1,"") -> 2030 | CM120: 1 | CN120: 0.85 | CR120: =IF(CV89>1, IF(CV89>17,"Year 19",""),"") -> Year 19 | CS120: =IF(CR120="Year 19",CS119+1,"") -> 2030 | CT120: 1 | CU120: 0.85
C121: =IF(G89>1, IF(G89>18,"Year 20",""),"") -> Year 20 | D121: =IF(C121="Year 20",D120+1,"") -> 2031 | E121: 1 | F121: 1 | G121: 0.85 | H121: 0.85 | J121: =IF(N89>1, IF(N89>18,"Year 20",""),"") -> Year 20 | K121: =IF(J121="Year 20",K120+1,"") -> 2031 | L121: 1 | M121: 1 | N121: 0.85 | O121: 0.85 | Q121: =IF(U89>1, IF(U89>18,"Year 20",""),"") -> Year 20 | R121: =IF(Q121="Year 20",R120+1,"") -> 2031 | S121: 1 | T121: 0.85 | X121: =IF(AB89>1, IF(AB89>18,"Year 20",""),"") -> Year 20 | Y121: =IF(X121="Year 20",Y120+1,"") -> 2031 | Z121: 1 | AA121: 0.85 | AE121: =IF(AI89>1, IF(AI89>18,"Year 20",""),"") -> Year 20 | AF121: =IF(AE121="Year 20",AF120+1,"") -> 2031 | AG121: 1 | AH121: 0.85 | AL121: =IF(AP89>1, IF(AP89>18,"Year 20",""),"") -> Year 20 | AM121: =IF(AL121="Year 20",AM120+1,"") -> 2031 | AN121: 1 | AO121: 0.85 | AS121: =IF(AW89>1, IF(AW89>18,"Year 20",""),"") -> Year 20 | AT121: =IF(AS121="Year 20",AT120+1,"") -> 2031 | AU121: 1 | AV121: 0.85 | BB121: =IF(BF89>1, IF(BF89>18,"Year 20",""),"") -> Year 20 | BC121: =IF(BB121="Year 20",BC120+1,"") -> 2031 | BD121: 1 | BE121: 0.85 | BI121: =IF(BM89>1, IF(BM89>18,"Year 20",""),"") -> Year 20 | BJ121: =IF(BI121="Year 20",BJ120+1,"") -> 2031 | BK121: 1 | BL121: 1 | BM121: 0.85 | BN121: 0.85 | BP121: =IF(BT89>1, IF(BT89>18,"Year 20",""),"") -> Year 20 | BQ121: =IF(BP121="Year 20",BQ120+1,"") -> 2031 | BR121: 1 | BS121: 1 | BT121: 0.85 | BU121: 0.85 | BW121: =IF(CA89>1, IF(CA89>18,"Year 20",""),"") -> Year 20 | BX121: =IF(BW121="Year 20",BX120+1,"") -> 2031 | BY121: 1 | BZ121: 0.85 | CD121: =IF(CH89>1, IF(CH89>18,"Year 20",""),"") -> Year 20 | CE121: =IF(CD121="Year 20",CE120+1,"") -> 2031 | CF121: 1 | CG121: 0.85 | CK121: =IF(CO89>1, IF(CO89>18,"Year 20",""),"") -> Year 20 | CL121: =IF(CK121="Year 20",CL120+1,"") -> 2031 | CM121: 1 | CN121: 0.85 | CR121: =IF(CV89>1, IF(CV89>18,"Year 20",""),"") -> Year 20 | CS121: =IF(CR121="Year 20",CS120+1,"") -> 2031 | CT121: 1 | CU121: 0.85
C122: =IF(G89>1, IF(G89>19,"Year 21",""),"") -> Year 21 | D122: =IF(C122="Year 21",D121+1,"") -> 2032 | E122: 1 | F122: 1 | G122: 0.85 | H122: 0.85 | J122: =IF(N89>1, IF(N89>19,"Year 21",""),"") -> Year 21 | K122: =IF(J122="Year 21",K121+1,"") -> 2032 | L122: 1 | M122: 1 | N122: 0.85 | O122: 0.85 | Q122: =IF(U89>1, IF(U89>19,"Year 21",""),"") -> Year 21 | R122: =IF(Q122="Year 21",R121+1,"") -> 2032 | S122: 1 | T122: 0.85 | X122: =IF(AB89>1, IF(AB89>19,"Year 21",""),"") -> Year 21 | Y122: =IF(X122="Year 21",Y121+1,"") -> 2032 | Z122: 1 | AA122: 0.85 | AE122: =IF(AI89>1, IF(AI89>19,"Year 21",""),"") -> Year 21 | AF122: =IF(AE122="Year 21",AF121+1,"") -> 2032 | AG122: 1 | AH122: 0.85 | AL122: =IF(AP89>1, IF(AP89>19,"Year 21",""),"") -> Year 21 | AM122: =IF(AL122="Year 21",AM121+1,"") -> 2032 | AN122: 1 | AO122: 0.85 | AS122: =IF(AW89>1, IF(AW89>19,"Year 21",""),"") -> Year 21 | AT122: =IF(AS122="Year 21",AT121+1,"") -> 2032 | AU122: 1 | AV122: 0.85 | BB122: =IF(BF89>1, IF(BF89>19,"Year 21",""),"") -> Year 21 | BC122: =IF(BB122="Year 21",BC121+1,"") -> 2032 | BD122: 1 | BE122: 0.85 | BI122: =IF(BM89>1, IF(BM89>19,"Year 21",""),"") -> Year 21 | BJ122: =IF(BI122="Year 21",BJ121+1,"") -> 2032 | BK122: 1 | BL122: 1 | BM122: 0.85 | BN122: 0.85 | BP122: =IF(BT89>1, IF(BT89>19,"Year 21",""),"") -> Year 21 | BQ122: =IF(BP122="Year 21",BQ121+1,"") -> 2032 | BR122: 1 | BS122: 1 | BT122: 0.85 | BU122: 0.85 | BW122: =IF(CA89>1, IF(CA89>19,"Year 21",""),"") -> Year 21 | BX122: =IF(BW122="Year 21",BX121+1,"") -> 2032 | BY122: 1 | BZ122: 0.85 | CD122: =IF(CH89>1, IF(CH89>19,"Year 21",""),"") -> Year 21 | CE122: =IF(CD122="Year 21",CE121+1,"") -> 2032 | CF122: 1 | CG122: 0.85 | CK122: =IF(CO89>1, IF(CO89>19,"Year 21",""),"") -> Year 21 | CL122: =IF(CK122="Year 21",CL121+1,"") -> 2032 | CM122: 1 | CN122: 0.85 | CR122: =IF(CV89>1, IF(CV89>19,"Year 21",""),"") -> Year 21 | CS122: =IF(CR122="Year 21",CS121+1,"") -> 2032 | CT122: 1 | CU122: 0.85
C123: =IF(G89>1, IF(G89>20,"Year 22",""),"") -> Year 22 | D123: =IF(C123="Year 22",D122+1,"") -> 2033 | E123: 1 | F123: 1 | G123: 0.85 | H123: 0.85 | J123: =IF(N89>1, IF(N89>20,"Year 22",""),"") -> Year 22 | K123: =IF(J123="Year 22",K122+1,"") -> 2033 | L123: 1 | M123: 1 | N123: 0.85 | O123: 0.85 | Q123: =IF(U89>1, IF(U89>20,"Year 22",""),"") ->  | R123: =IF(Q123="Year 22",R122+1,"") ->  | S123: 1 | T123: 0.85 | X123: =IF(AB89>1, IF(AB89>20,"Year 22",""),"") ->  | Y123: =IF(X123="Year 22",Y122+1,"") ->  | Z123: 1 | AA123: 0.85 | AE123: =IF(AI89>1, IF(AI89>20,"Year 22",""),"") -> Year 22 | AF123: =IF(AE123="Year 22",AF122+1,"") -> 2033 | AG123: 1 | AH123: 0.85 | AL123: =IF(AP89>1, IF(AP89>20,"Year 22",""),"") -> Year 22 | AM123: =IF(AL123="Year 22",AM122+1,"") -> 2033 | AN123: 1 | AO123: 0.85 | AS123: =IF(AW89>1, IF(AW89>20,"Year 22",""),"") -> Year 22 | AT123: =IF(AS123="Year 22",AT122+1,"") -> 2033 | AU123: 1 | AV123: 0.85 | BB123: =IF(BF89>1, IF(BF89>20,"Year 22",""),"") ->  | BC123: =IF(BB123="Year 22",BC122+1,"") ->  | BD123: 1 | BE123: 0.85 | BI123: =IF(BM89>1, IF(BM89>20,"Year 22",""),"") -> Year 22 | BJ123: =IF(BI123="Year 22",BJ122+1,"") -> 2033 | BK123: 1 | BL123: 1 | BM123: 0.85 | BN123: 0.85 | BP123: =IF(BT89>1, IF(BT89>20,"Year 22",""),"") -> Year 22 | BQ123: =IF(BP123="Year 22",BQ122+1,"") -> 2033 | BR123: 1 | BS123: 1 | BT123: 0.85 | BU123: 0.85 | BW123: =IF(CA89>1, IF(CA89>20,"Year 22",""),"") ->  | BX123: =IF(BW123="Year 22",BX122+1,"") ->  | BY123: 1 | BZ123: 0.85 | CD123: =IF(CH89>1, IF(CH89>20,"Year 22",""),"") ->  | CE123: =IF(CD123="Year 22",CE122+1,"") ->  | CF123: 1 | CG123: 0.85 | CK123: =IF(CO89>1, IF(CO89>20,"Year 22",""),"") -> Year 22 | CL123: =IF(CK123="Year 22",CL122+1,"") -> 2033 | CM123: 1 | CN123: 0.85 | CR123: =IF(CV89>1, IF(CV89>20,"Year 22",""),"") -> Year 22 | CS123: =IF(CR123="Year 22",CS122+1,"") -> 2033 | CT123: 1 | CU123: 0.85
C124: =IF(G89>1, IF(G89>21,"Year 23",""),"") -> Year 23 | D124: =IF(C124="Year 23",D123+1,"") -> 2034 | E124: 1 | F124: 1 | G124: 0.85 | H124: 0.85 | J124: =IF(N89>1, IF(N89>21,"Year 23",""),"") -> Year 23 | K124: =IF(J124="Year 23",K123+1,"") -> 2034 | L124: 1 | M124: 1 | N124: 0.85 | O124: 0.85 | Q124: =IF(U89>1, IF(U89>21,"Year 23",""),"") ->  | R124: =IF(Q124="Year 23",R123+1,"") ->  | S124: 1 | T124: 0.85 | X124: =IF(AB89>1, IF(AB89>21,"Year 23",""),"") ->  | Y124: =IF(X124="Year 23",Y123+1,"") ->  | Z124: 1 | AA124: 0.85 | AE124: =IF(AI89>1, IF(AI89>21,"Year 23",""),"") -> Year 23 | AF124: =IF(AE124="Year 23",AF123+1,"") -> 2034 | AG124: 1 | AH124: 0.85 | AL124: =IF(AP89>1, IF(AP89>21,"Year 23",""),"") -> Year 23 | AM124: =IF(AL124="Year 23",AM123+1,"") -> 2034 | AN124: 1 | AO124: 0.85 | AS124: =IF(AW89>1, IF(AW89>21,"Year 23",""),"") -> Year 23 | AT124: =IF(AS124="Year 23",AT123+1,"") -> 2034 | AU124: 1 | AV124: 0.85 | BB124: =IF(BF89>1, IF(BF89>21,"Year 23",""),"") ->  | BC124: =IF(BB124="Year 23",BC123+1,"") ->  | BD124: 1 | BE124: 0.85 | BI124: =IF(BM89>1, IF(BM89>21,"Year 23",""),"") -> Year 23 | BJ124: =IF(BI124="Year 23",BJ123+1,"") -> 2034 | BK124: 1 | BL124: 1 | BM124: 0.85 | BN124: 0.85 | BP124: =IF(BT89>1, IF(BT89>21,"Year 23",""),"") -> Year 23 | BQ124: =IF(BP124="Year 23",BQ123+1,"") -> 2034 | BR124: 1 | BS124: 1 | BT124: 0.85 | BU124: 0.85 | BW124: =IF(CA89>1, IF(CA89>21,"Year 23",""),"") ->  | BX124: =IF(BW124="Year 23",BX123+1,"") ->  | BY124: 1 | BZ124: 0.85 | CD124: =IF(CH89>1, IF(CH89>21,"Year 23",""),"") ->  | CE124: =IF(CD124="Year 23",CE123+1,"") ->  | CF124: 1 | CG124: 0.85 | CK124: =IF(CO89>1, IF(CO89>21,"Year 23",""),"") -> Year 23 | CL124: =IF(CK124="Year 23",CL123+1,"") -> 2034 | CM124: 1 | CN124: 0.85 | CR124: =IF(CV89>1, IF(CV89>21,"Year 23",""),"") -> Year 23 | CS124: =IF(CR124="Year 23",CS123+1,"") -> 2034 | CT124: 1 | CU124: 0.85
C125: =IF(G89>1, IF(G89>22,"Year 24",""),"") -> Year 24 | D125: =IF(C125="Year 24",D124+1,"") -> 2035 | E125: 1 | F125: 1 | G125: 0.85 | H125: 0.85 | J125: =IF(N89>1, IF(N89>22,"Year 24",""),"") -> Year 24 | K125: =IF(J125="Year 24",K124+1,"") -> 2035 | L125: 1 | M125: 1 | N125: 0.85 | O125: 0.85 | Q125: =IF(U89>1, IF(U89>22,"Year 24",""),"") ->  | R125: =IF(Q125="Year 24",R124+1,"") ->  | S125: 1 | T125: 0.85 | X125: =IF(AB89>1, IF(AB89>22,"Year 24",""),"") ->  | Y125: =IF(X125="Year 24",Y124+1,"") ->  | Z125: 1 | AA125: 0.85 | AE125: =IF(AI89>1, IF(AI89>22,"Year 24",""),"") -> Year 24 | AF125: =IF(AE125="Year 24",AF124+1,"") -> 2035 | AG125: 1 | AH125: 0.85 | AL125: =IF(AP89>1, IF(AP89>22,"Year 24",""),"") -> Year 24 | AM125: =IF(AL125="Year 24",AM124+1,"") -> 2035 | AN125: 1 | AO125: 0.85 | AS125: =IF(AW89>1, IF(AW89>22,"Year 24",""),"") -> Year 24 | AT125: =IF(AS125="Year 24",AT124+1,"") -> 2035 | AU125: 1 | AV125: 0.85 | BB125: =IF(BF89>1, IF(BF89>22,"Year 24",""),"") ->  | BC125: =IF(BB125="Year 24",BC124+1,"") ->  | BD125: 1 | BE125: 0.85 | BI125: =IF(BM89>1, IF(BM89>22,"Year 24",""),"") -> Year 24 | BJ125: =IF(BI125="Year 24",BJ124+1,"") -> 2035 | BK125: 1 | BL125: 1 | BM125: 0.85 | BN125: 0.85 | BP125: =IF(BT89>1, IF(BT89>22,"Year 24",""),"") -> Year 24 | BQ125: =IF(BP125="Year 24",BQ124+1,"") -> 2035 | BR125: 1 | BS125: 1 | BT125: 0.85 | BU125: 0.85 | BW125: =IF(CA89>1, IF(CA89>22,"Year 24",""),"") ->  | BX125: =IF(BW125="Year 24",BX124+1,"") ->  | BY125: 1 | BZ125: 0.85 | CD125: =IF(CH89>1, IF(CH89>22,"Year 24",""),"") ->  | CE125: =IF(CD125="Year 24",CE124+1,"") ->  | CF125: 1 | CG125: 0.85 | CK125: =IF(CO89>1, IF(CO89>22,"Year 24",""),"") -> Year 24 | CL125: =IF(CK125="Year 24",CL124+1,"") -> 2035 | CM125: 1 | CN125: 0.85 | CR125: =IF(CV89>1, IF(CV89>22,"Year 24",""),"") -> Year 24 | CS125: =IF(CR125="Year 24",CS124+1,"") -> 2035 | CT125: 1 | CU125: 0.85
C126: =IF(G89>1, IF(G89>23,"Year 25",""),"") -> Year 25 | D126: =IF(C126="Year 25",D125+1,"") -> 2036 | E126: 1 | F126: 1 | G126: 0.85 | H126: 0.85 | J126: =IF(N89>1, IF(N89>23,"Year 25",""),"") -> Year 25 | K126: =IF(J126="Year 25",K125+1,"") -> 2036 | L126: 1 | M126: 1 | N126: 0.85 | O126: 0.85 | Q126: =IF(U89>1, IF(U89>23,"Year 25",""),"") ->  | R126: =IF(Q126="Year 25",R125+1,"") ->  | S126: 1 | T126: 0.85 | X126: =IF(AB89>1, IF(AB89>23,"Year 25",""),"") ->  | Y126: =IF(X126="Year 25",Y125+1,"") ->  | Z126: 1 | AA126: 0.85 | AE126: =IF(AI89>1, IF(AI89>23,"Year 25",""),"") -> Year 25 | AF126: =IF(AE126="Year 25",AF125+1,"") -> 2036 | AG126: 1 | AH126: 0.85 | AL126: =IF(AP89>1, IF(AP89>23,"Year 25",""),"") -> Year 25 | AM126: =IF(AL126="Year 25",AM125+1,"") -> 2036 | AN126: 1 | AO126: 0.85 | AS126: =IF(AW89>1, IF(AW89>23,"Year 25",""),"") -> Year 25 | AT126: =IF(AS126="Year 25",AT125+1,"") -> 2036 | AU126: 1 | AV126: 0.85 | BB126: =IF(BF89>1, IF(BF89>23,"Year 25",""),"") ->  | BC126: =IF(BB126="Year 25",BC125+1,"") ->  | BD126: 1 | BE126: 0.85 | BI126: =IF(BM89>1, IF(BM89>23,"Year 25",""),"") -> Year 25 | BJ126: =IF(BI126="Year 25",BJ125+1,"") -> 2036 | BK126: 1 | BL126: 1 | BM126: 0.85 | BN126: 0.85 | BP126: =IF(BT89>1, IF(BT89>23,"Year 25",""),"") -> Year 25 | BQ126: =IF(BP126="Year 25",BQ125+1,"") -> 2036 | BR126: 1 | BS126: 1 | BT126: 0.85 | BU126: 0.85 | BW126: =IF(CA89>1, IF(CA89>23,"Year 25",""),"") ->  | BX126: =IF(BW126="Year 25",BX125+1,"") ->  | BY126: 1 | BZ126: 0.85 | CD126: =IF(CH89>1, IF(CH89>23,"Year 25",""),"") ->  | CE126: =IF(CD126="Year 25",CE125+1,"") ->  | CF126: 1 | CG126: 0.85 | CK126: =IF(CO89>1, IF(CO89>23,"Year 25",""),"") -> Year 25 | CL126: =IF(CK126="Year 25",CL125+1,"") -> 2036 | CM126: 1 | CN126: 0.85 | CR126: =IF(CV89>1, IF(CV89>23,"Year 25",""),"") -> Year 25 | CS126: =IF(CR126="Year 25",CS125+1,"") -> 2036 | CT126: 1 | CU126: 0.85
C127: =IF(G89>1, IF(G89>24,"Year 26",""),"") -> Year 26 | D127: =IF(C127="Year 26",D126+1,"") -> 2037 | E127: 1 | F127: 1 | G127: 0.85 | H127: 0.85 | J127: =IF(N89>1, IF(N89>24,"Year 26",""),"") -> Year 26 | K127: =IF(J127="Year 26",K126+1,"") -> 2037 | L127: 1 | M127: 1 | N127: 0.85 | O127: 0.85 | Q127: =IF(U89>1, IF(U89>24,"Year 26",""),"") ->  | R127: =IF(Q127="Year 26",R126+1,"") ->  | S127: 1 | T127: 0.85 | X127: =IF(AB89>1, IF(AB89>24,"Year 26",""),"") ->  | Y127: =IF(X127="Year 26",Y126+1,"") ->  | Z127: 1 | AA127: 0.85 | AE127: =IF(AI89>1, IF(AI89>24,"Year 26",""),"") -> Year 26 | AF127: =IF(AE127="Year 26",AF126+1,"") -> 2037 | AG127: 1 | AH127: 0.85 | AL127: =IF(AP89>1, IF(AP89>24,"Year 26",""),"") -> Year 26 | AM127: =IF(AL127="Year 26",AM126+1,"") -> 2037 | AN127: 1 | AO127: 0.85 | AS127: =IF(AW89>1, IF(AW89>24,"Year 26",""),"") -> Year 26 | AT127: =IF(AS127="Year 26",AT126+1,"") -> 2037 | AU127: 1 | AV127: 0.85 | BB127: =IF(BF89>1, IF(BF89>24,"Year 26",""),"") ->  | BC127: =IF(BB127="Year 26",BC126+1,"") ->  | BD127: 1 | BE127: 0.85 | BI127: =IF(BM89>1, IF(BM89>24,"Year 26",""),"") -> Year 26 | BJ127: =IF(BI127="Year 26",BJ126+1,"") -> 2037 | BK127: 1 | BL127: 1 | BM127: 0.85 | BN127: 0.85 | BP127: =IF(BT89>1, IF(BT89>24,"Year 26",""),"") -> Year 26 | BQ127: =IF(BP127="Year 26",BQ126+1,"") -> 2037 | BR127: 1 | BS127: 1 | BT127: 0.85 | BU127: 0.85 | BW127: =IF(CA89>1, IF(CA89>24,"Year 26",""),"") ->  | BX127: =IF(BW127="Year 26",BX126+1,"") ->  | BY127: 1 | BZ127: 0.85 | CD127: =IF(CH89>1, IF(CH89>24,"Year 26",""),"") ->  | CE127: =IF(CD127="Year 26",CE126+1,"") ->  | CF127: 1 | CG127: 0.85 | CK127: =IF(CO89>1, IF(CO89>24,"Year 26",""),"") -> Year 26 | CL127: =IF(CK127="Year 26",CL126+1,"") -> 2037 | CM127: 1 | CN127: 0.85 | CR127: =IF(CV89>1, IF(CV89>24,"Year 26",""),"") -> Year 26 | CS127: =IF(CR127="Year 26",CS126+1,"") -> 2037 | CT127: 1 | CU127: 0.85
C128: =IF(G89>1, IF(G89>25,"Year 27",""),"") -> Year 27 | D128: =IF(C128="Year 27",D127+1,"") -> 2038 | E128: 1 | F128: 1 | G128: 0.85 | H128: 0.85 | J128: =IF(N89>1, IF(N89>25,"Year 27",""),"") -> Year 27 | K128: =IF(J128="Year 27",K127+1,"") -> 2038 | L128: 1 | M128: 1 | N128: 0.85 | O128: 0.85 | Q128: =IF(U89>1, IF(U89>25,"Year 27",""),"") ->  | R128: =IF(Q128="Year 27",R127+1,"") ->  | S128: 1 | T128: 0.85 | X128: =IF(AB89>1, IF(AB89>25,"Year 27",""),"") ->  | Y128: =IF(X128="Year 27",Y127+1,"") ->  | Z128: 1 | AA128: 0.85 | AE128: =IF(AI89>1, IF(AI89>25,"Year 27",""),"") -> Year 27 | AF128: =IF(AE128="Year 27",AF127+1,"") -> 2038 | AG128: 1 | AH128: 0.85 | AL128: =IF(AP89>1, IF(AP89>25,"Year 27",""),"") -> Year 27 | AM128: =IF(AL128="Year 27",AM127+1,"") -> 2038 | AN128: 1 | AO128: 0.85 | AS128: =IF(AW89>1, IF(AW89>25,"Year 27",""),"") -> Year 27 | AT128: =IF(AS128="Year 27",AT127+1,"") -> 2038 | AU128: 1 | AV128: 0.85 | BB128: =IF(BF89>1, IF(BF89>25,"Year 27",""),"") ->  | BC128: =IF(BB128="Year 27",BC127+1,"") ->  | BD128: 1 | BE128: 0.85 | BI128: =IF(BM89>1, IF(BM89>25,"Year 27",""),"") -> Year 27 | BJ128: =IF(BI128="Year 27",BJ127+1,"") -> 2038 | BK128: 1 | BL128: 1 | BM128: 0.85 | BN128: 0.85 | BP128: =IF(BT89>1, IF(BT89>25,"Year 27",""),"") -> Year 27 | BQ128: =IF(BP128="Year 27",BQ127+1,"") -> 2038 | BR128: 1 | BS128: 1 | BT128: 0.85 | BU128: 0.85 | BW128: =IF(CA89>1, IF(CA89>25,"Year 27",""),"") ->  | BX128: =IF(BW128="Year 27",BX127+1,"") ->  | BY128: 1 | BZ128: 0.85 | CD128: =IF(CH89>1, IF(CH89>25,"Year 27",""),"") ->  | CE128: =IF(CD128="Year 27",CE127+1,"") ->  | CF128: 1 | CG128: 0.85 | CK128: =IF(CO89>1, IF(CO89>25,"Year 27",""),"") -> Year 27 | CL128: =IF(CK128="Year 27",CL127+1,"") -> 2038 | CM128: 1 | CN128: 0.85 | CR128: =IF(CV89>1, IF(CV89>25,"Year 27",""),"") -> Year 27 | CS128: =IF(CR128="Year 27",CS127+1,"") -> 2038 | CT128: 1 | CU128: 0.85
C129: =IF(G89>1, IF(G89>26,"Year 28",""),"") -> Year 28 | D129: =IF(C129="Year 28",D128+1,"") -> 2039 | E129: 1 | F129: 1 | G129: 0.85 | H129: 0.85 | J129: =IF(N89>1, IF(N89>26,"Year 28",""),"") -> Year 28 | K129: =IF(J129="Year 28",K128+1,"") -> 2039 | L129: 1 | M129: 1 | N129: 0.85 | O129: 0.85 | Q129: =IF(U89>1, IF(U89>26,"Year 28",""),"") ->  | R129: =IF(Q129="Year 28",R128+1,"") ->  | S129: 1 | T129: 0.85 | X129: =IF(AB89>1, IF(AB89>26,"Year 28",""),"") ->  | Y129: =IF(X129="Year 28",Y128+1,"") ->  | Z129: 1 | AA129: 0.85 | AE129: =IF(AI89>1, IF(AI89>26,"Year 28",""),"") -> Year 28 | AF129: =IF(AE129="Year 28",AF128+1,"") -> 2039 | AG129: 1 | AH129: 0.85 | AL129: =IF(AP89>1, IF(AP89>26,"Year 28",""),"") -> Year 28 | AM129: =IF(AL129="Year 28",AM128+1,"") -> 2039 | AN129: 1 | AO129: 0.85 | AS129: =IF(AW89>1, IF(AW89>26,"Year 28",""),"") -> Year 28 | AT129: =IF(AS129="Year 28",AT128+1,"") -> 2039 | AU129: 1 | AV129: 0.85 | BB129: =IF(BF89>1, IF(BF89>26,"Year 28",""),"") ->  | BC129: =IF(BB129="Year 28",BC128+1,"") ->  | BD129: 1 | BE129: 0.85 | BI129: =IF(BM89>1, IF(BM89>26,"Year 28",""),"") -> Year 28 | BJ129: =IF(BI129="Year 28",BJ128+1,"") -> 2039 | BK129: 1 | BL129: 1 | BM129: 0.85 | BN129: 0.85 | BP129: =IF(BT89>1, IF(BT89>26,"Year 28",""),"") -> Year 28 | BQ129: =IF(BP129="Year 28",BQ128+1,"") -> 2039 | BR129: 1 | BS129: 1 | BT129: 0.85 | BU129: 0.85 | BW129: =IF(CA89>1, IF(CA89>26,"Year 28",""),"") ->  | BX129: =IF(BW129="Year 28",BX128+1,"") ->  | BY129: 1 | BZ129: 0.85 | CD129: =IF(CH89>1, IF(CH89>26,"Year 28",""),"") ->  | CE129: =IF(CD129="Year 28",CE128+1,"") ->  | CF129: 1 | CG129: 0.85 | CK129: =IF(CO89>1, IF(CO89>26,"Year 28",""),"") -> Year 28 | CL129: =IF(CK129="Year 28",CL128+1,"") -> 2039 | CM129: 1 | CN129: 0.85 | CR129: =IF(CV89>1, IF(CV89>26,"Year 28",""),"") -> Year 28 | CS129: =IF(CR129="Year 28",CS128+1,"") -> 2039 | CT129: 1 | CU129: 0.85
C130: =IF(G89>1, IF(G89>27,"Year 29",""),"") -> Year 29 | D130: =IF(C130="Year 29",D129+1,"") -> 2040 | E130: 1 | F130: 1 | G130: 0.85 | H130: 0.85 | J130: =IF(N89>1, IF(N89>27,"Year 29",""),"") -> Year 29 | K130: =IF(J130="Year 29",K129+1,"") -> 2040 | L130: 1 | M130: 1 | N130: 0.85 | O130: 0.85 | Q130: =IF(U89>1, IF(U89>27,"Year 29",""),"") ->  | R130: =IF(Q130="Year 29",R129+1,"") ->  | S130: 1 | T130: 0.85 | X130: =IF(AB89>1, IF(AB89>27,"Year 29",""),"") ->  | Y130: =IF(X130="Year 29",Y129+1,"") ->  | Z130: 1 | AA130: 0.85 | AE130: =IF(AI89>1, IF(AI89>27,"Year 29",""),"") -> Year 29 | AF130: =IF(AE130="Year 29",AF129+1,"") -> 2040 | AG130: 1 | AH130: 0.85 | AL130: =IF(AP89>1, IF(AP89>27,"Year 29",""),"") -> Year 29 | AM130: =IF(AL130="Year 29",AM129+1,"") -> 2040 | AN130: 1 | AO130: 0.85 | AS130: =IF(AW89>1, IF(AW89>27,"Year 29",""),"") -> Year 29 | AT130: =IF(AS130="Year 29",AT129+1,"") -> 2040 | AU130: 1 | AV130: 0.85 | BB130: =IF(BF89>1, IF(BF89>27,"Year 29",""),"") ->  | BC130: =IF(BB130="Year 29",BC129+1,"") ->  | BD130: 1 | BE130: 0.85 | BI130: =IF(BM89>1, IF(BM89>27,"Year 29",""),"") -> Year 29 | BJ130: =IF(BI130="Year 29",BJ129+1,"") -> 2040 | BK130: 1 | BL130: 1 | BM130: 0.85 | BN130: 0.85 | BP130: =IF(BT89>1, IF(BT89>27,"Year 29",""),"") -> Year 29 | BQ130: =IF(BP130="Year 29",BQ129+1,"") -> 2040 | BR130: 1 | BS130: 1 | BT130: 0.85 | BU130: 0.85 | BW130: =IF(CA89>1, IF(CA89>27,"Year 29",""),"") ->  | BX130: =IF(BW130="Year 29",BX129+1,"") ->  | BY130: 1 | BZ130: 0.85 | CD130: =IF(CH89>1, IF(CH89>27,"Year 29",""),"") ->  | CE130: =IF(CD130="Year 29",CE129+1,"") ->  | CF130: 1 | CG130: 0.85 | CK130: =IF(CO89>1, IF(CO89>27,"Year 29",""),"") -> Year 29 | CL130: =IF(CK130="Year 29",CL129+1,"") -> 2040 | CM130: 1 | CN130: 0.85 | CR130: =IF(CV89>1, IF(CV89>27,"Year 29",""),"") -> Year 29 | CS130: =IF(CR130="Year 29",CS129+1,"") -> 2040 | CT130: 1 | CU130: 0.85
C131: =IF(G89>1, IF(G89>28,"Year 30",""),"") -> Year 30 | D131: =IF(C131="Year 30",D130+1,"") -> 2041 | E131: 1 | F131: 1 | G131: 0.85 | H131: 0.85 | J131: =IF(N89>1, IF(N89>28,"Year 30",""),"") -> Year 30 | K131: =IF(J131="Year 30",K130+1,"") -> 2041 | L131: 1 | M131: 1 | N131: 0.85 | O131: 0.85 | Q131: =IF(U89>1, IF(U89>28,"Year 30",""),"") ->  | R131: =IF(Q131="Year 30",R130+1,"") ->  | S131: 1 | T131: 0.85 | X131: =IF(AB89>1, IF(AB89>28,"Year 30",""),"") ->  | Y131: =IF(X131="Year 30",Y130+1,"") ->  | Z131: 1 | AA131: 0.85 | AE131: =IF(AI89>1, IF(AI89>28,"Year 30",""),"") -> Year 30 | AF131: =IF(AE131="Year 30",AF130+1,"") -> 2041 | AG131: 1 | AH131: 0.85 | AL131: =IF(AP89>1, IF(AP89>28,"Year 30",""),"") -> Year 30 | AM131: =IF(AL131="Year 30",AM130+1,"") -> 2041 | AN131: 1 | AO131: 0.85 | AS131: =IF(AW89>1, IF(AW89>28,"Year 30",""),"") -> Year 30 | AT131: =IF(AS131="Year 30",AT130+1,"") -> 2041 | AU131: 1 | AV131: 0.85 | BB131: =IF(BF89>1, IF(BF89>28,"Year 30",""),"") ->  | BC131: =IF(BB131="Year 30",BC130+1,"") ->  | BD131: 1 | BE131: 0.85 | BI131: =IF(BM89>1, IF(BM89>28,"Year 30",""),"") -> Year 30 | BJ131: =IF(BI131="Year 30",BJ130+1,"") -> 2041 | BK131: 1 | BL131: 1 | BM131: 0.85 | BN131: 0.85 | BP131: =IF(BT89>1, IF(BT89>28,"Year 30",""),"") -> Year 30 | BQ131: =IF(BP131="Year 30",BQ130+1,"") -> 2041 | BR131: 1 | BS131: 1 | BT131: 0.85 | BU131: 0.85 | BW131: =IF(CA89>1, IF(CA89>28,"Year 30",""),"") ->  | BX131: =IF(BW131="Year 30",BX130+1,"") ->  | BY131: 1 | BZ131: 0.85 | CD131: =IF(CH89>1, IF(CH89>28,"Year 30",""),"") ->  | CE131: =IF(CD131="Year 30",CE130+1,"") ->  | CF131: 1 | CG131: 0.85 | CK131: =IF(CO89>1, IF(CO89>28,"Year 30",""),"") -> Year 30 | CL131: =IF(CK131="Year 30",CL130+1,"") -> 2041 | CM131: 1 | CN131: 0.85 | CR131: =IF(CV89>1, IF(CV89>28,"Year 30",""),"") -> Year 30 | CS131: =IF(CR131="Year 30",CS130+1,"") -> 2041 | CT131: 1 | CU131: 0.85
C132: =IF(G89>1, IF(G89>29,"Year 31",""),"") -> Year 31 | D132: =IF(C132="Year 31",D131+1,"") -> 2042 | E132: 1 | F132: 1 | G132: 0.85 | H132: 0.85 | J132: =IF(N89>1, IF(N89>29,"Year 31",""),"") -> Year 31 | K132: =IF(J132="Year 31",K131+1,"") -> 2042 | L132: 1 | M132: 1 | N132: 0.85 | O132: 0.85 | Q132: =IF(U89>1, IF(U89>29,"Year 31",""),"") ->  | R132: =IF(Q132="Year 31",R131+1,"") ->  | S132: 1 | T132: 0.85 | X132: =IF(AB89>1, IF(AB89>29,"Year 31",""),"") ->  | Y132: =IF(X132="Year 31",Y131+1,"") ->  | Z132: 1 | AA132: 0.85 | AE132: =IF(AI89>1, IF(AI89>29,"Year 31",""),"") -> Year 31 | AF132: =IF(AE132="Year 31",AF131+1,"") -> 2042 | AG132: 1 | AH132: 0.85 | AL132: =IF(AP89>1, IF(AP89>29,"Year 31",""),"") -> Year 31 | AM132: =IF(AL132="Year 31",AM131+1,"") -> 2042 | AN132: 1 | AO132: 0.85 | AS132: =IF(AW89>1, IF(AW89>29,"Year 31",""),"") -> Year 31 | AT132: =IF(AS132="Year 31",AT131+1,"") -> 2042 | AU132: 1 | AV132: 0.85 | BB132: =IF(BF89>1, IF(BF89>29,"Year 31",""),"") ->  | BC132: =IF(BB132="Year 31",BC131+1,"") ->  | BD132: 1 | BE132: 0.85 | BI132: =IF(BM89>1, IF(BM89>29,"Year 31",""),"") -> Year 31 | BJ132: =IF(BI132="Year 31",BJ131+1,"") -> 2042 | BK132: 1 | BL132: 1 | BM132: 0.85 | BN132: 0.85 | BP132: =IF(BT89>1, IF(BT89>29,"Year 31",""),"") -> Year 31 | BQ132: =IF(BP132="Year 31",BQ131+1,"") -> 2042 | BR132: 1 | BS132: 1 | BT132: 0.85 | BU132: 0.85 | BW132: =IF(CA89>1, IF(CA89>29,"Year 31",""),"") ->  | BX132: =IF(BW132="Year 31",BX131+1,"") ->  | BY132: 1 | BZ132: 0.85 | CD132: =IF(CH89>1, IF(CH89>29,"Year 31",""),"") ->  | CE132: =IF(CD132="Year 31",CE131+1,"") ->  | CF132: 1 | CG132: 0.85 | CK132: =IF(CO89>1, IF(CO89>29,"Year 31",""),"") -> Year 31 | CL132: =IF(CK132="Year 31",CL131+1,"") -> 2042 | CM132: 1 | CN132: 0.85 | CR132: =IF(CV89>1, IF(CV89>29,"Year 31",""),"") -> Year 31 | CS132: =IF(CR132="Year 31",CS131+1,"") -> 2042 | CT132: 1 | CU132: 0.85
B133: =IF(G89>1, IF(G89>30,"Year 32",""),"") -> 
B134: =IF(G89>1, IF(G89>33,"Year 35",""),"") -> 

Sheet IGCC w CC
B4: Production | G4: Capital Expenditure | I4: UK£ (million) | K4: Operating Costs | L4: UK£ (million/year) | P4: Revenues
B5: Coal feedrate | D5: te/h | E5: ='Input Data'!G26 -> 273.3 | G5: Installed cost | I5: ='Input Data'!G60 -> 1111.5 | K5: Fuel Cost | M5: ='Input Data'!G71 -> 65 | N5: UK£/te | P5: Levelised Cost of Electricity | Q5: UK£/kWh | R5: 0.07623049378
B6: Net power ouput | D6: MW | E6: ='Input Data'!G23 -> 699.9 | G6: Land purchase, surveys | I6: ='Input Data'!E65 -> 0.05 | K6: Maintenance | M6: ='Input Data'!G72 -> 39.72 | N6: UK£/year | P6: Sulphur Price | Q6: UK£/te | R6: ='Input Data'!G84 -> 40
B7: Sulphur for export | D7: te/h | E7: ='Input Data'!G37 -> 2.3 | G7: Fees | I7: ='Input Data'!E66 -> 0.1 | K7: CO2 Emissions | M7: ='Input Data'!G77 -> 0 | N7: UK£/te | P7: Hydrogen Price | Q7: UK£/te | R7: ='Input Data'!G85 -> 1307.189542
G8: Contingencies | I8: ='Input Data'!E64 -> 0.25 | K8: Labour Cost | N8: UK£/year (million)
K9: Number of operations personnel | N9: ='Input Data'!G78 -> 128 | P9: Discounted Rate: | R9: ='Input Data'!G86 -> 0.1
B10: =IF('Input Data'!G10>0.001,"Performance Data: User Adjusted","") ->  | G10: Total Investment Cost | I10: =I5+(I6*I5)+(I5*I7)+(I5*I8) -> 1556.1 | K10: Average salary options personnel | N10: ='Input Data'!G79 -> 0.05 | P10: Insurance | R10: ='Input Data'!G81 -> 0.02 | S10: Installed Cost
K11: Admin | N11: ='Input Data'!G80 -> 0.3
K12: Total Labour Cost | N12: =(N9*N10)*(1+N11) -> 8.32
G13: =IF('Input Data'!G47>0.001,"Capital and Cost Data: User Adjusted","") ->  | P13: =IF('Input Data'!G83>0.001,"Revenue Variables: User Adjusted","") -> 
K14: =IF('Input Data'!G70>0.001,"Operating Data: User Adjusted","") -> 
F17: YEAR
B18: CASH FLOW ANALYSIS | F18: =G18-1 -> 2009 | G18: =H18-1 -> 2010 | H18: =I18-1 -> 2011 | I18: ='Input Data'!D102 -> 2012 | J18: ='Input Data'!D103 -> 2013 | K18: ='Input Data'!D104 -> 2014 | L18: ='Input Data'!D105 -> 2015 | M18: ='Input Data'!D106 -> 2016 | N18: ='Input Data'!D107 -> 2017 | O18: ='Input Data'!D108 -> 2018 | P18: ='Input Data'!D109 -> 2019 | Q18: ='Input Data'!D110 -> 2020 | R18: ='Input Data'!D111 -> 2021 | S18: ='Input Data'!D112 -> 2022 | T18: ='Input Data'!D113 -> 2023 | U18: ='Input Data'!D114 -> 2024 | V18: ='Input Data'!D115 -> 2025 | W18: ='Input Data'!D116 -> 2026 | X18: ='Input Data'!D117 -> 2027 | Y18: ='Input Data'!D118 -> 2028 | Z18: ='Input Data'!D119 -> 2029 | AA18: ='Input Data'!D120 -> 2030 | AB18: ='Input Data'!D121 -> 2031 | AC18: ='Input Data'!D122 -> 2032 | AD18: ='Input Data'!D123 -> 2033 | AE18: ='Input Data'!D124 -> 2034 | AF18: ='Input Data'!D125 -> 2035 | AG18: ='Input Data'!D126 -> 2036 | AH18: ='Input Data'!D127 -> 2037 | AI18: ='Input Data'!D128 -> 2038 | AJ18: ='Input Data'!D129 -> 2039 | AK18: ='Input Data'!D130 -> 2040 | AL18: ='Input Data'!D131 -> 2041 | AM18: ='Input Data'!D132 -> 2042
B19: UK£ (million) | F19: Year -3 | G19: Year -2 | H19: Year -1 | I19: ='Input Data'!C102 -> Year 1 | J19: ='Input Data'!C103 -> Year 2 | K19: ='Input Data'!C104 -> Year 3 | L19: ='Input Data'!C105 -> Year 4 | M19: ='Input Data'!C106 -> Year 5 | N19: ='Input Data'!C107 -> Year 6 | O19: ='Input Data'!C108 -> Year 7 | P19: ='Input Data'!C109 -> Year 8 | Q19: ='Input Data'!C110 -> Year 9 | R19: ='Input Data'!C111 -> Year 10 | S19: ='Input Data'!C112 -> Year 11 | T19: ='Input Data'!C113 -> Year 12 | U19: ='Input Data'!C114 -> Year 13 | V19: ='Input Data'!C115 -> Year 14 | W19: ='Input Data'!C116 -> Year 15 | X19: ='Input Data'!C117 -> Year 16 | Y19: ='Input Data'!C118 -> Year 17 | Z19: ='Input Data'!C119 -> Year 18 | AA19: ='Input Data'!C120 -> Year 19 | AB19: ='Input Data'!C121 -> Year 20 | AC19: ='Input Data'!C122 -> Year 21 | AD19: ='Input Data'!C123 -> Year 22 | AE19: ='Input Data'!C124 -> Year 23 | AF19: ='Input Data'!C125 -> Year 24 | AG19: ='Input Data'!C126 -> Year 25 | AH19: ='Input Data'!C127 -> Year 26 | AI19: ='Input Data'!C128 -> Year 27 | AJ19: ='Input Data'!C129 -> Year 28 | AK19: ='Input Data'!C130 -> Year 29 | AL19: ='Input Data'!C131 -> Year 30 | AM19: ='Input Data'!C132 -> Year 31
B22: Load factor - Hydrogen Production | I22: =IF(I19="Year 1",'Input Data'!E102,"") -> 1 | J22: ='Input Data'!E103 -> 1 | K22: ='Input Data'!E104 -> 1 | L22: ='Input Data'!E105 -> 1 | M22: ='Input Data'!E106 -> 1 | N22: ='Input Data'!E107 -> 1 | O22: ='Input Data'!E108 -> 1 | P22: ='Input Data'!E109 -> 1 | Q22: ='Input Data'!E110 -> 1 | R22: ='Input Data'!E111 -> 1 | S22: ='Input Data'!E112 -> 1 | T22: ='Input Data'!E113 -> 1 | U22: ='Input Data'!E114 -> 1 | V22: ='Input Data'!E115 -> 1 | W22: ='Input Data'!E116 -> 1 | X22: ='Input Data'!E117 -> 1 | Y22: ='Input Data'!E118 -> 1 | Z22: ='Input Data'!E119 -> 1 | AA22: ='Input Data'!E120 -> 1 | AB22: =IF(AB19="Year 20",'Input Data'!E121,"") -> 1 | AC22: =IF('Input Data'!G89>20,'Input Data'!E122,"") -> 1 | AD22: =IF(AD19="Year 22",'Input Data'!E123,"") -> 1 | AE22: =IF(AE19="Year 23",'Input Data'!E124,"") -> 1 | AF22: =IF(AF19="Year 24",'Input Data'!E125,"") -> 1 | AG22: =IF(AG19="Year 25",'Input Data'!E126,"") -> 1 | AH22: =IF('Input Data'!G89>25,'Input Data'!E127,"") -> 1 | AI22: =IF(AI19="Year 27",'Input Data'!E128,"") -> 1 | AJ22: =IF(AJ19="Year 28",'Input Data'!E129,"") -> 1 | AK22: =IF(AK19="Year 29",'Input Data'!E130,"") -> 1 | AL22: =IF(AL19="Year 30",'Input Data'!E131,"") -> 1 | AM22: =IF('Input Data'!G89>30,'Input Data'!E132,"") -> 
B23: Load factor - Power Island | I23: =IF(I19="Year 1",'Input Data'!F102,"") -> 1 | J23: ='Input Data'!F103 -> 1 | K23: ='Input Data'!F104 -> 1 | L23: ='Input Data'!F105 -> 1 | M23: ='Input Data'!F106 -> 1 | N23: ='Input Data'!F107 -> 1 | O23: ='Input Data'!F108 -> 1 | P23: ='Input Data'!F109 -> 1 | Q23: ='Input Data'!F110 -> 1 | R23: ='Input Data'!F111 -> 1 | S23: ='Input Data'!F112 -> 1 | T23: ='Input Data'!F113 -> 1 | U23: ='Input Data'!F114 -> 1 | V23: ='Input Data'!F115 -> 1 | W23: ='Input Data'!F116 -> 1 | X23: ='Input Data'!F117 -> 1 | Y23: ='Input Data'!F118 -> 1 | Z23: ='Input Data'!F119 -> 1 | AA23: ='Input Data'!F120 -> 1 | AB23: =IF(AB19="Year 20",'Input Data'!F121,"") -> 1 | AC23: =IF('Input Data'!G89>20,'Input Data'!F122,"") -> 1 | AD23: =IF(AD19="Year 22",'Input Data'!F123,"") -> 1 | AE23: =IF(AE19="Year 23",'Input Data'!F124,"") -> 1 | AF23: =IF(AF19="Year 24",'Input Data'!F125,"") -> 1 | AG23: =IF(AG19="Year 25",'Input Data'!F126,"") -> 1 | AH23: =IF('Input Data'!G89>25,'Input Data'!F127,"") -> 1 | AI23: =IF(AI19="Year 27",'Input Data'!F128,"") -> 1 | AJ23: =IF(AJ19="Year 28",'Input Data'!F129,"") -> 1 | AK23: =IF(AK19="Year 29",'Input Data'!F130,"") -> 1 | AL23: =IF(AL19="Year 30",'Input Data'!F131,"") -> 1 | AM23: =IF('Input Data'!G89>30,'Input Data'!F132,"") -> 
B24: Availability - Hydrogen Production | I24: =IF(I19="Year 1",'Input Data'!G102,"") -> 0.65 | J24: ='Input Data'!G103 -> 0.75 | K24: ='Input Data'!G104 -> 0.85 | L24: ='Input Data'!G105 -> 0.85 | M24: ='Input Data'!G106 -> 0.85 | N24: ='Input Data'!G107 -> 0.85 | O24: ='Input Data'!G108 -> 0.85 | P24: ='Input Data'!G109 -> 0.85 | Q24: ='Input Data'!G110 -> 0.85 | R24: ='Input Data'!G111 -> 0.85 | S24: ='Input Data'!G112 -> 0.85 | T24: ='Input Data'!G113 -> 0.85 | U24: ='Input Data'!G114 -> 0.85 | V24: ='Input Data'!G115 -> 0.85 | W24: ='Input Data'!G116 -> 0.85 | X24: ='Input Data'!G117 -> 0.85 | Y24: ='Input Data'!G118 -> 0.85 | Z24: ='Input Data'!G119 -> 0.85 | AA24: ='Input Data'!G120 -> 0.85 | AB24: =IF(AB19="Year 20",'Input Data'!G121,"") -> 0.85 | AC24: =IF('Input Data'!G89>20,'Input Data'!G122,"") -> 0.85 | AD24: =IF(AD19="Year 22",'Input Data'!G123,"") -> 0.85 | AE24: =IF(AE19="Year 23",'Input Data'!G124,"") -> 0.85 | AF24: =IF(AF19="Year 24",'Input Data'!G125,"") -> 0.85 | AG24: =IF(AG19="Year 25",'Input Data'!G126,"") -> 0.85 | AH24: =IF('Input Data'!G89>25,'Input Data'!G127,"") -> 0.85 | AI24: =IF(AI19="Year 27",'Input Data'!G128,"") -> 0.85 | AJ24: =IF(AJ19="Year 28",'Input Data'!G129,"") -> 0.85 | AK24: =IF(AK19="Year 29",'Input Data'!G130,"") -> 0.85 | AL24: =IF(AL19="Year 30",'Input Data'!G131,"") -> 0.85 | AM24: =IF('Input Data'!G89>30,'Input Data'!G132,"") -> 
B25: Availability - Power Island | I25: =IF(I19="Year 1",'Input Data'!H102,"") -> 0.65 | J25: ='Input Data'!H103 -> 0.75 | K25: ='Input Data'!H104 -> 0.85 | L25: ='Input Data'!H105 -> 0.85 | M25: ='Input Data'!H106 -> 0.85 | N25: ='Input Data'!H107 -> 0.85 | O25: ='Input Data'!H108 -> 0.85 | P25: ='Input Data'!H109 -> 0.85 | Q25: ='Input Data'!H110 -> 0.85 | R25: ='Input Data'!H111 -> 0.85 | S25: ='Input Data'!H112 -> 0.85 | T25: ='Input Data'!H113 -> 0.85 | U25: ='Input Data'!H114 -> 0.85 | V25: ='Input Data'!H115 -> 0.85 | W25: ='Input Data'!H116 -> 0.85 | X25: ='Input Data'!H117 -> 0.85 | Y25: ='Input Data'!H118 -> 0.85 | Z25: ='Input Data'!H119 -> 0.85 | AA25: ='Input Data'!H120 -> 0.85 | AB25: =IF(AB19="Year 20",'Input Data'!H121,"") -> 0.85 | AC25: =IF('Input Data'!G89>20,'Input Data'!H122,"") -> 0.85 | AD25: =IF(AD19="Year 22",'Input Data'!H123,"") -> 0.85 | AE25: =IF(AE19="Year 23",'Input Data'!H124,"") -> 0.85 | AF25: =IF(AF19="Year 24",'Input Data'!H125,"") -> 0.85 | AG25: =IF(AG19="Year 25",'Input Data'!H126,"") -> 0.85 | AH25: =IF('Input Data'!G89>25,'Input Data'!H127,"") -> 0.85 | AI25: =IF(AI19="Year 27",'Input Data'!H128,"") -> 0.85 | AJ25: =IF(AJ19="Year 28",'Input Data'!H129,"") -> 0.85 | AK25: =IF(AK19="Year 29",'Input Data'!H130,"") -> 0.85 | AL25: =IF(AL19="Year 30",'Input Data'!H131,"") -> 0.85 | AM25: =IF('Input Data'!G89>30,'Input Data'!H132,"") -> 
B26: Equivalent yearly hours - Hydrogen Production | I26: =I22*8760*I24 -> 5694 | J26: 6570 | K26: 7446 | L26: =L22*8760*L24 -> 7446 | M26: 7446 | N26: 7446 | O26: 7446 | P26: 7446 | Q26: 7446 | R26: 7446 | S26: 7446 | T26: 7446 | U26: 7446 | V26: 7446 | W26: 7446 | X26: 7446 | Y26: 7446 | Z26: 7446 | AA26: 7446 | AB26: =IF(AB19="Year 20",AB22*8760*AB24,"") -> 7446 | AC26: =IF('Input Data'!G89>20,AC22*8760*AC24,"") -> 7446 | AD26: =IF(AD19="Year 22",AD22*8760*AD24,"") -> 7446 | AE26: =IF(AE19="Year 23",AE22*8760*AE24,"") -> 7446 | AF26: =IF(AF19="Year 24",AF22*8760*AF24,"") -> 7446 | AG26: =IF(AG19="Year 25",AG22*8760*AG24,"") -> 7446 | AH26: =IF('Input Data'!G89>25,AH22*8760*AH24,"") -> 7446 | AI26: =IF(AI19="Year 27",AI22*8760*AI24,"") -> 7446 | AJ26: =IF(AJ19="Year 28",AJ22*8760*AJ24,"") -> 7446 | AK26: =IF(AK19="Year 29",AK22*8760*AK24,"") -> 7446 | AL26: =IF(AL19="Year 30",AL22*8760*AL24,"") -> 7446 | AM26: =IF('Input Data'!G89>30,AM22*8760*AM24,"") -> 
B27: Equivalent yearly hours - Power Island | I27: 5694 | J27: 6570 | K27: 7446 | L27: =L23*8760*L25 -> 7446 | M27: 7446 | N27: 7446 | O27: 7446 | P27: 7446 | Q27: 7446 | R27: 7446 | S27: 7446 | T27: 7446 | U27: 7446 | V27: 7446 | W27: 7446 | X27: 7446 | Y27: 7446 | Z27: 7446 | AA27: 7446 | AB27: =IF(AB19="Year 20",AB23*8760*AB25,"") -> 7446 | AC27: =IF('Input Data'!G89>20,AC23*8760*AC25,"") -> 7446 | AD27: =IF(AD19="Year 22",AD23*8760*AD25,"") -> 7446 | AE27: =IF(AE19="Year 23",AE23*8760*AE25,"") -> 7446 | AF27: =IF(AF19="Year 24",AF23*8760*AF25,"") -> 7446 | AG27: =IF(AG19="Year 25",AG23*8760*AG25,"") -> 7446 | AH27: =IF('Input Data'!G89>25,AH23*8760*AH25,"") -> 7446 | AI27: =IF(AI19="Year 27",AI23*8760*AI25,"") -> 7446 | AJ27: =IF(AJ19="Year 28",AJ23*8760*AJ25,"") -> 7446 | AK27: =IF(AK19="Year 29",AK23*8760*AK25,"") -> 7446 | AL27: =IF(AL19="Year 30",AL23*8760*AL25,"") -> 7446 | AM27: =IF('Input Data'!G89>30,AM23*8760*AM25,"") -> 
B28: Hydrogen Exported | E28: tpa | I28: =IF(((I26-I27)*'Input Data'!$G$38>0),(I26-I27)*'Input Data'!$G$38,0) -> 0 | J28: =IF(((J26-J27)*'Input Data'!$G$38>0),(J26-J27)*'Input Data'!$G$38,0) -> 0 | K28: =IF(((K26-K27)*'Input Data'!$G$38>0),(K26-K27)*'Input Data'!$G$38,0) -> 0 | L28: =IF(((L26-L27)*'Input Data'!$G$38>0),(L26-L27)*'Input Data'!$G$38,0) -> 0 | M28: =IF(((M26-M27)*'Input Data'!$G$38>0),(M26-M27)*'Input Data'!$G$38,0) -> 0 | N28: =IF(((N26-N27)*'Input Data'!$G$38>0),(N26-N27)*'Input Data'!$G$38,0) -> 0 | O28: =IF(((O26-O27)*'Input Data'!$G$38>0),(O26-O27)*'Input Data'!$G$38,0) -> 0 | P28: =IF(((P26-P27)*'Input Data'!$G$38>0),(P26-P27)*'Input Data'!$G$38,0) -> 0 | Q28: =IF(((Q26-Q27)*'Input Data'!$G$38>0),(Q26-Q27)*'Input Data'!$G$38,0) -> 0 | R28: =IF(((R26-R27)*'Input Data'!$G$38>0),(R26-R27)*'Input Data'!$G$38,0) -> 0 | S28: =IF(((S26-S27)*'Input Data'!$G$38>0),(S26-S27)*'Input Data'!$G$38,0) -> 0 | T28: =IF(((T26-T27)*'Input Data'!$G$38>0),(T26-T27)*'Input Data'!$G$38,0) -> 0 | U28: =IF(((U26-U27)*'Input Data'!$G$38>0),(U26-U27)*'Input Data'!$G$38,0) -> 0 | V28: =IF(((V26-V27)*'Input Data'!$G$38>0),(V26-V27)*'Input Data'!$G$38,0) -> 0 | W28: =IF(((W26-W27)*'Input Data'!$G$38>0),(W26-W27)*'Input Data'!$G$38,0) -> 0 | X28: =IF(((X26-X27)*'Input Data'!$G$38>0),(X26-X27)*'Input Data'!$G$38,0) -> 0 | Y28: =IF(((Y26-Y27)*'Input Data'!$G$38>0),(Y26-Y27)*'Input Data'!$G$38,0) -> 0 | Z28: =IF(((Z26-Z27)*'Input Data'!$G$38>0),(Z26-Z27)*'Input Data'!$G$38,0) -> 0 | AA28: =IF(((AA26-AA27)*'Input Data'!$G$38>0),(AA26-AA27)*'Input Data'!$G$38,0) -> 0 | AB28: =IF(((AB26-AB27)*'Input Data'!$G$38>0),(AB26-AB27)*'Input Data'!$G$38,0) -> 0 | AC28: =IF('Input Data'!$G$89>20,IF(((AC26-AC27)*'Input Data'!$G$38>0),(AC26-AC27)*'Input Data'!$G$38,0),"") -> 0 | AD28: =IF('Input Data'!$G$89>20,IF(((AD26-AD27)*'Input Data'!$G$38>0),(AD26-AD27)*'Input Data'!$G$38,0),"") -> 0 | AE28: =IF('Input Data'!$G$89>20,IF(((AE26-AE27)*'Input Data'!$G$38>0),(AE26-AE27)*'Input Data'!$G$38,0),"") -> 0 | AF28: =IF('Input Data'!$G$89>20,IF(((AF26-AF27)*'Input Data'!$G$38>0),(AF26-AF27)*'Input Data'!$G$38,0),"") -> 0 | AG28: =IF('Input Data'!$G$89>20,IF(((AG26-AG27)*'Input Data'!$G$38>0),(AG26-AG27)*'Input Data'!$G$38,0),"") -> 0 | AH28: =IF('Input Data'!$G$89>25,IF(((AH26-AH27)*'Input Data'!$G$38>0),(AH26-AH27)*'Input Data'!$G$38,0),"") -> 0 | AI28: =IF('Input Data'!$G$89>25,IF(((AI26-AI27)*'Input Data'!$G$38>0),(AI26-AI27)*'Input Data'!$G$38,0),"") -> 0 | AJ28: =IF('Input Data'!$G$89>25,IF(((AJ26-AJ27)*'Input Data'!$G$38>0),(AJ26-AJ27)*'Input Data'!$G$38,0),"") -> 0 | AK28: =IF('Input Data'!$G$89>25,IF(((AK26-AK27)*'Input Data'!$G$38>0),(AK26-AK27)*'Input Data'!$G$38,0),"") -> 0 | AL28: =IF('Input Data'!$G$89>25,IF(((AL26-AL27)*'Input Data'!$G$38>0),(AL26-AL27)*'Input Data'!$G$38,0),"") -> 0 | AM28: =IF('Input Data'!$G$89>30,IF(((AM26-AM27)*'Input Data'!$G$38>0),(AM26-AM27)*'Input Data'!$G$38,0),"") -> 
B29: Expenditure factor | F29: ='Input Data'!G96 -> 0.25 | G29: ='Input Data'!G97 -> 0.45 | H29: ='Input Data'!G98 -> 0.3
B30: Revenues
B31: Electricity | I31: =$E$6*I27*$R$5/1000 -> 303.7960965 | J31: =$E$6*J27*$R$5/1000 -> 350.5339575 | K31: =$E$6*K27*$R$5/1000 -> 397.2718185 | L31: 397.2718185 | M31: 397.2718185 | N31: 397.2718185 | O31: 397.2718185 | P31: 397.2718185 | Q31: 397.2718185 | R31: 397.2718185 | S31: 397.2718185 | T31: 397.2718185 | U31: 397.2718185 | V31: 397.2718185 | W31: 397.2718185 | X31: 397.2718185 | Y31: 397.2718185 | Z31: 397.2718185 | AA31: 397.2718185 | AB31: =IF(AB19="Year 20",$E$6*AB27*$R$5/1000,"") -> 397.2718185 | AC31: =IF('Input Data'!G89>20,$E$6*AC27*$R$5/1000,"") -> 397.2718185 | AD31: =IF(AD19="Year 22",$E$6*AD27*$R$5/1000,"") -> 397.2718185 | AE31: =IF(AE19="Year 23",$E$6*AE27*$R$5/1000,"") -> 397.2718185 | AF31: =IF(AF19="Year 24",$E$6*AF27*$R$5/1000,"") -> 397.2718185 | AG31: =IF(AG19="Year 25",$E$6*AG27*$R$5/1000,"") -> 397.2718185 | AH31: =IF('Input Data'!G89>25,$E$6*AH27*$R$5/1000,"") -> 397.2718185 | AI31: =IF(AI19="Year 27",$E$6*AI27*$R$5/1000,"") -> 397.2718185 | AJ31: =IF(AJ19="Year 28",$E$6*AJ27*$R$5/1000,"") -> 397.2718185 | AK31: =IF(AK19="Year 29",$E$6*AK27*$R$5/1000,"") -> 397.2718185 | AL31: =IF(AL19="Year 30",$E$6*AL27*$R$5/1000,"") -> 397.2718185 | AM31: =IF('Input Data'!G89>30,$E$6*AM27*$R$5/1000,"") -> 
B32: Sulphur | I32: =$E$7*I26*$R$6/1000000 -> 0.523848 | J32: =$E$7*J26*$R$6/1000000 -> 0.60444 | K32: 0.685032 | L32: 0.685032 | M32: 0.685032 | N32: 0.685032 | O32: 0.685032 | P32: 0.685032 | Q32: 0.685032 | R32: 0.685032 | S32: 0.685032 | T32: 0.685032 | U32: 0.685032 | V32: 0.685032 | W32: 0.685032 | X32: 0.685032 | Y32: 0.685032 | Z32: 0.685032 | AA32: 0.685032 | AB32: =IF(AB19="Year 20",$E$7*AB26*$R$6/1000000,"") -> 0.685032 | AC32: =IF('Input Data'!G89>20,$E$7*AC26*$R$6/1000000,"") -> 0.685032 | AD32: =IF(AD19="Year 22",$E$7*AD26*$R$6/1000000,"") -> 0.685032 | AE32: =IF(AE19="Year 23",$E$7*AE26*$R$6/1000000,"") -> 0.685032 | AF32: =IF(AF19="Year 24",$E$7*AF26*$R$6/1000000,"") -> 0.685032 | AG32: =IF(AG19="Year 25",$E$7*AG26*$R$6/1000000,"") -> 0.685032 | AH32: =IF('Input Data'!G89>25,$E$7*AH26*$R$6/1000000,"") -> 0.685032 | AI32: =IF(AI19="Year 27",$E$7*AI26*$R$6/1000000,"") -> 0.685032 | AJ32: =IF(AJ19="Year 28",$E$7*AJ26*$R$6/1000000,"") -> 0.685032 | AK32: =IF(AK19="Year 29",$E$7*AK26*$R$6/1000000,"") -> 0.685032 | AL32: =IF(AL19="Year 30",$E$7*AL26*$R$6/1000000,"") -> 0.685032 | AM32: =IF('Input Data'!G89>30,$E$7*AM26*$R$6/1000000,"") -> 
B33: Hydrogen | I33: =IF(((I26-I27)*R7*'Input Data'!G38/1000000>0),(I26-I27)*R7*'Input Data'!G38/1000000,0) -> 0 | J33: =IF(((J26-J27)*R7*'Input Data'!G38/1000000>0),(J26-J27)*R7*'Input Data'!G38/1000000,0) -> 0 | K33: =IF(((K26-K27)*R7*'Input Data'!G38/1000000>0),(K26-K27)*R7*'Input Data'!G38/1000000,0) -> 0 | L33: =IF(((L26-L27)*R7*'Input Data'!G38/1000000>0),(L26-L27)*R7*'Input Data'!G38/1000000,0) -> 0 | M33: =IF(((M26-M27)*R7*'Input Data'!G38/1000000>0),(M26-M27)*R7*'Input Data'!G38/1000000,0) -> 0 | N33: =IF(((N26-N27)*R7*'Input Data'!G38/1000000>0),(N26-N27)*R7*'Input Data'!G38/1000000,0) -> 0 | O33: =IF(((O26-O27)*R7*'Input Data'!G38/1000000>0),(O26-O27)*R7*'Input Data'!G38/1000000,0) -> 0 | P33: =IF(((P26-P27)*R7*'Input Data'!G38/1000000>0),(P26-P27)*R7*'Input Data'!G38/1000000,0) -> 0 | Q33: =IF(((Q26-Q27)*R7*'Input Data'!G38/1000000>0),(Q26-Q27)*R7*'Input Data'!G38/1000000,0) -> 0 | R33: =IF(((R26-R27)*R7*'Input Data'!G38/1000000>0),(R26-R27)*R7*'Input Data'!G38/1000000,0) -> 0 | S33: =IF(((S26-S27)*R7*'Input Data'!G38/1000000>0),(S26-S27)*R7*'Input Data'!G38/1000000,0) -> 0 | T33: =IF(((T26-T27)*R7*'Input Data'!G38/1000000>0),(T26-T27)*R7*'Input Data'!G38/1000000,0) -> 0 | U33: =IF(((U26-U27)*R7*'Input Data'!G38/1000000>0),(U26-U27)*R7*'Input Data'!G38/1000000,0) -> 0 | V33: =IF(((V26-V27)*R7*'Input Data'!G38/1000000>0),(V26-V27)*R7*'Input Data'!G38/1000000,0) -> 0 | W33: =IF(((W26-W27)*R7*'Input Data'!G38/1000000>0),(W26-W27)*R7*'Input Data'!G38/1000000,0) -> 0 | X33: =IF(((X26-X27)*R7*'Input Data'!G38/1000000>0),(X26-X27)*R7*'Input Data'!G38/1000000,0) -> 0 | Y33: =IF(((Y26-Y27)*R7*'Input Data'!G38/1000000>0),(Y26-Y27)*R7*'Input Data'!G38/1000000,0) -> 0 | Z33: =IF(((Z26-Z27)*R7*'Input Data'!G38/1000000>0),(Z26-Z27)*R7*'Input Data'!G38/1000000,0) -> 0 | AA33: =IF(((AA26-AA27)*R7*'Input Data'!G38/1000000>0),(AA26-AA27)*R7*'Input Data'!G38/1000000,0) -> 0 | AB33: =IF(AB19="Year 20",IF(((AB26-AB27)*R7*'Input Data'!G38/1000000>0),(AB26-AB27)*R7*'Input Data'!G38/1000000,0),"") -> 0 | AC33: =IF('Input Data'!G89>20,IF(((AC26-AC27)*R7*'Input Data'!G38/1000000>0),(AC26-AC27)*R7*'Input Data'!G38/1000000,0),"") -> 0 | AD33: =IF(AD19="Year 22",IF(((AD26-AD27)*R7*'Input Data'!G38/1000000>0),(AD26-AD27)*R7*'Input Data'!G38/1000000,0),"") -> 0 | AE33: =IF(AE19="Year 23",IF(((AE26-AE27)*R7*'Input Data'!G38/1000000>0),(AE26-AE27)*R7*'Input Data'!G38/1000000,0),"") -> 0 | AF33: =IF(AF19="Year 24",IF(((AF26-AF27)*R7*'Input Data'!G38/1000000>0),(AF26-AF27)*R7*'Input Data'!G38/1000000,0),"") -> 0 | AG33: =IF(AG19="Year 25",IF(((AG26-AG27)*R7*'Input Data'!G38/1000000>0),(AG26-AG27)*R7*'Input Data'!G38/1000000,0),"") -> 0 | AH33: =IF('Input Data'!G89>25,IF(((AH26-AH27)*R7*'Input Data'!G38/1000000>0),(AH26-AH27)*R7*'Input Data'!G38/1000000,0),"") -> 0 | AI33: =IF(AI19="Year 27",IF(((AI26-AI27)*R7*'Input Data'!G38/1000000>0),(AI26-AI27)*R7*'Input Data'!G38/1000000,0),"") -> 0 | AJ33: =IF(AJ19="Year 28",IF(((AJ26-AJ27)*R7*'Input Data'!G38/1000000>0),(AJ26-AJ27)*R7*'Input Data'!G38/1000000,0),"") -> 0 | AK33: =IF(AK19="Year 29",IF(((AK26-AK27)*R7*'Input Data'!G38/1000000>0),(AK26-AK27)*R7*'Input Data'!G38/1000000,0),"") -> 0 | AL33: =IF(AL19="Year 30",IF(((AL26-AL27)*R7*'Input Data'!G38/1000000>0),(AL26-AL27)*R7*'Input Data'!G38/1000000,0),"") -> 0 | AM33: =IF('Input Data'!G89>30,IF(((AM26-AM27)*R7*'Input Data'!G38/1000000>0),(AM26-AM27)*R7*'Input Data'!G38/1000000,0),"") -> 
B34: Operating costs
B35: Fuel (Coal) | I35: =$M$5*$E$5*I26/1000000 -> 101.151063 | J35: =$M$5*$E$5*J26/1000000 -> 116.712765 | K35: 132.274467 | L35: 132.274467 | M35: 132.274467 | N35: 132.274467 | O35: 132.274467 | P35: 132.274467 | Q35: 132.274467 | R35: 132.274467 | S35: 132.274467 | T35: 132.274467 | U35: 132.274467 | V35: 132.274467 | W35: 132.274467 | X35: 132.274467 | Y35: 132.274467 | Z35: 132.274467 | AA35: 132.274467 | AB35: =IF(AB19="Year 20",$M$5*$E$5*AB26/1000000,"") -> 132.274467 | AC35: =IF('Input Data'!G89>20,$M$5*$E$5*AC26/1000000,"") -> 132.274467 | AD35: =IF(AD19="Year 22",$M$5*$E$5*AD26/1000000,"") -> 132.274467 | AE35: =IF(AE19="Year 23",$M$5*$E$5*AE26/1000000,"") -> 132.274467 | AF35: =IF(AF19="Year 24",$M$5*$E$5*AF26/1000000,"") -> 132.274467 | AG35: =IF(AG19="Year 25",$M$5*$E$5*AG26/1000000,"") -> 132.274467 | AH35: =IF('Input Data'!G89>25,$M$5*$E$5*AH26/1000000,"") -> 132.274467 | AI35: =IF(AI19="Year 27",$M$5*$E$5*AI26/1000000,"") -> 132.274467 | AJ35: =IF(AJ19="Year 28",$M$5*$E$5*AJ26/1000000,"") -> 132.274467 | AK35: =IF(AK19="Year 29",$M$5*$E$5*AK26/1000000,"") -> 132.274467 | AL35: =IF(AL19="Year 30",$M$5*$E$5*AL26/1000000,"") -> 132.274467 | AM35: =IF('Input Data'!G89>30,$M$5*$E$5*AM26/1000000,"") -> 
B36: Maintenance | I36: =$M$6 -> 39.72 | J36: =$M$6 -> 39.72 | K36: 39.72 | L36: 39.72 | M36: 39.72 | N36: 39.72 | O36: 39.72 | P36: 39.72 | Q36: 39.72 | R36: 39.72 | S36: 39.72 | T36: 39.72 | U36: 39.72 | V36: 39.72 | W36: 39.72 | X36: 39.72 | Y36: 39.72 | Z36: 39.72 | AA36: 39.72 | AB36: =IF(AB19="Year 20",$M$6,"") -> 39.72 | AC36: =IF('Input Data'!G89>20,$M$6,"") -> 39.72 | AD36: =IF(AD19="Year 22",$M$6,"") -> 39.72 | AE36: =IF(AE19="Year 23",$M$6,"") -> 39.72 | AF36: =IF(AF19="Year 24",$M$6,"") -> 39.72 | AG36: =IF(AG19="Year 25",$M$6,"") -> 39.72 | AH36: =IF('Input Data'!G89>25,$M$6,"") -> 39.72 | AI36: =IF(AI19="Year 27",$M$6,"") -> 39.72 | AJ36: =IF(AJ19="Year 28",$M$6,"") -> 39.72 | AK36: =IF(AK19="Year 29",$M$6,"") -> 39.72 | AL36: =IF(AL19="Year 30",$M$6,"") -> 39.72 | AM36: =IF('Input Data'!G89>30,$M$6,"") -> 
B37: Labour | I37: =$N$12 -> 8.32 | J37: 8.32 | K37: 8.32 | L37: 8.32 | M37: 8.32 | N37: 8.32 | O37: 8.32 | P37: 8.32 | Q37: 8.32 | R37: 8.32 | S37: 8.32 | T37: 8.32 | U37: 8.32 | V37: 8.32 | W37: 8.32 | X37: 8.32 | Y37: 8.32 | Z37: 8.32 | AA37: 8.32 | AB37: =IF(AB19="Year 20",$N$12,"") -> 8.32 | AC37: =IF('Input Data'!G89>20,$N$12,"") -> 8.32 | AD37: =IF(AD19="Year 22",$N$12,"") -> 8.32 | AE37: =IF(AE19="Year 23",$N$12,"") -> 8.32 | AF37: =IF(AF19="Year 24",$N$12,"") -> 8.32 | AG37: =IF(AG19="Year 25",$N$12,"") -> 8.32 | AH37: =IF('Input Data'!G89>25,$N$12,"") -> 8.32 | AI37: =IF(AI19="Year 27",$N$12,"") -> 8.32 | AJ37: =IF(AJ19="Year 28",$N$12,"") -> 8.32 | AK37: =IF(AK19="Year 29",$N$12,"") -> 8.32 | AL37: =IF(AL19="Year 30",$N$12,"") -> 8.32 | AM37: =IF('Input Data'!G89>30,$N$12,"") -> 
B38: Chemicals and Consumables | I38: =I22*'Input Data'!$G$74*I24/0.85 -> 2.898235294 | J38: =J22*'Input Data'!$G$74*J24/0.85 -> 3.344117647 | K38: =K22*'Input Data'!$G$74*K24/0.85 -> 3.79 | L38: =L22*'Input Data'!$G$74*L24/0.85 -> 3.79 | M38: =M22*'Input Data'!$G$74*M24/0.85 -> 3.79 | N38: =N22*'Input Data'!$G$74*N24/0.85 -> 3.79 | O38: =O22*'Input Data'!$G$74*O24/0.85 -> 3.79 | P38: =P22*'Input Data'!$G$74*P24/0.85 -> 3.79 | Q38: =Q22*'Input Data'!$G$74*Q24/0.85 -> 3.79 | R38: =R22*'Input Data'!$G$74*R24/0.85 -> 3.79 | S38: =S22*'Input Data'!$G$74*S24/0.85 -> 3.79 | T38: =T22*'Input Data'!$G$74*T24/0.85 -> 3.79 | U38: =U22*'Input Data'!$G$74*U24/0.85 -> 3.79 | V38: =V22*'Input Data'!$G$74*V24/0.85 -> 3.79 | W38: =W22*'Input Data'!$G$74*W24/0.85 -> 3.79 | X38: =X22*'Input Data'!$G$74*X24/0.85 -> 3.79 | Y38: =Y22*'Input Data'!$G$74*Y24/0.85 -> 3.79 | Z38: =Z22*'Input Data'!$G$74*Z24/0.85 -> 3.79 | AA38: =AA22*'Input Data'!$G$74*AA24/0.85 -> 3.79 | AB38: =IF(AB19="Year 20",AB22*AB24*'Input Data'!$G$74/0.85,"") -> 3.79 | AC38: =IF('Input Data'!G89>20,AC22*AC24*'Input Data'!$G$74/0.85,"") -> 3.79 | AD38: =IF(AD19="Year 22",AD22*AD24*'Input Data'!$G$74/0.85,"") -> 3.79 | AE38: =IF(AE19="Year 23",AE24*AE22*'Input Data'!$G$74/0.85,"") -> 3.79 | AF38: =IF(AF19="Year 24",AF22*AF24*'Input Data'!$G$74/0.85,"") -> 3.79 | AG38: =IF(AG19="Year 25",AG22*AG24*'Input Data'!$G$74/0.85,"") -> 3.79 | AH38: =IF('Input Data'!G89>25,AH22*AH24*'Input Data'!$G$74/0.85,"") -> 3.79 | AI38: =IF(AI19="Year 27",AI24*AI22*'Input Data'!$G$74/0.85,"") -> 3.79 | AJ38: =IF(AJ19="Year 28",AJ24*AJ22*'Input Data'!$G$74/0.85,"") -> 3.79 | AK38: =IF(AK19="Year 29",AK22*AK24*'Input Data'!$G$74/0.85,"") -> 3.79 | AL38: =IF(AL19="Year 30",AL22*AL24*'Input Data'!$G$74/0.85,"") -> 3.79 | AM38: =IF('Input Data'!G89>30,AM22*AM24*'Input Data'!$G$74/0.85,"") -> 
B39: Waste Disposal | I39: =I26*'Input Data'!$G$40*'Input Data'!$G$73/1000000 -> 1.434888 | J39: =J26*'Input Data'!$G$40*'Input Data'!$G$73/1000000 -> 1.65564 | K39: =K26*'Input Data'!$G$40*'Input Data'!$G$73/1000000 -> 1.876392 | L39: =L26*'Input Data'!$G$40*'Input Data'!$G$73/1000000 -> 1.876392 | M39: =M26*'Input Data'!$G$40*'Input Data'!$G$73/1000000 -> 1.876392 | N39: =N26*'Input Data'!$G$40*'Input Data'!$G$73/1000000 -> 1.876392 | O39: =O26*'Input Data'!$G$40*'Input Data'!$G$73/1000000 -> 1.876392 | P39: =P26*'Input Data'!$G$40*'Input Data'!$G$73/1000000 -> 1.876392 | Q39: =Q26*'Input Data'!$G$40*'Input Data'!$G$73/1000000 -> 1.876392 | R39: =R26*'Input Data'!$G$40*'Input Data'!$G$73/1000000 -> 1.876392 | S39: =S26*'Input Data'!$G$40*'Input Data'!$G$73/1000000 -> 1.876392 | T39: =T26*'Input Data'!$G$40*'Input Data'!$G$73/1000000 -> 1.876392 | U39: =U26*'Input Data'!$G$40*'Input Data'!$G$73/1000000 -> 1.876392 | V39: =V26*'Input Data'!$G$40*'Input Data'!$G$73/1000000 -> 1.876392 | W39: =W26*'Input Data'!$G$40*'Input Data'!$G$73/1000000 -> 1.876392 | X39: =X26*'Input Data'!$G$40*'Input Data'!$G$73/1000000 -> 1.876392 | Y39: =Y26*'Input Data'!$G$40*'Input Data'!$G$73/1000000 -> 1.876392 | Z39: =Z26*'Input Data'!$G$40*'Input Data'!$G$73/1000000 -> 1.876392 | AA39: =AA26*'Input Data'!$G$40*'Input Data'!$G$73/1000000 -> 1.876392 | AB39: =IF(AB19="Year 20",AB26*'Input Data'!$G$40*'Input Data'!$G$73/1000000,"") -> 1.876392 | AC39: =IF('Input Data'!G89>20,AC26*'Input Data'!$G$40*'Input Data'!$G$73/1000000,"") -> 1.876392 | AD39: =IF(AD19="Year 22",AD26*'Input Data'!$G$40*'Input Data'!$G$73/1000000,"") -> 1.876392 | AE39: =IF(AE19="Year 23",AE26*'Input Data'!$G$40*'Input Data'!$G$73/1000000,"") -> 1.876392 | AF39: =IF(AF19="Year 24",AF26*'Input Data'!$G$40*'Input Data'!$G$73/1000000,"") -> 1.876392 | AG39: =IF(AG19="Year 25",AG26*'Input Data'!$G$40*'Input Data'!$G$73/1000000,"") -> 1.876392 | AH39: =IF('Input Data'!G89>25,AH26*'Input Data'!$G$40*'Input Data'!$G$73/1000000,"") -> 1.876392 | AI39: =IF(AI19="Year 27",AI26*'Input Data'!$G$40*'Input Data'!$G$73/1000000,"") -> 1.876392 | AJ39: =IF(AJ19="Year 28",AJ26*'Input Data'!$G$40*'Input Data'!$G$73/1000000,"") -> 1.876392 | AK39: =IF(AK19="Year 29",AK26*'Input Data'!$G$40*'Input Data'!$G$73/1000000,"") -> 1.876392 | AL39: =IF(AL19="Year 30",AL26*'Input Data'!$G$40*'Input Data'!$G$73/1000000,"") -> 1.876392 | AM39: =IF('Input Data'!G89>30,AM26*'Input Data'!$G$40*'Input Data'!$G$73/1000000,"") -> 
B40: Insurance + Local Taxes | I40: =I5*R10 -> 22.23 | J40: =I5*R10 -> 22.23 | K40: =I5*R10 -> 22.23 | L40: =I5*R10 -> 22.23 | M40: =I5*R10 -> 22.23 | N40: =I5*R10 -> 22.23 | O40: =I5*R10 -> 22.23 | P40: =I5*R10 -> 22.23 | Q40: =I5*R10 -> 22.23 | R40: =I5*R10 -> 22.23 | S40: =I5*R10 -> 22.23 | T40: =I5*R10 -> 22.23 | U40: =I5*R10 -> 22.23 | V40: =I5*R10 -> 22.23 | W40: =I5*R10 -> 22.23 | X40: =I5*R10 -> 22.23 | Y40: =I5*R10 -> 22.23 | Z40: =I5*R10 -> 22.23 | AA40: =I5*R10 -> 22.23 | AB40: =IF(AB19="Year 20",I5*R10,"") -> 22.23 | AC40: =IF('Input Data'!G89>20,I5*R10,"") -> 22.23 | AD40: =IF(AD19="Year 22",I5*R10,"") -> 22.23 | AE40: =IF(AE19="Year 23",I5*R10,"") -> 22.23 | AF40: =IF(AF19="Year 24",I5*R10,"") -> 22.23 | AG40: =IF(AG19="Year 25",I5*R10,"") -> 22.23 | AH40: =IF('Input Data'!G89>25,I5*R10,"") -> 22.23 | AI40: =IF(AI19="Year 27",I5*R10,"") -> 22.23 | AJ40: =IF(AJ19="Year 28",I5*R10,"") -> 22.23 | AK40: =IF(AK19="Year 29",I5*R10,"") -> 22.23 | AL40: =IF(AL19="Year 30",I5*R10,"") -> 22.23 | AM40: =IF('Input Data'!G89>30,I5*R10,"") -> 
B41: CO2 Emissions | I41: ='Input Data'!$G$33*'Input Data'!$G$77*I26/1000000 -> 0 | J41: ='Input Data'!$G$33*'Input Data'!$G$77*J26/1000000 -> 0 | K41: ='Input Data'!$G$33*'Input Data'!$G$77*K26/1000000 -> 0 | L41: ='Input Data'!$G$33*'Input Data'!$G$77*L26/1000000 -> 0 | M41: ='Input Data'!$G$33*'Input Data'!$G$77*M26/1000000 -> 0 | N41: ='Input Data'!$G$33*'Input Data'!$G$77*N26/1000000 -> 0 | O41: ='Input Data'!$G$33*'Input Data'!$G$77*O26/1000000 -> 0 | P41: ='Input Data'!$G$33*'Input Data'!$G$77*P26/1000000 -> 0 | Q41: ='Input Data'!$G$33*'Input Data'!$G$77*Q26/1000000 -> 0 | R41: ='Input Data'!$G$33*'Input Data'!$G$77*R26/1000000 -> 0 | S41: ='Input Data'!$G$33*'Input Data'!$G$77*S26/1000000 -> 0 | T41: ='Input Data'!$G$33*'Input Data'!$G$77*T26/1000000 -> 0 | U41: ='Input Data'!$G$33*'Input Data'!$G$77*U26/1000000 -> 0 | V41: ='Input Data'!$G$33*'Input Data'!$G$77*V26/1000000 -> 0 | W41: ='Input Data'!$G$33*'Input Data'!$G$77*W26/1000000 -> 0 | X41: ='Input Data'!$G$33*'Input Data'!$G$77*X26/1000000 -> 0 | Y41: ='Input Data'!$G$33*'Input Data'!$G$77*Y26/1000000 -> 0 | Z41: ='Input Data'!$G$33*'Input Data'!$G$77*Z26/1000000 -> 0 | AA41: ='Input Data'!$G$33*'Input Data'!$G$77*AA26/1000000 -> 0 | AB41: ='Input Data'!$G$33*'Input Data'!$G$77*AB26/1000000 -> 0 | AC41: =IF('Input Data'!G89>20,'Input Data'!$G$33*'Input Data'!$G$77*AC26/1000000,"") -> 0 | AD41: =IF(AD19="Year 22",'Input Data'!$G$33*'Input Data'!$G$77*AD26/1000000,"") -> 0 | AE41: =IF(AE19="Year 23",'Input Data'!$G$33*'Input Data'!$G$77*AE26/1000000,"") -> 0 | AF41: =IF(AF19="Year 24",'Input Data'!$G$33*'Input Data'!$G$77*AF26/1000000,"") -> 0 | AG41: =IF(AG19="Year 25",'Input Data'!$G$33*'Input Data'!$G$77*AG26/1000000,"") -> 0 | AH41: =IF('Input Data'!G89>25,'Input Data'!$G$33*'Input Data'!$G$77*AH26/1000000,"") -> 0 | AI41: =IF(AI19="Year 27",'Input Data'!$G$33*'Input Data'!$G$77*AI26/1000000,"") -> 0 | AJ41: =IF(AJ19="Year 28",'Input Data'!$G$33*'Input Data'!$G$77*AJ26/1000000,"") -> 0 | AK41: =IF(AK19="Year 29",'Input Data'!$G$33*'Input Data'!$G$77*AK26/1000000,"") -> 0 | AL41: =IF(AL19="Year 30",'Input Data'!$G$33*'Input Data'!$G$77*AL26/1000000,"") -> 0 | AM41: =IF('Input Data'!G89>30,'Input Data'!$G$33*'Input Data'!$G$77*AM26/1000000,"") -> 
B42: Fixed Capital Expenditure | F42: =I10*F29 -> 389.025 | G42: =I10*G29 -> 700.245 | H42: =H29*I10 -> 466.83
B44: Total Cash Flow (yearly) | F44: =SUM(F31:F33)-SUM(F35:F41)-F42 -> -389.025 | G44: -700.245 | H44: -466.83 | I44: 128.5657582 | J44: 159.1558748 | K44: 189.7459915 | L44: 189.7459915 | M44: 189.7459915 | N44: 189.7459915 | O44: 189.7459915 | P44: 189.7459915 | Q44: 189.7459915 | R44: 189.7459915 | S44: 189.7459915 | T44: 189.7459915 | U44: 189.7459915 | V44: 189.7459915 | W44: 189.7459915 | X44: 189.7459915 | Y44: 189.7459915 | Z44: 189.7459915 | AA44: 189.7459915 | AB44: 189.7459915 | AC44: =IF(AC19="Year 21",SUM(AC31:AC33)-SUM(AC35:AC41)-AC42,"") -> 189.7459915 | AD44: =IF(AD19="Year 22",SUM(AD31:AD33)-SUM(AD35:AD41)-AD42,"") -> 189.7459915 | AE44: =IF(AE19="Year 23",SUM(AE31:AE33)-SUM(AE35:AE41)-AE42,"") -> 189.7459915 | AF44: =IF(AF19="Year 24",SUM(AF31:AF33)-SUM(AF35:AF41)-AF42,"") -> 189.7459915 | AG44: =IF(AG19="Year 25",SUM(AG31:AG33)-SUM(AG35:AG41)-AG42,"") -> 189.7459915 | AH44: =IF(AH19="Year 26",SUM(AH31:AH33)-SUM(AH35:AH41)-AH42,"") -> 189.7459915 | AI44: =IF(AI19="Year 27",SUM(AI31:AI33)-SUM(AI35:AI41)-AI42,"") -> 189.7459915 | AJ44: =IF(AJ19="Year 28",SUM(AJ31:AJ33)-SUM(AJ35:AJ41)-AJ42,"") -> 189.7459915 | AK44: =IF(AK19="Year 29",SUM(AK31:AK33)-SUM(AK35:AK41)-AK42,"") -> 189.7459915 | AL44: =IF(AL19="Year 30",SUM(AL31:AL33)-SUM(AL35:AL41)-AL42,"") -> 189.7459915 | AM44: =IF(AM19="Year 31",SUM(AM31:AM33)-SUM(AM35:AM41)-AM42,"") -> 0
B45: Total Cash Flow (accumulated) | F45: =F44 -> -389.025 | G45: =-1*(ABS(G44)+ABS(F45)) -> -1089.27 | H45: =-1*(ABS(H44)+ABS(G45)) -> -1556.1 | I45: =H45+I44 -> -1427.534242 | J45: =I45+J44 -> -1268.378367 | K45: -1078.632376 | L45: -888.8863841 | M45: -699.1403926 | N45: -509.3944011 | O45: -319.6484096 | P45: -129.9024182 | Q45: =P45+Q44 -> 59.84357329 | R45: 249.5895648 | S45: 439.3355562 | T45: 629.0815477 | U45: 818.8275392 | V45: 1008.573531 | W45: 1198.319522 | X45: 1388.065514 | Y45: 1577.811505 | Z45: 1767.557497 | AA45: 1957.303488 | AB45: =IF(AB19="Year 20",AA45+AB44,"") -> 2147.049479 | AC45: =IF(AC19="Year 21",AB45+AC44,"") -> 2336.795471 | AD45: =IF(AD19="Year 22",AC45+AD44,"") -> 2526.541462 | AE45: =IF(AE19="Year 23",AD45+AE44,"") -> 2716.287454 | AF45: =IF(AF19="Year 24",AE45+AF44,"") -> 2906.033445 | AG45: =IF(AG19="Year 25",AF45+AG44,"") -> 3095.779437 | AH45: =IF(AH19="Year 26",AG45+AH44,"") -> 3285.525428 | AI45: =IF(AI19="Year 27",AH45+AI44,"") -> 3475.27142 | AJ45: =IF(AJ19="Year 28",AI45+AJ44,"") -> 3665.017411 | AK45: =IF(AK19="Year 29",AJ45+AK44,"") -> 3854.763403 | AL45: =IF(AL19="Year 30",AK45+AL44,"") -> 4044.509394 | AM45: =IF(AM19="Year 31",AL45+AM44,"") -> 4044.509394
B47: Discounted Cash Flow (yearly) | F47: =F45/(1+R9) -> -353.6590909 | G47: =G44/(1+R9)^2 -> -578.714876 | H47: =H44/(1+R9)^3 -> -350.7362885 | I47: =I44/(1+R9)^4 -> 87.81214274 | J47: =J44/(1+R9)^5 -> 98.82327637 | K47: =K44/(1+R9)^6 -> 107.1066655 | L47: =L44/(1+R9)^7 -> 97.36969592 | M47: =M44/(1+R9)^8 -> 88.51790539 | N47: =N44/(1+R9)^9 -> 80.47082308 | O47: =O44/(1+R9)^10 -> 73.15529371 | P47: =P44/(1+R9)^11 -> 66.50481246 | Q47: =Q44/(1+R9)^12 -> 60.45892042 | R47: =R44/(1+R9)^13 -> 54.96265493 | S47: =S44/(1+R9)^14 -> 49.96604993 | T47: =T44/(1+R9)^15 -> 45.42368176 | U47: =U44/(1+R9)^16 -> 41.29425614 | V47: =V44/(1+R9)^17 -> 37.54023286 | W47: =W44/(1+R9)^18 -> 34.12748442 | X47: =X44/(1+R9)^19 -> 31.02498583 | Y47: =Y44/(1+R9)^20 -> 28.20453257 | Z47: =Z44/(1+R9)^21 -> 25.64048416 | AA47: =AA44/(1+R9)^22 -> 23.30953105 | AB47: =IF(AB19="Year 20",AB44/(1+R9)^23,"") -> 21.19048278 | AC47: =IF(AC19="Year 21",AC44/(1+R9)^24,"") -> 19.26407525 | AD47: =IF(AD19="Year 22",AD44/(1+R9)^25,"") -> 17.51279568 | AE47: =IF(AE19="Year 23",AE44/(1+R9)^26,"") -> 15.92072335 | AF47: =IF(AF19="Year 24",AF44/(1+R9)^27,"") -> 14.47338486 | AG47: =IF(AG19="Year 25",AG44/(1+R9)^28,"") -> 13.1576226 | AH47: =IF(AH19="Year 26",AH44/(1+R9)^29,"") -> 11.96147509 | AI47: =IF(AI19="Year 27",AI44/(1+R9)^30,"") -> 10.87406827 | AJ47: =IF(AJ19="Year 28",AJ44/(1+R9)^31,"") -> 9.885516605 | AK47: =IF(AK19="Year 29",AK44/(1+R9)^32,"") -> 8.986833278 | AL47: =IF(AL19="Year 30",AL44/(1+R9)^33,"") -> 8.169848434 | AM47: =IF(AM19="Year 31",AM44/(1+R9)^34,"") -> 0
B48: Discounted Cash Flow (accumulated) | F48: =F47 -> -353.6590909 | G48: =SUM(G47+F48) -> -932.3739669 | H48: -1283.110255 | I48: -1195.298113 | J48: -1096.474836 | K48: -989.3681708 | L48: -891.9984749 | M48: -803.4805695 | N48: -723.0097464 | O48: -649.8544527 | P48: -583.3496403 | Q48: -522.8907198 | R48: -467.9280649 | S48: -417.962015 | T48: -372.5383332 | U48: -331.2440771 | V48: -293.7038442 | W48: -259.5763598 | X48: -228.551374 | Y48: -200.3468414 | Z48: -174.7063572 | AA48: -151.3968262 | AB48: =IF(AB19="Year 20",SUM(AB47+AA48),"") -> -130.2063434 | AC48: =IF(AC19="Year 21",SUM(AC47+AB48),"") -> -110.9422682 | AD48: =IF(AD19="Year 22",SUM(AD47+AC48),"") -> -93.42947249 | AE48: =IF(AE19="Year 23",SUM(AE47+AD48),"") -> -77.50874914 | AF48: =IF(AF19="Year 24",SUM(AF47+AE48),"") -> -63.03536428 | AG48: =IF(AG19="Year 25",SUM(AG47+AF48),"") -> -49.87774168 | AH48: =IF(AH19="Year 26",SUM(AH47+AG48),"") -> -37.91626658 | AI48: =IF(AI19="Year 27",SUM(AI47+AH48),"") -> -27.04219832 | AJ48: =IF(AJ19="Year 28",SUM(AJ47+AI48),"") -> -17.15668171 | AK48: =IF(AK19="Year 29",SUM(AK47+AJ48),"") -> -8.169848434 | AL48: =IF(AL19="Year 30",SUM(AL47+AK48),"") -> -7.336353747e-13 | AM48: =IF(AM19="Year 31",SUM(AM47+AL48),"") -> -7.336353747e-13
AA50: Hidden acc cf | AC50: =SUM(AC47+AB48) -> -110.9422682 | AD50: =IF(AD47="",AC48,SUM(AD47+AC48)) -> -93.42947249 | AE50: =IF(AE47="",AD50,SUM(AE47+AD50)) -> -77.50874914 | AF50: =IF(AF47="",AE50,SUM(AF47+AE50)) -> -63.03536428 | AG50: =IF(AG47="",AF50,SUM(AG47+AF50)) -> -49.87774168 | AH50: -37.91626658 | AI50: -27.04219832 | AJ50: -17.15668171 | AK50: -8.169848434 | AL50: -7.336353747e-13 | AM50: -7.336353747e-13 | AN50: -7.336353747e-13

Sheet IGCC w 95% CC
B4: Production | G4: Capital Expenditure | I4: UK£ (million) | K4: Operating Costs | L4: UK£ (million/year) | P4: Revenues
B5: Coal feedrate | D5: te/h | E5: ='Input Data'!BM26 -> 273.5541667 | G5: Installed cost | I5: ='Input Data'!BM60 -> 1129.7 | K5: Fuel Cost | M5: ='Input Data'!BM71 -> 65 | N5: UK£/te | P5: Levelised Cost of Electricity | Q5: UK£/kWh | R5: 0.08047372883
B6: Net power ouput | D6: MW | E6: ='Input Data'!BM23 -> 670.1 | G6: Land purchase, surveys | I6: ='Input Data'!BM65 -> 0.05 | K6: Maintenance | M6: ='Input Data'!BM72 -> 40.1 | N6: UK£/year | P6: Sulphur Price | Q6: UK£/te | R6: ='Input Data'!BM84 -> 40
B7: Sulphur for export | D7: te/h | E7: ='Input Data'!BM37 -> 2.3 | G7: Fees | I7: ='Input Data'!BM66 -> 0.1 | K7: CO2 Emissions | M7: ='Input Data'!BM77 -> 0 | N7: UK£/te | P7: Hydrogen Price | Q7: UK£/te | R7: ='Input Data'!BM85 -> 1307.189542
G8: Contingencies | I8: ='Input Data'!BM64 -> 0.25 | K8: Labour Cost | N8: UK£/year (million)
K9: Number of operations personnel | N9: ='Input Data'!BM78 -> 128 | P9: Discounted Rate: | R9: ='Input Data'!BM86 -> 0.1
B10: =IF('Input Data'!BM10>0.001,"Performance Data: User Adjusted","") ->  | G10: Total Investment Cost | I10: =I5+(I6*I5)+(I5*I7)+(I5*I8) -> 1581.58 | K10: Average salary options personnel | N10: ='Input Data'!BM79 -> 0.05 | P10: Insurance | R10: ='Input Data'!BM81 -> 0.02 | S10: Installed Cost
K11: Admin | N11: ='Input Data'!BM80 -> 0.3
K12: Total Labour Cost | N12: =(N9*N10)*(1+N11) -> 8.32
G13: =IF('Input Data'!BM47>0.001,"Capital and Cost Data: User Adjusted","") ->  | P13: =IF('Input Data'!BM83>0.001,"Revenue Variables: User Adjusted","") -> 
K14: =IF('Input Data'!BM70>0.001,"Operating Data: User Adjusted","") -> 
F17: YEAR
B18: CASH FLOW ANALYSIS | F18: =G18-1 -> 2009 | G18: =H18-1 -> 2010 | H18: =I18-1 -> 2011 | I18: ='Input Data'!BJ102 -> 2012 | J18: ='Input Data'!BJ103 -> 2013 | K18: ='Input Data'!BJ104 -> 2014 | L18: ='Input Data'!BJ105 -> 2015 | M18: ='Input Data'!BJ106 -> 2016 | N18: ='Input Data'!BJ107 -> 2017 | O18: ='Input Data'!BJ108 -> 2018 | P18: ='Input Data'!BJ109 -> 2019 | Q18: ='Input Data'!BJ110 -> 2020 | R18: ='Input Data'!BJ111 -> 2021 | S18: ='Input Data'!BJ112 -> 2022 | T18: ='Input Data'!BJ113 -> 2023 | U18: ='Input Data'!BJ114 -> 2024 | V18: ='Input Data'!BJ115 -> 2025 | W18: ='Input Data'!BJ116 -> 2026 | X18: ='Input Data'!BJ117 -> 2027 | Y18: ='Input Data'!BJ118 -> 2028 | Z18: ='Input Data'!BJ119 -> 2029 | AA18: ='Input Data'!BJ120 -> 2030 | AB18: ='Input Data'!BJ121 -> 2031 | AC18: ='Input Data'!BJ122 -> 2032 | AD18: ='Input Data'!BJ123 -> 2033 | AE18: ='Input Data'!BJ124 -> 2034 | AF18: ='Input Data'!BJ125 -> 2035 | AG18: ='Input Data'!BJ126 -> 2036 | AH18: ='Input Data'!BJ127 -> 2037 | AI18: ='Input Data'!BJ128 -> 2038 | AJ18: ='Input Data'!BJ129 -> 2039 | AK18: ='Input Data'!BJ130 -> 2040 | AL18: ='Input Data'!BJ131 -> 2041 | AM18: ='Input Data'!BJ132 -> 2042
B19: UK£ (million) | F19: Year -3 | G19: Year -2 | H19: Year -1 | I19: ='Input Data'!BI102 -> Year 1 | J19: ='Input Data'!BI103 -> Year 2 | K19: ='Input Data'!BI104 -> Year 3 | L19: ='Input Data'!BI105 -> Year 4 | M19: ='Input Data'!BI106 -> Year 5 | N19: ='Input Data'!BI107 -> Year 6 | O19: ='Input Data'!BI108 -> Year 7 | P19: ='Input Data'!BI109 -> Year 8 | Q19: ='Input Data'!BI110 -> Year 9 | R19: ='Input Data'!BI111 -> Year 10 | S19: ='Input Data'!BI112 -> Year 11 | T19: ='Input Data'!BI113 -> Year 12 | U19: ='Input Data'!BI114 -> Year 13 | V19: ='Input Data'!BI115 -> Year 14 | W19: ='Input Data'!BI116 -> Year 15 | X19: ='Input Data'!BI117 -> Year 16 | Y19: ='Input Data'!BI118 -> Year 17 | Z19: ='Input Data'!BI119 -> Year 18 | AA19: ='Input Data'!BI120 -> Year 19 | AB19: ='Input Data'!BI121 -> Year 20 | AC19: ='Input Data'!BI122 -> Year 21 | AD19: ='Input Data'!BI123 -> Year 22 | AE19: ='Input Data'!BI124 -> Year 23 | AF19: ='Input Data'!BI125 -> Year 24 | AG19: ='Input Data'!BI126 -> Year 25 | AH19: ='Input Data'!BI127 -> Year 26 | AI19: ='Input Data'!BI128 -> Year 27 | AJ19: ='Input Data'!BI129 -> Year 28 | AK19: ='Input Data'!BI130 -> Year 29 | AL19: ='Input Data'!BI131 -> Year 30 | AM19: ='Input Data'!BI132 -> Year 31
B22: Load factor - Hydrogen Production | I22: =IF(I19="Year 1",'Input Data'!BK102,"") -> 1 | J22: ='Input Data'!BK103 -> 1 | K22: ='Input Data'!BK104 -> 1 | L22: ='Input Data'!BK105 -> 1 | M22: ='Input Data'!BK106 -> 1 | N22: ='Input Data'!BK107 -> 1 | O22: ='Input Data'!BK108 -> 1 | P22: ='Input Data'!BK109 -> 1 | Q22: ='Input Data'!BK110 -> 1 | R22: ='Input Data'!BK111 -> 1 | S22: ='Input Data'!BK112 -> 1 | T22: ='Input Data'!BK113 -> 1 | U22: ='Input Data'!BK114 -> 1 | V22: ='Input Data'!BK115 -> 1 | W22: ='Input Data'!BK116 -> 1 | X22: ='Input Data'!BK117 -> 1 | Y22: ='Input Data'!BK118 -> 1 | Z22: ='Input Data'!BK119 -> 1 | AA22: ='Input Data'!BK120 -> 1 | AB22: =IF(AB19="Year 20",'Input Data'!BK121,"") -> 1 | AC22: =IF('Input Data'!BM89>20,'Input Data'!BK122,"") -> 1 | AD22: =IF(AD19="Year 22",'Input Data'!BK123,"") -> 1 | AE22: =IF(AE19="Year 23",'Input Data'!BK124,"") -> 1 | AF22: =IF(AF19="Year 24",'Input Data'!BK125,"") -> 1 | AG22: =IF(AG19="Year 25",'Input Data'!BK126,"") -> 1 | AH22: =IF('Input Data'!BM89>25,'Input Data'!BK127,"") -> 1 | AI22: =IF(AI19="Year 27",'Input Data'!BK128,"") -> 1 | AJ22: =IF(AJ19="Year 28",'Input Data'!BK129,"") -> 1 | AK22: =IF(AK19="Year 29",'Input Data'!BK130,"") -> 1 | AL22: =IF(AL19="Year 30",'Input Data'!BK131,"") -> 1 | AM22: =IF('Input Data'!BM89>30,'Input Data'!BK132,"") -> 
B23: Load factor - Power Island | I23: =IF(I19="Year 1",'Input Data'!BL102,"") -> 1 | J23: ='Input Data'!BL103 -> 1 | K23: ='Input Data'!BL104 -> 1 | L23: ='Input Data'!BL105 -> 1 | M23: ='Input Data'!BL106 -> 1 | N23: ='Input Data'!BL107 -> 1 | O23: ='Input Data'!BL108 -> 1 | P23: ='Input Data'!BL109 -> 1 | Q23: ='Input Data'!BL110 -> 1 | R23: ='Input Data'!BL111 -> 1 | S23: ='Input Data'!BL112 -> 1 | T23: ='Input Data'!BL113 -> 1 | U23: ='Input Data'!BL114 -> 1 | V23: ='Input Data'!BL115 -> 1 | W23: ='Input Data'!BL116 -> 1 | X23: ='Input Data'!BL117 -> 1 | Y23: ='Input Data'!BL118 -> 1 | Z23: ='Input Data'!BL119 -> 1 | AA23: ='Input Data'!BL120 -> 1 | AB23: =IF(AB19="Year 20",'Input Data'!BL121,"") -> 1 | AC23: =IF('Input Data'!BM89>20,'Input Data'!BL122,"") -> 1 | AD23: =IF(AD19="Year 22",'Input Data'!BL123,"") -> 1 | AE23: =IF(AE19="Year 23",'Input Data'!BL124,"") -> 1 | AF23: =IF(AF19="Year 24",'Input Data'!BL125,"") -> 1 | AG23: =IF(AG19="Year 25",'Input Data'!BL126,"") -> 1 | AH23: =IF('Input Data'!BM89>25,'Input Data'!BL127,"") -> 1 | AI23: =IF(AI19="Year 27",'Input Data'!BL128,"") -> 1 | AJ23: =IF(AJ19="Year 28",'Input Data'!BL129,"") -> 1 | AK23: =IF(AK19="Year 29",'Input Data'!BL130,"") -> 1 | AL23: =IF(AL19="Year 30",'Input Data'!BL131,"") -> 1 | AM23: =IF('Input Data'!BM89>30,'Input Data'!BL132,"") -> 
B24: Availability - Hydrogen Production | I24: =IF(I19="Year 1",'Input Data'!BM102,"") -> 0.65 | J24: ='Input Data'!BM103 -> 0.75 | K24: ='Input Data'!BM104 -> 0.85 | L24: ='Input Data'!BM105 -> 0.85 | M24: ='Input Data'!BM106 -> 0.85 | N24: ='Input Data'!BM107 -> 0.85 | O24: ='Input Data'!BM108 -> 0.85 | P24: ='Input Data'!BM109 -> 0.85 | Q24: ='Input Data'!BM110 -> 0.85 | R24: ='Input Data'!BM111 -> 0.85 | S24: ='Input Data'!BM112 -> 0.85 | T24: ='Input Data'!BM113 -> 0.85 | U24: ='Input Data'!BM114 -> 0.85 | V24: ='Input Data'!BM115 -> 0.85 | W24: ='Input Data'!BM116 -> 0.85 | X24: ='Input Data'!BM117 -> 0.85 | Y24: ='Input Data'!BM118 -> 0.85 | Z24: ='Input Data'!BM119 -> 0.85 | AA24: ='Input Data'!BM120 -> 0.85 | AB24: =IF(AB19="Year 20",'Input Data'!BM121,"") -> 0.85 | AC24: =IF('Input Data'!BM89>20,'Input Data'!BM122,"") -> 0.85 | AD24: =IF(AD19="Year 22",'Input Data'!BM123,"") -> 0.85 | AE24: =IF(AE19="Year 23",'Input Data'!BM124,"") -> 0.85 | AF24: =IF(AF19="Year 24",'Input Data'!BM125,"") -> 0.85 | AG24: =IF(AG19="Year 25",'Input Data'!BM126,"") -> 0.85 | AH24: =IF('Input Data'!BM89>25,'Input Data'!BM127,"") -> 0.85 | AI24: =IF(AI19="Year 27",'Input Data'!BM128,"") -> 0.85 | AJ24: =IF(AJ19="Year 28",'Input Data'!BM129,"") -> 0.85 | AK24: =IF(AK19="Year 29",'Input Data'!BM130,"") -> 0.85 | AL24: =IF(AL19="Year 30",'Input Data'!BM131,"") -> 0.85 | AM24: =IF('Input Data'!BM89>30,'Input Data'!BM132,"") -> 
B25: Availability - Power Island | I25: =IF(I19="Year 1",'Input Data'!BN102,"") -> 0.65 | J25: ='Input Data'!BN103 -> 0.75 | K25: ='Input Data'!BN104 -> 0.85 | L25: ='Input Data'!BN105 -> 0.85 | M25: ='Input Data'!BN106 -> 0.85 | N25: ='Input Data'!BN107 -> 0.85 | O25: ='Input Data'!BN108 -> 0.85 | P25: ='Input Data'!BN109 -> 0.85 | Q25: ='Input Data'!BN110 -> 0.85 | R25: ='Input Data'!BN111 -> 0.85 | S25: ='Input Data'!BN112 -> 0.85 | T25: ='Input Data'!BN113 -> 0.85 | U25: ='Input Data'!BN114 -> 0.85 | V25: ='Input Data'!BN115 -> 0.85 | W25: ='Input Data'!BN116 -> 0.85 | X25: ='Input Data'!BN117 -> 0.85 | Y25: ='Input Data'!BN118 -> 0.85 | Z25: ='Input Data'!BN119 -> 0.85 | AA25: ='Input Data'!BN120 -> 0.85 | AB25: =IF(AB19="Year 20",'Input Data'!BN121,"") -> 0.85 | AC25: =IF('Input Data'!BM89>20,'Input Data'!BN122,"") -> 0.85 | AD25: =IF(AD19="Year 22",'Input Data'!BN123,"") -> 0.85 | AE25: =IF(AE19="Year 23",'Input Data'!BN124,"") -> 0.85 | AF25: =IF(AF19="Year 24",'Input Data'!BN125,"") -> 0.85 | AG25: =IF(AG19="Year 25",'Input Data'!BN126,"") -> 0.85 | AH25: =IF('Input Data'!BM89>25,'Input Data'!BN127,"") -> 0.85 | AI25: =IF(AI19="Year 27",'Input Data'!BN128,"") -> 0.85 | AJ25: =IF(AJ19="Year 28",'Input Data'!BN129,"") -> 0.85 | AK25: =IF(AK19="Year 29",'Input Data'!BN130,"") -> 0.85 | AL25: =IF(AL19="Year 30",'Input Data'!BN131,"") -> 0.85 | AM25: =IF('Input Data'!BM89>30,'Input Data'!BN132,"") -> 
B26: Equivalent yearly hours - Hydrogen Production | I26: =I22*8760*I24 -> 5694 | J26: 6570 | K26: 7446 | L26: 7446 | M26: 7446 | N26: 7446 | O26: 7446 | P26: 7446 | Q26: 7446 | R26: 7446 | S26: 7446 | T26: 7446 | U26: 7446 | V26: 7446 | W26: 7446 | X26: 7446 | Y26: 7446 | Z26: 7446 | AA26: 7446 | AB26: =IF(AB19="Year 20",AB22*8760*AB24,"") -> 7446 | AC26: =IF('Input Data'!BM89>20,AC22*8760*AC24,"") -> 7446 | AD26: =IF(AD19="Year 22",AD22*8760*AD24,"") -> 7446 | AE26: =IF(AE19="Year 23",AE22*8760*AE24,"") -> 7446 | AF26: =IF(AF19="Year 24",AF22*8760*AF24,"") -> 7446 | AG26: =IF(AG19="Year 25",AG22*8760*AG24,"") -> 7446 | AH26: =IF('Input Data'!BM89>25,AH22*8760*AH24,"") -> 7446 | AI26: =IF(AI19="Year 27",AI22*8760*AI24,"") -> 7446 | AJ26: =IF(AJ19="Year 28",AJ22*8760*AJ24,"") -> 7446 | AK26: =IF(AK19="Year 29",AK22*8760*AK24,"") -> 7446 | AL26: =IF(AL19="Year 30",AL22*8760*AL24,"") -> 7446 | AM26: =IF('Input Data'!BM89>30,AM22*8760*AM24,"") -> 
B27: Equivalent yearly hours - Power Island | I27: 5694 | J27: 6570 | K27: 7446 | L27: 7446 | M27: 7446 | N27: 7446 | O27: 7446 | P27: 7446 | Q27: 7446 | R27: 7446 | S27: 7446 | T27: 7446 | U27: 7446 | V27: 7446 | W27: 7446 | X27: 7446 | Y27: 7446 | Z27: 7446 | AA27: 7446 | AB27: =IF(AB19="Year 20",AB23*8760*AB25,"") -> 7446 | AC27: =IF('Input Data'!BM89>20,AC23*8760*AC25,"") -> 7446 | AD27: =IF(AD19="Year 22",AD23*8760*AD25,"") -> 7446 | AE27: =IF(AE19="Year 23",AE23*8760*AE25,"") -> 7446 | AF27: =IF(AF19="Year 24",AF23*8760*AF25,"") -> 7446 | AG27: =IF(AG19="Year 25",AG23*8760*AG25,"") -> 7446 | AH27: =IF('Input Data'!BM89>25,AH23*8760*AH25,"") -> 7446 | AI27: =IF(AI19="Year 27",AI23*8760*AI25,"") -> 7446 | AJ27: =IF(AJ19="Year 28",AJ23*8760*AJ25,"") -> 7446 | AK27: =IF(AK19="Year 29",AK23*8760*AK25,"") -> 7446 | AL27: =IF(AL19="Year 30",AL23*8760*AL25,"") -> 7446 | AM27: =IF('Input Data'!BM89>30,AM23*8760*AM25,"") -> 
B28: Hydrogen Exported | E28: tpa | I28: =IF(((I26-I27)*'Input Data'!$BM$38>0),(I26-I27)*'Input Data'!$BM$38,0) -> 0 | J28: =IF(((J26-J27)*'Input Data'!$BM$38>0),(J26-J27)*'Input Data'!$BM$38,0) -> 0 | K28: =IF(((K26-K27)*'Input Data'!$BM$38>0),(K26-K27)*'Input Data'!$BM$38,0) -> 0 | L28: =IF(((L26-L27)*'Input Data'!$BM$38>0),(L26-L27)*'Input Data'!$BM$38,0) -> 0 | M28: =IF(((M26-M27)*'Input Data'!$BM$38>0),(M26-M27)*'Input Data'!$BM$38,0) -> 0 | N28: =IF(((N26-N27)*'Input Data'!$BM$38>0),(N26-N27)*'Input Data'!$BM$38,0) -> 0 | O28: =IF(((O26-O27)*'Input Data'!$BM$38>0),(O26-O27)*'Input Data'!$BM$38,0) -> 0 | P28: =IF(((P26-P27)*'Input Data'!$BM$38>0),(P26-P27)*'Input Data'!$BM$38,0) -> 0 | Q28: =IF(((Q26-Q27)*'Input Data'!$BM$38>0),(Q26-Q27)*'Input Data'!$BM$38,0) -> 0 | R28: =IF(((R26-R27)*'Input Data'!$BM$38>0),(R26-R27)*'Input Data'!$BM$38,0) -> 0 | S28: =IF(((S26-S27)*'Input Data'!$BM$38>0),(S26-S27)*'Input Data'!$BM$38,0) -> 0 | T28: =IF(((T26-T27)*'Input Data'!$BM$38>0),(T26-T27)*'Input Data'!$BM$38,0) -> 0 | U28: =IF(((U26-U27)*'Input Data'!$BM$38>0),(U26-U27)*'Input Data'!$BM$38,0) -> 0 | V28: =IF(((V26-V27)*'Input Data'!$BM$38>0),(V26-V27)*'Input Data'!$BM$38,0) -> 0 | W28: =IF(((W26-W27)*'Input Data'!$BM$38>0),(W26-W27)*'Input Data'!$BM$38,0) -> 0 | X28: =IF(((X26-X27)*'Input Data'!$BM$38>0),(X26-X27)*'Input Data'!$BM$38,0) -> 0 | Y28: =IF(((Y26-Y27)*'Input Data'!$BM$38>0),(Y26-Y27)*'Input Data'!$BM$38,0) -> 0 | Z28: =IF(((Z26-Z27)*'Input Data'!$BM$38>0),(Z26-Z27)*'Input Data'!$BM$38,0) -> 0 | AA28: =IF(((AA26-AA27)*'Input Data'!$BM$38>0),(AA26-AA27)*'Input Data'!$BM$38,0) -> 0 | AB28: =IF(((AB26-AB27)*'Input Data'!$BM$38>0),(AB26-AB27)*'Input Data'!$BM$38,0) -> 0 | AC28: =IF('Input Data'!$BM$89>20,IF(((AC26-AC27)*'Input Data'!$BM$38>0),(AC26-AC27)*'Input Data'!$BM$38,0),"") -> 0 | AD28: =IF('Input Data'!$BM$89>20,IF(((AD26-AD27)*'Input Data'!$BM$38>0),(AD26-AD27)*'Input Data'!$BM$38,0),"") -> 0 | AE28: =IF('Input Data'!$BM$89>20,IF(((AE26-AE27)*'Input Data'!$BM$38>0),(AE26-AE27)*'Input Data'!$BM$38,0),"") -> 0 | AF28: =IF('Input Data'!$BM$89>20,IF(((AF26-AF27)*'Input Data'!$BM$38>0),(AF26-AF27)*'Input Data'!$BM$38,0),"") -> 0 | AG28: =IF('Input Data'!$BM$89>20,IF(((AG26-AG27)*'Input Data'!$BM$38>0),(AG26-AG27)*'Input Data'!$BM$38,0),"") -> 0 | AH28: =IF('Input Data'!$BM$89>25,IF(((AH26-AH27)*'Input Data'!$BM$38>0),(AH26-AH27)*'Input Data'!$BM$38,0),"") -> 0 | AI28: =IF('Input Data'!$BM$89>25,IF(((AI26-AI27)*'Input Data'!$BM$38>0),(AI26-AI27)*'Input Data'!$BM$38,0),"") -> 0 | AJ28: =IF('Input Data'!$BM$89>25,IF(((AJ26-AJ27)*'Input Data'!$BM$38>0),(AJ26-AJ27)*'Input Data'!$BM$38,0),"") -> 0 | AK28: =IF('Input Data'!$BM$89>25,IF(((AK26-AK27)*'Input Data'!$BM$38>0),(AK26-AK27)*'Input Data'!$BM$38,0),"") -> 0 | AL28: =IF('Input Data'!$BM$89>25,IF(((AL26-AL27)*'Input Data'!$BM$38>0),(AL26-AL27)*'Input Data'!$BM$38,0),"") -> 0 | AM28: =IF('Input Data'!$BM$89>30,IF(((AM26-AM27)*'Input Data'!$BM$38>0),(AM26-AM27)*'Input Data'!$BM$38,0),"") -> 
B29: Expenditure factor | F29: ='Input Data'!BM96 -> 0.25 | G29: ='Input Data'!BM97 -> 0.45 | H29: ='Input Data'!BM98 -> 0.3
B30: Revenues
B31: Electricity | I31: =$E$6*I27*$R$5/1000 -> 307.0514878 | J31: =$E$6*J27*$R$5/1000 -> 354.2901782 | K31: =$E$6*K27*$R$5/1000 -> 401.5288686 | L31: 401.5288686 | M31: 401.5288686 | N31: 401.5288686 | O31: 401.5288686 | P31: 401.5288686 | Q31: 401.5288686 | R31: 401.5288686 | S31: 401.5288686 | T31: 401.5288686 | U31: 401.5288686 | V31: 401.5288686 | W31: 401.5288686 | X31: 401.5288686 | Y31: 401.5288686 | Z31: 401.5288686 | AA31: 401.5288686 | AB31: =IF(AB19="Year 20",$E$6*AB27*$R$5/1000,"") -> 401.5288686 | AC31: =IF('Input Data'!BM89>20,$E$6*AC27*$R$5/1000,"") -> 401.5288686 | AD31: =IF(AD19="Year 22",$E$6*AD27*$R$5/1000,"") -> 401.5288686 | AE31: =IF(AE19="Year 23",$E$6*AE27*$R$5/1000,"") -> 401.5288686 | AF31: =IF(AF19="Year 24",$E$6*AF27*$R$5/1000,"") -> 401.5288686 | AG31: =IF(AG19="Year 25",$E$6*AG27*$R$5/1000,"") -> 401.5288686 | AH31: =IF('Input Data'!BM89>25,$E$6*AH27*$R$5/1000,"") -> 401.5288686 | AI31: =IF(AI19="Year 27",$E$6*AI27*$R$5/1000,"") -> 401.5288686 | AJ31: =IF(AJ19="Year 28",$E$6*AJ27*$R$5/1000,"") -> 401.5288686 | AK31: =IF(AK19="Year 29",$E$6*AK27*$R$5/1000,"") -> 401.5288686 | AL31: =IF(AL19="Year 30",$E$6*AL27*$R$5/1000,"") -> 401.5288686 | AM31: =IF('Input Data'!BM89>30,$E$6*AM27*$R$5/1000,"") -> 
B32: Sulphur | I32: =$E$7*I26*$R$6/1000000 -> 0.523848 | J32: =$E$7*J26*$R$6/1000000 -> 0.60444 | K32: 0.685032 | L32: 0.685032 | M32: 0.685032 | N32: 0.685032 | O32: 0.685032 | P32: 0.685032 | Q32: 0.685032 | R32: 0.685032 | S32: 0.685032 | T32: 0.685032 | U32: 0.685032 | V32: 0.685032 | W32: 0.685032 | X32: 0.685032 | Y32: 0.685032 | Z32: 0.685032 | AA32: 0.685032 | AB32: =IF(AB19="Year 20",$E$7*AB26*$R$6/1000000,"") -> 0.685032 | AC32: =IF('Input Data'!BM89>20,$E$7*AC26*$R$6/1000000,"") -> 0.685032 | AD32: =IF(AD19="Year 22",$E$7*AD26*$R$6/1000000,"") -> 0.685032 | AE32: =IF(AE19="Year 23",$E$7*AE26*$R$6/1000000,"") -> 0.685032 | AF32: =IF(AF19="Year 24",$E$7*AF26*$R$6/1000000,"") -> 0.685032 | AG32: =IF(AG19="Year 25",$E$7*AG26*$R$6/1000000,"") -> 0.685032 | AH32: =IF('Input Data'!BM89>25,$E$7*AH26*$R$6/1000000,"") -> 0.685032 | AI32: =IF(AI19="Year 27",$E$7*AI26*$R$6/1000000,"") -> 0.685032 | AJ32: =IF(AJ19="Year 28",$E$7*AJ26*$R$6/1000000,"") -> 0.685032 | AK32: =IF(AK19="Year 29",$E$7*AK26*$R$6/1000000,"") -> 0.685032 | AL32: =IF(AL19="Year 30",$E$7*AL26*$R$6/1000000,"") -> 0.685032 | AM32: =IF('Input Data'!BM89>30,$E$7*AM26*$R$6/1000000,"") -> 
B33: Hydrogen | I33: =IF(((I26-I27)*R7*'Input Data'!BM38/1000000>0),(I26-I27)*R7*'Input Data'!BM38/1000000,0) -> 0 | J33: =IF(((J26-J27)*R7*'Input Data'!BM38/1000000>0),(J26-J27)*R7*'Input Data'!BM38/1000000,0) -> 0 | K33: =IF(((K26-K27)*R7*'Input Data'!BM38/1000000>0),(K26-K27)*R7*'Input Data'!BM38/1000000,0) -> 0 | L33: =IF(((L26-L27)*R7*'Input Data'!BM38/1000000>0),(L26-L27)*R7*'Input Data'!BM38/1000000,0) -> 0 | M33: =IF(((M26-M27)*R7*'Input Data'!BM38/1000000>0),(M26-M27)*R7*'Input Data'!BM38/1000000,0) -> 0 | N33: =IF(((N26-N27)*R7*'Input Data'!BM38/1000000>0),(N26-N27)*R7*'Input Data'!BM38/1000000,0) -> 0 | O33: =IF(((O26-O27)*R7*'Input Data'!BM38/1000000>0),(O26-O27)*R7*'Input Data'!BM38/1000000,0) -> 0 | P33: =IF(((P26-P27)*R7*'Input Data'!BM38/1000000>0),(P26-P27)*R7*'Input Data'!BM38/1000000,0) -> 0 | Q33: =IF(((Q26-Q27)*R7*'Input Data'!BM38/1000000>0),(Q26-Q27)*R7*'Input Data'!BM38/1000000,0) -> 0 | R33: =IF(((R26-R27)*R7*'Input Data'!BM38/1000000>0),(R26-R27)*R7*'Input Data'!BM38/1000000,0) -> 0 | S33: =IF(((S26-S27)*R7*'Input Data'!BM38/1000000>0),(S26-S27)*R7*'Input Data'!BM38/1000000,0) -> 0 | T33: =IF(((T26-T27)*R7*'Input Data'!BM38/1000000>0),(T26-T27)*R7*'Input Data'!BM38/1000000,0) -> 0 | U33: =IF(((U26-U27)*R7*'Input Data'!BM38/1000000>0),(U26-U27)*R7*'Input Data'!BM38/1000000,0) -> 0 | V33: =IF(((V26-V27)*R7*'Input Data'!BM38/1000000>0),(V26-V27)*R7*'Input Data'!BM38/1000000,0) -> 0 | W33: =IF(((W26-W27)*R7*'Input Data'!BM38/1000000>0),(W26-W27)*R7*'Input Data'!BM38/1000000,0) -> 0 | X33: =IF(((X26-X27)*R7*'Input Data'!BM38/1000000>0),(X26-X27)*R7*'Input Data'!BM38/1000000,0) -> 0 | Y33: =IF(((Y26-Y27)*R7*'Input Data'!BM38/1000000>0),(Y26-Y27)*R7*'Input Data'!BM38/1000000,0) -> 0 | Z33: =IF(((Z26-Z27)*R7*'Input Data'!BM38/1000000>0),(Z26-Z27)*R7*'Input Data'!BM38/1000000,0) -> 0 | AA33: =IF(((AA26-AA27)*R7*'Input Data'!BM38/1000000>0),(AA26-AA27)*R7*'Input Data'!BM38/1000000,0) -> 0 | AB33: =IF(AB19="Year 20",IF(((AB26-AB27)*R7*'Input Data'!BM38/1000000>0),(AB26-AB27)*R7*'Input Data'!BM38/1000000,0),"") -> 0 | AC33: =IF('Input Data'!BM89>20,IF(((AC26-AC27)*R7*'Input Data'!BM38/1000000>0),(AC26-AC27)*R7*'Input Data'!BM38/1000000,0),"") -> 0 | AD33: =IF(AD19="Year 22",IF(((AD26-AD27)*R7*'Input Data'!BM38/1000000>0),(AD26-AD27)*R7*'Input Data'!BM38/1000000,0),"") -> 0 | AE33: =IF(AE19="Year 23",IF(((AE26-AE27)*R7*'Input Data'!BM38/1000000>0),(AE26-AE27)*R7*'Input Data'!BM38/1000000,0),"") -> 0 | AF33: =IF(AF19="Year 24",IF(((AF26-AF27)*R7*'Input Data'!BM38/1000000>0),(AF26-AF27)*R7*'Input Data'!BM38/1000000,0),"") -> 0 | AG33: =IF(AG19="Year 25",IF(((AG26-AG27)*R7*'Input Data'!BM38/1000000>0),(AG26-AG27)*R7*'Input Data'!BM38/1000000,0),"") -> 0 | AH33: =IF('Input Data'!BM89>25,IF(((AH26-AH27)*R7*'Input Data'!BM38/1000000>0),(AH26-AH27)*R7*'Input Data'!BM38/1000000,0),"") -> 0 | AI33: =IF(AI19="Year 27",IF(((AI26-AI27)*R7*'Input Data'!BM38/1000000>0),(AI26-AI27)*R7*'Input Data'!BM38/1000000,0),"") -> 0 | AJ33: =IF(AJ19="Year 28",IF(((AJ26-AJ27)*R7*'Input Data'!BM38/1000000>0),(AJ26-AJ27)*R7*'Input Data'!BM38/1000000,0),"") -> 0 | AK33: =IF(AK19="Year 29",IF(((AK26-AK27)*R7*'Input Data'!BM38/1000000>0),(AK26-AK27)*R7*'Input Data'!BM38/1000000,0),"") -> 0 | AL33: =IF(AL19="Year 30",IF(((AL26-AL27)*R7*'Input Data'!BM38/1000000>0),(AL26-AL27)*R7*'Input Data'!BM38/1000000,0),"") -> 0 | AM33: =IF('Input Data'!BM89>30,IF(((AM26-AM27)*R7*'Input Data'!BM38/1000000>0),(AM26-AM27)*R7*'Input Data'!BM38/1000000,0),"") -> 
B34: Operating costs
B35: Fuel (Coal) | I35: =$M$5*$E$5*I26/1000000 -> 101.2451326 | J35: =$M$5*$E$5*J26/1000000 -> 116.8213069 | K35: 132.3974811 | L35: 132.3974811 | M35: 132.3974811 | N35: 132.3974811 | O35: 132.3974811 | P35: 132.3974811 | Q35: 132.3974811 | R35: 132.3974811 | S35: 132.3974811 | T35: 132.3974811 | U35: 132.3974811 | V35: 132.3974811 | W35: 132.3974811 | X35: 132.3974811 | Y35: 132.3974811 | Z35: 132.3974811 | AA35: 132.3974811 | AB35: =IF(AB19="Year 20",$M$5*$E$5*AB26/1000000,"") -> 132.3974811 | AC35: =IF('Input Data'!BM89>20,$M$5*$E$5*AC26/1000000,"") -> 132.3974811 | AD35: =IF(AD19="Year 22",$M$5*$E$5*AD26/1000000,"") -> 132.3974811 | AE35: =IF(AE19="Year 23",$M$5*$E$5*AE26/1000000,"") -> 132.3974811 | AF35: =IF(AF19="Year 24",$M$5*$E$5*AF26/1000000,"") -> 132.3974811 | AG35: =IF(AG19="Year 25",$M$5*$E$5*AG26/1000000,"") -> 132.3974811 | AH35: =IF('Input Data'!BM89>25,$M$5*$E$5*AH26/1000000,"") -> 132.3974811 | AI35: =IF(AI19="Year 27",$M$5*$E$5*AI26/1000000,"") -> 132.3974811 | AJ35: =IF(AJ19="Year 28",$M$5*$E$5*AJ26/1000000,"") -> 132.3974811 | AK35: =IF(AK19="Year 29",$M$5*$E$5*AK26/1000000,"") -> 132.3974811 | AL35: =IF(AL19="Year 30",$M$5*$E$5*AL26/1000000,"") -> 132.3974811 | AM35: =IF('Input Data'!BM89>30,$M$5*$E$5*AM26/1000000,"") -> 
B36: Maintenance | I36: =$M$6 -> 40.1 | J36: =$M$6 -> 40.1 | K36: 40.1 | L36: 40.1 | M36: 40.1 | N36: 40.1 | O36: 40.1 | P36: 40.1 | Q36: 40.1 | R36: 40.1 | S36: 40.1 | T36: 40.1 | U36: 40.1 | V36: 40.1 | W36: 40.1 | X36: 40.1 | Y36: 40.1 | Z36: 40.1 | AA36: 40.1 | AB36: =IF(AB19="Year 20",$M$6,"") -> 40.1 | AC36: =IF('Input Data'!BM89>20,$M$6,"") -> 40.1 | AD36: =IF(AD19="Year 22",$M$6,"") -> 40.1 | AE36: =IF(AE19="Year 23",$M$6,"") -> 40.1 | AF36: =IF(AF19="Year 24",$M$6,"") -> 40.1 | AG36: =IF(AG19="Year 25",$M$6,"") -> 40.1 | AH36: =IF('Input Data'!BM89>25,$M$6,"") -> 40.1 | AI36: =IF(AI19="Year 27",$M$6,"") -> 40.1 | AJ36: =IF(AJ19="Year 28",$M$6,"") -> 40.1 | AK36: =IF(AK19="Year 29",$M$6,"") -> 40.1 | AL36: =IF(AL19="Year 30",$M$6,"") -> 40.1 | AM36: =IF('Input Data'!BM89>30,$M$6,"") -> 
B37: Labour | I37: =$N$12 -> 8.32 | J37: 8.32 | K37: 8.32 | L37: 8.32 | M37: 8.32 | N37: 8.32 | O37: 8.32 | P37: 8.32 | Q37: 8.32 | R37: 8.32 | S37: 8.32 | T37: 8.32 | U37: 8.32 | V37: 8.32 | W37: 8.32 | X37: 8.32 | Y37: 8.32 | Z37: 8.32 | AA37: 8.32 | AB37: =IF(AB19="Year 20",$N$12,"") -> 8.32 | AC37: =IF('Input Data'!BM89>20,$N$12,"") -> 8.32 | AD37: =IF(AD19="Year 22",$N$12,"") -> 8.32 | AE37: =IF(AE19="Year 23",$N$12,"") -> 8.32 | AF37: =IF(AF19="Year 24",$N$12,"") -> 8.32 | AG37: =IF(AG19="Year 25",$N$12,"") -> 8.32 | AH37: =IF('Input Data'!BM89>25,$N$12,"") -> 8.32 | AI37: =IF(AI19="Year 27",$N$12,"") -> 8.32 | AJ37: =IF(AJ19="Year 28",$N$12,"") -> 8.32 | AK37: =IF(AK19="Year 29",$N$12,"") -> 8.32 | AL37: =IF(AL19="Year 30",$N$12,"") -> 8.32 | AM37: =IF('Input Data'!BM89>30,$N$12,"") -> 
B38: Chemicals and Consumables | I38: =I22*'Input Data'!$BM$74*I24/0.85 -> 3.127647059 | J38: =J22*'Input Data'!$BM$74*J24/0.85 -> 3.608823529 | K38: =K22*'Input Data'!$BM$74*K24/0.85 -> 4.09 | L38: =L22*'Input Data'!$BM$74*L24/0.85 -> 4.09 | M38: =M22*'Input Data'!$BM$74*M24/0.85 -> 4.09 | N38: =N22*'Input Data'!$BM$74*N24/0.85 -> 4.09 | O38: =O22*'Input Data'!$BM$74*O24/0.85 -> 4.09 | P38: =P22*'Input Data'!$BM$74*P24/0.85 -> 4.09 | Q38: =Q22*'Input Data'!$BM$74*Q24/0.85 -> 4.09 | R38: =R22*'Input Data'!$BM$74*R24/0.85 -> 4.09 | S38: =S22*'Input Data'!$BM$74*S24/0.85 -> 4.09 | T38: =T22*'Input Data'!$BM$74*T24/0.85 -> 4.09 | U38: =U22*'Input Data'!$BM$74*U24/0.85 -> 4.09 | V38: =V22*'Input Data'!$BM$74*V24/0.85 -> 4.09 | W38: =W22*'Input Data'!$BM$74*W24/0.85 -> 4.09 | X38: =X22*'Input Data'!$BM$74*X24/0.85 -> 4.09 | Y38: =Y22*'Input Data'!$BM$74*Y24/0.85 -> 4.09 | Z38: =Z22*'Input Data'!$BM$74*Z24/0.85 -> 4.09 | AA38: =AA22*'Input Data'!$BM$74*AA24/0.85 -> 4.09 | AB38: =IF(AB19="Year 20",AB22*AB24*'Input Data'!$BM$74/0.85,"") -> 4.09 | AC38: =IF('Input Data'!BM89>20,AC22*AC24*'Input Data'!$BM$74/0.85,"") -> 4.09 | AD38: =IF(AD19="Year 22",AD22*AD24*'Input Data'!$BM$74/0.85,"") -> 4.09 | AE38: =IF(AE19="Year 23",AE24*AE22*'Input Data'!$BM$74/0.85,"") -> 4.09 | AF38: =IF(AF19="Year 24",AF22*AF24*'Input Data'!$BM$74/0.85,"") -> 4.09 | AG38: =IF(AG19="Year 25",AG22*AG24*'Input Data'!$G$74/0.85,"") -> 3.79 | AH38: =IF('Input Data'!BM89>25,AH22*AH24*'Input Data'!$BM$74/0.85,"") -> 4.09 | AI38: =IF(AI19="Year 27",AI24*AI22*'Input Data'!$BM$74/0.85,"") -> 4.09 | AJ38: =IF(AJ19="Year 28",AJ24*AJ22*'Input Data'!$BM$74/0.85,"") -> 4.09 | AK38: =IF(AK19="Year 29",AK22*AK24*'Input Data'!$BM$74/0.85,"") -> 4.09 | AL38: =IF(AL19="Year 30",AL22*AL24*'Input Data'!$BM$74/0.85,"") -> 4.09 | AM38: =IF('Input Data'!BM89>30,AM22*AM24*'Input Data'!$BM$74/0.85,"") -> 
B39: Waste Disposal | I39: =I26*'Input Data'!$BM$40*'Input Data'!$BM$73/1000000 -> 1.434888 | J39: =J26*'Input Data'!$BM$40*'Input Data'!$BM$73/1000000 -> 1.65564 | K39: =K26*'Input Data'!$BM$40*'Input Data'!$BM$73/1000000 -> 1.876392 | L39: =L26*'Input Data'!$BM$40*'Input Data'!$BM$73/1000000 -> 1.876392 | M39: =M26*'Input Data'!$BM$40*'Input Data'!$BM$73/1000000 -> 1.876392 | N39: =N26*'Input Data'!$BM$40*'Input Data'!$BM$73/1000000 -> 1.876392 | O39: =O26*'Input Data'!$BM$40*'Input Data'!$BM$73/1000000 -> 1.876392 | P39: =P26*'Input Data'!$BM$40*'Input Data'!$BM$73/1000000 -> 1.876392 | Q39: =Q26*'Input Data'!$BM$40*'Input Data'!$BM$73/1000000 -> 1.876392 | R39: =R26*'Input Data'!$BM$40*'Input Data'!$BM$73/1000000 -> 1.876392 | S39: =S26*'Input Data'!$BM$40*'Input Data'!$BM$73/1000000 -> 1.876392 | T39: =T26*'Input Data'!$BM$40*'Input Data'!$BM$73/1000000 -> 1.876392 | U39: =U26*'Input Data'!$BM$40*'Input Data'!$BM$73/1000000 -> 1.876392 | V39: =V26*'Input Data'!$BM$40*'Input Data'!$BM$73/1000000 -> 1.876392 | W39: =W26*'Input Data'!$BM$40*'Input Data'!$BM$73/1000000 -> 1.876392 | X39: =X26*'Input Data'!$BM$40*'Input Data'!$BM$73/1000000 -> 1.876392 | Y39: =Y26*'Input Data'!$BM$40*'Input Data'!$BM$73/1000000 -> 1.876392 | Z39: =Z26*'Input Data'!$BM$40*'Input Data'!$BM$73/1000000 -> 1.876392 | AA39: =AA26*'Input Data'!$BM$40*'Input Data'!$BM$73/1000000 -> 1.876392 | AB39: =IF(AB19="Year 20",AB26*'Input Data'!$BM$40*'Input Data'!$BM$73/1000000,"") -> 1.876392 | AC39: =IF('Input Data'!BM89>20,AC26*'Input Data'!$BM$40*'Input Data'!$BM$73/1000000,"") -> 1.876392 | AD39: =IF(AD19="Year 22",AD26*'Input Data'!$BM$40*'Input Data'!$BM$73/1000000,"") -> 1.876392 | AE39: =IF(AE19="Year 23",AE26*'Input Data'!$BM$40*'Input Data'!$BM$73/1000000,"") -> 1.876392 | AF39: =IF(AF19="Year 24",AF26*'Input Data'!$BM$40*'Input Data'!$BM$73/1000000,"") -> 1.876392 | AG39: =IF(AG19="Year 25",AG26*'Input Data'!$BM$40*'Input Data'!$BM$73/1000000,"") -> 1.876392 | AH39: =IF('Input Data'!BM89>25,AH26*'Input Data'!$BM$40*'Input Data'!$BM$73/1000000,"") -> 1.876392 | AI39: =IF(AI19="Year 27",AI26*'Input Data'!$BM$40*'Input Data'!$BM$73/1000000,"") -> 1.876392 | AJ39: =IF(AJ19="Year 28",AJ26*'Input Data'!$BM$40*'Input Data'!$BM$73/1000000,"") -> 1.876392 | AK39: =IF(AK19="Year 29",AK26*'Input Data'!$BM$40*'Input Data'!$BM$73/1000000,"") -> 1.876392 | AL39: =IF(AL19="Year 30",AL26*'Input Data'!$BM$40*'Input Data'!$BM$73/1000000,"") -> 1.876392 | AM39: =IF('Input Data'!BM89>30,AM26*'Input Data'!$BM$40*'Input Data'!$BM$73/1000000,"") -> 
B40: Insurance + Local Taxes | I40: =I5*R10 -> 22.594 | J40: =I5*R10 -> 22.594 | K40: =I5*R10 -> 22.594 | L40: =I5*R10 -> 22.594 | M40: =I5*R10 -> 22.594 | N40: =I5*R10 -> 22.594 | O40: =I5*R10 -> 22.594 | P40: =I5*R10 -> 22.594 | Q40: =I5*R10 -> 22.594 | R40: =I5*R10 -> 22.594 | S40: =I5*R10 -> 22.594 | T40: =I5*R10 -> 22.594 | U40: =I5*R10 -> 22.594 | V40: =I5*R10 -> 22.594 | W40: =I5*R10 -> 22.594 | X40: =I5*R10 -> 22.594 | Y40: =I5*R10 -> 22.594 | Z40: =I5*R10 -> 22.594 | AA40: =I5*R10 -> 22.594 | AB40: =IF(AB19="Year 20",I5*R10,"") -> 22.594 | AC40: =IF('Input Data'!BM89>20,I5*R10,"") -> 22.594 | AD40: =IF(AD19="Year 22",I5*R10,"") -> 22.594 | AE40: =IF(AE19="Year 23",I5*R10,"") -> 22.594 | AF40: =IF(AF19="Year 24",I5*R10,"") -> 22.594 | AG40: =IF(AG19="Year 25",I5*R10,"") -> 22.594 | AH40: =IF('Input Data'!BM89>25,I5*R10,"") -> 22.594 | AI40: =IF(AI19="Year 27",I5*R10,"") -> 22.594 | AJ40: =IF(AJ19="Year 28",I5*R10,"") -> 22.594 | AK40: =IF(AK19="Year 29",I5*R10,"") -> 22.594 | AL40: =IF(AL19="Year 30",I5*R10,"") -> 22.594 | AM40: =IF('Input Data'!BM89>30,I5*R10,"") -> 
B41: CO2 Emissions | I41: ='Input Data'!$BM$33*'Input Data'!$BM$77*I26/1000000 -> 0 | J41: ='Input Data'!$BM$33*'Input Data'!$BM$77*J26/1000000 -> 0 | K41: ='Input Data'!$BM$33*'Input Data'!$BM$77*K26/1000000 -> 0 | L41: ='Input Data'!$BM$33*'Input Data'!$BM$77*L26/1000000 -> 0 | M41: ='Input Data'!$BM$33*'Input Data'!$BM$77*M26/1000000 -> 0 | N41: ='Input Data'!$BM$33*'Input Data'!$BM$77*N26/1000000 -> 0 | O41: ='Input Data'!$BM$33*'Input Data'!$BM$77*O26/1000000 -> 0 | P41: ='Input Data'!$BM$33*'Input Data'!$BM$77*P26/1000000 -> 0 | Q41: ='Input Data'!$BM$33*'Input Data'!$BM$77*Q26/1000000 -> 0 | R41: ='Input Data'!$BM$33*'Input Data'!$BM$77*R26/1000000 -> 0 | S41: ='Input Data'!$BM$33*'Input Data'!$BM$77*S26/1000000 -> 0 | T41: ='Input Data'!$BM$33*'Input Data'!$BM$77*T26/1000000 -> 0 | U41: ='Input Data'!$BM$33*'Input Data'!$BM$77*U26/1000000 -> 0 | V41: ='Input Data'!$BM$33*'Input Data'!$BM$77*V26/1000000 -> 0 | W41: ='Input Data'!$BM$33*'Input Data'!$BM$77*W26/1000000 -> 0 | X41: ='Input Data'!$BM$33*'Input Data'!$BM$77*X26/1000000 -> 0 | Y41: ='Input Data'!$BM$33*'Input Data'!$BM$77*Y26/1000000 -> 0 | Z41: ='Input Data'!$BM$33*'Input Data'!$BM$77*Z26/1000000 -> 0 | AA41: ='Input Data'!$BM$33*'Input Data'!$BM$77*AA26/1000000 -> 0 | AB41: ='Input Data'!$BM$33*'Input Data'!$BM$77*AB26/1000000 -> 0 | AC41: =IF('Input Data'!BM89>20,'Input Data'!$BM$33*'Input Data'!$BM$77*AC26/1000000,"") -> 0 | AD41: =IF(AD19="Year 22",'Input Data'!$BM$33*'Input Data'!$BM$77*AD26/1000000,"") -> 0 | AE41: =IF(AE19="Year 23",'Input Data'!$BM$33*'Input Data'!$BM$77*AE26/1000000,"") -> 0 | AF41: =IF(AF19="Year 24",'Input Data'!$BM$33*'Input Data'!$BM$77*AF26/1000000,"") -> 0 | AG41: =IF(AG19="Year 25",'Input Data'!$BM$33*'Input Data'!$BM$77*AG26/1000000,"") -> 0 | AH41: =IF('Input Data'!BM89>25,'Input Data'!$BM$33*'Input Data'!$BM$77*AH26/1000000,"") -> 0 | AI41: =IF(AI19="Year 27",'Input Data'!$BM$33*'Input Data'!$BM$77*AI26/1000000,"") -> 0 | AJ41: =IF(AJ19="Year 28",'Input Data'!$BM$33*'Input Data'!$BM$77*AJ26/1000000,"") -> 0 | AK41: =IF(AK19="Year 29",'Input Data'!$BM$33*'Input Data'!$BM$77*AK26/1000000,"") -> 0 | AL41: =IF(AL19="Year 30",'Input Data'!$BM$33*'Input Data'!$BM$77*AL26/1000000,"") -> 0 | AM41: =IF('Input Data'!BM89>30,'Input Data'!$BM$33*'Input Data'!$BM$77*AM26/1000000,"") -> 
B42: Fixed Capital Expenditure | F42: =I10*F29 -> 395.395 | G42: =I10*G29 -> 711.711 | H42: =H29*I10 -> 474.474
B44: Total Cash Flow (yearly) | F44: =SUM(F31:F33)-SUM(F35:F41)-F42 -> -395.395 | G44: -711.711 | H44: -474.474 | I44: 130.7536681 | J44: 161.7948478 | K44: 192.8360275 | L44: 192.8360275 | M44: 192.8360275 | N44: 192.8360275 | O44: 192.8360275 | P44: 192.8360275 | Q44: 192.8360275 | R44: 192.8360275 | S44: 192.8360275 | T44: 192.8360275 | U44: 192.8360275 | V44: 192.8360275 | W44: 192.8360275 | X44: 192.8360275 | Y44: 192.8360275 | Z44: 192.8360275 | AA44: 192.8360275 | AB44: 192.8360275 | AC44: =IF(AC19="Year 21",SUM(AC31:AC33)-SUM(AC35:AC41)-AC42,"") -> 192.8360275 | AD44: =IF(AD19="Year 22",SUM(AD31:AD33)-SUM(AD35:AD41)-AD42,"") -> 192.8360275 | AE44: =IF(AE19="Year 23",SUM(AE31:AE33)-SUM(AE35:AE41)-AE42,"") -> 192.8360275 | AF44: =IF(AF19="Year 24",SUM(AF31:AF33)-SUM(AF35:AF41)-AF42,"") -> 192.8360275 | AG44: =IF(AG19="Year 25",SUM(AG31:AG33)-SUM(AG35:AG41)-AG42,"") -> 193.1360275 | AH44: =IF(AH19="Year 26",SUM(AH31:AH33)-SUM(AH35:AH41)-AH42,"") -> 192.8360275 | AI44: =IF(AI19="Year 27",SUM(AI31:AI33)-SUM(AI35:AI41)-AI42,"") -> 192.8360275 | AJ44: =IF(AJ19="Year 28",SUM(AJ31:AJ33)-SUM(AJ35:AJ41)-AJ42,"") -> 192.8360275 | AK44: =IF(AK19="Year 29",SUM(AK31:AK33)-SUM(AK35:AK41)-AK42,"") -> 192.8360275 | AL44: =IF(AL19="Year 30",SUM(AL31:AL33)-SUM(AL35:AL41)-AL42,"") -> 192.8360275 | AM44: =IF(AM19="Year 31",SUM(AM31:AM33)-SUM(AM35:AM41)-AM42,"") -> 0
B45: Total Cash Flow (accumulated) | F45: =F44 -> -395.395 | G45: =-1*(ABS(G44)+ABS(F45)) -> -1107.106 | H45: =-1*(ABS(H44)+ABS(G45)) -> -1581.58 | I45: =H45+I44 -> -1450.826332 | J45: =I45+J44 -> -1289.031484 | K45: -1096.195457 | L45: -903.3594292 | M45: -710.5234017 | N45: -517.6873742 | O45: -324.8513467 | P45: -132.0153192 | Q45: 60.82070827 | R45: 253.6567358 | S45: 446.4927632 | T45: 639.3287907 | U45: 832.1648182 | V45: 1025.000846 | W45: 1217.836873 | X45: 1410.672901 | Y45: 1603.508928 | Z45: 1796.344956 | AA45: 1989.180983 | AB45: =IF(AB19="Year 20",AA45+AB44,"") -> 2182.017011 | AC45: =IF(AC19="Year 21",AB45+AC44,"") -> 2374.853038 | AD45: =IF(AD19="Year 22",AC45+AD44,"") -> 2567.689066 | AE45: =IF(AE19="Year 23",AD45+AE44,"") -> 2760.525093 | AF45: =IF(AF19="Year 24",AE45+AF44,"") -> 2953.361121 | AG45: =IF(AG19="Year 25",AF45+AG44,"") -> 3146.497148 | AH45: =IF(AH19="Year 26",AG45+AH44,"") -> 3339.333176 | AI45: =IF(AI19="Year 27",AH45+AI44,"") -> 3532.169203 | AJ45: =IF(AJ19="Year 28",AI45+AJ44,"") -> 3725.005231 | AK45: =IF(AK19="Year 29",AJ45+AK44,"") -> 3917.841258 | AL45: =IF(AL19="Year 30",AK45+AL44,"") -> 4110.677286 | AM45: =IF(AM19="Year 31",AL45+AM44,"") -> 4110.677286
B47: Discounted Cash Flow (yearly) | F47: =F45/(1+R9) -> -359.45 | G47: =G44/(1+R9)^2 -> -588.1909091 | H47: =H44/(1+R9)^3 -> -356.4793388 | I47: =I44/(1+R9)^4 -> 89.30651464 | J47: =J44/(1+R9)^5 -> 100.4618709 | K47: =K44/(1+R9)^6 -> 108.8509103 | L47: =L44/(1+R9)^7 -> 98.95537299 | M47: =M44/(1+R9)^8 -> 89.95942999 | N47: =N44/(1+R9)^9 -> 81.78129999 | O47: =O44/(1+R9)^10 -> 74.34663636 | P47: =P44/(1+R9)^11 -> 67.58785123 | Q47: =Q44/(1+R9)^12 -> 61.44350112 | R47: =R44/(1+R9)^13 -> 55.85772829 | S47: =S44/(1+R9)^14 -> 50.77975299 | T47: =T44/(1+R9)^15 -> 46.16341181 | U47: =U44/(1+R9)^16 -> 41.96673801 | V47: =V44/(1+R9)^17 -> 38.15158001 | W47: =W44/(1+R9)^18 -> 34.68325455 | X47: =X44/(1+R9)^19 -> 31.53023141 | Y47: =Y44/(1+R9)^20 -> 28.66384674 | Z47: =Z44/(1+R9)^21 -> 26.05804249 | AA47: =AA44/(1+R9)^22 -> 23.68912954 | AB47: =IF(AB19="Year 20",AB44/(1+R9)^23,"") -> 21.53557231 | AC47: =IF(AC19="Year 21",AC44/(1+R9)^24,"") -> 19.57779301 | AD47: =IF(AD19="Year 22",AD44/(1+R9)^25,"") -> 17.79799364 | AE47: =IF(AE19="Year 23",AE44/(1+R9)^26,"") -> 16.17999422 | AF47: =IF(AF19="Year 24",AF44/(1+R9)^27,"") -> 14.70908565 | AG47: =IF(AG19="Year 25",AG44/(1+R9)^28,"") -> 13.39269905 | AH47: =IF(AH19="Year 26",AH44/(1+R9)^29,"") -> 12.15626914 | AI47: =IF(AI19="Year 27",AI44/(1+R9)^30,"") -> 11.05115376 | AJ47: =IF(AJ19="Year 28",AJ44/(1+R9)^31,"") -> 10.04650342 | AK47: =IF(AK19="Year 29",AK44/(1+R9)^32,"") -> 9.133184925 | AL47: =IF(AL19="Year 30",AL44/(1+R9)^33,"") -> 8.302895387 | AM47: =IF(AM19="Year 31",AM44/(1+R9)^34,"") -> 0
B48: Discounted Cash Flow (accumulated) | F48: =F47 -> -359.45 | G48: =SUM(G47+F48) -> -947.6409091 | H48: -1304.120248 | I48: -1214.813733 | J48: -1114.351862 | K48: -1005.500952 | L48: -906.5455791 | M48: -816.5861491 | N48: -734.8048491 | O48: -660.4582127 | P48: -592.8703615 | Q48: -531.4268604 | R48: -475.5691321 | S48: -424.7893791 | T48: -378.6259673 | U48: -336.6592293 | V48: -298.5076492 | W48: -263.8243947 | X48: -232.2941633 | Y48: -203.6303165 | Z48: -177.572274 | AA48: -153.8831445 | AB48: =IF(AB19="Year 20",SUM(AB47+AA48),"") -> -132.3475722 | AC48: =IF(AC19="Year 21",SUM(AC47+AB48),"") -> -112.7697792 | AD48: =IF(AD19="Year 22",SUM(AD47+AC48),"") -> -94.97178555 | AE48: =IF(AE19="Year 23",SUM(AE47+AD48),"") -> -78.79179133 | AF48: =IF(AF19="Year 24",SUM(AF47+AE48),"") -> -64.08270568 | AG48: =IF(AG19="Year 25",SUM(AG47+AF48),"") -> -50.69000663 | AH48: =IF(AH19="Year 26",SUM(AH47+AG48),"") -> -38.53373749 | AI48: =IF(AI19="Year 27",SUM(AI47+AH48),"") -> -27.48258373 | AJ48: =IF(AJ19="Year 28",SUM(AJ47+AI48),"") -> -17.43608031 | AK48: =IF(AK19="Year 29",SUM(AK47+AJ48),"") -> -8.302895387 | AL48: =IF(AL19="Year 30",SUM(AL47+AK48),"") -> -7.371880884e-13 | AM48: =IF(AM19="Year 31",SUM(AM47+AL48),"") -> -7.371880884e-13
AA50: Hidden acc cf | AC50: =SUM(AC47+AB48) -> -112.7697792 | AD50: =IF(AD47="",AC48,SUM(AD47+AC48)) -> -94.97178555 | AE50: =IF(AE47="",AD50,SUM(AE47+AD50)) -> -78.79179133 | AF50: =IF(AF47="",AE50,SUM(AF47+AE50)) -> -64.08270568 | AG50: =IF(AG47="",AF50,SUM(AG47+AF50)) -> -50.69000663 | AH50: -38.53373749 | AI50: -27.48258373 | AJ50: -17.43608031 | AK50: -8.302895387 | AL50: -7.371880884e-13 | AM50: -7.371880884e-13 | AN50: -7.371880884e-13

Sheet IGCC w 85% CC
B4: Production | G4: Capital Expenditure | I4: UK£ (million) | K4: Operating Costs | L4: UK£ (million/year) | P4: Revenues
B5: Coal feedrate | D5: te/h | E5: ='Input Data'!BT26 -> 269.0833333 | G5: Installed cost | I5: ='Input Data'!BT60 -> 1083.7 | K5: Fuel Cost | M5: ='Input Data'!BT71 -> 65 | N5: UK£/te | P5: Levelised Cost of Electricity | Q5: UK£/kWh | R5: 0.07386192393
B6: Net power ouput | D6: MW | E6: ='Input Data'!BT23 -> 707.4 | G6: Land purchase, surveys | I6: ='Input Data'!BT65 -> 0.05 | K6: Maintenance | M6: ='Input Data'!BT72 -> 38.9 | N6: UK£/year | P6: Sulphur Price | Q6: UK£/te | R6: ='Input Data'!BT84 -> 40
B7: Sulphur for export | D7: te/h | E7: ='Input Data'!BT37 -> 2.3 | G7: Fees | I7: ='Input Data'!BT66 -> 0.1 | K7: CO2 Emissions | M7: ='Input Data'!BT77 -> 0 | N7: UK£/te | P7: Hydrogen Price | Q7: UK£/te | R7: ='Input Data'!BT85 -> 1307.189542
G8: Contingencies | I8: ='Input Data'!BT64 -> 0.25 | K8: Labour Cost | N8: UK£/year (million)
K9: Number of operations personnel | N9: ='Input Data'!BT78 -> 128 | P9: Discounted Rate: | R9: ='Input Data'!BT86 -> 0.1
B10: =IF('Input Data'!BT10>0.001,"Performance Data: User Adjusted","") ->  | G10: Total Investment Cost | I10: =I5+(I6*I5)+(I5*I7)+(I5*I8) -> 1517.18 | K10: Average salary options personnel | N10: ='Input Data'!BT79 -> 0.05 | P10: Insurance | R10: ='Input Data'!BT81 -> 0.02 | S10: Installed Cost
K11: Admin | N11: ='Input Data'!BT80 -> 0.3
K12: Total Labour Cost | N12: =(N9*N10)*(1+N11) -> 8.32
G13: =IF('Input Data'!BT47>0.001,"Capital and Cost Data: User Adjusted","") ->  | P13: =IF('Input Data'!BT83>0.001,"Revenue Variables: User Adjusted","") -> 
K14: =IF('Input Data'!BT70>0.001,"Operating Data: User Adjusted","") -> 
F17: YEAR
B18: CASH FLOW ANALYSIS | F18: =G18-1 -> 2009 | G18: =H18-1 -> 2010 | H18: =I18-1 -> 2011 | I18: ='Input Data'!BQ102 -> 2012 | J18: ='Input Data'!BQ103 -> 2013 | K18: ='Input Data'!BQ104 -> 2014 | L18: ='Input Data'!BQ105 -> 2015 | M18: ='Input Data'!BQ106 -> 2016 | N18: ='Input Data'!BQ107 -> 2017 | O18: ='Input Data'!BQ108 -> 2018 | P18: ='Input Data'!BQ109 -> 2019 | Q18: ='Input Data'!BQ110 -> 2020 | R18: ='Input Data'!BQ111 -> 2021 | S18: ='Input Data'!BQ112 -> 2022 | T18: ='Input Data'!BQ113 -> 2023 | U18: ='Input Data'!BQ114 -> 2024 | V18: ='Input Data'!BQ115 -> 2025 | W18: ='Input Data'!BQ116 -> 2026 | X18: ='Input Data'!BQ117 -> 2027 | Y18: ='Input Data'!BQ118 -> 2028 | Z18: ='Input Data'!BQ119 -> 2029 | AA18: ='Input Data'!BQ120 -> 2030 | AB18: ='Input Data'!BQ121 -> 2031 | AC18: ='Input Data'!BQ122 -> 2032 | AD18: ='Input Data'!BQ123 -> 2033 | AE18: ='Input Data'!BQ124 -> 2034 | AF18: ='Input Data'!BQ125 -> 2035 | AG18: ='Input Data'!BQ126 -> 2036 | AH18: ='Input Data'!BQ127 -> 2037 | AI18: ='Input Data'!BQ128 -> 2038 | AJ18: ='Input Data'!BQ129 -> 2039 | AK18: ='Input Data'!BQ130 -> 2040 | AL18: ='Input Data'!BQ131 -> 2041 | AM18: ='Input Data'!BQ132 -> 2042
B19: UK£ (million) | F19: Year -3 | G19: Year -2 | H19: Year -1 | I19: ='Input Data'!BP102 -> Year 1 | J19: ='Input Data'!BP103 -> Year 2 | K19: ='Input Data'!BP104 -> Year 3 | L19: ='Input Data'!BP105 -> Year 4 | M19: ='Input Data'!BP106 -> Year 5 | N19: ='Input Data'!BP107 -> Year 6 | O19: ='Input Data'!BP108 -> Year 7 | P19: ='Input Data'!BP109 -> Year 8 | Q19: ='Input Data'!BP110 -> Year 9 | R19: ='Input Data'!BP111 -> Year 10 | S19: ='Input Data'!BP112 -> Year 11 | T19: ='Input Data'!BP113 -> Year 12 | U19: ='Input Data'!BP114 -> Year 13 | V19: ='Input Data'!BP115 -> Year 14 | W19: ='Input Data'!BP116 -> Year 15 | X19: ='Input Data'!BP117 -> Year 16 | Y19: ='Input Data'!BP118 -> Year 17 | Z19: ='Input Data'!BP119 -> Year 18 | AA19: ='Input Data'!BP120 -> Year 19 | AB19: ='Input Data'!BP121 -> Year 20 | AC19: ='Input Data'!BP122 -> Year 21 | AD19: ='Input Data'!BP123 -> Year 22 | AE19: ='Input Data'!BP124 -> Year 23 | AF19: ='Input Data'!BP125 -> Year 24 | AG19: ='Input Data'!BP126 -> Year 25 | AH19: ='Input Data'!BP127 -> Year 26 | AI19: ='Input Data'!BP128 -> Year 27 | AJ19: ='Input Data'!BP129 -> Year 28 | AK19: ='Input Data'!BP130 -> Year 29 | AL19: ='Input Data'!BP131 -> Year 30 | AM19: ='Input Data'!BP132 -> Year 31
B22: Load factor - Hydrogen Production | I22: =IF(I19="Year 1",'Input Data'!BR102,"") -> 1 | J22: ='Input Data'!BR103 -> 1 | K22: ='Input Data'!BR104 -> 1 | L22: ='Input Data'!BR105 -> 1 | M22: ='Input Data'!BR106 -> 1 | N22: ='Input Data'!BR107 -> 1 | O22: ='Input Data'!BR108 -> 1 | P22: ='Input Data'!BR109 -> 1 | Q22: ='Input Data'!BR110 -> 1 | R22: ='Input Data'!BR111 -> 1 | S22: ='Input Data'!BR112 -> 1 | T22: ='Input Data'!BR113 -> 1 | U22: ='Input Data'!BR114 -> 1 | V22: ='Input Data'!BR115 -> 1 | W22: ='Input Data'!BR116 -> 1 | X22: ='Input Data'!BR117 -> 1 | Y22: ='Input Data'!BR118 -> 1 | Z22: ='Input Data'!BR119 -> 1 | AA22: ='Input Data'!BR120 -> 1 | AB22: =IF(AB19="Year 20",'Input Data'!BR121,"") -> 1 | AC22: =IF('Input Data'!BT89>20,'Input Data'!BR122,"") -> 1 | AD22: =IF(AD19="Year 22",'Input Data'!BR123,"") -> 1 | AE22: =IF(AE19="Year 23",'Input Data'!BR124,"") -> 1 | AF22: =IF(AF19="Year 24",'Input Data'!BR125,"") -> 1 | AG22: =IF(AG19="Year 25",'Input Data'!BR126,"") -> 1 | AH22: =IF('Input Data'!BT89>25,'Input Data'!BR127,"") -> 1 | AI22: =IF(AI19="Year 27",'Input Data'!BR128,"") -> 1 | AJ22: =IF(AJ19="Year 28",'Input Data'!BR129,"") -> 1 | AK22: =IF(AK19="Year 29",'Input Data'!BR130,"") -> 1 | AL22: =IF(AL19="Year 30",'Input Data'!BR131,"") -> 1 | AM22: =IF('Input Data'!BT89>30,'Input Data'!BR132,"") -> 
B23: Load factor - Power Island | I23: =IF(I19="Year 1",'Input Data'!BS102,"") -> 1 | J23: ='Input Data'!BS103 -> 1 | K23: ='Input Data'!BS104 -> 1 | L23: ='Input Data'!BS105 -> 1 | M23: ='Input Data'!BS106 -> 1 | N23: ='Input Data'!BS107 -> 1 | O23: ='Input Data'!BS108 -> 1 | P23: ='Input Data'!BS109 -> 1 | Q23: ='Input Data'!BS110 -> 1 | R23: ='Input Data'!BS111 -> 1 | S23: ='Input Data'!BS112 -> 1 | T23: ='Input Data'!BS113 -> 1 | U23: ='Input Data'!BS114 -> 1 | V23: ='Input Data'!BS115 -> 1 | W23: ='Input Data'!BS116 -> 1 | X23: ='Input Data'!BS117 -> 1 | Y23: ='Input Data'!BS118 -> 1 | Z23: ='Input Data'!BS119 -> 1 | AA23: ='Input Data'!BS120 -> 1 | AB23: =IF(AB19="Year 20",'Input Data'!BS121,"") -> 1 | AC23: =IF('Input Data'!BT89>20,'Input Data'!BS122,"") -> 1 | AD23: =IF(AD19="Year 22",'Input Data'!BS123,"") -> 1 | AE23: =IF(AE19="Year 23",'Input Data'!BS124,"") -> 1 | AF23: =IF(AF19="Year 24",'Input Data'!BS125,"") -> 1 | AG23: =IF(AG19="Year 25",'Input Data'!BS126,"") -> 1 | AH23: =IF('Input Data'!BT89>25,'Input Data'!BS127,"") -> 1 | AI23: =IF(AI19="Year 27",'Input Data'!BS128,"") -> 1 | AJ23: =IF(AJ19="Year 28",'Input Data'!BS129,"") -> 1 | AK23: =IF(AK19="Year 29",'Input Data'!BS130,"") -> 1 | AL23: =IF(AL19="Year 30",'Input Data'!BS131,"") -> 1 | AM23: =IF('Input Data'!BT89>30,'Input Data'!BS132,"") -> 
B24: Availability - Hydrogen Production | I24: =IF(I19="Year 1",'Input Data'!BT102,"") -> 0.65 | J24: ='Input Data'!BT103 -> 0.75 | K24: ='Input Data'!BT104 -> 0.85 | L24: ='Input Data'!BT105 -> 0.85 | M24: ='Input Data'!BT106 -> 0.85 | N24: ='Input Data'!BT107 -> 0.85 | O24: ='Input Data'!BT108 -> 0.85 | P24: ='Input Data'!BT109 -> 0.85 | Q24: ='Input Data'!BT110 -> 0.85 | R24: ='Input Data'!BT111 -> 0.85 | S24: ='Input Data'!BT112 -> 0.85 | T24: ='Input Data'!BT113 -> 0.85 | U24: ='Input Data'!BT114 -> 0.85 | V24: ='Input Data'!BT115 -> 0.85 | W24: ='Input Data'!BT116 -> 0.85 | X24: ='Input Data'!BT117 -> 0.85 | Y24: ='Input Data'!BT118 -> 0.85 | Z24: ='Input Data'!BT119 -> 0.85 | AA24: ='Input Data'!BT120 -> 0.85 | AB24: =IF(AB19="Year 20",'Input Data'!BT121,"") -> 0.85 | AC24: =IF('Input Data'!BT89>20,'Input Data'!BT122,"") -> 0.85 | AD24: =IF(AD19="Year 22",'Input Data'!BT123,"") -> 0.85 | AE24: =IF(AE19="Year 23",'Input Data'!BT124,"") -> 0.85 | AF24: =IF(AF19="Year 24",'Input Data'!BT125,"") -> 0.85 | AG24: =IF(AG19="Year 25",'Input Data'!BT126,"") -> 0.85 | AH24: =IF('Input Data'!BT89>25,'Input Data'!BT127,"") -> 0.85 | AI24: =IF(AI19="Year 27",'Input Data'!BT128,"") -> 0.85 | AJ24: =IF(AJ19="Year 28",'Input Data'!BT129,"") -> 0.85 | AK24: =IF(AK19="Year 29",'Input Data'!BT130,"") -> 0.85 | AL24: =IF(AL19="Year 30",'Input Data'!BT131,"") -> 0.85 | AM24: =IF('Input Data'!BT89>30,'Input Data'!BT132,"") -> 
B25: Availability - Power Island | I25: =IF(I19="Year 1",'Input Data'!BU102,"") -> 0.65 | J25: ='Input Data'!BU103 -> 0.75 | K25: ='Input Data'!BU104 -> 0.85 | L25: ='Input Data'!BU105 -> 0.85 | M25: ='Input Data'!BU106 -> 0.85 | N25: ='Input Data'!BU107 -> 0.85 | O25: ='Input Data'!BU108 -> 0.85 | P25: ='Input Data'!BU109 -> 0.85 | Q25: ='Input Data'!BU110 -> 0.85 | R25: ='Input Data'!BU111 -> 0.85 | S25: ='Input Data'!BU112 -> 0.85 | T25: ='Input Data'!BU113 -> 0.85 | U25: ='Input Data'!BU114 -> 0.85 | V25: ='Input Data'!BU115 -> 0.85 | W25: ='Input Data'!BU116 -> 0.85 | X25: ='Input Data'!BU117 -> 0.85 | Y25: ='Input Data'!BU118 -> 0.85 | Z25: ='Input Data'!BU119 -> 0.85 | AA25: ='Input Data'!BU120 -> 0.85 | AB25: =IF(AB19="Year 20",'Input Data'!BU121,"") -> 0.85 | AC25: =IF('Input Data'!BT89>20,'Input Data'!BU122,"") -> 0.85 | AD25: =IF(AD19="Year 22",'Input Data'!BU123,"") -> 0.85 | AE25: =IF(AE19="Year 23",'Input Data'!BU124,"") -> 0.85 | AF25: =IF(AF19="Year 24",'Input Data'!BU125,"") -> 0.85 | AG25: =IF(AG19="Year 25",'Input Data'!BU126,"") -> 0.85 | AH25: =IF('Input Data'!BT89>25,'Input Data'!BU127,"") -> 0.85 | AI25: =IF(AI19="Year 27",'Input Data'!BU128,"") -> 0.85 | AJ25: =IF(AJ19="Year 28",'Input Data'!BU129,"") -> 0.85 | AK25: =IF(AK19="Year 29",'Input Data'!BU130,"") -> 0.85 | AL25: =IF(AL19="Year 30",'Input Data'!BU131,"") -> 0.85 | AM25: =IF('Input Data'!BT89>30,'Input Data'!BU132,"") -> 
B26: Equivalent yearly hours - Hydrogen Production | I26: =I22*8760*I24 -> 5694 | J26: 6570 | K26: 7446 | L26: 7446 | M26: 7446 | N26: 7446 | O26: 7446 | P26: 7446 | Q26: 7446 | R26: 7446 | S26: 7446 | T26: 7446 | U26: 7446 | V26: 7446 | W26: 7446 | X26: 7446 | Y26: 7446 | Z26: 7446 | AA26: 7446 | AB26: =IF(AB19="Year 20",AB22*8760*AB24,"") -> 7446 | AC26: =IF('Input Data'!BT89>20,AC22*8760*AC24,"") -> 7446 | AD26: =IF(AD19="Year 22",AD22*8760*AD24,"") -> 7446 | AE26: =IF(AE19="Year 23",AE22*8760*AE24,"") -> 7446 | AF26: =IF(AF19="Year 24",AF22*8760*AF24,"") -> 7446 | AG26: =IF(AG19="Year 25",AG22*8760*AG24,"") -> 7446 | AH26: =IF('Input Data'!BT89>25,AH22*8760*AH24,"") -> 7446 | AI26: =IF(AI19="Year 27",AI22*8760*AI24,"") -> 7446 | AJ26: =IF(AJ19="Year 28",AJ22*8760*AJ24,"") -> 7446 | AK26: =IF(AK19="Year 29",AK22*8760*AK24,"") -> 7446 | AL26: =IF(AL19="Year 30",AL22*8760*AL24,"") -> 7446 | AM26: =IF('Input Data'!BT89>30,AM22*8760*AM24,"") -> 
B27: Equivalent yearly hours - Power Island | I27: 5694 | J27: 6570 | K27: 7446 | L27: 7446 | M27: 7446 | N27: 7446 | O27: 7446 | P27: 7446 | Q27: 7446 | R27: 7446 | S27: 7446 | T27: 7446 | U27: 7446 | V27: 7446 | W27: 7446 | X27: 7446 | Y27: 7446 | Z27: 7446 | AA27: 7446 | AB27: =IF(AB19="Year 20",AB23*8760*AB25,"") -> 7446 | AC27: =IF('Input Data'!BT89>20,AC23*8760*AC25,"") -> 7446 | AD27: =IF(AD19="Year 22",AD23*8760*AD25,"") -> 7446 | AE27: =IF(AE19="Year 23",AE23*8760*AE25,"") -> 7446 | AF27: =IF(AF19="Year 24",AF23*8760*AF25,"") -> 7446 | AG27: =IF(AG19="Year 25",AG23*8760*AG25,"") -> 7446 | AH27: =IF('Input Data'!BT89>25,AH23*8760*AH25,"") -> 7446 | AI27: =IF(AI19="Year 27",AI23*8760*AI25,"") -> 7446 | AJ27: =IF(AJ19="Year 28",AJ23*8760*AJ25,"") -> 7446 | AK27: =IF(AK19="Year 29",AK23*8760*AK25,"") -> 7446 | AL27: =IF(AL19="Year 30",AL23*8760*AL25,"") -> 7446 | AM27: =IF('Input Data'!BT89>30,AM23*8760*AM25,"") -> 
B28: Hydrogen Exported | E28: tpa | I28: =IF(((I26-I27)*'Input Data'!$BT$38>0),(I26-I27)*'Input Data'!$BT$38,0) -> 0 | J28: =IF(((J26-J27)*'Input Data'!$BT$38>0),(J26-J27)*'Input Data'!$BT$38,0) -> 0 | K28: =IF(((K26-K27)*'Input Data'!$BT$38>0),(K26-K27)*'Input Data'!$BT$38,0) -> 0 | L28: =IF(((L26-L27)*'Input Data'!$BT$38>0),(L26-L27)*'Input Data'!$BT$38,0) -> 0 | M28: =IF(((M26-M27)*'Input Data'!$BT$38>0),(M26-M27)*'Input Data'!$BT$38,0) -> 0 | N28: =IF(((N26-N27)*'Input Data'!$BT$38>0),(N26-N27)*'Input Data'!$BT$38,0) -> 0 | O28: =IF(((O26-O27)*'Input Data'!$BT$38>0),(O26-O27)*'Input Data'!$BT$38,0) -> 0 | P28: =IF(((P26-P27)*'Input Data'!$BT$38>0),(P26-P27)*'Input Data'!$BT$38,0) -> 0 | Q28: =IF(((Q26-Q27)*'Input Data'!$BT$38>0),(Q26-Q27)*'Input Data'!$BT$38,0) -> 0 | R28: =IF(((R26-R27)*'Input Data'!$BT$38>0),(R26-R27)*'Input Data'!$BT$38,0) -> 0 | S28: =IF(((S26-S27)*'Input Data'!$BT$38>0),(S26-S27)*'Input Data'!$BT$38,0) -> 0 | T28: =IF(((T26-T27)*'Input Data'!$BT$38>0),(T26-T27)*'Input Data'!$BT$38,0) -> 0 | U28: =IF(((U26-U27)*'Input Data'!$BT$38>0),(U26-U27)*'Input Data'!$BT$38,0) -> 0 | V28: =IF(((V26-V27)*'Input Data'!$BT$38>0),(V26-V27)*'Input Data'!$BT$38,0) -> 0 | W28: =IF(((W26-W27)*'Input Data'!$BT$38>0),(W26-W27)*'Input Data'!$BT$38,0) -> 0 | X28: =IF(((X26-X27)*'Input Data'!$BT$38>0),(X26-X27)*'Input Data'!$BT$38,0) -> 0 | Y28: =IF(((Y26-Y27)*'Input Data'!$BT$38>0),(Y26-Y27)*'Input Data'!$BT$38,0) -> 0 | Z28: =IF(((Z26-Z27)*'Input Data'!$BT$38>0),(Z26-Z27)*'Input Data'!$BT$38,0) -> 0 | AA28: =IF(((AA26-AA27)*'Input Data'!$BT$38>0),(AA26-AA27)*'Input Data'!$BT$38,0) -> 0 | AB28: =IF(((AB26-AB27)*'Input Data'!$BT$38>0),(AB26-AB27)*'Input Data'!$BT$38,0) -> 0 | AC28: =IF('Input Data'!$BT$89>20,IF(((AC26-AC27)*'Input Data'!$BT$38>0),(AC26-AC27)*'Input Data'!$BT$38,0),"") -> 0 | AD28: =IF('Input Data'!$BT$89>20,IF(((AD26-AD27)*'Input Data'!$BT$38>0),(AD26-AD27)*'Input Data'!$BT$38,0),"") -> 0 | AE28: =IF('Input Data'!$BT$89>20,IF(((AE26-AE27)*'Input Data'!$BT$38>0),(AE26-AE27)*'Input Data'!$BT$38,0),"") -> 0 | AF28: =IF('Input Data'!$BT$89>20,IF(((AF26-AF27)*'Input Data'!$BT$38>0),(AF26-AF27)*'Input Data'!$BT$38,0),"") -> 0 | AG28: =IF('Input Data'!$BT$89>20,IF(((AG26-AG27)*'Input Data'!$BT$38>0),(AG26-AG27)*'Input Data'!$BT$38,0),"") -> 0 | AH28: =IF('Input Data'!$BT$89>25,IF(((AH26-AH27)*'Input Data'!$BT$38>0),(AH26-AH27)*'Input Data'!$BT$38,0),"") -> 0 | AI28: =IF('Input Data'!$BT$89>25,IF(((AI26-AI27)*'Input Data'!$BT$38>0),(AI26-AI27)*'Input Data'!$BT$38,0),"") -> 0 | AJ28: =IF('Input Data'!$BT$89>25,IF(((AJ26-AJ27)*'Input Data'!$BT$38>0),(AJ26-AJ27)*'Input Data'!$BT$38,0),"") -> 0 | AK28: =IF('Input Data'!$BT$89>25,IF(((AK26-AK27)*'Input Data'!$BT$38>0),(AK26-AK27)*'Input Data'!$BT$38,0),"") -> 0 | AL28: =IF('Input Data'!$BT$89>25,IF(((AL26-AL27)*'Input Data'!$BT$38>0),(AL26-AL27)*'Input Data'!$BT$38,0),"") -> 0 | AM28: =IF('Input Data'!$BT$89>30,IF(((AM26-AM27)*'Input Data'!$BT$38>0),(AM26-AM27)*'Input Data'!$BT$38,0),"") -> 
B29: Expenditure factor | F29: ='Input Data'!BT96 -> 0.25 | G29: ='Input Data'!BT97 -> 0.45 | H29: ='Input Data'!BT98 -> 0.3
B30: Revenues
B31: Electricity | I31: =$E$6*I27*$R$5/1000 -> 297.5110729 | J31: =$E$6*J27*$R$5/1000 -> 343.2820072 | K31: =$E$6*K27*$R$5/1000 -> 389.0529415 | L31: 389.0529415 | M31: 389.0529415 | N31: 389.0529415 | O31: 389.0529415 | P31: 389.0529415 | Q31: 389.0529415 | R31: 389.0529415 | S31: 389.0529415 | T31: 389.0529415 | U31: 389.0529415 | V31: 389.0529415 | W31: 389.0529415 | X31: 389.0529415 | Y31: 389.0529415 | Z31: 389.0529415 | AA31: 389.0529415 | AB31: =IF(AB19="Year 20",$E$6*AB27*$R$5/1000,"") -> 389.0529415 | AC31: =IF('Input Data'!BT89>20,$E$6*AC27*$R$5/1000,"") -> 389.0529415 | AD31: =IF(AD19="Year 22",$E$6*AD27*$R$5/1000,"") -> 389.0529415 | AE31: =IF(AE19="Year 23",$E$6*AE27*$R$5/1000,"") -> 389.0529415 | AF31: =IF(AF19="Year 24",$E$6*AF27*$R$5/1000,"") -> 389.0529415 | AG31: =IF(AG19="Year 25",$E$6*AG27*$R$5/1000,"") -> 389.0529415 | AH31: =IF('Input Data'!BT89>25,$E$6*AH27*$R$5/1000,"") -> 389.0529415 | AI31: =IF(AI19="Year 27",$E$6*AI27*$R$5/1000,"") -> 389.0529415 | AJ31: =IF(AJ19="Year 28",$E$6*AJ27*$R$5/1000,"") -> 389.0529415 | AK31: =IF(AK19="Year 29",$E$6*AK27*$R$5/1000,"") -> 389.0529415 | AL31: =IF(AL19="Year 30",$E$6*AL27*$R$5/1000,"") -> 389.0529415 | AM31: =IF('Input Data'!BT89>30,$E$6*AM27*$R$5/1000,"") -> 
B32: Sulphur | I32: =$E$7*I26*$R$6/1000000 -> 0.523848 | J32: =$E$7*J26*$R$6/1000000 -> 0.60444 | K32: 0.685032 | L32: 0.685032 | M32: 0.685032 | N32: 0.685032 | O32: 0.685032 | P32: 0.685032 | Q32: 0.685032 | R32: 0.685032 | S32: 0.685032 | T32: 0.685032 | U32: 0.685032 | V32: 0.685032 | W32: 0.685032 | X32: 0.685032 | Y32: 0.685032 | Z32: 0.685032 | AA32: 0.685032 | AB32: =IF(AB19="Year 20",$E$7*AB26*$R$6/1000000,"") -> 0.685032 | AC32: =IF('Input Data'!BT89>20,$E$7*AC26*$R$6/1000000,"") -> 0.685032 | AD32: =IF(AD19="Year 22",$E$7*AD26*$R$6/1000000,"") -> 0.685032 | AE32: =IF(AE19="Year 23",$E$7*AE26*$R$6/1000000,"") -> 0.685032 | AF32: =IF(AF19="Year 24",$E$7*AF26*$R$6/1000000,"") -> 0.685032 | AG32: =IF(AG19="Year 25",$E$7*AG26*$R$6/1000000,"") -> 0.685032 | AH32: =IF('Input Data'!BT89>25,$E$7*AH26*$R$6/1000000,"") -> 0.685032 | AI32: =IF(AI19="Year 27",$E$7*AI26*$R$6/1000000,"") -> 0.685032 | AJ32: =IF(AJ19="Year 28",$E$7*AJ26*$R$6/1000000,"") -> 0.685032 | AK32: =IF(AK19="Year 29",$E$7*AK26*$R$6/1000000,"") -> 0.685032 | AL32: =IF(AL19="Year 30",$E$7*AL26*$R$6/1000000,"") -> 0.685032 | AM32: =IF('Input Data'!BT89>30,$E$7*AM26*$R$6/1000000,"") -> 
B33: Hydrogen | I33: =IF(((I26-I27)*R7*'Input Data'!BT38/1000000>0),(I26-I27)*R7*'Input Data'!BT38/1000000,0) -> 0 | J33: =IF(((J26-J27)*R7*'Input Data'!BT38/1000000>0),(J26-J27)*R7*'Input Data'!BT38/1000000,0) -> 0 | K33: =IF(((K26-K27)*R7*'Input Data'!BT38/1000000>0),(K26-K27)*R7*'Input Data'!BT38/1000000,0) -> 0 | L33: =IF(((L26-L27)*R7*'Input Data'!BT38/1000000>0),(L26-L27)*R7*'Input Data'!BT38/1000000,0) -> 0 | M33: =IF(((M26-M27)*R7*'Input Data'!BT38/1000000>0),(M26-M27)*R7*'Input Data'!BT38/1000000,0) -> 0 | N33: =IF(((N26-N27)*R7*'Input Data'!BT38/1000000>0),(N26-N27)*R7*'Input Data'!BT38/1000000,0) -> 0 | O33: =IF(((O26-O27)*R7*'Input Data'!BT38/1000000>0),(O26-O27)*R7*'Input Data'!BT38/1000000,0) -> 0 | P33: =IF(((P26-P27)*R7*'Input Data'!BT38/1000000>0),(P26-P27)*R7*'Input Data'!BT38/1000000,0) -> 0 | Q33: =IF(((Q26-Q27)*R7*'Input Data'!BT38/1000000>0),(Q26-Q27)*R7*'Input Data'!BT38/1000000,0) -> 0 | R33: =IF(((R26-R27)*R7*'Input Data'!BT38/1000000>0),(R26-R27)*R7*'Input Data'!BT38/1000000,0) -> 0 | S33: =IF(((S26-S27)*R7*'Input Data'!BT38/1000000>0),(S26-S27)*R7*'Input Data'!BT38/1000000,0) -> 0 | T33: =IF(((T26-T27)*R7*'Input Data'!BT38/1000000>0),(T26-T27)*R7*'Input Data'!BT38/1000000,0) -> 0 | U33: =IF(((U26-U27)*R7*'Input Data'!BT38/1000000>0),(U26-U27)*R7*'Input Data'!BT38/1000000,0) -> 0 | V33: =IF(((V26-V27)*R7*'Input Data'!BT38/1000000>0),(V26-V27)*R7*'Input Data'!BT38/1000000,0) -> 0 | W33: =IF(((W26-W27)*R7*'Input Data'!BT38/1000000>0),(W26-W27)*R7*'Input Data'!BT38/1000000,0) -> 0 | X33: =IF(((X26-X27)*R7*'Input Data'!BT38/1000000>0),(X26-X27)*R7*'Input Data'!BT38/1000000,0) -> 0 | Y33: =IF(((Y26-Y27)*R7*'Input Data'!BT38/1000000>0),(Y26-Y27)*R7*'Input Data'!BT38/1000000,0) -> 0 | Z33: =IF(((Z26-Z27)*R7*'Input Data'!BT38/1000000>0),(Z26-Z27)*R7*'Input Data'!BT38/1000000,0) -> 0 | AA33: =IF(((AA26-AA27)*R7*'Input Data'!BT38/1000000>0),(AA26-AA27)*R7*'Input Data'!BT38/1000000,0) -> 0 | AB33: =IF(AB19="Year 20",IF(((AB26-AB27)*R7*'Input Data'!BT38/1000000>0),(AB26-AB27)*R7*'Input Data'!BT38/1000000,0),"") -> 0 | AC33: =IF('Input Data'!BT89>20,IF(((AC26-AC27)*R7*'Input Data'!BT38/1000000>0),(AC26-AC27)*R7*'Input Data'!BT38/1000000,0),"") -> 0 | AD33: =IF(AD19="Year 22",IF(((AD26-AD27)*R7*'Input Data'!BT38/1000000>0),(AD26-AD27)*R7*'Input Data'!BT38/1000000,0),"") -> 0 | AE33: =IF(AE19="Year 23",IF(((AE26-AE27)*R7*'Input Data'!BT38/1000000>0),(AE26-AE27)*R7*'Input Data'!BT38/1000000,0),"") -> 0 | AF33: =IF(AF19="Year 24",IF(((AF26-AF27)*R7*'Input Data'!BT38/1000000>0),(AF26-AF27)*R7*'Input Data'!BT38/1000000,0),"") -> 0 | AG33: =IF(AG19="Year 25",IF(((AG26-AG27)*R7*'Input Data'!BT38/1000000>0),(AG26-AG27)*R7*'Input Data'!BT38/1000000,0),"") -> 0 | AH33: =IF('Input Data'!BT89>25,IF(((AH26-AH27)*R7*'Input Data'!BT38/1000000>0),(AH26-AH27)*R7*'Input Data'!BT38/1000000,0),"") -> 0 | AI33: =IF(AI19="Year 27",IF(((AI26-AI27)*R7*'Input Data'!BT38/1000000>0),(AI26-AI27)*R7*'Input Data'!BT38/1000000,0),"") -> 0 | AJ33: =IF(AJ19="Year 28",IF(((AJ26-AJ27)*R7*'Input Data'!BT38/1000000>0),(AJ26-AJ27)*R7*'Input Data'!BT38/1000000,0),"") -> 0 | AK33: =IF(AK19="Year 29",IF(((AK26-AK27)*R7*'Input Data'!BT38/1000000>0),(AK26-AK27)*R7*'Input Data'!BT38/1000000,0),"") -> 0 | AL33: =IF(AL19="Year 30",IF(((AL26-AL27)*R7*'Input Data'!BT38/1000000>0),(AL26-AL27)*R7*'Input Data'!BT38/1000000,0),"") -> 0 | AM33: =IF('Input Data'!BT89>30,IF(((AM26-AM27)*R7*'Input Data'!BT38/1000000>0),(AM26-AM27)*R7*'Input Data'!BT38/1000000,0),"") -> 
B34: Operating costs
B35: Fuel (Coal) | I35: =$M$5*$E$5*I26/1000000 -> 99.5904325 | J35: =$M$5*$E$5*J26/1000000 -> 114.9120375 | K35: 130.2336425 | L35: 130.2336425 | M35: 130.2336425 | N35: 130.2336425 | O35: 130.2336425 | P35: 130.2336425 | Q35: 130.2336425 | R35: 130.2336425 | S35: 130.2336425 | T35: 130.2336425 | U35: 130.2336425 | V35: 130.2336425 | W35: 130.2336425 | X35: 130.2336425 | Y35: 130.2336425 | Z35: 130.2336425 | AA35: 130.2336425 | AB35: =IF(AB19="Year 20",$M$5*$E$5*AB26/1000000,"") -> 130.2336425 | AC35: =IF('Input Data'!BT89>20,$M$5*$E$5*AC26/1000000,"") -> 130.2336425 | AD35: =IF(AD19="Year 22",$M$5*$E$5*AD26/1000000,"") -> 130.2336425 | AE35: =IF(AE19="Year 23",$M$5*$E$5*AE26/1000000,"") -> 130.2336425 | AF35: =IF(AF19="Year 24",$M$5*$E$5*AF26/1000000,"") -> 130.2336425 | AG35: =IF(AG19="Year 25",$M$5*$E$5*AG26/1000000,"") -> 130.2336425 | AH35: =IF('Input Data'!BT89>25,$M$5*$E$5*AH26/1000000,"") -> 130.2336425 | AI35: =IF(AI19="Year 27",$M$5*$E$5*AI26/1000000,"") -> 130.2336425 | AJ35: =IF(AJ19="Year 28",$M$5*$E$5*AJ26/1000000,"") -> 130.2336425 | AK35: =IF(AK19="Year 29",$M$5*$E$5*AK26/1000000,"") -> 130.2336425 | AL35: =IF(AL19="Year 30",$M$5*$E$5*AL26/1000000,"") -> 130.2336425 | AM35: =IF('Input Data'!BT89>30,$M$5*$E$5*AM26/1000000,"") -> 
B36: Maintenance | I36: =$M$6 -> 38.9 | J36: =$M$6 -> 38.9 | K36: 38.9 | L36: 38.9 | M36: 38.9 | N36: 38.9 | O36: 38.9 | P36: 38.9 | Q36: 38.9 | R36: 38.9 | S36: 38.9 | T36: 38.9 | U36: 38.9 | V36: 38.9 | W36: 38.9 | X36: 38.9 | Y36: 38.9 | Z36: 38.9 | AA36: 38.9 | AB36: =IF(AB19="Year 20",$M$6,"") -> 38.9 | AC36: =IF('Input Data'!BT89>20,$M$6,"") -> 38.9 | AD36: =IF(AD19="Year 22",$M$6,"") -> 38.9 | AE36: =IF(AE19="Year 23",$M$6,"") -> 38.9 | AF36: =IF(AF19="Year 24",$M$6,"") -> 38.9 | AG36: =IF(AG19="Year 25",$M$6,"") -> 38.9 | AH36: =IF('Input Data'!BT89>25,$M$6,"") -> 38.9 | AI36: =IF(AI19="Year 27",$M$6,"") -> 38.9 | AJ36: =IF(AJ19="Year 28",$M$6,"") -> 38.9 | AK36: =IF(AK19="Year 29",$M$6,"") -> 38.9 | AL36: =IF(AL19="Year 30",$M$6,"") -> 38.9 | AM36: =IF('Input Data'!BT89>30,$M$6,"") -> 
B37: Labour | I37: =$N$12 -> 8.32 | J37: 8.32 | K37: 8.32 | L37: 8.32 | M37: 8.32 | N37: 8.32 | O37: 8.32 | P37: 8.32 | Q37: 8.32 | R37: 8.32 | S37: 8.32 | T37: 8.32 | U37: 8.32 | V37: 8.32 | W37: 8.32 | X37: 8.32 | Y37: 8.32 | Z37: 8.32 | AA37: 8.32 | AB37: =IF(AB19="Year 20",$N$12,"") -> 8.32 | AC37: =IF('Input Data'!BT89>20,$N$12,"") -> 8.32 | AD37: =IF(AD19="Year 22",$N$12,"") -> 8.32 | AE37: =IF(AE19="Year 23",$N$12,"") -> 8.32 | AF37: =IF(AF19="Year 24",$N$12,"") -> 8.32 | AG37: =IF(AG19="Year 25",$N$12,"") -> 8.32 | AH37: =IF('Input Data'!BT89>25,$N$12,"") -> 8.32 | AI37: =IF(AI19="Year 27",$N$12,"") -> 8.32 | AJ37: =IF(AJ19="Year 28",$N$12,"") -> 8.32 | AK37: =IF(AK19="Year 29",$N$12,"") -> 8.32 | AL37: =IF(AL19="Year 30",$N$12,"") -> 8.32 | AM37: =IF('Input Data'!BT89>30,$N$12,"") -> 
B38: Chemicals and Consumables | I38: =I22*'Input Data'!$BT$74*I24/0.85 -> 2.844705882 | J38: =J22*'Input Data'!$BT$74*J24/0.85 -> 3.282352941 | K38: =K22*'Input Data'!$BT$74*K24/0.85 -> 3.72 | L38: =L22*'Input Data'!$BT$74*L24/0.85 -> 3.72 | M38: =M22*'Input Data'!$BT$74*M24/0.85 -> 3.72 | N38: =N22*'Input Data'!$BT$74*N24/0.85 -> 3.72 | O38: =O22*'Input Data'!$BT$74*O24/0.85 -> 3.72 | P38: =P22*'Input Data'!$BT$74*P24/0.85 -> 3.72 | Q38: =Q22*'Input Data'!$BT$74*Q24/0.85 -> 3.72 | R38: =R22*'Input Data'!$BT$74*R24/0.85 -> 3.72 | S38: =S22*'Input Data'!$BT$74*S24/0.85 -> 3.72 | T38: =T22*'Input Data'!$BT$74*T24/0.85 -> 3.72 | U38: =U22*'Input Data'!$BT$74*U24/0.85 -> 3.72 | V38: =V22*'Input Data'!$BT$74*V24/0.85 -> 3.72 | W38: =W22*'Input Data'!$BT$74*W24/0.85 -> 3.72 | X38: =X22*'Input Data'!$BT$74*X24/0.85 -> 3.72 | Y38: =Y22*'Input Data'!$BT$74*Y24/0.85 -> 3.72 | Z38: =Z22*'Input Data'!$BT$74*Z24/0.85 -> 3.72 | AA38: =AA22*'Input Data'!$BT$74*AA24/0.85 -> 3.72 | AB38: =IF(AB19="Year 20",AB22*AB24*'Input Data'!$BT$74/0.85,"") -> 3.72 | AC38: =IF('Input Data'!BT89>20,AC22*AC24*'Input Data'!$BT$74/0.85,"") -> 3.72 | AD38: =IF(AD19="Year 22",AD22*AD24*'Input Data'!$BT$74/0.85,"") -> 3.72 | AE38: =IF(AE19="Year 23",AE24*AE22*'Input Data'!$BT$74/0.85,"") -> 3.72 | AF38: =IF(AF19="Year 24",AF22*AF24*'Input Data'!$BT$74/0.85,"") -> 3.72 | AG38: =IF(AG19="Year 25",AG22*AG24*'Input Data'!$G$74/0.85,"") -> 3.79 | AH38: =IF('Input Data'!BT89>25,AH22*AH24*'Input Data'!$BT$74/0.85,"") -> 3.72 | AI38: =IF(AI19="Year 27",AI24*AI22*'Input Data'!$BT$74/0.85,"") -> 3.72 | AJ38: =IF(AJ19="Year 28",AJ24*AJ22*'Input Data'!$BT$74/0.85,"") -> 3.72 | AK38: =IF(AK19="Year 29",AK22*AK24*'Input Data'!$BT$74/0.85,"") -> 3.72 | AL38: =IF(AL19="Year 30",AL22*AL24*'Input Data'!$BT$74/0.85,"") -> 3.72 | AM38: =IF('Input Data'!BT89>30,AM22*AM24*'Input Data'!$BT$74/0.85,"") -> 
B39: Waste Disposal | I39: =I26*'Input Data'!$BT$40*'Input Data'!$BT$73/1000000 -> 1.434888 | J39: =J26*'Input Data'!$BT$40*'Input Data'!$BT$73/1000000 -> 1.65564 | K39: =K26*'Input Data'!$BT$40*'Input Data'!$BT$73/1000000 -> 1.876392 | L39: =L26*'Input Data'!$BT$40*'Input Data'!$BT$73/1000000 -> 1.876392 | M39: =M26*'Input Data'!$BT$40*'Input Data'!$BT$73/1000000 -> 1.876392 | N39: =N26*'Input Data'!$BT$40*'Input Data'!$BT$73/1000000 -> 1.876392 | O39: =O26*'Input Data'!$BT$40*'Input Data'!$BT$73/1000000 -> 1.876392 | P39: =P26*'Input Data'!$BT$40*'Input Data'!$BT$73/1000000 -> 1.876392 | Q39: =Q26*'Input Data'!$BT$40*'Input Data'!$BT$73/1000000 -> 1.876392 | R39: =R26*'Input Data'!$BT$40*'Input Data'!$BT$73/1000000 -> 1.876392 | S39: =S26*'Input Data'!$BT$40*'Input Data'!$BT$73/1000000 -> 1.876392 | T39: =T26*'Input Data'!$BT$40*'Input Data'!$BT$73/1000000 -> 1.876392 | U39: =U26*'Input Data'!$BT$40*'Input Data'!$BT$73/1000000 -> 1.876392 | V39: =V26*'Input Data'!$BT$40*'Input Data'!$BT$73/1000000 -> 1.876392 | W39: =W26*'Input Data'!$BT$40*'Input Data'!$BT$73/1000000 -> 1.876392 | X39: =X26*'Input Data'!$BT$40*'Input Data'!$BT$73/1000000 -> 1.876392 | Y39: =Y26*'Input Data'!$BT$40*'Input Data'!$BT$73/1000000 -> 1.876392 | Z39: =Z26*'Input Data'!$BT$40*'Input Data'!$BT$73/1000000 -> 1.876392 | AA39: =AA26*'Input Data'!$BT$40*'Input Data'!$BT$73/1000000 -> 1.876392 | AB39: =IF(AB19="Year 20",AB26*'Input Data'!$BT$40*'Input Data'!$BT$73/1000000,"") -> 1.876392 | AC39: =IF('Input Data'!BT89>20,AC26*'Input Data'!$BT$40*'Input Data'!$BT$73/1000000,"") -> 1.876392 | AD39: =IF(AD19="Year 22",AD26*'Input Data'!$BT$40*'Input Data'!$BT$73/1000000,"") -> 1.876392 | AE39: =IF(AE19="Year 23",AE26*'Input Data'!$BT$40*'Input Data'!$BT$73/1000000,"") -> 1.876392 | AF39: =IF(AF19="Year 24",AF26*'Input Data'!$BT$40*'Input Data'!$BT$73/1000000,"") -> 1.876392 | AG39: =IF(AG19="Year 25",AG26*'Input Data'!$BT$40*'Input Data'!$BT$73/1000000,"") -> 1.876392 | AH39: =IF('Input Data'!BT89>25,AH26*'Input Data'!$BT$40*'Input Data'!$BT$73/1000000,"") -> 1.876392 | AI39: =IF(AI19="Year 27",AI26*'Input Data'!$BT$40*'Input Data'!$BT$73/1000000,"") -> 1.876392 | AJ39: =IF(AJ19="Year 28",AJ26*'Input Data'!$BT$40*'Input Data'!$BT$73/1000000,"") -> 1.876392 | AK39: =IF(AK19="Year 29",AK26*'Input Data'!$BT$40*'Input Data'!$BT$73/1000000,"") -> 1.876392 | AL39: =IF(AL19="Year 30",AL26*'Input Data'!$BT$40*'Input Data'!$BT$73/1000000,"") -> 1.876392 | AM39: =IF('Input Data'!BT89>30,AM26*'Input Data'!$BT$40*'Input Data'!$BT$73/1000000,"") -> 
B40: Insurance + Local Taxes | I40: =I5*R10 -> 21.674 | J40: =I5*R10 -> 21.674 | K40: =I5*R10 -> 21.674 | L40: =I5*R10 -> 21.674 | M40: =I5*R10 -> 21.674 | N40: =I5*R10 -> 21.674 | O40: =I5*R10 -> 21.674 | P40: =I5*R10 -> 21.674 | Q40: =I5*R10 -> 21.674 | R40: =I5*R10 -> 21.674 | S40: =I5*R10 -> 21.674 | T40: =I5*R10 -> 21.674 | U40: =I5*R10 -> 21.674 | V40: =I5*R10 -> 21.674 | W40: =I5*R10 -> 21.674 | X40: =I5*R10 -> 21.674 | Y40: =I5*R10 -> 21.674 | Z40: =I5*R10 -> 21.674 | AA40: =I5*R10 -> 21.674 | AB40: =IF(AB19="Year 20",I5*R10,"") -> 21.674 | AC40: =IF('Input Data'!BT89>20,I5*R10,"") -> 21.674 | AD40: =IF(AD19="Year 22",I5*R10,"") -> 21.674 | AE40: =IF(AE19="Year 23",I5*R10,"") -> 21.674 | AF40: =IF(AF19="Year 24",I5*R10,"") -> 21.674 | AG40: =IF(AG19="Year 25",I5*R10,"") -> 21.674 | AH40: =IF('Input Data'!BT89>25,I5*R10,"") -> 21.674 | AI40: =IF(AI19="Year 27",I5*R10,"") -> 21.674 | AJ40: =IF(AJ19="Year 28",I5*R10,"") -> 21.674 | AK40: =IF(AK19="Year 29",I5*R10,"") -> 21.674 | AL40: =IF(AL19="Year 30",I5*R10,"") -> 21.674 | AM40: =IF('Input Data'!BT89>30,I5*R10,"") -> 
B41: CO2 Emissions | I41: ='Input Data'!$BT$33*'Input Data'!$BT$77*I26/1000000 -> 0 | J41: ='Input Data'!$BT$33*'Input Data'!$BT$77*J26/1000000 -> 0 | K41: ='Input Data'!$BT$33*'Input Data'!$BT$77*K26/1000000 -> 0 | L41: ='Input Data'!$BT$33*'Input Data'!$BT$77*L26/1000000 -> 0 | M41: ='Input Data'!$BT$33*'Input Data'!$BT$77*M26/1000000 -> 0 | N41: ='Input Data'!$BT$33*'Input Data'!$BT$77*N26/1000000 -> 0 | O41: ='Input Data'!$BT$33*'Input Data'!$BT$77*O26/1000000 -> 0 | P41: ='Input Data'!$BT$33*'Input Data'!$BT$77*P26/1000000 -> 0 | Q41: ='Input Data'!$BT$33*'Input Data'!$BT$77*Q26/1000000 -> 0 | R41: ='Input Data'!$BT$33*'Input Data'!$BT$77*R26/1000000 -> 0 | S41: ='Input Data'!$BT$33*'Input Data'!$BT$77*S26/1000000 -> 0 | T41: ='Input Data'!$BT$33*'Input Data'!$BT$77*T26/1000000 -> 0 | U41: ='Input Data'!$BT$33*'Input Data'!$BT$77*U26/1000000 -> 0 | V41: ='Input Data'!$BT$33*'Input Data'!$BT$77*V26/1000000 -> 0 | W41: ='Input Data'!$BT$33*'Input Data'!$BT$77*W26/1000000 -> 0 | X41: ='Input Data'!$BT$33*'Input Data'!$BT$77*X26/1000000 -> 0 | Y41: ='Input Data'!$BT$33*'Input Data'!$BT$77*Y26/1000000 -> 0 | Z41: ='Input Data'!$BT$33*'Input Data'!$BT$77*Z26/1000000 -> 0 | AA41: ='Input Data'!$BT$33*'Input Data'!$BT$77*AA26/1000000 -> 0 | AB41: ='Input Data'!$BT$33*'Input Data'!$BT$77*AB26/1000000 -> 0 | AC41: =IF('Input Data'!BT89>20,'Input Data'!$BT$33*'Input Data'!$BT$77*AC26/1000000,"") -> 0 | AD41: =IF(AD19="Year 22",'Input Data'!$BT$33*'Input Data'!$BT$77*AD26/1000000,"") -> 0 | AE41: =IF(AE19="Year 23",'Input Data'!$BT$33*'Input Data'!$BT$77*AE26/1000000,"") -> 0 | AF41: =IF(AF19="Year 24",'Input Data'!$BT$33*'Input Data'!$BT$77*AF26/1000000,"") -> 0 | AG41: =IF(AG19="Year 25",'Input Data'!$BT$33*'Input Data'!$BT$77*AG26/1000000,"") -> 0 | AH41: =IF('Input Data'!BT89>25,'Input Data'!$BT$33*'Input Data'!$BT$77*AH26/1000000,"") -> 0 | AI41: =IF(AI19="Year 27",'Input Data'!$BT$33*'Input Data'!$BT$77*AI26/1000000,"") -> 0 | AJ41: =IF(AJ19="Year 28",'Input Data'!$BT$33*'Input Data'!$BT$77*AJ26/1000000,"") -> 0 | AK41: =IF(AK19="Year 29",'Input Data'!$BT$33*'Input Data'!$BT$77*AK26/1000000,"") -> 0 | AL41: =IF(AL19="Year 30",'Input Data'!$BT$33*'Input Data'!$BT$77*AL26/1000000,"") -> 0 | AM41: =IF('Input Data'!BT89>30,'Input Data'!$BT$33*'Input Data'!$BT$77*AM26/1000000,"") -> 
B42: Fixed Capital Expenditure | F42: =I10*F29 -> 379.295 | G42: =I10*G29 -> 682.731 | H42: =H29*I10 -> 455.154
B44: Total Cash Flow (yearly) | F44: =SUM(F31:F33)-SUM(F35:F41)-F42 -> -379.295 | G44: -682.731 | H44: -455.154 | I44: 125.2708945 | J44: 155.1424167 | K44: 185.013939 | L44: 185.013939 | M44: 185.013939 | N44: 185.013939 | O44: 185.013939 | P44: 185.013939 | Q44: 185.013939 | R44: 185.013939 | S44: 185.013939 | T44: 185.013939 | U44: 185.013939 | V44: 185.013939 | W44: 185.013939 | X44: 185.013939 | Y44: 185.013939 | Z44: 185.013939 | AA44: 185.013939 | AB44: 185.013939 | AC44: =IF(AC19="Year 21",SUM(AC31:AC33)-SUM(AC35:AC41)-AC42,"") -> 185.013939 | AD44: =IF(AD19="Year 22",SUM(AD31:AD33)-SUM(AD35:AD41)-AD42,"") -> 185.013939 | AE44: =IF(AE19="Year 23",SUM(AE31:AE33)-SUM(AE35:AE41)-AE42,"") -> 185.013939 | AF44: =IF(AF19="Year 24",SUM(AF31:AF33)-SUM(AF35:AF41)-AF42,"") -> 185.013939 | AG44: =IF(AG19="Year 25",SUM(AG31:AG33)-SUM(AG35:AG41)-AG42,"") -> 184.943939 | AH44: =IF(AH19="Year 26",SUM(AH31:AH33)-SUM(AH35:AH41)-AH42,"") -> 185.013939 | AI44: =IF(AI19="Year 27",SUM(AI31:AI33)-SUM(AI35:AI41)-AI42,"") -> 185.013939 | AJ44: =IF(AJ19="Year 28",SUM(AJ31:AJ33)-SUM(AJ35:AJ41)-AJ42,"") -> 185.013939 | AK44: =IF(AK19="Year 29",SUM(AK31:AK33)-SUM(AK35:AK41)-AK42,"") -> 185.013939 | AL44: =IF(AL19="Year 30",SUM(AL31:AL33)-SUM(AL35:AL41)-AL42,"") -> 185.013939 | AM44: =IF(AM19="Year 31",SUM(AM31:AM33)-SUM(AM35:AM41)-AM42,"") -> 0
B45: Total Cash Flow (accumulated) | F45: =F44 -> -379.295 | G45: =-1*(ABS(G44)+ABS(F45)) -> -1062.026 | H45: =-1*(ABS(H44)+ABS(G45)) -> -1517.18 | I45: =H45+I44 -> -1391.909106 | J45: =I45+J44 -> -1236.766689 | K45: -1051.75275 | L45: -866.7388109 | M45: -681.7248719 | N45: -496.7109329 | O45: -311.696994 | P45: -126.683055 | Q45: 58.33088395 | R45: 243.3448229 | S45: 428.3587619 | T45: 613.3727008 | U45: 798.3866398 | V45: 983.4005787 | W45: 1168.414518 | X45: 1353.428457 | Y45: 1538.442396 | Z45: 1723.456335 | AA45: 1908.470274 | AB45: =IF(AB19="Year 20",AA45+AB44,"") -> 2093.484213 | AC45: =IF(AC19="Year 21",AB45+AC44,"") -> 2278.498151 | AD45: =IF(AD19="Year 22",AC45+AD44,"") -> 2463.51209 | AE45: =IF(AE19="Year 23",AD45+AE44,"") -> 2648.526029 | AF45: =IF(AF19="Year 24",AE45+AF44,"") -> 2833.539968 | AG45: =IF(AG19="Year 25",AF45+AG44,"") -> 3018.483907 | AH45: =IF(AH19="Year 26",AG45+AH44,"") -> 3203.497846 | AI45: =IF(AI19="Year 27",AH45+AI44,"") -> 3388.511785 | AJ45: =IF(AJ19="Year 28",AI45+AJ44,"") -> 3573.525724 | AK45: =IF(AK19="Year 29",AJ45+AK44,"") -> 3758.539663 | AL45: =IF(AL19="Year 30",AK45+AL44,"") -> 3943.553602 | AM45: =IF(AM19="Year 31",AL45+AM44,"") -> 3943.553602
B47: Discounted Cash Flow (yearly) | F47: =F45/(1+R9) -> -344.8136364 | G47: =G44/(1+R9)^2 -> -564.2404959 | H47: =H44/(1+R9)^3 -> -341.9639369 | I47: =I44/(1+R9)^4 -> 85.56170651 | J47: =J44/(1+R9)^5 -> 96.33123466 | K47: =K44/(1+R9)^6 -> 104.4355452 | L47: =L44/(1+R9)^7 -> 94.94140476 | M47: =M44/(1+R9)^8 -> 86.31036797 | N47: =N44/(1+R9)^9 -> 78.46397088 | O47: =O44/(1+R9)^10 -> 71.33088262 | P47: =P44/(1+R9)^11 -> 64.84625692 | Q47: =Q44/(1+R9)^12 -> 58.95114266 | R47: =R44/(1+R9)^13 -> 53.59194787 | S47: =S44/(1+R9)^14 -> 48.71995261 | T47: =T44/(1+R9)^15 -> 44.29086601 | U47: =U44/(1+R9)^16 -> 40.26442364 | V47: =V44/(1+R9)^17 -> 36.6040215 | W47: =W44/(1+R9)^18 -> 33.27638318 | X47: =X44/(1+R9)^19 -> 30.25125743 | Y47: =Y44/(1+R9)^20 -> 27.50114312 | Z47: =Z44/(1+R9)^21 -> 25.0010392 | AA47: =AA44/(1+R9)^22 -> 22.72821746 | AB47: =IF(AB19="Year 20",AB44/(1+R9)^23,"") -> 20.66201587 | AC47: =IF(AC19="Year 21",AC44/(1+R9)^24,"") -> 18.78365079 | AD47: =IF(AD19="Year 22",AD44/(1+R9)^25,"") -> 17.07604617 | AE47: =IF(AE19="Year 23",AE44/(1+R9)^26,"") -> 15.52367834 | AF47: =IF(AF19="Year 24",AF44/(1+R9)^27,"") -> 14.11243485 | AG47: =IF(AG19="Year 25",AG44/(1+R9)^28,"") -> 12.8246322 | AH47: =IF(AH19="Year 26",AH44/(1+R9)^29,"") -> 11.6631693 | AI47: =IF(AI19="Year 27",AI44/(1+R9)^30,"") -> 10.60288118 | AJ47: =IF(AJ19="Year 28",AJ44/(1+R9)^31,"") -> 9.638982893 | AK47: =IF(AK19="Year 29",AK44/(1+R9)^32,"") -> 8.762711721 | AL47: =IF(AL19="Year 30",AL44/(1+R9)^33,"") -> 7.966101564 | AM47: =IF(AM19="Year 31",AM44/(1+R9)^34,"") -> 0
B48: Discounted Cash Flow (accumulated) | F48: =F47 -> -344.8136364 | G48: =SUM(G47+F48) -> -909.0541322 | H48: -1251.018069 | I48: -1165.456363 | J48: -1069.125128 | K48: -964.6895827 | L48: -869.748178 | M48: -783.43781 | N48: -704.9738391 | O48: -633.6429565 | P48: -568.7966996 | Q48: -509.8455569 | R48: -456.253609 | S48: -407.5336564 | T48: -363.2427904 | U48: -322.9783668 | V48: -286.3743453 | W48: -253.0979621 | X48: -222.8467047 | Y48: -195.3455615 | Z48: -170.3445223 | AA48: -147.6163049 | AB48: =IF(AB19="Year 20",SUM(AB47+AA48),"") -> -126.954289 | AC48: =IF(AC19="Year 21",SUM(AC47+AB48),"") -> -108.1706382 | AD48: =IF(AD19="Year 22",SUM(AD47+AC48),"") -> -91.09459205 | AE48: =IF(AE19="Year 23",SUM(AE47+AD48),"") -> -75.57091371 | AF48: =IF(AF19="Year 24",SUM(AF47+AE48),"") -> -61.45847886 | AG48: =IF(AG19="Year 25",SUM(AG47+AF48),"") -> -48.63384666 | AH48: =IF(AH19="Year 26",SUM(AH47+AG48),"") -> -36.97067736 | AI48: =IF(AI19="Year 27",SUM(AI47+AH48),"") -> -26.36779618 | AJ48: =IF(AJ19="Year 28",SUM(AJ47+AI48),"") -> -16.72881329 | AK48: =IF(AK19="Year 29",SUM(AK47+AJ48),"") -> -7.966101564 | AL48: =IF(AL19="Year 30",SUM(AL47+AK48),"") -> -1.286082352e-12 | AM48: =IF(AM19="Year 31",SUM(AM47+AL48),"") -> -1.286082352e-12
AA50: Hidden acc cf | AC50: =SUM(AC47+AB48) -> -108.1706382 | AD50: =IF(AD47="",AC48,SUM(AD47+AC48)) -> -91.09459205 | AE50: =IF(AE47="",AD50,SUM(AE47+AD50)) -> -75.57091371 | AF50: =IF(AF47="",AE50,SUM(AF47+AE50)) -> -61.45847886 | AG50: =IF(AG47="",AF50,SUM(AG47+AF50)) -> -48.63384666 | AH50: -36.97067736 | AI50: -26.36779618 | AJ50: -16.72881329 | AK50: -7.966101564 | AL50: -1.286082352e-12 | AM50: -1.286082352e-12 | AN50: -1.286082352e-12

Sheet IGCC wo CC
B4: Production | G4: Capital Expenditure | I4: UK£ (million) | K4: Operating Costs | L4: UK£ (million/year) | P4: Revenues
B5: Coal feedrate | D5: te/h | E5: ='Input Data'!N26 -> 230.7916667 | G5: Installed cost | I5: ='Input Data'!N60 -> 910 | K5: Fuel Cost | M5: ='Input Data'!N71 -> 65 | N5: UK£/te | P5: Electricity Price | R5: 0.05949350412 | S5: UK£/kWh
B6: Net power ouput | D6: MW | E6: ='Input Data'!N23 -> 746.1 | G6: Land purchase, surveys | I6: ='Input Data'!N65 -> 0.05 | K6: Maintenance | M6: ='Input Data'!N72 -> 34.22 | N6: UK£/year | P6: Sulphur Price | R6: ='Input Data'!N84 -> 40 | S6: UK£/te
B7: Sulphur for export | D7: te/h | E7: ='Input Data'!N37 -> 1.95 | G7: Fees | I7: ='Input Data'!N66 -> 0.1 | K7: CO2 Emissions | M7: ='Input Data'!N77 -> 0 | N7: UK£/te | P7: Hydrogen Price | R7: ='Input Data'!N85 -> 1307.189542 | S7: UK£/te
G8: Contingencies | I8: ='Input Data'!N64 -> 0.25 | K8: Labour Cost | N8: UK£/year (million)
K9: Number of operations personnel | N9: ='Input Data'!N78 -> 115 | P9: Discounted Rate: | R9: ='Input Data'!N86 -> 0.1
B10: =IF('Input Data'!N10>0.001,"Performance Data: User Adjusted","") ->  | G10: Total Investment Cost | I10: =I5+(I6*I5)+(I5*I7)+(I5*I8) -> 1274 | K10: Average salary options personnel | N10: ='Input Data'!N79 -> 0.05 | P10: Insurance | R10: ='Input Data'!N81 -> 0.02 | S10: Installed Cost
K11: Admin | N11: ='Input Data'!N80 -> 0.3
K12: Total Labour Cost | N12: =(N9*N10)*(1+N11) -> 7.475
G13: =IF('Input Data'!N47>0.001,"Capital and Cost Data: User Adjusted","") ->  | P13: =IF('Input Data'!N83>0.001,"Revenue Data: User Adjusted","") -> 
K14: =IF('Input Data'!N70>0.001,"Operating Data: User Adjusted","") -> 
F17: YEAR
B18: CASH FLOW ANALYSIS | F18: =G18-1 -> 2009 | G18: =H18-1 -> 2010 | H18: =I18-1 -> 2011 | I18: ='Input Data'!K102 -> 2012 | J18: ='Input Data'!K103 -> 2013 | K18: ='Input Data'!K104 -> 2014 | L18: ='Input Data'!K105 -> 2015 | M18: ='Input Data'!K106 -> 2016 | N18: ='Input Data'!K107 -> 2017 | O18: ='Input Data'!K108 -> 2018 | P18: ='Input Data'!K109 -> 2019 | Q18: ='Input Data'!K110 -> 2020 | R18: ='Input Data'!K111 -> 2021 | S18: ='Input Data'!K112 -> 2022 | T18: ='Input Data'!K113 -> 2023 | U18: ='Input Data'!K114 -> 2024 | V18: ='Input Data'!K115 -> 2025 | W18: ='Input Data'!K116 -> 2026 | X18: ='Input Data'!K117 -> 2027 | Y18: ='Input Data'!K118 -> 2028 | Z18: ='Input Data'!K119 -> 2029 | AA18: ='Input Data'!K120 -> 2030 | AB18: ='Input Data'!K121 -> 2031 | AC18: ='Input Data'!K122 -> 2032 | AD18: ='Input Data'!K123 -> 2033 | AE18: ='Input Data'!K124 -> 2034 | AF18: ='Input Data'!K125 -> 2035 | AG18: ='Input Data'!K126 -> 2036 | AH18: ='Input Data'!K127 -> 2037 | AI18: ='Input Data'!K128 -> 2038 | AJ18: ='Input Data'!K129 -> 2039 | AK18: ='Input Data'!K130 -> 2040 | AL18: ='Input Data'!K131 -> 2041 | AM18: ='Input Data'!K132 -> 2042
B19: UK£ (million) | F19: Year -3 | G19: Year -2 | H19: Year -1 | I19: ='Input Data'!J102 -> Year 1 | J19: ='Input Data'!J103 -> Year 2 | K19: ='Input Data'!J104 -> Year 3 | L19: ='Input Data'!J105 -> Year 4 | M19: ='Input Data'!J106 -> Year 5 | N19: ='Input Data'!J107 -> Year 6 | O19: ='Input Data'!J108 -> Year 7 | P19: ='Input Data'!J109 -> Year 8 | Q19: ='Input Data'!J110 -> Year 9 | R19: ='Input Data'!J111 -> Year 10 | S19: ='Input Data'!J112 -> Year 11 | T19: ='Input Data'!J113 -> Year 12 | U19: ='Input Data'!J114 -> Year 13 | V19: ='Input Data'!J115 -> Year 14 | W19: ='Input Data'!J116 -> Year 15 | X19: ='Input Data'!J117 -> Year 16 | Y19: ='Input Data'!J118 -> Year 17 | Z19: ='Input Data'!J119 -> Year 18 | AA19: ='Input Data'!J120 -> Year 19 | AB19: ='Input Data'!J121 -> Year 20 | AC19: ='Input Data'!J122 -> Year 21 | AD19: ='Input Data'!J123 -> Year 22 | AE19: ='Input Data'!J124 -> Year 23 | AF19: ='Input Data'!J125 -> Year 24 | AG19: ='Input Data'!J126 -> Year 25 | AH19: ='Input Data'!J127 -> Year 26 | AI19: ='Input Data'!J128 -> Year 27 | AJ19: ='Input Data'!J129 -> Year 28 | AK19: ='Input Data'!J130 -> Year 29 | AL19: ='Input Data'!J131 -> Year 30 | AM19: ='Input Data'!J132 -> Year 31
B22: Load factor - Hydrogen Production | I22: ='Input Data'!L102 -> 1 | J22: ='Input Data'!L103 -> 1 | K22: ='Input Data'!L104 -> 1 | L22: ='Input Data'!L105 -> 1 | M22: ='Input Data'!L106 -> 1 | N22: ='Input Data'!L107 -> 1 | O22: ='Input Data'!L108 -> 1 | P22: ='Input Data'!L109 -> 1 | Q22: ='Input Data'!L110 -> 1 | R22: ='Input Data'!L111 -> 1 | S22: ='Input Data'!L112 -> 1 | T22: ='Input Data'!L113 -> 1 | U22: ='Input Data'!L114 -> 1 | V22: ='Input Data'!L115 -> 1 | W22: ='Input Data'!L116 -> 1 | X22: ='Input Data'!L117 -> 1 | Y22: ='Input Data'!L118 -> 1 | Z22: ='Input Data'!L119 -> 1 | AA22: ='Input Data'!L120 -> 1 | AB22: ='Input Data'!L121 -> 1 | AC22: =IF('Input Data'!N89>20,'Input Data'!L122,"") -> 1 | AD22: =IF(AD19="Year 22",'Input Data'!L123,"") -> 1 | AE22: =IF(AE19="Year 23",'Input Data'!L124,"") -> 1 | AF22: =IF(AF19="Year 24",'Input Data'!L125,"") -> 1 | AG22: =IF(AG19="Year 25",'Input Data'!L126,"") -> 1 | AH22: =IF('Input Data'!N89>25,'Input Data'!L127,"") -> 1 | AI22: =IF(AI19="Year 27",'Input Data'!L128,"") -> 1 | AJ22: =IF(AJ19="Year 28",'Input Data'!L129,"") -> 1 | AK22: =IF(AK19="Year 29",'Input Data'!L130,"") -> 1 | AL22: =IF(AL19="Year 30",'Input Data'!L131,"") -> 1 | AM22: =IF('Input Data'!N89>30,'Input Data'!L132,"") -> 
B23: Load factor - Power Island | I23: ='Input Data'!M102 -> 1 | J23: ='Input Data'!M103 -> 1 | K23: ='Input Data'!M104 -> 1 | L23: ='Input Data'!M105 -> 1 | M23: ='Input Data'!M106 -> 1 | N23: ='Input Data'!M107 -> 1 | O23: ='Input Data'!M108 -> 1 | P23: ='Input Data'!M109 -> 1 | Q23: ='Input Data'!M110 -> 1 | R23: ='Input Data'!M111 -> 1 | S23: ='Input Data'!M112 -> 1 | T23: ='Input Data'!M113 -> 1 | U23: ='Input Data'!M114 -> 1 | V23: ='Input Data'!M115 -> 1 | W23: ='Input Data'!M116 -> 1 | X23: ='Input Data'!M117 -> 1 | Y23: ='Input Data'!M118 -> 1 | Z23: ='Input Data'!M119 -> 1 | AA23: ='Input Data'!M120 -> 1 | AB23: ='Input Data'!M121 -> 1 | AC23: =IF('Input Data'!N89>20,'Input Data'!M122,"") -> 1 | AD23: =IF(AD19="Year 22",'Input Data'!M123,"") -> 1 | AE23: =IF(AE19="Year 23",'Input Data'!M124,"") -> 1 | AF23: =IF(AF19="Year 24",'Input Data'!M125,"") -> 1 | AG23: =IF(AG19="Year 25",'Input Data'!M126,"") -> 1 | AH23: =IF('Input Data'!N89>25,'Input Data'!M127,"") -> 1 | AI23: =IF(AI19="Year 27",'Input Data'!M128,"") -> 1 | AJ23: =IF(AJ19="Year 28",'Input Data'!M129,"") -> 1 | AK23: =IF(AK19="Year 29",'Input Data'!M130,"") -> 1 | AL23: =IF(AL19="Year 30",'Input Data'!M131,"") -> 1 | AM23: =IF('Input Data'!N89>30,'Input Data'!M132,"") -> 
B24: Availability - Hydrogen Production | I24: ='Input Data'!N102 -> 0.65 | J24: ='Input Data'!N103 -> 0.75 | K24: ='Input Data'!N104 -> 0.85 | L24: ='Input Data'!N105 -> 0.85 | M24: ='Input Data'!N106 -> 0.85 | N24: ='Input Data'!N107 -> 0.85 | O24: ='Input Data'!N108 -> 0.85 | P24: ='Input Data'!N109 -> 0.85 | Q24: ='Input Data'!N110 -> 0.85 | R24: ='Input Data'!N111 -> 0.85 | S24: ='Input Data'!N112 -> 0.85 | T24: ='Input Data'!N113 -> 0.85 | U24: ='Input Data'!N114 -> 0.85 | V24: ='Input Data'!N115 -> 0.85 | W24: ='Input Data'!N116 -> 0.85 | X24: ='Input Data'!N117 -> 0.85 | Y24: ='Input Data'!N118 -> 0.85 | Z24: ='Input Data'!N119 -> 0.85 | AA24: ='Input Data'!N120 -> 0.85 | AB24: ='Input Data'!N121 -> 0.85 | AC24: =IF('Input Data'!N89>20,'Input Data'!N122,"") -> 0.85 | AD24: =IF(AD19="Year 22",'Input Data'!N123,"") -> 0.85 | AE24: =IF(AE19="Year 23",'Input Data'!N124,"") -> 0.85 | AF24: =IF(AF19="Year 24",'Input Data'!N125,"") -> 0.85 | AG24: =IF(AG19="Year 25",'Input Data'!N126,"") -> 0.85 | AH24: =IF('Input Data'!N89>25,'Input Data'!N127,"") -> 0.85 | AI24: =IF(AI19="Year 27",'Input Data'!N128,"") -> 0.85 | AJ24: =IF(AJ19="Year 28",'Input Data'!N129,"") -> 0.85 | AK24: =IF(AK19="Year 29",'Input Data'!N130,"") -> 0.85 | AL24: =IF(AL19="Year 30",'Input Data'!N131,"") -> 0.85 | AM24: =IF('Input Data'!N89>30,'Input Data'!N132,"") -> 
B25: Availability - Power Island | I25: ='Input Data'!O102 -> 0.65 | J25: ='Input Data'!O103 -> 0.75 | K25: ='Input Data'!O104 -> 0.85 | L25: ='Input Data'!O105 -> 0.85 | M25: ='Input Data'!O106 -> 0.85 | N25: ='Input Data'!O107 -> 0.85 | O25: ='Input Data'!O108 -> 0.85 | P25: ='Input Data'!O109 -> 0.85 | Q25: ='Input Data'!O110 -> 0.85 | R25: ='Input Data'!O111 -> 0.85 | S25: ='Input Data'!O112 -> 0.85 | T25: ='Input Data'!O113 -> 0.85 | U25: ='Input Data'!O114 -> 0.85 | V25: ='Input Data'!O115 -> 0.85 | W25: ='Input Data'!O116 -> 0.85 | X25: ='Input Data'!O117 -> 0.85 | Y25: ='Input Data'!O118 -> 0.85 | Z25: ='Input Data'!O119 -> 0.85 | AA25: ='Input Data'!O120 -> 0.85 | AB25: ='Input Data'!O121 -> 0.85 | AC25: =IF('Input Data'!N89>20,'Input Data'!O122,"") -> 0.85 | AD25: =IF(AD19="Year 22",'Input Data'!O123,"") -> 0.85 | AE25: =IF(AE19="Year 23",'Input Data'!O124,"") -> 0.85 | AF25: =IF(AF19="Year 24",'Input Data'!O125,"") -> 0.85 | AG25: =IF(AG19="Year 25",'Input Data'!O126,"") -> 0.85 | AH25: =IF('Input Data'!N89>25,'Input Data'!O127,"") -> 0.85 | AI25: =IF(AI19="Year 27",'Input Data'!O128,"") -> 0.85 | AJ25: =IF(AJ19="Year 28",'Input Data'!O129,"") -> 0.85 | AK25: =IF(AK19="Year 29",'Input Data'!O130,"") -> 0.85 | AL25: =IF(AL19="Year 30",'Input Data'!O131,"") -> 0.85 | AM25: =IF('Input Data'!N89>30,'Input Data'!O132,"") -> 
B26: Equivalent yearly hours - Hydrogen Production | I26: =I22*8760*I24 -> 5694 | J26: 6570 | K26: 7446 | L26: 7446 | M26: 7446 | N26: 7446 | O26: 7446 | P26: 7446 | Q26: 7446 | R26: 7446 | S26: 7446 | T26: 7446 | U26: 7446 | V26: 7446 | W26: 7446 | X26: 7446 | Y26: 7446 | Z26: 7446 | AA26: 7446 | AB26: 7446 | AC26: =IF('Input Data'!N89>20,AC22*8760*AC24,"") -> 7446 | AD26: =IF(AD19="Year 22",AD22*8760*AD24,"") -> 7446 | AE26: =IF(AE19="Year 23",AE22*8760*AE24,"") -> 7446 | AF26: =IF(AF19="Year 24",AF22*8760*AF24,"") -> 7446 | AG26: =IF(AG19="Year 25",AG22*8760*AG24,"") -> 7446 | AH26: =IF('Input Data'!N89>25,AH22*8760*AH24,"") -> 7446 | AI26: =IF(AI19="Year 27",AI22*8760*AI24,"") -> 7446 | AJ26: =IF(AJ19="Year 28",AJ22*8760*AJ24,"") -> 7446 | AK26: =IF(AK19="Year 29",AK22*8760*AK24,"") -> 7446 | AL26: =IF(AL19="Year 30",AL22*8760*AL24,"") -> 7446 | AM26: =IF('Input Data'!N89>30,AM22*8760*AM24,"") -> 
B27: Equivalent yearly hours - Power Island | I27: =I23*8760*I25 -> 5694 | J27: 6570 | K27: 7446 | L27: 7446 | M27: 7446 | N27: 7446 | O27: 7446 | P27: 7446 | Q27: 7446 | R27: 7446 | S27: 7446 | T27: 7446 | U27: 7446 | V27: 7446 | W27: 7446 | X27: 7446 | Y27: 7446 | Z27: 7446 | AA27: 7446 | AB27: 7446 | AC27: =IF('Input Data'!N89>20,AC23*8760*AC25,"") -> 7446 | AD27: =IF(AD19="Year 22",AD23*8760*AD25,"") -> 7446 | AE27: =IF(AE19="Year 23",AE23*8760*AE25,"") -> 7446 | AF27: =IF(AF19="Year 24",AF23*8760*AF25,"") -> 7446 | AG27: =IF(AG19="Year 25",AG23*8760*AG25,"") -> 7446 | AH27: =IF('Input Data'!N89>25,AH23*8760*AH25,"") -> 7446 | AI27: =IF(AI19="Year 27",AI23*8760*AI25,"") -> 7446 | AJ27: =IF(AJ19="Year 28",AJ23*8760*AJ25,"") -> 7446 | AK27: =IF(AK19="Year 29",AK23*8760*AK25,"") -> 7446 | AL27: =IF(AL19="Year 30",AL23*8760*AL25,"") -> 7446 | AM27: =IF('Input Data'!N89>30,AM23*8760*AM25,"") -> 
B28: Hydrogen Exported | E28: tpa | I28: =IF(((I26-I27)*'Input Data'!$N$38>0),(I26-I27)*'Input Data'!$N$38,0) -> 0 | J28: =IF(((J26-J27)*'Input Data'!$N$38>0),(J26-J27)*'Input Data'!$N$38,0) -> 0 | K28: =IF(((K26-K27)*'Input Data'!$N$38>0),(K26-K27)*'Input Data'!$N$38,0) -> 0 | L28: =IF(((L26-L27)*'Input Data'!$N$38>0),(L26-L27)*'Input Data'!$N$38,0) -> 0 | M28: =IF(((M26-M27)*'Input Data'!$N$38>0),(M26-M27)*'Input Data'!$N$38,0) -> 0 | N28: =IF(((N26-N27)*'Input Data'!$N$38>0),(N26-N27)*'Input Data'!$N$38,0) -> 0 | O28: =IF(((O26-O27)*'Input Data'!$N$38>0),(O26-O27)*'Input Data'!$N$38,0) -> 0 | P28: =IF(((P26-P27)*'Input Data'!$N$38>0),(P26-P27)*'Input Data'!$N$38,0) -> 0 | Q28: =IF(((Q26-Q27)*'Input Data'!$N$38>0),(Q26-Q27)*'Input Data'!$N$38,0) -> 0 | R28: =IF(((R26-R27)*'Input Data'!$N$38>0),(R26-R27)*'Input Data'!$N$38,0) -> 0 | S28: =IF(((S26-S27)*'Input Data'!$N$38>0),(S26-S27)*'Input Data'!$N$38,0) -> 0 | T28: =IF(((T26-T27)*'Input Data'!$N$38>0),(T26-T27)*'Input Data'!$N$38,0) -> 0 | U28: =IF(((U26-U27)*'Input Data'!$N$38>0),(U26-U27)*'Input Data'!$N$38,0) -> 0 | V28: =IF(((V26-V27)*'Input Data'!$N$38>0),(V26-V27)*'Input Data'!$N$38,0) -> 0 | W28: =IF(((W26-W27)*'Input Data'!$N$38>0),(W26-W27)*'Input Data'!$N$38,0) -> 0 | X28: =IF(((X26-X27)*'Input Data'!$N$38>0),(X26-X27)*'Input Data'!$N$38,0) -> 0 | Y28: =IF(((Y26-Y27)*'Input Data'!$N$38>0),(Y26-Y27)*'Input Data'!$N$38,0) -> 0 | Z28: =IF(((Z26-Z27)*'Input Data'!$N$38>0),(Z26-Z27)*'Input Data'!$N$38,0) -> 0 | AA28: =IF(((AA26-AA27)*'Input Data'!$N$38>0),(AA26-AA27)*'Input Data'!$N$38,0) -> 0 | AB28: =IF(((AB26-AB27)*'Input Data'!$N$38>0),(AB26-AB27)*'Input Data'!$N$38,0) -> 0 | AC28: =IF('Input Data'!$N$89>20,IF(((AC26-AC27)*'Input Data'!$N$38>0),(AC26-AC27)*'Input Data'!$N$38,0),"") -> 0 | AD28: =IF('Input Data'!$N$89>20,IF(((AD26-AD27)*'Input Data'!$N$38>0),(AD26-AD27)*'Input Data'!$N$38,0),"") -> 0 | AE28: =IF('Input Data'!$N$89>20,IF(((AE26-AE27)*'Input Data'!$N$38>0),(AE26-AE27)*'Input Data'!$N$38,0),"") -> 0 | AF28: =IF('Input Data'!$N$89>20,IF(((AF26-AF27)*'Input Data'!$N$38>0),(AF26-AF27)*'Input Data'!$N$38,0),"") -> 0 | AG28: =IF('Input Data'!$N$89>20,IF(((AG26-AG27)*'Input Data'!$N$38>0),(AG26-AG27)*'Input Data'!$N$38,0),"") -> 0 | AH28: =IF('Input Data'!$N$89>25,IF(((AH26-AH27)*'Input Data'!$N$38>0),(AH26-AH27)*'Input Data'!$N$38,0),"") -> 0 | AI28: =IF('Input Data'!$N$89>25,IF(((AI26-AI27)*'Input Data'!$N$38>0),(AI26-AI27)*'Input Data'!$N$38,0),"") -> 0 | AJ28: =IF('Input Data'!$N$89>25,IF(((AJ26-AJ27)*'Input Data'!$N$38>0),(AJ26-AJ27)*'Input Data'!$N$38,0),"") -> 0 | AK28: =IF('Input Data'!$N$89>25,IF(((AK26-AK27)*'Input Data'!$N$38>0),(AK26-AK27)*'Input Data'!$N$38,0),"") -> 0 | AL28: =IF('Input Data'!$N$89>25,IF(((AL26-AL27)*'Input Data'!$N$38>0),(AL26-AL27)*'Input Data'!$N$38,0),"") -> 0 | AM28: =IF('Input Data'!$N$89>30,IF(((AM26-AM27)*'Input Data'!$N$38>0),(AM26-AM27)*'Input Data'!$N$38,0),"") -> 
B29: Expenditure factor | F29: ='Input Data'!N96 -> 0.25 | G29: ='Input Data'!N97 -> 0.45 | H29: ='Input Data'!N98 -> 0.3
B30: Revenues
B31: Electricity | I31: =$E$6*I27*$R$5/1000 -> 252.7458609 | J31: =$E$6*J27*$R$5/1000 -> 291.6298395 | K31: 330.5138181 | L31: 330.5138181 | M31: 330.5138181 | N31: 330.5138181 | O31: 330.5138181 | P31: 330.5138181 | Q31: 330.5138181 | R31: 330.5138181 | S31: 330.5138181 | T31: 330.5138181 | U31: 330.5138181 | V31: 330.5138181 | W31: 330.5138181 | X31: 330.5138181 | Y31: 330.5138181 | Z31: 330.5138181 | AA31: 330.5138181 | AB31: 330.5138181 | AC31: =IF('Input Data'!N89>20,$E$6*AC27*$R$5/1000,"") -> 330.5138181 | AD31: =IF(AD19="Year 22",$E$6*AD27*$R$5/1000,"") -> 330.5138181 | AE31: =IF(AE19="Year 23",$E$6*AE27*$R$5/1000,"") -> 330.5138181 | AF31: =IF(AF19="Year 24",$E$6*AF27*$R$5/1000,"") -> 330.5138181 | AG31: =IF(AG19="Year 25",$E$6*AG27*$R$5/1000,"") -> 330.5138181 | AH31: =IF('Input Data'!N89>25,$E$6*AH27*$R$5/1000,"") -> 330.5138181 | AI31: =IF(AI19="Year 27",$E$6*AI27*$R$5/1000,"") -> 330.5138181 | AJ31: =IF(AJ19="Year 28",$E$6*AJ27*$R$5/1000,"") -> 330.5138181 | AK31: =IF(AK19="Year 29",$E$6*AK27*$R$5/1000,"") -> 330.5138181 | AL31: =IF(AL19="Year 30",$E$6*AL27*$R$5/1000,"") -> 330.5138181 | AM31: =IF('Input Data'!N89>30,$E$6*AM27*$R$5/1000,"") -> 
B32: Sulphur | I32: =$E$7*I26*$R$6/1000000 -> 0.444132 | J32: 0.51246 | K32: 0.580788 | L32: 0.580788 | M32: 0.580788 | N32: 0.580788 | O32: 0.580788 | P32: 0.580788 | Q32: 0.580788 | R32: 0.580788 | S32: 0.580788 | T32: 0.580788 | U32: 0.580788 | V32: 0.580788 | W32: 0.580788 | X32: 0.580788 | Y32: 0.580788 | Z32: 0.580788 | AA32: 0.580788 | AB32: 0.580788 | AC32: =IF('Input Data'!N89>20,$E$7*AC26*$R$6/1000000,"") -> 0.580788 | AD32: =IF(AD19="Year 22",$E$7*AD26*$R$6/1000000,"") -> 0.580788 | AE32: =IF(AE19="Year 23",$E$7*AE26*$R$6/1000000,"") -> 0.580788 | AF32: =IF(AF19="Year 24",$E$7*AF26*$R$6/1000000,"") -> 0.580788 | AG32: =IF(AG19="Year 25",$E$7*AG26*$R$6/1000000,"") -> 0.580788 | AH32: =IF('Input Data'!N89>25,$E$7*AH26*$R$6/1000000,"") -> 0.580788 | AI32: =IF(AI19="Year 27",$E$7*AI26*$R$6/1000000,"") -> 0.580788 | AJ32: =IF(AJ19="Year 28",$E$7*AJ26*$R$6/1000000,"") -> 0.580788 | AK32: =IF(AK19="Year 29",$E$7*AK26*$R$6/1000000,"") -> 0.580788 | AL32: =IF(AL19="Year 30",$E$7*AL26*$R$6/1000000,"") -> 0.580788 | AM32: =IF('Input Data'!N89>30,$E$7*AM26*$R$6/1000000,"") -> 
B33: Hydrogen | I33: =IF(((I26-I27)*R7*'Input Data'!N38/1000000>0),(I26-I27)*R7*'Input Data'!N38/1000000,0) -> 0 | J33: =IF(((J26-J27)*R7*'Input Data'!N38/1000000>0),(J26-J27)*R7*'Input Data'!N38/1000000,0) -> 0 | K33: =IF(((K26-K27)*R7*'Input Data'!N38/1000000>0),(K26-K27)*R7*'Input Data'!N38/1000000,0) -> 0 | L33: =IF(((L26-L27)*R7*'Input Data'!N38/1000000>0),(L26-L27)*R7*'Input Data'!N38/1000000,0) -> 0 | M33: =IF(((M26-M27)*R7*'Input Data'!N38/1000000>0),(M26-M27)*R7*'Input Data'!N38/1000000,0) -> 0 | N33: =IF(((N26-N27)*R7*'Input Data'!N38/1000000>0),(N26-N27)*R7*'Input Data'!N38/1000000,0) -> 0 | O33: =IF(((O26-O27)*R7*'Input Data'!N38/1000000>0),(O26-O27)*R7*'Input Data'!N38/1000000,0) -> 0 | P33: =IF(((P26-P27)*R7*'Input Data'!N38/1000000>0),(P26-P27)*R7*'Input Data'!N38/1000000,0) -> 0 | Q33: =IF(((Q26-Q27)*R7*'Input Data'!N38/1000000>0),(Q26-Q27)*R7*'Input Data'!N38/1000000,0) -> 0 | R33: =IF(((R26-R27)*R7*'Input Data'!N38/1000000>0),(R26-R27)*R7*'Input Data'!N38/1000000,0) -> 0 | S33: =IF(((S26-S27)*R7*'Input Data'!N38/1000000>0),(S26-S27)*R7*'Input Data'!N38/1000000,0) -> 0 | T33: =IF(((T26-T27)*R7*'Input Data'!N38/1000000>0),(T26-T27)*R7*'Input Data'!N38/1000000,0) -> 0 | U33: =IF(((U26-U27)*R7*'Input Data'!N38/1000000>0),(U26-U27)*R7*'Input Data'!N38/1000000,0) -> 0 | V33: =IF(((V26-V27)*R7*'Input Data'!N38/1000000>0),(V26-V27)*R7*'Input Data'!N38/1000000,0) -> 0 | W33: =IF(((W26-W27)*R7*'Input Data'!N38/1000000>0),(W26-W27)*R7*'Input Data'!N38/1000000,0) -> 0 | X33: =IF(((X26-X27)*R7*'Input Data'!N38/1000000>0),(X26-X27)*R7*'Input Data'!N38/1000000,0) -> 0 | Y33: =IF(((Y26-Y27)*R7*'Input Data'!N38/1000000>0),(Y26-Y27)*R7*'Input Data'!N38/1000000,0) -> 0 | Z33: =IF(((Z26-Z27)*R7*'Input Data'!N38/1000000>0),(Z26-Z27)*R7*'Input Data'!N38/1000000,0) -> 0 | AA33: =IF(((AA26-AA27)*R7*'Input Data'!N38/1000000>0),(AA26-AA27)*R7*'Input Data'!N38/1000000,0) -> 0 | AB33: =IF(AB19="Year 20",IF(((AB26-AB27)*R7*'Input Data'!N38/1000000>0),(AB26-AB27)*R7*'Input Data'!N38/1000000,0),"") -> 0 | AC33: =IF('Input Data'!N89>20,IF(((AC26-AC27)*R7*'Input Data'!N38/1000000>0),(AC26-AC27)*R7*'Input Data'!N38/1000000,0),"") -> 0 | AD33: =IF(AD19="Year 22",IF(((AD26-AD27)*R7*'Input Data'!N38/1000000>0),(AD26-AD27)*R7*'Input Data'!N38/1000000,0),"") -> 0 | AE33: =IF(AE19="Year 23",IF(((AE26-AE27)*R7*'Input Data'!N38/1000000>0),(AE26-AE27)*R7*'Input Data'!N38/1000000,0),"") -> 0 | AF33: =IF(AF19="Year 24",IF(((AF26-AF27)*R7*'Input Data'!N38/1000000>0),(AF26-AF27)*R7*'Input Data'!N38/1000000,0),"") -> 0 | AG33: =IF(AG19="Year 25",IF(((AG26-AG27)*R7*'Input Data'!N38/1000000>0),(AG26-AG27)*R7*'Input Data'!N38/1000000,0),"") -> 0 | AH33: =IF('Input Data'!N89>25,IF(((AH26-AH27)*R7*'Input Data'!N38/1000000>0),(AH26-AH27)*R7*'Input Data'!N38/1000000,0),"") -> 0 | AI33: =IF(AI19="Year 27",IF(((AI26-AI27)*R7*'Input Data'!N38/1000000>0),(AI26-AI27)*R7*'Input Data'!N38/1000000,0),"") -> 0 | AJ33: =IF(AJ19="Year 28",IF(((AJ26-AJ27)*R7*'Input Data'!N38/1000000>0),(AJ26-AJ27)*R7*'Input Data'!N38/1000000,0),"") -> 0 | AK33: =IF(AK19="Year 29",IF(((AK26-AK27)*R7*'Input Data'!N38/1000000>0),(AK26-AK27)*R7*'Input Data'!N38/1000000,0),"") -> 0 | AL33: =IF(AL19="Year 30",IF(((AL26-AL27)*R7*'Input Data'!N38/1000000>0),(AL26-AL27)*R7*'Input Data'!N38/1000000,0),"") -> 0 | AM33: =IF('Input Data'!N89>30,IF(((AM26-AM27)*R7*'Input Data'!N38/1000000>0),(AM26-AM27)*R7*'Input Data'!N38/1000000,0),"") -> 
B34: Operating costs
B35: Fuel (Coal) | I35: =$M$5*$E$5*I26/1000000 -> 85.41830375 | J35: =$M$5*$E$5*J26/1000000 -> 98.55958125 | K35: =$M$5*$E$5*K26/1000000 -> 111.7008587 | L35: 111.7008587 | M35: 111.7008587 | N35: 111.7008587 | O35: 111.7008587 | P35: 111.7008587 | Q35: 111.7008587 | R35: 111.7008587 | S35: 111.7008587 | T35: 111.7008587 | U35: 111.7008587 | V35: 111.7008587 | W35: 111.7008587 | X35: 111.7008587 | Y35: 111.7008587 | Z35: 111.7008587 | AA35: 111.7008587 | AB35: 111.7008587 | AC35: =IF('Input Data'!N89>20,$M$5*$E$5*AC26/1000000,"") -> 111.7008587 | AD35: =IF(AD19="Year 22",$M$5*$E$5*AD26/1000000,"") -> 111.7008587 | AE35: =IF(AE19="Year 23",$M$5*$E$5*AE26/1000000,"") -> 111.7008587 | AF35: =IF(AF19="Year 24",$M$5*$E$5*AF26/1000000,"") -> 111.7008587 | AG35: =IF(AG19="Year 25",$M$5*$E$5*AG26/1000000,"") -> 111.7008587 | AH35: =IF('Input Data'!N89>25,$M$5*$E$5*AH26/1000000,"") -> 111.7008587 | AI35: =IF(AI19="Year 27",$M$5*$E$5*AI26/1000000,"") -> 111.7008587 | AJ35: =IF(AJ19="Year 28",$M$5*$E$5*AJ26/1000000,"") -> 111.7008587 | AK35: =IF(AK19="Year 29",$M$5*$E$5*AK26/1000000,"") -> 111.7008587 | AL35: =IF(AL19="Year 30",$M$5*$E$5*AL26/1000000,"") -> 111.7008587 | AM35: =IF('Input Data'!N89>30,$M$5*$E$5*AM26/1000000,"") -> 
B36: Maintenance | I36: =$M$6 -> 34.22 | J36: 34.22 | K36: 34.22 | L36: 34.22 | M36: 34.22 | N36: 34.22 | O36: 34.22 | P36: 34.22 | Q36: 34.22 | R36: 34.22 | S36: 34.22 | T36: 34.22 | U36: 34.22 | V36: 34.22 | W36: 34.22 | X36: 34.22 | Y36: 34.22 | Z36: 34.22 | AA36: 34.22 | AB36: 34.22 | AC36: =IF('Input Data'!N89>20,$M$6,"") -> 34.22 | AD36: =IF(AD19="Year 22",$M$6,"") -> 34.22 | AE36: =IF(AE19="Year 23",$M$6,"") -> 34.22 | AF36: =IF(AF19="Year 24",$M$6,"") -> 34.22 | AG36: =IF(AG19="Year 25",$M$6,"") -> 34.22 | AH36: =IF('Input Data'!N89>25,$M$6,"") -> 34.22 | AI36: =IF(AI19="Year 27",$M$6,"") -> 34.22 | AJ36: =IF(AJ19="Year 28",$M$6,"") -> 34.22 | AK36: =IF(AK19="Year 29",$M$6,"") -> 34.22 | AL36: =IF(AL19="Year 30",$M$6,"") -> 34.22 | AM36: =IF('Input Data'!N89>30,$M$6,"") -> 
B37: Labour | I37: =$N$12 -> 7.475 | J37: 7.475 | K37: 7.475 | L37: 7.475 | M37: 7.475 | N37: 7.475 | O37: 7.475 | P37: 7.475 | Q37: 7.475 | R37: 7.475 | S37: 7.475 | T37: 7.475 | U37: 7.475 | V37: 7.475 | W37: 7.475 | X37: 7.475 | Y37: 7.475 | Z37: 7.475 | AA37: 7.475 | AB37: 7.475 | AC37: =IF('Input Data'!N89>20,$N$12,"") -> 7.475 | AD37: =IF(AD19="Year 22",$N$12,"") -> 7.475 | AE37: =IF(AE19="Year 23",$N$12,"") -> 7.475 | AF37: =IF(AF19="Year 24",$N$12,"") -> 7.475 | AG37: =IF(AG19="Year 25",$N$12,"") -> 7.475 | AH37: =IF('Input Data'!N89>25,$N$12,"") -> 7.475 | AI37: =IF(AI19="Year 27",$N$12,"") -> 7.475 | AJ37: =IF(AJ19="Year 28",$N$12,"") -> 7.475 | AK37: =IF(AK19="Year 29",$N$12,"") -> 7.475 | AL37: =IF(AL19="Year 30",$N$12,"") -> 7.475 | AM37: =IF('Input Data'!N89>30,$N$12,"") -> 
B38: Chemicals and Consumables | I38: =I22*'Input Data'!$N$74*I24/0.85 -> 1.896470588 | J38: =J22*'Input Data'!$N$74*J24/0.85 -> 2.188235294 | K38: =K22*'Input Data'!$N$74*K24/0.85 -> 2.48 | L38: =L22*'Input Data'!$N$74*L24/0.85 -> 2.48 | M38: =M22*'Input Data'!$N$74*M24/0.85 -> 2.48 | N38: =N22*'Input Data'!$N$74*N24/0.85 -> 2.48 | O38: =O22*'Input Data'!$N$74*O24/0.85 -> 2.48 | P38: =P22*'Input Data'!$N$74*P24/0.85 -> 2.48 | Q38: =Q22*'Input Data'!$N$74*Q24/0.85 -> 2.48 | R38: =R22*'Input Data'!$N$74*R24/0.85 -> 2.48 | S38: =S22*'Input Data'!$N$74*S24/0.85 -> 2.48 | T38: =T22*'Input Data'!$N$74*T24/0.85 -> 2.48 | U38: =U22*'Input Data'!$N$74*U24/0.85 -> 2.48 | V38: =V22*'Input Data'!$N$74*V24/0.85 -> 2.48 | W38: =W22*'Input Data'!$N$74*W24/0.85 -> 2.48 | X38: =X22*'Input Data'!$N$74*X24/0.85 -> 2.48 | Y38: =Y22*'Input Data'!$N$74*Y24/0.85 -> 2.48 | Z38: =Z22*'Input Data'!$N$74*Z24/0.85 -> 2.48 | AA38: =AA22*'Input Data'!$N$74*AA24/0.85 -> 2.48 | AB38: =IF(AB19="Year 20",AB22*AB24*'Input Data'!$N$74/0.85,"") -> 2.48 | AC38: =IF('Input Data'!N89>20,AC22*AC24*'Input Data'!$N$74/0.85,"") -> 2.48 | AD38: =IF(AD19="Year 22",AD22*AD24*'Input Data'!$N$74/0.85,"") -> 2.48 | AE38: =IF(AE19="Year 23",AE24*AE22*'Input Data'!$N$74/0.85,"") -> 2.48 | AF38: =IF(AF19="Year 24",AF22*AF24*'Input Data'!$N$74/0.85,"") -> 2.48 | AG38: =IF(AG19="Year 25",AG22*AG24*'Input Data'!$N$74/0.85,"") -> 2.48 | AH38: =IF('Input Data'!N89>25,AH22*AH24*'Input Data'!$N$74/0.85,"") -> 2.48 | AI38: =IF(AI19="Year 27",AI24*AI22*'Input Data'!$N$74/0.85,"") -> 2.48 | AJ38: =IF(AJ19="Year 28",AJ24*AJ22*'Input Data'!$N$74/0.85,"") -> 2.48 | AK38: =IF(AK19="Year 29",AK22*AK24*'Input Data'!$N$74/0.85,"") -> 2.48 | AL38: =IF(AL19="Year 30",AL22*AL24*'Input Data'!$N$74/0.85,"") -> 2.48 | AM38: =IF('Input Data'!N89>30,AM22*AM24*'Input Data'!$N$74/0.85,"") -> 
B39: Waste Disposal | I39: =I26*'Input Data'!$N$40*'Input Data'!$N$73/1000000 -> 1.2162384 | J39: =J26*'Input Data'!$N$40*'Input Data'!$N$73/1000000 -> 1.403352 | K39: =K26*'Input Data'!$N$40*'Input Data'!$N$73/1000000 -> 1.5904656 | L39: =L26*'Input Data'!$N$40*'Input Data'!$N$73/1000000 -> 1.5904656 | M39: =M26*'Input Data'!$N$40*'Input Data'!$N$73/1000000 -> 1.5904656 | N39: =N26*'Input Data'!$N$40*'Input Data'!$N$73/1000000 -> 1.5904656 | O39: =O26*'Input Data'!$N$40*'Input Data'!$N$73/1000000 -> 1.5904656 | P39: =P26*'Input Data'!$N$40*'Input Data'!$N$73/1000000 -> 1.5904656 | Q39: =Q26*'Input Data'!$N$40*'Input Data'!$N$73/1000000 -> 1.5904656 | R39: =R26*'Input Data'!$N$40*'Input Data'!$N$73/1000000 -> 1.5904656 | S39: =S26*'Input Data'!$N$40*'Input Data'!$N$73/1000000 -> 1.5904656 | T39: =T26*'Input Data'!$N$40*'Input Data'!$N$73/1000000 -> 1.5904656 | U39: =U26*'Input Data'!$N$40*'Input Data'!$N$73/1000000 -> 1.5904656 | V39: =V26*'Input Data'!$N$40*'Input Data'!$N$73/1000000 -> 1.5904656 | W39: =W26*'Input Data'!$N$40*'Input Data'!$N$73/1000000 -> 1.5904656 | X39: =X26*'Input Data'!$N$40*'Input Data'!$N$73/1000000 -> 1.5904656 | Y39: =Y26*'Input Data'!$N$40*'Input Data'!$N$73/1000000 -> 1.5904656 | Z39: =Z26*'Input Data'!$N$40*'Input Data'!$N$73/1000000 -> 1.5904656 | AA39: =AA26*'Input Data'!$N$40*'Input Data'!$N$73/1000000 -> 1.5904656 | AB39: =IF(AB19="Year 20",AB26*'Input Data'!$N$40*'Input Data'!$N$73/1000000,"") -> 1.5904656 | AC39: =IF('Input Data'!N89>20,AC26*'Input Data'!$N$40*'Input Data'!$N$73/1000000,"") -> 1.5904656 | AD39: =IF(AD19="Year 22",AD26*'Input Data'!$N$40*'Input Data'!$N$73/1000000,"") -> 1.5904656 | AE39: =IF(AE19="Year 23",AE26*'Input Data'!$N$40*'Input Data'!$N$73/1000000,"") -> 1.5904656 | AF39: =IF(AF19="Year 24",AF26*'Input Data'!$N$40*'Input Data'!$N$73/1000000,"") -> 1.5904656 | AG39: =IF(AG19="Year 25",AG26*'Input Data'!$N$40*'Input Data'!$N$73/1000000,"") -> 1.5904656 | AH39: =IF('Input Data'!N89>25,AH26*'Input Data'!$N$40*'Input Data'!$N$73/1000000,"") -> 1.5904656 | AI39: =IF(AI19="Year 27",AI26*'Input Data'!$N$40*'Input Data'!$N$73/1000000,"") -> 1.5904656 | AJ39: =IF(AJ19="Year 28",AJ26*'Input Data'!$N$40*'Input Data'!$N$73/1000000,"") -> 1.5904656 | AK39: =IF(AK19="Year 29",AK26*'Input Data'!$N$40*'Input Data'!$N$73/1000000,"") -> 1.5904656 | AL39: =IF(AL19="Year 30",AL26*'Input Data'!$N$40*'Input Data'!$N$73/1000000,"") -> 1.5904656 | AM39: =IF('Input Data'!N89>30,AM26*'Input Data'!$N$40*'Input Data'!$N$73/1000000,"") -> 
B40: Insurance + Local Taxes | I40: =I5*R10 -> 18.2 | J40: =I5*R10 -> 18.2 | K40: =I5*R10 -> 18.2 | L40: =I5*R10 -> 18.2 | M40: =I5*R10 -> 18.2 | N40: =I5*R10 -> 18.2 | O40: =I5*R10 -> 18.2 | P40: =I5*R10 -> 18.2 | Q40: =I5*R10 -> 18.2 | R40: =I5*R10 -> 18.2 | S40: =I5*R10 -> 18.2 | T40: =I5*R10 -> 18.2 | U40: =I5*R10 -> 18.2 | V40: =I5*R10 -> 18.2 | W40: =I5*R10 -> 18.2 | X40: =I5*R10 -> 18.2 | Y40: =I5*R10 -> 18.2 | Z40: =I5*R10 -> 18.2 | AA40: =I5*R10 -> 18.2 | AB40: =I5*R10 -> 18.2 | AC40: =IF('Input Data'!N89>20,I5*R10,"") -> 18.2 | AD40: =IF(AD19="Year 22",I5*R10,"") -> 18.2 | AE40: =IF(AE19="Year 23",I5*R10,"") -> 18.2 | AF40: =IF(AF19="Year 24",I5*R10,"") -> 18.2 | AG40: =IF(AG19="Year 25",I5*R10,"") -> 18.2 | AH40: =IF('Input Data'!N89>25,I5*R10,"") -> 18.2 | AI40: =IF(AI19="Year 27",I5*R10,"") -> 18.2 | AJ40: =IF(AJ19="Year 28",I5*R10,"") -> 18.2 | AK40: =IF(AK19="Year 29",I5*R10,"") -> 18.2 | AL40: =IF(AL19="Year 30",I5*R10,"") -> 18.2 | AM40: =IF('Input Data'!N89>30,I5*R10,"") -> 
B41: CO2 Emissions | I41: ='Input Data'!$N$33*'Input Data'!$N$77*I26/1000000 -> 0 | J41: ='Input Data'!$N$33*'Input Data'!$N$77*J26/1000000 -> 0 | K41: ='Input Data'!$N$33*'Input Data'!$N$77*K26/1000000 -> 0 | L41: ='Input Data'!$N$33*'Input Data'!$N$77*L26/1000000 -> 0 | M41: ='Input Data'!$N$33*'Input Data'!$N$77*M26/1000000 -> 0 | N41: ='Input Data'!$N$33*'Input Data'!$N$77*N26/1000000 -> 0 | O41: ='Input Data'!$N$33*'Input Data'!$N$77*O26/1000000 -> 0 | P41: ='Input Data'!$N$33*'Input Data'!$N$77*P26/1000000 -> 0 | Q41: ='Input Data'!$N$33*'Input Data'!$N$77*Q26/1000000 -> 0 | R41: ='Input Data'!$N$33*'Input Data'!$N$77*R26/1000000 -> 0 | S41: ='Input Data'!$N$33*'Input Data'!$N$77*S26/1000000 -> 0 | T41: ='Input Data'!$N$33*'Input Data'!$N$77*T26/1000000 -> 0 | U41: ='Input Data'!$N$33*'Input Data'!$N$77*U26/1000000 -> 0 | V41: ='Input Data'!$N$33*'Input Data'!$N$77*V26/1000000 -> 0 | W41: ='Input Data'!$N$33*'Input Data'!$N$77*W26/1000000 -> 0 | X41: ='Input Data'!$N$33*'Input Data'!$N$77*X26/1000000 -> 0 | Y41: ='Input Data'!$N$33*'Input Data'!$N$77*Y26/1000000 -> 0 | Z41: ='Input Data'!$N$33*'Input Data'!$N$77*Z26/1000000 -> 0 | AA41: ='Input Data'!$N$33*'Input Data'!$N$77*AA26/1000000 -> 0 | AB41: ='Input Data'!$N$33*'Input Data'!$N$77*AB26/1000000 -> 0 | AC41: =IF('Input Data'!N89>20,'Input Data'!$N$33*'Input Data'!$N$77*AC26/1000000,"") -> 0 | AD41: =IF(AD19="Year 22",'Input Data'!$N$33*'Input Data'!$N$77*AD26/1000000,"") -> 0 | AE41: =IF(AE19="Year 23",'Input Data'!$N$33*'Input Data'!$N$77*AE26/1000000,"") -> 0 | AF41: =IF(AF19="Year 24",'Input Data'!$N$33*'Input Data'!$N$77*AF26/1000000,"") -> 0 | AG41: =IF(AG19="Year 25",'Input Data'!$N$33*'Input Data'!$N$77*AG26/1000000,"") -> 0 | AH41: =IF('Input Data'!N89>25,'Input Data'!$N$33*'Input Data'!$N$77*AH26/1000000,"") -> 0 | AI41: =IF(AI19="Year 27",'Input Data'!$N$33*'Input Data'!$N$77*AI26/1000000,"") -> 0 | AJ41: =IF(AJ19="Year 28",'Input Data'!$N$33*'Input Data'!$N$77*AJ26/1000000,"") -> 0 | AK41: =IF(AK19="Year 29",'Input Data'!$N$33*'Input Data'!$N$77*AK26/1000000,"") -> 0 | AL41: =IF(AL19="Year 30",'Input Data'!$N$33*'Input Data'!$N$77*AL26/1000000,"") -> 0 | AM41: =IF('Input Data'!N89>30,'Input Data'!$N$33*'Input Data'!$N$77*AM26/1000000,"") -> 
B42: Fixed Capital Expenditure | F42: =I10*F29 -> 318.5 | G42: =I10*G29 -> 573.3 | H42: =H29*I10 -> 382.2
B44: Total Cash Flow (yearly) | F44: =SUM(F31:F33)-SUM(F35:F41)-F42 -> -318.5 | G44: -573.3 | H44: -382.2 | I44: 104.7639802 | J44: 130.096131 | K44: 155.4282817 | L44: 155.4282817 | M44: 155.4282817 | N44: 155.4282817 | O44: 155.4282817 | P44: 155.4282817 | Q44: 155.4282817 | R44: 155.4282817 | S44: 155.4282817 | T44: 155.4282817 | U44: 155.4282817 | V44: 155.4282817 | W44: 155.4282817 | X44: 155.4282817 | Y44: 155.4282817 | Z44: 155.4282817 | AA44: 155.4282817 | AB44: 155.4282817 | AC44: =IF(AC19="Year 21",SUM(AC31:AC33)-SUM(AC35:AC41)-AC42,"") -> 155.4282817 | AD44: =IF(AD19="Year 22",SUM(AD31:AD33)-SUM(AD35:AD41)-AD42,"") -> 155.4282817 | AE44: =IF(AE19="Year 23",SUM(AE31:AE33)-SUM(AE35:AE41)-AE42,"") -> 155.4282817 | AF44: =IF(AF19="Year 24",SUM(AF31:AF33)-SUM(AF35:AF41)-AF42,"") -> 155.4282817 | AG44: =IF(AG19="Year 25",SUM(AG31:AG33)-SUM(AG35:AG41)-AG42,"") -> 155.4282817 | AH44: =IF(AH19="Year 26",SUM(AH31:AH33)-SUM(AH35:AH41)-AH42,"") -> 155.4282817 | AI44: =IF(AI19="Year 27",SUM(AI31:AI33)-SUM(AI35:AI41)-AI42,"") -> 155.4282817 | AJ44: =IF(AJ19="Year 28",SUM(AJ31:AJ33)-SUM(AJ35:AJ41)-AJ42,"") -> 155.4282817 | AK44: =IF(AK19="Year 29",SUM(AK31:AK33)-SUM(AK35:AK41)-AK42,"") -> 155.4282817 | AL44: =IF(AL19="Year 30",SUM(AL31:AL33)-SUM(AL35:AL41)-AL42,"") -> 155.4282817 | AM44: =IF(AM19="Year 31",SUM(AM31:AM33)-SUM(AM35:AM41)-AM42,"") -> 0
B45: Total Cash Flow (accumulated) | F45: =F44 -> -318.5 | G45: =-1*(ABS(G44)+ABS(F45)) -> -891.8 | H45: =-1*(ABS(H44)+ABS(G45)) -> -1274 | I45: =H45+I44 -> -1169.23602 | J45: -1039.139889 | K45: -883.7116071 | L45: -728.2833254 | M45: -572.8550436 | N45: -417.4267619 | O45: -261.9984801 | P45: -106.5701984 | Q45: 48.85808336 | R45: 204.2863651 | S45: 359.7146469 | T45: 515.1429286 | U45: 670.5712104 | V45: 825.9994921 | W45: 981.4277739 | X45: 1136.856056 | Y45: 1292.284337 | Z45: 1447.712619 | AA45: 1603.140901 | AB45: 1758.569183 | AC45: =IF(AC19="Year 21",AB45+AC44,"") -> 1913.997464 | AD45: =IF(AD19="Year 22",AC45+AD44,"") -> 2069.425746 | AE45: =IF(AE19="Year 23",AD45+AE44,"") -> 2224.854028 | AF45: =IF(AF19="Year 24",AE45+AF44,"") -> 2380.28231 | AG45: =IF(AG19="Year 25",AF45+AG44,"") -> 2535.710591 | AH45: =IF(AH19="Year 26",AG45+AH44,"") -> 2691.138873 | AI45: =IF(AI19="Year 27",AH45+AI44,"") -> 2846.567155 | AJ45: =IF(AJ19="Year 28",AI45+AJ44,"") -> 3001.995437 | AK45: =IF(AK19="Year 29",AJ45+AK44,"") -> 3157.423718 | AL45: =IF(AL19="Year 30",AK45+AL44,"") -> 3312.852 | AM45: =IF(AM19="Year 31",AL45+AM44,"") -> 3312.852
B47: Discounted Cash Flow (yearly) | F47: =F45/(1+R9) -> -289.5454545 | G47: =G44/(1+R9)^2 -> -473.8016529 | H47: =H44/(1+R9)^3 -> -287.1525169 | I47: =I44/(1+R9)^4 -> 71.55520809 | J47: =J44/(1+R9)^5 -> 80.77946176 | K47: =K44/(1+R9)^6 -> 87.73521304 | L47: =L44/(1+R9)^7 -> 79.75928458 | M47: =M44/(1+R9)^8 -> 72.50844053 | N47: =N44/(1+R9)^9 -> 65.91676412 | O47: =O44/(1+R9)^10 -> 59.92433102 | P47: =P44/(1+R9)^11 -> 54.47666456 | Q47: =Q44/(1+R9)^12 -> 49.52424051 | R47: =R44/(1+R9)^13 -> 45.02203683 | S47: =S44/(1+R9)^14 -> 40.92912439 | T47: =T44/(1+R9)^15 -> 37.2082949 | U47: =U44/(1+R9)^16 -> 33.82572263 | V47: =V44/(1+R9)^17 -> 30.75065694 | W47: =W44/(1+R9)^18 -> 27.95514267 | X47: =X44/(1+R9)^19 -> 25.41376607 | Y47: =Y44/(1+R9)^20 -> 23.1034237 | Z47: =Z44/(1+R9)^21 -> 21.00311245 | AA47: =AA44/(1+R9)^22 -> 19.09373859 | AB47: =AB44/(1+R9)^23 -> 17.35794417 | AC47: =IF(AC19="Year 21",AC44/(1+R9)^24,"") -> 15.77994925 | AD47: =IF(AD19="Year 22",AD44/(1+R9)^25,"") -> 14.34540841 | AE47: =IF(AE19="Year 23",AE44/(1+R9)^26,"") -> 13.04128037 | AF47: =IF(AF19="Year 24",AF44/(1+R9)^27,"") -> 11.85570943 | AG47: =IF(AG19="Year 25",AG44/(1+R9)^28,"") -> 10.77791766 | AH47: =IF(AH19="Year 26",AH44/(1+R9)^29,"") -> 9.798106966 | AI47: =IF(AI19="Year 27",AI44/(1+R9)^30,"") -> 8.907369969 | AJ47: =IF(AJ19="Year 28",AJ44/(1+R9)^31,"") -> 8.097609063 | AK47: =IF(AK19="Year 29",AK44/(1+R9)^32,"") -> 7.361462784 | AL47: =IF(AL19="Year 30",AL44/(1+R9)^33,"") -> 6.692238895 | AM47: =IF(AM19="Year 31",AM44/(1+R9)^34,"") -> 0
B48: Discounted Cash Flow (accumulated) | F48: =F47 -> -289.5454545 | G48: =SUM(G47+F48) -> -763.3471074 | H48: -1050.499624 | I48: -978.9444163 | J48: -898.1649545 | K48: -810.4297415 | L48: -730.6704569 | M48: -658.1620163 | N48: -592.2452522 | O48: -532.3209212 | P48: -477.8442567 | Q48: -428.3200161 | R48: -383.2979793 | S48: -342.3688549 | T48: -305.16056 | U48: -271.3348374 | V48: -240.5841805 | W48: -212.6290378 | X48: -187.2152717 | Y48: -164.111848 | Z48: -143.1087356 | AA48: -124.014997 | AB48: -106.6570528 | AC48: =IF(AC19="Year 21",SUM(AC47+AB48),"") -> -90.87710355 | AD48: =IF(AD19="Year 22",SUM(AD47+AC48),"") -> -76.53169514 | AE48: =IF(AE19="Year 23",SUM(AE47+AD48),"") -> -63.49041477 | AF48: =IF(AF19="Year 24",SUM(AF47+AE48),"") -> -51.63470534 | AG48: =IF(AG19="Year 25",SUM(AG47+AF48),"") -> -40.85678768 | AH48: =IF(AH19="Year 26",SUM(AH47+AG48),"") -> -31.05868071 | AI48: =IF(AI19="Year 27",SUM(AI47+AH48),"") -> -22.15131074 | AJ48: =IF(AJ19="Year 28",SUM(AJ47+AI48),"") -> -14.05370168 | AK48: =IF(AK19="Year 29",SUM(AK47+AJ48),"") -> -6.692238895 | AL48: =IF(AL19="Year 30",SUM(AL47+AK48),"") -> -3.037570195e-13 | AM48: =IF(AM19="Year 31",SUM(AM47+AL48),"") -> -3.037570195e-13
AA50: Hidden acc cf | AC50: =SUM(AC47+AB48) -> -90.87710355 | AD50: =IF(AD47="",AC48,SUM(AD47+AC48)) -> -76.53169514 | AE50: =IF(AE47="",AD50,SUM(AE47+AD50)) -> -63.49041477 | AF50: =IF(AF47="",AE50,SUM(AF47+AE50)) -> -51.63470534 | AG50: =IF(AG47="",AF50,SUM(AG47+AF50)) -> -40.85678768 | AH50: -31.05868071 | AI50: -22.15131074 | AJ50: -14.05370168 | AK50: -6.692238895 | AL50: -3.037570195e-13 | AM50: -3.037570195e-13 | AN50: -3.037570195e-13

Sheet CCGT w 90% CC
B4: Production | G4: Capital Expenditure | I4: UK£ (million) | K4: Operating Costs | L4: UK£ (million/year) | P4: Revenues
B5: Nat Gas Feedrate | D5: te/h | E5: ='Input Data'!U27 -> 127.9166667 | G5: Installed cost | I5: ='Input Data'!U60 -> 731.4 | K5: Fuel Cost | M5: ='Input Data'!U76 -> 265 | N5: UK£/te | P5: Electricity Price | R5: 0.0694271479 | S5: UK£/kWh
B6: Net power ouput | D6: MW | E6: ='Input Data'!U23 -> 844 | G6: Land purchase, surveys | I6: ='Input Data'!U65 -> 0.05 | K6: Maintenance | M6: ='Input Data'!U72 -> 25.5 | N6: UK£/year
G7: Fees | I7: ='Input Data'!U66 -> 0.1 | K7: CO2 Emissions | M7: ='Input Data'!U77 -> 0 | N7: UK£/te
G8: Contingencies | I8: ='Input Data'!U64 -> 0.25 | K8: Labour Cost | N8: UK£/year (million)
K9: Number of operations personnel | N9: ='Input Data'!U78 -> 60 | P9: Discounted Rate: | R9: ='Input Data'!U86 -> 0.1
B10: =IF('Input Data'!U9>0.001,"Performance Data: User Adjusted","") ->  | G10: Total Investment Cost | I10: =I5+(I6*I5)+(I5*I7)+(I5*I8) -> 1023.96 | K10: Average salary options personnel | N10: ='Input Data'!U79 -> 0.05 | P10: Insurance | R10: ='Input Data'!U81 -> 0.02 | S10: Installed Cost
K11: Admin | N11: ='Input Data'!U80 -> 0.3
K12: Total Labour Cost | N12: =(N9*N10)*(1+N11) -> 3.9
G13: =IF('Input Data'!U47>0.001,"Capital and Cost Data: User Adjusted","") ->  | P13: =IF('Input Data'!U83>0.001,"Revenue Data: User Adjusted","") -> 
K14: =IF('Input Data'!U70>0.001,"Operating Data: User Adjusted","") -> 
F17: YEAR
B18: CASH FLOW ANALYSIS | F18: =G18-1 -> 2009 | G18: =H18-1 -> 2010 | H18: =I18-1 -> 2011 | I18: ='Input Data'!R102 -> 2012 | J18: ='Input Data'!R103 -> 2013 | K18: ='Input Data'!R104 -> 2014 | L18: ='Input Data'!R105 -> 2015 | M18: ='Input Data'!R106 -> 2016 | N18: ='Input Data'!R107 -> 2017 | O18: ='Input Data'!R108 -> 2018 | P18: ='Input Data'!R109 -> 2019 | Q18: ='Input Data'!R110 -> 2020 | R18: ='Input Data'!R111 -> 2021 | S18: ='Input Data'!R112 -> 2022 | T18: ='Input Data'!R113 -> 2023 | U18: ='Input Data'!R114 -> 2024 | V18: ='Input Data'!R115 -> 2025 | W18: ='Input Data'!R116 -> 2026 | X18: ='Input Data'!R117 -> 2027 | Y18: ='Input Data'!R118 -> 2028 | Z18: ='Input Data'!R119 -> 2029 | AA18: ='Input Data'!R120 -> 2030 | AB18: ='Input Data'!R121 -> 2031 | AC18: ='Input Data'!R122 -> 2032 | AD18: ='Input Data'!R123 ->  | AE18: ='Input Data'!R124 ->  | AF18: ='Input Data'!R125 ->  | AG18: ='Input Data'!R126 ->  | AH18: ='Input Data'!R127 ->  | AI18: ='Input Data'!R128 ->  | AJ18: ='Input Data'!R129 ->  | AK18: ='Input Data'!R130 ->  | AL18: ='Input Data'!R131 ->  | AM18: ='Input Data'!R132 -> 
B19: UK£ (million) | F19: Year -3 | G19: Year -2 | H19: Year -1 | I19: ='Input Data'!Q102 -> Year 1 | J19: ='Input Data'!Q103 -> Year 2 | K19: ='Input Data'!Q104 -> Year 3 | L19: ='Input Data'!Q105 -> Year 4 | M19: ='Input Data'!Q106 -> Year 5 | N19: ='Input Data'!Q107 -> Year 6 | O19: ='Input Data'!Q108 -> Year 7 | P19: ='Input Data'!Q109 -> Year 8 | Q19: ='Input Data'!Q110 -> Year 9 | R19: ='Input Data'!Q111 -> Year 10 | S19: ='Input Data'!Q112 -> Year 11 | T19: ='Input Data'!Q113 -> Year 12 | U19: ='Input Data'!Q114 -> Year 13 | V19: ='Input Data'!Q115 -> Year 14 | W19: ='Input Data'!Q116 -> Year 15 | X19: ='Input Data'!Q117 -> Year 16 | Y19: ='Input Data'!Q118 -> Year 17 | Z19: ='Input Data'!Q119 -> Year 18 | AA19: ='Input Data'!Q120 -> Year 19 | AB19: ='Input Data'!Q121 -> Year 20 | AC19: ='Input Data'!Q122 -> Year 21 | AD19: ='Input Data'!Q123 ->  | AE19: ='Input Data'!Q124 ->  | AF19: ='Input Data'!Q125 ->  | AG19: ='Input Data'!Q126 ->  | AH19: ='Input Data'!Q127 ->  | AI19: ='Input Data'!Q128 ->  | AJ19: ='Input Data'!Q129 ->  | AK19: ='Input Data'!Q130 ->  | AL19: ='Input Data'!Q131 ->  | AM19: ='Input Data'!Q132 -> 
B22: Load factor | I22: ='Input Data'!S102 -> 1 | J22: ='Input Data'!S103 -> 1 | K22: ='Input Data'!S104 -> 1 | L22: ='Input Data'!S105 -> 1 | M22: ='Input Data'!S106 -> 1 | N22: ='Input Data'!S107 -> 1 | O22: ='Input Data'!S108 -> 1 | P22: ='Input Data'!S109 -> 1 | Q22: ='Input Data'!S110 -> 1 | R22: ='Input Data'!S111 -> 1 | S22: ='Input Data'!S112 -> 1 | T22: ='Input Data'!S113 -> 1 | U22: ='Input Data'!S114 -> 1 | V22: ='Input Data'!S115 -> 1 | W22: ='Input Data'!S116 -> 1 | X22: ='Input Data'!S117 -> 1 | Y22: ='Input Data'!S118 -> 1 | Z22: ='Input Data'!S119 -> 1 | AA22: ='Input Data'!S120 -> 1 | AB22: ='Input Data'!S121 -> 1 | AC22: =IF('Input Data'!U89>20,'Input Data'!S122,"") ->  | AD22: =IF(AD19="Year 22",'Input Data'!S123,"") ->  | AE22: =IF(AE19="Year 23",'Input Data'!S124,"") ->  | AF22: =IF(AF19="Year 24",'Input Data'!S125,"") ->  | AG22: =IF(AG19="Year 25",'Input Data'!S126,"") ->  | AH22: =IF('Input Data'!U89>25,'Input Data'!S127,"") ->  | AI22: =IF(AI19="Year 27",'Input Data'!S128,"") ->  | AJ22: =IF(AJ19="Year 28",'Input Data'!S129,"") ->  | AK22: =IF(AK19="Year 29",'Input Data'!S130,"") ->  | AL22: =IF(AL19="Year 30",'Input Data'!S131,"") ->  | AM22: =IF('Input Data'!U89>30,'Input Data'!S132,"") -> 
B23: Availability | I23: ='Input Data'!T102 -> 0.65 | J23: ='Input Data'!T103 -> 0.75 | K23: ='Input Data'!T104 -> 0.85 | L23: ='Input Data'!T105 -> 0.85 | M23: ='Input Data'!T106 -> 0.85 | N23: ='Input Data'!T107 -> 0.85 | O23: ='Input Data'!T108 -> 0.85 | P23: ='Input Data'!T109 -> 0.85 | Q23: ='Input Data'!T110 -> 0.85 | R23: ='Input Data'!T111 -> 0.85 | S23: ='Input Data'!T112 -> 0.85 | T23: ='Input Data'!T113 -> 0.85 | U23: ='Input Data'!T114 -> 0.85 | V23: ='Input Data'!T115 -> 0.85 | W23: ='Input Data'!T116 -> 0.85 | X23: ='Input Data'!T117 -> 0.85 | Y23: ='Input Data'!T118 -> 0.85 | Z23: ='Input Data'!T119 -> 0.85 | AA23: ='Input Data'!T120 -> 0.85 | AB23: ='Input Data'!T121 -> 0.85 | AC23: =IF('Input Data'!U89>20,'Input Data'!T122,"") ->  | AD23: =IF(AD19="Year 22",'Input Data'!T123,"") ->  | AE23: =IF(AE19="Year 23",'Input Data'!T124,"") ->  | AF23: =IF(AF19="Year 24",'Input Data'!T125,"") ->  | AG23: =IF(AG19="Year 25",'Input Data'!T126,"") ->  | AH23: =IF('Input Data'!U89>25,'Input Data'!T127,"") ->  | AI23: =IF(AI19="Year 27",'Input Data'!T128,"") ->  | AJ23: =IF(AJ19="Year 28",'Input Data'!T129,"") ->  | AK23: =IF(AK19="Year 29",'Input Data'!T130,"") ->  | AL23: =IF(AL19="Year 30",'Input Data'!T131,"") ->  | AM23: =IF('Input Data'!U89>30,'Input Data'!T132,"") -> 
B24: Equivalent yearly hours | I24: =I22*8760*I23 -> 5694 | J24: 6570 | K24: 7446 | L24: 7446 | M24: 7446 | N24: 7446 | O24: 7446 | P24: 7446 | Q24: 7446 | R24: 7446 | S24: 7446 | T24: 7446 | U24: 7446 | V24: 7446 | W24: 7446 | X24: 7446 | Y24: 7446 | Z24: 7446 | AA24: 7446 | AB24: 7446 | AC24: =IF('Input Data'!U89>20, AC22*8760*AC23,"") ->  | AD24: =IF(AD19="Year 22",AD22*8760*AD23,"") ->  | AE24: =IF(AE19="Year 23",AE22*8760*AE23,"") ->  | AF24: =IF(AF19="Year 24",AF22*8760*AF23,"") ->  | AG24: =IF(AG19="Year 25",AG22*8760*AG23,"") ->  | AH24: =IF('Input Data'!U89>25,AH22*8760*AH23,"") ->  | AI24: =IF(AI19="Year 27",AI22*8760*AI23,"") ->  | AJ24: =IF(AJ19="Year 28",AJ22*8760*AJ23,"") ->  | AK24: =IF(AK19="Year 29",AK22*8760*AK23,"") ->  | AL24: =IF(AL19="Year 30",AL22*8760*AL23,"") ->  | AM24: =IF('Input Data'!U89>30,AM22*8760*AM23,"") -> 
B25: Expenditure factor | F25: ='Input Data'!U96 -> 0.25 | G25: ='Input Data'!U97 -> 0.45 | H25: ='Input Data'!U98 -> 0.3
B26: Revenues
B27: Electricity | I27: =$E$6*I24*$R$5/1000 -> 333.648544 | J27: =$E$6*J24*$R$5/1000 -> 384.9790893 | K27: 436.3096345 | L27: 436.3096345 | M27: 436.3096345 | N27: 436.3096345 | O27: 436.3096345 | P27: 436.3096345 | Q27: 436.3096345 | R27: 436.3096345 | S27: =$E$6*S24*$R$5/1000 -> 436.3096345 | T27: 436.3096345 | U27: 436.3096345 | V27: 436.3096345 | W27: 436.3096345 | X27: 436.3096345 | Y27: 436.3096345 | Z27: 436.3096345 | AA27: 436.3096345 | AB27: 436.3096345 | AC27: =IF('Input Data'!U89>20,$E$6*AC24*$R$5/1000,"") ->  | AD27: =IF(AD19="Year 22",$E$6*AD24*$R$5/1000,"") ->  | AE27: =IF(AE19="Year 23",$E$6*AE24*$R$5/1000,"") ->  | AF27: =IF(AF19="Year 24",$E$6*AF24*$R$5/1000,"") ->  | AG27: =IF(AG19="Year 25",$E$6*AG24*$R$5/1000,"") ->  | AH27: =IF('Input Data'!U89>25,$E$6*AH24*$R$5/1000,"") ->  | AI27: =IF(AI19="Year 27",$E$6*AI24*$R$5/1000,"") ->  | AJ27: =IF(AJ19="Year 28",$E$6*AJ24*$R$5/1000,"") ->  | AK27: =IF(AK19="Year 29",$E$6*AK24*$R$5/1000,"") ->  | AL27: =IF(AL19="Year 30",$E$6*AL24*$R$5/1000,"") ->  | AM27: =IF('Input Data'!U89>30,$E$6*AM24*$R$5/1000,"") -> 
B28: Operating costs
B29: Fuel (Natural Gas) | I29: =$M$5*$E$5*I24/1000000 -> 193.0147375 | J29: =$M$5*$E$5*J24/1000000 -> 222.7093125 | K29: 252.4038875 | L29: =$M$5*$E$5*L24/1000000 -> 252.4038875 | M29: 252.4038875 | N29: 252.4038875 | O29: 252.4038875 | P29: 252.4038875 | Q29: 252.4038875 | R29: 252.4038875 | S29: 252.4038875 | T29: 252.4038875 | U29: 252.4038875 | V29: 252.4038875 | W29: 252.4038875 | X29: 252.4038875 | Y29: 252.4038875 | Z29: 252.4038875 | AA29: 252.4038875 | AB29: 252.4038875 | AC29: =IF('Input Data'!U89>20,$M$5*$E$5*AC24/1000000,"") ->  | AD29: =IF(AD19="Year 22",$M$5*$E$5*AD24/1000000,"") ->  | AE29: =IF(AE19="Year 23",$M$5*$E$5*AE24/1000000,"") ->  | AF29: =IF(AF19="Year 24",$M$5*$E$5*AF24/1000000,"") ->  | AG29: =IF(AG19="Year 25",$M$5*$E$5*AG24/1000000,"") ->  | AH29: =IF('Input Data'!U89>25,$M$5*$E$5*AH24/1000000,"") ->  | AI29: =IF(AI19="Year 27",$M$5*$E$5*AI24/1000000,"") ->  | AJ29: =IF(AJ19="Year 28",$M$5*$E$5*AJ24/1000000,"") ->  | AK29: =IF(AK19="Year 29",$M$5*$E$5*AK24/1000000,"") ->  | AL29: =IF(AL19="Year 30",$M$5*$E$5*AL24/1000000,"") ->  | AM29: =IF('Input Data'!U89>30,$M$5*$E$5*AM24/1000000,"") -> 
B30: Maintenance | I30: =$M$6 -> 25.5 | J30: 25.5 | K30: 25.5 | L30: 25.5 | M30: 25.5 | N30: 25.5 | O30: 25.5 | P30: 25.5 | Q30: 25.5 | R30: 25.5 | S30: 25.5 | T30: 25.5 | U30: 25.5 | V30: 25.5 | W30: 25.5 | X30: 25.5 | Y30: 25.5 | Z30: 25.5 | AA30: 25.5 | AB30: 25.5 | AC30: =IF('Input Data'!U89>20,$M$6,"") ->  | AD30: =IF(AD19="Year 22",$M$6,"") ->  | AE30: =IF(AE19="Year 23",$M$6,"") ->  | AF30: =IF(AF19="Year 24",$M$6,"") ->  | AG30: =IF(AG19="Year 25",$M$6,"") ->  | AH30: =IF('Input Data'!U89>25,$M$6,"") ->  | AI30: =IF(AI19="Year 27",$M$6,"") ->  | AJ30: =IF(AJ19="Year 28",$M$6,"") ->  | AK30: =IF(AK19="Year 29",$M$6,"") ->  | AL30: =IF(AL19="Year 30",$M$6,"") ->  | AM30: =IF('Input Data'!U89>30,$M$6,"") -> 
B31: Labour | I31: =$N$12 -> 3.9 | J31: 3.9 | K31: 3.9 | L31: 3.9 | M31: 3.9 | N31: 3.9 | O31: 3.9 | P31: 3.9 | Q31: 3.9 | R31: 3.9 | S31: 3.9 | T31: 3.9 | U31: 3.9 | V31: 3.9 | W31: 3.9 | X31: 3.9 | Y31: 3.9 | Z31: 3.9 | AA31: 3.9 | AB31: 3.9 | AC31: =IF('Input Data'!U89>20,$N$12,"") ->  | AD31: =IF(AD19="Year 22",$N$12,"") ->  | AE31: =IF(AE19="Year 23",$N$12,"") ->  | AF31: =IF(AF19="Year 24",$N$12,"") ->  | AG31: =IF(AG19="Year 25",$N$12,"") ->  | AH31: =IF('Input Data'!U89>25,$N$12,"") ->  | AI31: =IF(AI19="Year 27",$N$12,"") ->  | AJ31: =IF(AJ19="Year 28",$N$12,"") ->  | AK31: =IF(AK19="Year 29",$N$12,"") ->  | AL31: =IF(AL19="Year 30",$N$12,"") ->  | AM31: =IF('Input Data'!U89>30,$N$12,"") -> 
B32: Chemicals and Consumables | I32: =I22*I23*'Input Data'!$U$74/0.85 -> 0.9176470588 | J32: =J22*J23*'Input Data'!$U$74/0.85 -> 1.058823529 | K32: =K22*K23*'Input Data'!$U$74/0.85 -> 1.2 | L32: =L22*L23*'Input Data'!$U$74/0.85 -> 1.2 | M32: =M22*M23*'Input Data'!$U$74/0.85 -> 1.2 | N32: =N22*N23*'Input Data'!$U$74/0.85 -> 1.2 | O32: =O22*O23*'Input Data'!$U$74/0.85 -> 1.2 | P32: =P22*P23*'Input Data'!$U$74/0.85 -> 1.2 | Q32: =Q22*Q23*'Input Data'!$U$74/0.85 -> 1.2 | R32: =R22*R23*'Input Data'!$U$74/0.85 -> 1.2 | S32: =S22*S23*'Input Data'!$U$74/0.85 -> 1.2 | T32: =T22*T23*'Input Data'!$U$74/0.85 -> 1.2 | U32: =U22*U23*'Input Data'!$U$74/0.85 -> 1.2 | V32: =V22*V23*'Input Data'!$U$74/0.85 -> 1.2 | W32: =W22*W23*'Input Data'!$U$74/0.85 -> 1.2 | X32: =X22*X23*'Input Data'!$U$74/0.85 -> 1.2 | Y32: =Y22*Y23*'Input Data'!$U$74/0.85 -> 1.2 | Z32: =Z22*Z23*'Input Data'!$U$74/0.85 -> 1.2 | AA32: =AA22*AA23*'Input Data'!$U$74/0.85 -> 1.2 | AB32: =AB22*AB23*'Input Data'!$U$74/0.85 -> 1.2 | AC32: =IF('Input Data'!U89>20,AC22*AC23*'Input Data'!$U$74/0.85,"") ->  | AD32: =IF(AD19="Year 22",AD22*AD23*'Input Data'!$U$74/0.85,"") ->  | AE32: =IF(AE19="Year 23",AE22*AE23*'Input Data'!$U$74/0.85,"") ->  | AF32: =IF(AF19="Year 24",AF22*AF23*'Input Data'!$U$74/0.85,"") ->  | AG32: =IF(AG19="Year 25",AG22*AG23*'Input Data'!$U$74/0.85,"") ->  | AH32: =IF('Input Data'!U89>25,AH22*AH23*'Input Data'!$U$74/0.85,"") ->  | AI32: =IF(AI19="Year 27",AI22*AI23*'Input Data'!$U$74/0.85,"") ->  | AJ32: =IF(AJ19="Year 28",AJ22*AJ23*'Input Data'!$U$74/0.85,"") ->  | AK32: =IF(AK19="Year 29",AK22*AK23*'Input Data'!$U$74/0.85,"") ->  | AL32: =IF(AL19="Year 30",AL22*AL23*'Input Data'!$U$74/0.85,"") ->  | AM32: =IF('Input Data'!U89>30,AM22*AM23*'Input Data'!$U$74/0.85,"") -> 
B33: Insurance + Local Taxes | I33: =I5*R10 -> 14.628 | J33: =I5*R10 -> 14.628 | K33: =I5*R10 -> 14.628 | L33: =I5*R10 -> 14.628 | M33: =I5*R10 -> 14.628 | N33: =I5*R10 -> 14.628 | O33: =I5*R10 -> 14.628 | P33: =I5*R10 -> 14.628 | Q33: =I5*R10 -> 14.628 | R33: =I5*R10 -> 14.628 | S33: =I5*R10 -> 14.628 | T33: =I5*R10 -> 14.628 | U33: =I5*R10 -> 14.628 | V33: =I5*R10 -> 14.628 | W33: =I5*R10 -> 14.628 | X33: =I5*R10 -> 14.628 | Y33: =I5*R10 -> 14.628 | Z33: =I5*R10 -> 14.628 | AA33: =I5*R10 -> 14.628 | AB33: =I5*R10 -> 14.628 | AC33: =IF('Input Data'!U89>20,I5*R10,"") ->  | AD33: =IF(AD19="Year 22",R10*I5,"") ->  | AE33: =IF(AE19="Year 23",I5*R10,"") ->  | AF33: =IF(AF19="Year 24",I5*R10,"") ->  | AG33: =IF(AG19="Year 25",I5*R10,"") ->  | AH33: =IF('Input Data'!U89>25,I5*R10,"") ->  | AI33: =IF(AI19="Year 27",I5*R10,"") ->  | AJ33: =IF(AJ19="Year 28",I5*R10,"") ->  | AK33: =IF(AK19="Year 29",I5*R10,"") ->  | AL33: =IF(AL19="Year 30",I5*R10,"") ->  | AM33: =IF('Input Data'!U89>30,I5*R10,"") -> 
B34: CO2 Emissions | I34: ='Input Data'!$U$33*'Input Data'!$U$77*I24/1000000 -> 0 | J34: ='Input Data'!$U$33*'Input Data'!$U$77*J24/1000000 -> 0 | K34: ='Input Data'!$U$33*'Input Data'!$U$77*K24/1000000 -> 0 | L34: ='Input Data'!$U$33*'Input Data'!$U$77*L24/1000000 -> 0 | M34: ='Input Data'!$U$33*'Input Data'!$U$77*M24/1000000 -> 0 | N34: ='Input Data'!$U$33*'Input Data'!$U$77*N24/1000000 -> 0 | O34: ='Input Data'!$U$33*'Input Data'!$U$77*O24/1000000 -> 0 | P34: ='Input Data'!$U$33*'Input Data'!$U$77*P24/1000000 -> 0 | Q34: ='Input Data'!$U$33*'Input Data'!$U$77*Q24/1000000 -> 0 | R34: ='Input Data'!$U$33*'Input Data'!$U$77*R24/1000000 -> 0 | S34: ='Input Data'!$U$33*'Input Data'!$U$77*S24/1000000 -> 0 | T34: ='Input Data'!$U$33*'Input Data'!$U$77*T24/1000000 -> 0 | U34: ='Input Data'!$U$33*'Input Data'!$U$77*U24/1000000 -> 0 | V34: ='Input Data'!$U$33*'Input Data'!$U$77*V24/1000000 -> 0 | W34: ='Input Data'!$U$33*'Input Data'!$U$77*W24/1000000 -> 0 | X34: ='Input Data'!$U$33*'Input Data'!$U$77*X24/1000000 -> 0 | Y34: ='Input Data'!$U$33*'Input Data'!$U$77*Y24/1000000 -> 0 | Z34: ='Input Data'!$U$33*'Input Data'!$U$77*Z24/1000000 -> 0 | AA34: ='Input Data'!$U$33*'Input Data'!$U$77*AA24/1000000 -> 0 | AB34: ='Input Data'!$U$33*'Input Data'!$U$77*AB24/1000000 -> 0 | AC34: =IF('Input Data'!U89>20,'Input Data'!$U$33*'Input Data'!$U$77*AC24/1000000,"") ->  | AD34: =IF(AD19="Year 22",'Input Data'!$U$33*'Input Data'!$U$77*AD24/1000000,"") ->  | AE34: =IF(AE19="Year 23",'Input Data'!$U$33*'Input Data'!$U$77*AE24/1000000,"") ->  | AF34: =IF(AF19="Year 24",'Input Data'!$U$33*'Input Data'!$U$77*AF24/1000000,"") ->  | AG34: =IF(AG19="Year 25",'Input Data'!$U$33*'Input Data'!$U$77*AG24/1000000,"") ->  | AH34: =IF('Input Data'!U89>25,'Input Data'!$U$33*'Input Data'!$U$77*AH24/1000000,"") ->  | AI34: =IF(AI19="Year 27",'Input Data'!$U$33*'Input Data'!$U$77*AI24/1000000,"") ->  | AJ34: =IF(AJ19="Year 28",'Input Data'!$U$33*'Input Data'!$U$77*AJ24/1000000,"") ->  | AK34: =IF(AK19="Year 29",'Input Data'!$U$33*'Input Data'!$U$77*AK24/1000000,"") ->  | AL34: =IF(AL19="Year 30",'Input Data'!$U$33*'Input Data'!$U$77*AL24/1000000,"") ->  | AM34: =IF('Input Data'!U89>30,'Input Data'!$U$33*'Input Data'!$U$77*AM24/1000000,"") -> 
B35: Fixed Capital Expenditure | F35: =I10*F25 -> 255.99 | G35: =I10*G25 -> 460.782 | H35: =H25*I10 -> 307.188
B37: Total Cash Flow (yearly) | F37: =SUM(F27:F27)-SUM(F29:F34)-F35 -> -255.99 | G37: -460.782 | H37: -307.188 | I37: 95.68815947 | J37: 117.1829532 | K37: 138.677747 | L37: 138.677747 | M37: 138.677747 | N37: 138.677747 | O37: 138.677747 | P37: 138.677747 | Q37: 138.677747 | R37: 138.677747 | S37: 138.677747 | T37: 138.677747 | U37: 138.677747 | V37: 138.677747 | W37: 138.677747 | X37: 138.677747 | Y37: 138.677747 | Z37: 138.677747 | AA37: 138.677747 | AB37: 138.677747 | AC37: =IF(AC19="Year 21",SUM(AC27:AC27)-SUM(AC29:AC34)-AC35,"") -> 0 | AD37: =IF(AD19="Year 22",SUM(AD27:AD27)-SUM(AD29:AD34)-AD35,"") ->  | AE37: =IF(AE19="Year 23",SUM(AE27:AE27)-SUM(AE29:AE34)-AE35,"") ->  | AF37: =IF(AF19="Year 24",SUM(AF27:AF27)-SUM(AF29:AF34)-AF35,"") ->  | AG37: =IF(AG19="Year 25",SUM(AG27:AG27)-SUM(AG29:AG34)-AG35,"") ->  | AH37: =IF(AH19="Year 26",SUM(AH27:AH27)-SUM(AH29:AH34)-AH35,"") ->  | AI37: =IF(AI19="Year 27",SUM(AI27:AI27)-SUM(AI29:AI34)-AI35,"") ->  | AJ37: =IF(AJ19="Year 28",SUM(AJ27:AJ27)-SUM(AJ29:AJ34)-AJ35,"") ->  | AK37: =IF(AK19="Year 29",SUM(AK27:AK27)-SUM(AK29:AK34)-AK35,"") ->  | AL37: =IF(AL19="Year 30",SUM(AL27:AL27)-SUM(AL29:AL34)-AL35,"") ->  | AM37: =IF(AM19="Year 31",SUM(AM27:AM27)-SUM(AM29:AM34)-AM35,"") -> 
B38: Total Cash Flow (accumulated) | F38: =F37 -> -255.99 | G38: =-1*(ABS(G37)+ABS(F38)) -> -716.772 | H38: =-1*(ABS(H37)+ABS(G38)) -> -1023.96 | I38: =H38+I37 -> -928.2718405 | J38: -811.0888873 | K38: -672.4111403 | L38: -533.7333933 | M38: -395.0556463 | N38: -256.3778993 | O38: -117.7001523 | P38: 20.97759469 | Q38: 159.6553417 | R38: 298.3330887 | S38: 437.0108357 | T38: 575.6885827 | U38: 714.3663297 | V38: 853.0440767 | W38: 991.7218237 | X38: 1130.399571 | Y38: 1269.077318 | Z38: 1407.755065 | AA38: 1546.432812 | AB38: 1685.110559 | AC38: =IF(AC19="Year 21",AB38+AC37,"") -> 1685.110559 | AD38: =IF(AD19="Year 22",AC38+AD37,"") ->  | AE38: =IF(AE19="Year 23",AD38+AE37,"") ->  | AF38: =IF(AF19="Year 24",AE38+AF37,"") ->  | AG38: =IF(AG19="Year 25",AF38+AG37,"") ->  | AH38: =IF(AH19="Year 26",AG38+AH37,"") ->  | AI38: =IF(AI19="Year 27",AH38+AI37,"") ->  | AJ38: =IF(AJ19="Year 28",AI38+AJ37,"") ->  | AK38: =IF(AK19="Year 29",AJ38+AK37,"") ->  | AL38: =IF(AL19="Year 30",AK38+AL37,"") ->  | AM38: =IF(AM19="Year 31",AL38+AM37,"") -> 
B40: Discounted Cash Flow (yearly) | F40: =F38/(1+R9) -> -232.7181818 | G40: =G37/(1+R9)^2 -> -380.8115702 | H40: =H37/(1+R9)^3 -> -230.7948911 | I40: =I37/(1+R9)^4 -> 65.35630044 | J40: =J37/(1+R9)^5 -> 72.76139436 | K40: =K37/(1+R9)^6 -> 78.27997286 | L40: =L37/(1+R9)^7 -> 71.16361169 | M40: =M37/(1+R9)^8 -> 64.69419245 | N40: =N37/(1+R9)^9 -> 58.81290222 | O40: =O37/(1+R9)^10 -> 53.46627475 | P40: =P37/(1+R9)^11 -> 48.60570432 | Q40: =Q37/(1+R9)^12 -> 44.18700392 | R40: =R37/(1+R9)^13 -> 40.17000357 | S40: =S37/(1+R9)^14 -> 36.51818506 | T40: =T37/(1+R9)^15 -> 33.19835006 | U40: =U37/(1+R9)^16 -> 30.18031823 | V40: =V37/(1+R9)^17 -> 27.43665294 | W40: =W37/(1+R9)^18 -> 24.94241176 | X40: =X37/(1+R9)^19 -> 22.67491978 | Y40: =Y37/(1+R9)^20 -> 20.61356344 | Z40: =Z37/(1+R9)^21 -> 18.73960313 | AA40: =AA37/(1+R9)^22 -> 17.03600284 | AB40: =AB37/(1+R9)^23 -> 15.48727531 | AC40: =IF(AC19="Year 21",AC37/(1+R9)^24,"") -> 0 | AD40: =IF(AD19="Year 22",AD37/(1+R9)^25,"") ->  | AE40: =IF(AE19="Year 23",AE37/(1+R9)^26,"") ->  | AF40: =IF(AF19="Year 24",AF37/(1+R9)^27,"") ->  | AG40: =IF(AG19="Year 25",AG37/(1+R9)^28,"") ->  | AH40: =IF(AH19="Year 26",AH37/(1+R9)^29,"") ->  | AI40: =IF(AI19="Year 27",AI37/(1+R9)^30,"") ->  | AJ40: =IF(AJ19="Year 28",AJ37/(1+R9)^31,"") ->  | AK40: =IF(AK19="Year 29",AK37/(1+R9)^32,"") ->  | AL40: =IF(AL19="Year 30",AL37/(1+R9)^33,"") ->  | AM40: =IF(AM19="Year 31",AM37/(1+R9)^34,"") -> 
B41: Discounted Cash Flow (accumulated) | F41: =F40 -> -232.7181818 | G41: =SUM(G40+F41) -> -613.5297521 | H41: -844.3246431 | I41: -778.9683427 | J41: -706.2069483 | K41: -627.9269755 | L41: -556.7633638 | M41: -492.0691713 | N41: -433.2562691 | O41: -379.7899944 | P41: -331.18429 | Q41: -286.9972861 | R41: -246.8272826 | S41: -210.3090975 | T41: -177.1107474 | U41: -146.9304292 | V41: -119.4937763 | W41: -94.55136451 | X41: -71.87644472 | Y41: -51.26288128 | Z41: -32.52327815 | AA41: -15.48727531 | AB41: -6.981082379e-13 | AC41: =IF(AC19="Year 21",SUM(AC40+AB41),"") -> -6.981082379e-13 | AD41: =IF(AD19="Year 22",SUM(AD40+AC41),"") ->  | AE41: =IF(AE19="Year 23",SUM(AE40+AD41),"") ->  | AF41: =IF(AF19="Year 24",SUM(AF40+AE41),"") ->  | AG41: =IF(AG19="Year 25",SUM(AG40+AF41),"") ->  | AH41: =IF(AH19="Year 26",SUM(AH40+AG41),"") ->  | AI41: =IF(AI19="Year 27",SUM(AI40+AH41),"") ->  | AJ41: =IF(AJ19="Year 28",SUM(AJ40+AI41),"") ->  | AK41: =IF(AK19="Year 29",SUM(AK40+AJ41),"") ->  | AL41: =IF(AL19="Year 30",SUM(AL40+AK41),"") ->  | AM41: =IF(AM19="Year 31",SUM(AM40+AL41),"") -> 
AA43: Hidden acc cf | AC43: =SUM(AC40+AB41) -> -6.981082379e-13 | AD43: =IF(AD40="",AC41,SUM(AD40+AC41)) -> -6.981082379e-13 | AE43: =IF(AE40="",AD43,SUM(AE40+AD43)) -> -6.981082379e-13 | AF43: =IF(AF40="",AE43,SUM(AF40+AE43)) -> -6.981082379e-13 | AG43: =IF(AG40="",AF43,SUM(AG40+AF43)) -> -6.981082379e-13 | AH43: -6.981082379e-13 | AI43: -6.981082379e-13 | AJ43: -6.981082379e-13 | AK43: -6.981082379e-13 | AL43: -6.981082379e-13 | AM43: -6.981082379e-13 | AN43: -6.981082379e-13

Sheet CCGT w 95% CC
B4: Production | G4: Capital Expenditure | I4: UK£ (million) | K4: Operating Costs | L4: UK£ (million/year) | P4: Revenues
B5: Nat Gas Feedrate | D5: te/h | E5: ='Input Data'!CA27 -> 127.9166667 | G5: Installed cost | I5: ='Input Data'!CA60 -> 747.3 | K5: Fuel Cost | M5: ='Input Data'!CA76 -> 265 | N5: UK£/te | P5: Electricity Price | R5: 0.07082783235 | S5: UK£/kWh
B6: Net power ouput | D6: MW | E6: ='Input Data'!CA23 -> 834.3 | G6: Land purchase, surveys | I6: ='Input Data'!CA65 -> 0.05 | K6: Maintenance | M6: ='Input Data'!CA72 -> 25.8 | N6: UK£/year
G7: Fees | I7: ='Input Data'!CA66 -> 0.1 | K7: CO2 Emissions | M7: ='Input Data'!CA77 -> 0 | N7: UK£/te
G8: Contingencies | I8: ='Input Data'!CA64 -> 0.25 | K8: Labour Cost | N8: UK£/year (million)
K9: Number of operations personnel | N9: ='Input Data'!CA78 -> 60 | P9: Discounted Rate: | R9: ='Input Data'!CA86 -> 0.1
B10: =IF('Input Data'!CA9>0.001,"Performance Data: User Adjusted","") ->  | G10: Total Investment Cost | I10: =I5+(I6*I5)+(I5*I7)+(I5*I8) -> 1046.22 | K10: Average salary options personnel | N10: ='Input Data'!CA79 -> 0.05 | P10: Insurance | R10: ='Input Data'!CA81 -> 0.02 | S10: Installed Cost
K11: Admin | N11: ='Input Data'!CA80 -> 0.3
K12: Total Labour Cost | N12: =(N9*N10)*(1+N11) -> 3.9
G13: =IF('Input Data'!CA47>0.001,"Capital and Cost Data: User Adjusted","") ->  | P13: =IF('Input Data'!CA83>0.001,"Revenue Data: User Adjusted","") -> 
K14: =IF('Input Data'!CA70>0.001,"Operating Data: User Adjusted","") -> 
F17: YEAR
B18: CASH FLOW ANALYSIS | F18: =G18-1 -> 2009 | G18: =H18-1 -> 2010 | H18: =I18-1 -> 2011 | I18: ='Input Data'!BX102 -> 2012 | J18: ='Input Data'!BX103 -> 2013 | K18: ='Input Data'!BX104 -> 2014 | L18: ='Input Data'!BX105 -> 2015 | M18: ='Input Data'!BX106 -> 2016 | N18: ='Input Data'!BX107 -> 2017 | O18: ='Input Data'!BX108 -> 2018 | P18: ='Input Data'!BX109 -> 2019 | Q18: ='Input Data'!BX110 -> 2020 | R18: ='Input Data'!BX111 -> 2021 | S18: ='Input Data'!BX112 -> 2022 | T18: ='Input Data'!BX113 -> 2023 | U18: ='Input Data'!BX114 -> 2024 | V18: ='Input Data'!BX115 -> 2025 | W18: ='Input Data'!BX116 -> 2026 | X18: ='Input Data'!BX117 -> 2027 | Y18: ='Input Data'!BX118 -> 2028 | Z18: ='Input Data'!BX119 -> 2029 | AA18: ='Input Data'!BX120 -> 2030 | AB18: ='Input Data'!BX121 -> 2031 | AC18: ='Input Data'!BX122 -> 2032 | AD18: ='Input Data'!BX123 ->  | AE18: ='Input Data'!BX124 ->  | AF18: ='Input Data'!BX125 ->  | AG18: ='Input Data'!BX126 ->  | AH18: ='Input Data'!BX127 ->  | AI18: ='Input Data'!BX128 ->  | AJ18: ='Input Data'!BX129 ->  | AK18: ='Input Data'!BX130 ->  | AL18: ='Input Data'!BX131 ->  | AM18: ='Input Data'!BX132 -> 
B19: UK£ (million) | F19: Year -3 | G19: Year -2 | H19: Year -1 | I19: ='Input Data'!BW102 -> Year 1 | J19: ='Input Data'!BW103 -> Year 2 | K19: ='Input Data'!BW104 -> Year 3 | L19: ='Input Data'!BW105 -> Year 4 | M19: ='Input Data'!BW106 -> Year 5 | N19: ='Input Data'!BW107 -> Year 6 | O19: ='Input Data'!BW108 -> Year 7 | P19: ='Input Data'!BW109 -> Year 8 | Q19: ='Input Data'!BW110 -> Year 9 | R19: ='Input Data'!BW111 -> Year 10 | S19: ='Input Data'!BW112 -> Year 11 | T19: ='Input Data'!BW113 -> Year 12 | U19: ='Input Data'!BW114 -> Year 13 | V19: ='Input Data'!BW115 -> Year 14 | W19: ='Input Data'!BW116 -> Year 15 | X19: ='Input Data'!BW117 -> Year 16 | Y19: ='Input Data'!BW118 -> Year 17 | Z19: ='Input Data'!BW119 -> Year 18 | AA19: ='Input Data'!BW120 -> Year 19 | AB19: ='Input Data'!BW121 -> Year 20 | AC19: ='Input Data'!BW122 -> Year 21 | AD19: ='Input Data'!BW123 ->  | AE19: ='Input Data'!BW124 ->  | AF19: ='Input Data'!BW125 ->  | AG19: ='Input Data'!BW126 ->  | AH19: ='Input Data'!BW127 ->  | AI19: ='Input Data'!BW128 ->  | AJ19: ='Input Data'!BW129 ->  | AK19: ='Input Data'!BW130 ->  | AL19: ='Input Data'!BW131 ->  | AM19: ='Input Data'!BW132 -> 
B22: Load factor | I22: ='Input Data'!BY102 -> 1 | J22: ='Input Data'!BY103 -> 1 | K22: ='Input Data'!BY104 -> 1 | L22: ='Input Data'!BY105 -> 1 | M22: ='Input Data'!BY106 -> 1 | N22: ='Input Data'!BY107 -> 1 | O22: ='Input Data'!BY108 -> 1 | P22: ='Input Data'!BY109 -> 1 | Q22: ='Input Data'!BY110 -> 1 | R22: ='Input Data'!BY111 -> 1 | S22: ='Input Data'!BY112 -> 1 | T22: ='Input Data'!BY113 -> 1 | U22: ='Input Data'!BY114 -> 1 | V22: ='Input Data'!BY115 -> 1 | W22: ='Input Data'!BY116 -> 1 | X22: ='Input Data'!BY117 -> 1 | Y22: ='Input Data'!BY118 -> 1 | Z22: ='Input Data'!BY119 -> 1 | AA22: ='Input Data'!BY120 -> 1 | AB22: ='Input Data'!BY121 -> 1 | AC22: =IF('Input Data'!CA89>20,'Input Data'!BY122,"") ->  | AD22: =IF(AD19="Year 22",'Input Data'!BY123,"") ->  | AE22: =IF(AE19="Year 23",'Input Data'!BY124,"") ->  | AF22: =IF(AF19="Year 24",'Input Data'!BY125,"") ->  | AG22: =IF(AG19="Year 25",'Input Data'!BY126,"") ->  | AH22: =IF('Input Data'!CA89>25,'Input Data'!BY127,"") ->  | AI22: =IF(AI19="Year 27",'Input Data'!BY128,"") ->  | AJ22: =IF(AJ19="Year 28",'Input Data'!BY129,"") ->  | AK22: =IF(AK19="Year 29",'Input Data'!BY130,"") ->  | AL22: =IF(AL19="Year 30",'Input Data'!BY131,"") ->  | AM22: =IF('Input Data'!CA89>30,'Input Data'!BY132,"") -> 
B23: Availability | I23: ='Input Data'!BZ102 -> 0.65 | J23: ='Input Data'!BZ103 -> 0.75 | K23: ='Input Data'!BZ104 -> 0.85 | L23: ='Input Data'!BZ105 -> 0.85 | M23: ='Input Data'!BZ106 -> 0.85 | N23: ='Input Data'!BZ107 -> 0.85 | O23: ='Input Data'!BZ108 -> 0.85 | P23: ='Input Data'!BZ109 -> 0.85 | Q23: ='Input Data'!BZ110 -> 0.85 | R23: ='Input Data'!BZ111 -> 0.85 | S23: ='Input Data'!BZ112 -> 0.85 | T23: ='Input Data'!BZ113 -> 0.85 | U23: ='Input Data'!BZ114 -> 0.85 | V23: ='Input Data'!BZ115 -> 0.85 | W23: ='Input Data'!BZ116 -> 0.85 | X23: ='Input Data'!BZ117 -> 0.85 | Y23: ='Input Data'!BZ118 -> 0.85 | Z23: ='Input Data'!BZ119 -> 0.85 | AA23: ='Input Data'!BZ120 -> 0.85 | AB23: ='Input Data'!BZ121 -> 0.85 | AC23: =IF('Input Data'!CA89>20,'Input Data'!BZ122,"") ->  | AD23: =IF(AD19="Year 22",'Input Data'!BZ123,"") ->  | AE23: =IF(AE19="Year 23",'Input Data'!BZ124,"") ->  | AF23: =IF(AF19="Year 24",'Input Data'!BZ125,"") ->  | AG23: =IF(AG19="Year 25",'Input Data'!BZ126,"") ->  | AH23: =IF('Input Data'!CA89>25,'Input Data'!BZ127,"") ->  | AI23: =IF(AI19="Year 27",'Input Data'!BZ128,"") ->  | AJ23: =IF(AJ19="Year 28",'Input Data'!BZ129,"") ->  | AK23: =IF(AK19="Year 29",'Input Data'!BZ130,"") ->  | AL23: =IF(AL19="Year 30",'Input Data'!BZ131,"") ->  | AM23: =IF('Input Data'!CA89>30,'Input Data'!BZ132,"") -> 
B24: Equivalent yearly hours | I24: =I22*8760*I23 -> 5694 | J24: 6570 | K24: 7446 | L24: 7446 | M24: 7446 | N24: 7446 | O24: 7446 | P24: 7446 | Q24: 7446 | R24: 7446 | S24: 7446 | T24: 7446 | U24: 7446 | V24: 7446 | W24: 7446 | X24: 7446 | Y24: 7446 | Z24: 7446 | AA24: 7446 | AB24: 7446 | AC24: =IF('Input Data'!CA89>20, AC22*8760*AC23,"") ->  | AD24: =IF(AD19="Year 22",AD22*8760*AD23,"") ->  | AE24: =IF(AE19="Year 23",AE22*8760*AE23,"") ->  | AF24: =IF(AF19="Year 24",AF22*8760*AF23,"") ->  | AG24: =IF(AG19="Year 25",AG22*8760*AG23,"") ->  | AH24: =IF('Input Data'!CA89>25,AH22*8760*AH23,"") ->  | AI24: =IF(AI19="Year 27",AI22*8760*AI23,"") ->  | AJ24: =IF(AJ19="Year 28",AJ22*8760*AJ23,"") ->  | AK24: =IF(AK19="Year 29",AK22*8760*AK23,"") ->  | AL24: =IF(AL19="Year 30",AL22*8760*AL23,"") ->  | AM24: =IF('Input Data'!CA89>30,AM22*8760*AM23,"") -> 
B25: Expenditure factor | F25: ='Input Data'!CA96 -> 0.25 | G25: ='Input Data'!CA97 -> 0.45 | H25: ='Input Data'!CA98 -> 0.3
B26: Revenues
B27: Electricity | I27: =$E$6*I24*$R$5/1000 -> 336.4679151 | J27: =$E$6*J24*$R$5/1000 -> 388.2322097 | K27: 439.9965043 | L27: 439.9965043 | M27: 439.9965043 | N27: 439.9965043 | O27: 439.9965043 | P27: 439.9965043 | Q27: 439.9965043 | R27: 439.9965043 | S27: =$E$6*S24*$R$5/1000 -> 439.9965043 | T27: 439.9965043 | U27: 439.9965043 | V27: 439.9965043 | W27: 439.9965043 | X27: 439.9965043 | Y27: 439.9965043 | Z27: 439.9965043 | AA27: 439.9965043 | AB27: 439.9965043 | AC27: =IF('Input Data'!CA89>20,$E$6*AC24*$R$5/1000,"") ->  | AD27: =IF(AD19="Year 22",$E$6*AD24*$R$5/1000,"") ->  | AE27: =IF(AE19="Year 23",$E$6*AE24*$R$5/1000,"") ->  | AF27: =IF(AF19="Year 24",$E$6*AF24*$R$5/1000,"") ->  | AG27: =IF(AG19="Year 25",$E$6*AG24*$R$5/1000,"") ->  | AH27: =IF('Input Data'!CA89>25,$E$6*AH24*$R$5/1000,"") ->  | AI27: =IF(AI19="Year 27",$E$6*AI24*$R$5/1000,"") ->  | AJ27: =IF(AJ19="Year 28",$E$6*AJ24*$R$5/1000,"") ->  | AK27: =IF(AK19="Year 29",$E$6*AK24*$R$5/1000,"") ->  | AL27: =IF(AL19="Year 30",$E$6*AL24*$R$5/1000,"") ->  | AM27: =IF('Input Data'!CA89>30,$E$6*AM24*$R$5/1000,"") -> 
B28: Operating costs
B29: Fuel (Natural Gas) | I29: =$M$5*$E$5*I24/1000000 -> 193.0147375 | J29: =$M$5*$E$5*J24/1000000 -> 222.7093125 | K29: 252.4038875 | L29: =$M$5*$E$5*L24/1000000 -> 252.4038875 | M29: 252.4038875 | N29: 252.4038875 | O29: 252.4038875 | P29: 252.4038875 | Q29: 252.4038875 | R29: 252.4038875 | S29: 252.4038875 | T29: 252.4038875 | U29: 252.4038875 | V29: 252.4038875 | W29: 252.4038875 | X29: 252.4038875 | Y29: 252.4038875 | Z29: 252.4038875 | AA29: 252.4038875 | AB29: 252.4038875 | AC29: =IF('Input Data'!CA89>20,$M$5*$E$5*AC24/1000000,"") ->  | AD29: =IF(AD19="Year 22",$M$5*$E$5*AD24/1000000,"") ->  | AE29: =IF(AE19="Year 23",$M$5*$E$5*AE24/1000000,"") ->  | AF29: =IF(AF19="Year 24",$M$5*$E$5*AF24/1000000,"") ->  | AG29: =IF(AG19="Year 25",$M$5*$E$5*AG24/1000000,"") ->  | AH29: =IF('Input Data'!CA89>25,$M$5*$E$5*AH24/1000000,"") ->  | AI29: =IF(AI19="Year 27",$M$5*$E$5*AI24/1000000,"") ->  | AJ29: =IF(AJ19="Year 28",$M$5*$E$5*AJ24/1000000,"") ->  | AK29: =IF(AK19="Year 29",$M$5*$E$5*AK24/1000000,"") ->  | AL29: =IF(AL19="Year 30",$M$5*$E$5*AL24/1000000,"") ->  | AM29: =IF('Input Data'!CA89>30,$M$5*$E$5*AM24/1000000,"") -> 
B30: Maintenance | I30: =$M$6 -> 25.8 | J30: 25.8 | K30: 25.8 | L30: 25.8 | M30: 25.8 | N30: 25.8 | O30: 25.8 | P30: 25.8 | Q30: 25.8 | R30: 25.8 | S30: 25.8 | T30: 25.8 | U30: 25.8 | V30: 25.8 | W30: 25.8 | X30: 25.8 | Y30: 25.8 | Z30: 25.8 | AA30: 25.8 | AB30: 25.8 | AC30: =IF('Input Data'!CA89>20,$M$6,"") ->  | AD30: =IF(AD19="Year 22",$M$6,"") ->  | AE30: =IF(AE19="Year 23",$M$6,"") ->  | AF30: =IF(AF19="Year 24",$M$6,"") ->  | AG30: =IF(AG19="Year 25",$M$6,"") ->  | AH30: =IF('Input Data'!CA89>25,$M$6,"") ->  | AI30: =IF(AI19="Year 27",$M$6,"") ->  | AJ30: =IF(AJ19="Year 28",$M$6,"") ->  | AK30: =IF(AK19="Year 29",$M$6,"") ->  | AL30: =IF(AL19="Year 30",$M$6,"") ->  | AM30: =IF('Input Data'!CA89>30,$M$6,"") -> 
B31: Labour | I31: =$N$12 -> 3.9 | J31: 3.9 | K31: 3.9 | L31: 3.9 | M31: 3.9 | N31: 3.9 | O31: 3.9 | P31: 3.9 | Q31: 3.9 | R31: 3.9 | S31: 3.9 | T31: 3.9 | U31: 3.9 | V31: 3.9 | W31: 3.9 | X31: 3.9 | Y31: 3.9 | Z31: 3.9 | AA31: 3.9 | AB31: 3.9 | AC31: =IF('Input Data'!CA89>20,$N$12,"") ->  | AD31: =IF(AD19="Year 22",$N$12,"") ->  | AE31: =IF(AE19="Year 23",$N$12,"") ->  | AF31: =IF(AF19="Year 24",$N$12,"") ->  | AG31: =IF(AG19="Year 25",$N$12,"") ->  | AH31: =IF('Input Data'!CA89>25,$N$12,"") ->  | AI31: =IF(AI19="Year 27",$N$12,"") ->  | AJ31: =IF(AJ19="Year 28",$N$12,"") ->  | AK31: =IF(AK19="Year 29",$N$12,"") ->  | AL31: =IF(AL19="Year 30",$N$12,"") ->  | AM31: =IF('Input Data'!CA89>30,$N$12,"") -> 
B32: Chemicals and Consumables | I32: =I22*I23*'Input Data'!$CA$74/0.85 -> 0.9688823529 | J32: =J22*J23*'Input Data'!$CA$74/0.85 -> 1.117941176 | K32: =K22*K23*'Input Data'!$CA$74/0.85 -> 1.267 | L32: =L22*L23*'Input Data'!$CA$74/0.85 -> 1.267 | M32: =M22*M23*'Input Data'!$CA$74/0.85 -> 1.267 | N32: =N22*N23*'Input Data'!$CA$74/0.85 -> 1.267 | O32: =O22*O23*'Input Data'!$CA$74/0.85 -> 1.267 | P32: =P22*P23*'Input Data'!$CA$74/0.85 -> 1.267 | Q32: =Q22*Q23*'Input Data'!$CA$74/0.85 -> 1.267 | R32: =R22*R23*'Input Data'!$CA$74/0.85 -> 1.267 | S32: =S22*S23*'Input Data'!$CA$74/0.85 -> 1.267 | T32: =T22*T23*'Input Data'!$CA$74/0.85 -> 1.267 | U32: =U22*U23*'Input Data'!$CA$74/0.85 -> 1.267 | V32: =V22*V23*'Input Data'!$CA$74/0.85 -> 1.267 | W32: =W22*W23*'Input Data'!$CA$74/0.85 -> 1.267 | X32: =X22*X23*'Input Data'!$CA$74/0.85 -> 1.267 | Y32: =Y22*Y23*'Input Data'!$CA$74/0.85 -> 1.267 | Z32: =Z22*Z23*'Input Data'!$CA$74/0.85 -> 1.267 | AA32: =AA22*AA23*'Input Data'!$CA$74/0.85 -> 1.267 | AB32: =AB22*AB23*'Input Data'!$CA$74/0.85 -> 1.267 | AC32: =IF('Input Data'!CA89>20,AC22*AC23*'Input Data'!$CA$74/0.85,"") ->  | AD32: =IF(AD19="Year 22",AD22*AD23*'Input Data'!$CA$74/0.85,"") ->  | AE32: =IF(AE19="Year 23",AE22*AE23*'Input Data'!$CA$74/0.85,"") ->  | AF32: =IF(AF19="Year 24",AF22*AF23*'Input Data'!$CA$74/0.85,"") ->  | AG32: =IF(AG19="Year 25",AG22*AG23*'Input Data'!$CA$74/0.85,"") ->  | AH32: =IF('Input Data'!CA89>25,AH22*AH23*'Input Data'!$CA$74/0.85,"") ->  | AI32: =IF(AI19="Year 27",AI22*AI23*'Input Data'!$CA$74/0.85,"") ->  | AJ32: =IF(AJ19="Year 28",AJ22*AJ23*'Input Data'!$CA$74/0.85,"") ->  | AK32: =IF(AK19="Year 29",AK22*AK23*'Input Data'!$CA$74/0.85,"") ->  | AL32: =IF(AL19="Year 30",AL22*AL23*'Input Data'!$CA$74/0.85,"") ->  | AM32: =IF('Input Data'!CA89>30,AM22*AM23*'Input Data'!$CA$74/0.85,"") -> 
B33: Insurance + Local Taxes | I33: =I5*R10 -> 14.946 | J33: =I5*R10 -> 14.946 | K33: =I5*R10 -> 14.946 | L33: =I5*R10 -> 14.946 | M33: =I5*R10 -> 14.946 | N33: =I5*R10 -> 14.946 | O33: =I5*R10 -> 14.946 | P33: =I5*R10 -> 14.946 | Q33: =I5*R10 -> 14.946 | R33: =I5*R10 -> 14.946 | S33: =I5*R10 -> 14.946 | T33: =I5*R10 -> 14.946 | U33: =I5*R10 -> 14.946 | V33: =I5*R10 -> 14.946 | W33: =I5*R10 -> 14.946 | X33: =I5*R10 -> 14.946 | Y33: =I5*R10 -> 14.946 | Z33: =I5*R10 -> 14.946 | AA33: =I5*R10 -> 14.946 | AB33: =I5*R10 -> 14.946 | AC33: =IF('Input Data'!CA89>20,I5*R10,"") ->  | AD33: =IF(AD19="Year 22",R10*I5,"") ->  | AE33: =IF(AE19="Year 23",I5*R10,"") ->  | AF33: =IF(AF19="Year 24",I5*R10,"") ->  | AG33: =IF(AG19="Year 25",I5*R10,"") ->  | AH33: =IF('Input Data'!CA89>25,I5*R10,"") ->  | AI33: =IF(AI19="Year 27",I5*R10,"") ->  | AJ33: =IF(AJ19="Year 28",I5*R10,"") ->  | AK33: =IF(AK19="Year 29",I5*R10,"") ->  | AL33: =IF(AL19="Year 30",I5*R10,"") ->  | AM33: =IF('Input Data'!CA89>30,I5*R10,"") -> 
B34: CO2 Emissions | I34: ='Input Data'!$CA$33*'Input Data'!$CA$77*I24/1000000 -> 0 | J34: ='Input Data'!$CA$33*'Input Data'!$CA$77*J24/1000000 -> 0 | K34: ='Input Data'!$CA$33*'Input Data'!$CA$77*K24/1000000 -> 0 | L34: ='Input Data'!$CA$33*'Input Data'!$CA$77*L24/1000000 -> 0 | M34: ='Input Data'!$CA$33*'Input Data'!$CA$77*M24/1000000 -> 0 | N34: ='Input Data'!$CA$33*'Input Data'!$CA$77*N24/1000000 -> 0 | O34: ='Input Data'!$CA$33*'Input Data'!$CA$77*O24/1000000 -> 0 | P34: ='Input Data'!$CA$33*'Input Data'!$CA$77*P24/1000000 -> 0 | Q34: ='Input Data'!$CA$33*'Input Data'!$CA$77*Q24/1000000 -> 0 | R34: ='Input Data'!$CA$33*'Input Data'!$CA$77*R24/1000000 -> 0 | S34: ='Input Data'!$CA$33*'Input Data'!$CA$77*S24/1000000 -> 0 | T34: ='Input Data'!$CA$33*'Input Data'!$CA$77*T24/1000000 -> 0 | U34: ='Input Data'!$CA$33*'Input Data'!$CA$77*U24/1000000 -> 0 | V34: ='Input Data'!$CA$33*'Input Data'!$CA$77*V24/1000000 -> 0 | W34: ='Input Data'!$CA$33*'Input Data'!$CA$77*W24/1000000 -> 0 | X34: ='Input Data'!$CA$33*'Input Data'!$CA$77*X24/1000000 -> 0 | Y34: ='Input Data'!$CA$33*'Input Data'!$CA$77*Y24/1000000 -> 0 | Z34: ='Input Data'!$CA$33*'Input Data'!$CA$77*Z24/1000000 -> 0 | AA34: ='Input Data'!$CA$33*'Input Data'!$CA$77*AA24/1000000 -> 0 | AB34: ='Input Data'!$CA$33*'Input Data'!$CA$77*AB24/1000000 -> 0 | AC34: =IF('Input Data'!CA89>20,'Input Data'!$CA$33*'Input Data'!$CA$77*AC24/1000000,"") ->  | AD34: =IF(AD19="Year 22",'Input Data'!$CA$33*'Input Data'!$CA$77*AD24/1000000,"") ->  | AE34: =IF(AE19="Year 23",'Input Data'!$CA$33*'Input Data'!$CA$77*AE24/1000000,"") ->  | AF34: =IF(AF19="Year 24",'Input Data'!$CA$33*'Input Data'!$CA$77*AF24/1000000,"") ->  | AG34: =IF(AG19="Year 25",'Input Data'!$CA$33*'Input Data'!$CA$77*AG24/1000000,"") ->  | AH34: =IF('Input Data'!CA89>25,'Input Data'!$CA$33*'Input Data'!$CA$77*AH24/1000000,"") ->  | AI34: =IF(AI19="Year 27",'Input Data'!$CA$33*'Input Data'!$CA$77*AI24/1000000,"") ->  | AJ34: =IF(AJ19="Year 28",'Input Data'!$CA$33*'Input Data'!$CA$77*AJ24/1000000,"") ->  | AK34: =IF(AK19="Year 29",'Input Data'!$CA$33*'Input Data'!$CA$77*AK24/1000000,"") ->  | AL34: =IF(AL19="Year 30",'Input Data'!$CA$33*'Input Data'!$CA$77*AL24/1000000,"") ->  | AM34: =IF('Input Data'!CA89>30,'Input Data'!$CA$33*'Input Data'!$CA$77*AM24/1000000,"") -> 
B35: Fixed Capital Expenditure | F35: =I10*F25 -> 261.555 | G35: =I10*G25 -> 470.799 | H35: =H25*I10 -> 313.866
B37: Total Cash Flow (yearly) | F37: =SUM(F27:F27)-SUM(F29:F34)-F35 -> -261.555 | G37: -470.799 | H37: -313.866 | I37: 97.83829521 | J37: 119.758956 | K37: 141.6796168 | L37: 141.6796168 | M37: 141.6796168 | N37: 141.6796168 | O37: 141.6796168 | P37: 141.6796168 | Q37: 141.6796168 | R37: 141.6796168 | S37: 141.6796168 | T37: 141.6796168 | U37: 141.6796168 | V37: 141.6796168 | W37: 141.6796168 | X37: 141.6796168 | Y37: 141.6796168 | Z37: 141.6796168 | AA37: 141.6796168 | AB37: 141.6796168 | AC37: =IF(AC19="Year 21",SUM(AC27:AC27)-SUM(AC29:AC34)-AC35,"") -> 0 | AD37: =IF(AD19="Year 22",SUM(AD27:AD27)-SUM(AD29:AD34)-AD35,"") ->  | AE37: =IF(AE19="Year 23",SUM(AE27:AE27)-SUM(AE29:AE34)-AE35,"") ->  | AF37: =IF(AF19="Year 24",SUM(AF27:AF27)-SUM(AF29:AF34)-AF35,"") ->  | AG37: =IF(AG19="Year 25",SUM(AG27:AG27)-SUM(AG29:AG34)-AG35,"") ->  | AH37: =IF(AH19="Year 26",SUM(AH27:AH27)-SUM(AH29:AH34)-AH35,"") ->  | AI37: =IF(AI19="Year 27",SUM(AI27:AI27)-SUM(AI29:AI34)-AI35,"") ->  | AJ37: =IF(AJ19="Year 28",SUM(AJ27:AJ27)-SUM(AJ29:AJ34)-AJ35,"") ->  | AK37: =IF(AK19="Year 29",SUM(AK27:AK27)-SUM(AK29:AK34)-AK35,"") ->  | AL37: =IF(AL19="Year 30",SUM(AL27:AL27)-SUM(AL29:AL34)-AL35,"") ->  | AM37: =IF(AM19="Year 31",SUM(AM27:AM27)-SUM(AM29:AM34)-AM35,"") -> 
B38: Total Cash Flow (accumulated) | F38: =F37 -> -261.555 | G38: =-1*(ABS(G37)+ABS(F38)) -> -732.354 | H38: =-1*(ABS(H37)+ABS(G38)) -> -1046.22 | I38: =H38+I37 -> -948.3817048 | J38: -828.6227488 | K38: -686.943132 | L38: -545.2635152 | M38: -403.5838984 | N38: -261.9042815 | O38: -120.2246647 | P38: 21.45495208 | Q38: 163.1345689 | R38: 304.8141857 | S38: 446.4938025 | T38: 588.1734193 | U38: 729.8530361 | V38: 871.5326529 | W38: 1013.21227 | X38: 1154.891887 | Y38: 1296.571503 | Z38: 1438.25112 | AA38: 1579.930737 | AB38: 1721.610354 | AC38: =IF(AC19="Year 21",AB38+AC37,"") -> 1721.610354 | AD38: =IF(AD19="Year 22",AC38+AD37,"") ->  | AE38: =IF(AE19="Year 23",AD38+AE37,"") ->  | AF38: =IF(AF19="Year 24",AE38+AF37,"") ->  | AG38: =IF(AG19="Year 25",AF38+AG37,"") ->  | AH38: =IF(AH19="Year 26",AG38+AH37,"") ->  | AI38: =IF(AI19="Year 27",AH38+AI37,"") ->  | AJ38: =IF(AJ19="Year 28",AI38+AJ37,"") ->  | AK38: =IF(AK19="Year 29",AJ38+AK37,"") ->  | AL38: =IF(AL19="Year 30",AK38+AL37,"") ->  | AM38: =IF(AM19="Year 31",AL38+AM37,"") -> 
